Workbook

Sheet START

Sheet Instructions
D2: 2020
X4: Yes
X5: No
W7: Type of Entities Range:
X8: Parent Municipality
X9: Consolidated Information
F14: START
F15: Instructions
F16: Template names
F17: Lookup and lists | W17: MTREF Range: | X17: 2013
F18: Org structure | X18: 2014
F19: Contacts | X19: 2015
F20: A1-Sum | X20: 2016
F21: A2-FinPerf SC | X21: 2017
F22: A2A | X22: 2018
F23: A3-FinPerf V | X23: 2019
F24: A3A | X24: 2020
F25: A4-FinPerf RE | X25: 2021
F26: A5-Capex | X26: 2022
F27: A5A | X27: 2023
F28: A6-FinPos | X28: 2024
F29: A7-CFlow | X29: 2025
F30: A8-ResRecon | X30: 2026
F31: A9-Asset | X31: 2027
F32: A10-SerDel
F33: SA1 | W33: MTREF Linked: | X33: 12
F34: SA2 | W34: MTREF: | X34: =INDEX(X17:X31,X33,1) -> 2024
F35: SA3
F36: SA4 | W36: Fin Year: | X36: =MTREF&"/"&RIGHT(MTREF,2)+1 -> 2024/25
F37: SA5
F38: SA6
F39: SA7
F40: SA8
F41: SA9
F42: SA10
F43: SA11
F44: SA12a
F45: SA12b
F46: SA13a
F47: SA13b
F48: SA14
F49: SA15
F50: SA16
F51: SA17
F52: SA18
F53: SA19
F54: SA20
F55: SA21
F56: SA22
F57: SA23
F58: SA24
F59: SA25
F60: SA26
F61: SA27
F62: SA28
F63: SA29
F64: SA30
F65: SA31
F66: SA32
F67: SA33
F68: SA34a
F69: SA34b
F70: SA34c
F71: SA34d
F72: SA34e
F73: SA35
F74: SA36
F75: SA37
F76: SA38
F77: LGDB_EXPORT

Sheet Template names (hidden)
A1: Common sheet headings
A2: Head1 | B2: =HLOOKUP(MTREF,Headings,2) -> 2022/23 | C2: Prior year -1
A3: Head1A | B3: =HLOOKUP(MTREF,Headings,3) -> 2021/22 | C3: Prior year -2
A4: Head1B | B4: =HLOOKUP(MTREF,Headings,4) -> 2020/21 | C4: Prior year -3
A5: Head2 | B5: =HLOOKUP(MTREF,Headings,5) -> Current Year 2023/24 | C5: Year in which budget is being prepared
A6: Head2A | B6: =HLOOKUP(MTREF,Headings,6) -> 2023/24 | C6: Year in which budget is being prepared
A7: Head3 | B7: =HLOOKUP(MTREF,Headings,7) -> 2024/25 Medium Term Revenue & Expenditure Framework | C7: MTREF name
A8: Head4 | B8: LTFS | C8: Long term financial strategy
A9: Head5 | B9: Audited Outcome
A10: Head5A | B10: Outcome
A11: Head5B | B11: Pre-audit outcome
A12: Head6 | B12: Original Budget
A13: Head7 | B13: Adjusted Budget
A14: Head8 | B14: Full Year Forecast
A15: Head9 | B15: =HLOOKUP(MTREF,Headings,8) -> Budget Year 2024/25 | C15: 1st year of MTREF | D15: Year1
A16: Head10 | B16: =HLOOKUP(MTREF,Headings,9) -> Budget Year +1 2025/26 | C16: 2nd year of MTREF | D16: Year2
A17: Head11 | B17: =HLOOKUP(MTREF,Headings,10) -> Budget Year +2 2026/27 | C17: 3rd year of MTREF | D17: Year3
A18: Head12 | B18: =HLOOKUP(MTREF,Headings,11) -> Forecast 2027/28 | C18: 1st yr of long term forecast | D18: Year4
A19: Head13 | B19: =HLOOKUP(MTREF,Headings,12) -> Forecast 2028/29 | C19: Next yr of long term forecast | D19: Year5
A20: Head14 | B20: =HLOOKUP(MTREF,Headings,13) -> Forecast 2029/30 | C20: Next yr of long term forecast | D20: Year6
A21: Head15 | B21: =HLOOKUP(MTREF,Headings,14) -> Forecast 2030/31 | C21: Next yr of long term forecast | D21: Year7
A22: Head16 | B22: =HLOOKUP(MTREF,Headings,15) -> Forecast 2031/32 | C22: Next yr of long term forecast | D22: Year8
A23: Head17 | B23: =HLOOKUP(MTREF,Headings,16) -> Forecast 2032/33 | C23: Next yr of long term forecast | D23: Year9
A24: Head18 | B24: =HLOOKUP(MTREF,Headings,17) -> Forecast 2033/34 | C24: Next yr of long term forecast | D24: Year10
A25: Head19 | B25: =HLOOKUP(MTREF,Headings,18) -> Forecast 2034/35 | C25: Next yr of long term forecast | D25: Year11
A26: Head20 | B26: =HLOOKUP(MTREF,Headings,19) -> Forecast 2035/36 | C26: Next yr of long term forecast | D26: Year12
A27: Head21 | B27: =HLOOKUP(MTREF,Headings,20) -> Forecast 2036/37 | C27: Next yr of long term forecast | D27: Year13
A28: Head22 | B28: =HLOOKUP(MTREF,Headings,21) -> Forecast 2037/38 | C28: Next yr of long term forecast | D28: Year14
A29: Head23 | B29: =HLOOKUP(MTREF,Headings,22) -> Forecast 2038/39 | C29: Next yr of long term forecast | D29: Year15
A30: Head24 | B30: Description
A31: Head25
A32: Head26 | B32: Vote Description
A33: Head27 | B33: Ref
A34: Head27a | B34: References
A35: Head28 | B35: Surplus/(Deficit) for the year | D35: Result
A36: Head29 | B36: =HLOOKUP(MTREF,Headings,23) -> Annual target 2024/25
A37: Head30 | B37: =HLOOKUP(MTREF,Headings,24) -> Revised target 2024/25
A38: Head31 | B38: Quarter ended 30 September
A39: Head32 | B39: Quarter ended 31 December
A40: Head33 | B40: Quarter ended 31 March
A41: Head34 | B41: Quarter ended 30 June
A42: Head35 | B42: Variance explanation
A43: Head36 | B43: YTD Actual 31 Dec
A44: Head37 | B44: YTD Budget 31 Dec
A45: Head38 | B45: Monthly actual
A46: Head39 | B46: YTD actual
A47: Head40 | B47: YTD budget
A48: Head41 | B48: YTD variance
A49: Head42 | B49: Surplus/ (Deficit) for the yr/period
A50: Head43 | B50: =Head3&" Summary" -> 2024/25 Medium Term Revenue & Expenditure Framework Summary
A51: Head44 | B51: 2001 Census
A52: Head45 | B52: 2011 Census
A53: Head46 | B53: - Adjustments Budget - January 2007
A54: Head47 | B54: Previous target year to complete
A55: Head48 | B55: Present value
A56: Head49
A57: Head50 | B57: Other Adjusts.
A58: Head51 | B58: Accum. Funds
A59: Head52 | B59: Multi-year capital
A60: Head53 | B60: Unfore. Unavoid.
A61: Head54 | B61: Prior Adjusted
A62: Head55 | B62: Nat. or Prov. Govt
A63: Head56 | B63: Total Adjusts.
A64: SFPerf1 | B64: Budgeted Financial Performance
A65: SFPerf2 | B65: Forecast Financial Performance
A66: SFPos1 | B66: Budgeted Financial Position
A67: SFPos2 | B67: Forecast Financial Position
A68: Cash1 | B68: Budget Cash Flow
A69: Cash2 | B69: Forecast Cash Flow
A70: RandM | B70: Expenditure includes repairs & maintenance of R'000
A71: Depart1 | B71: Department 1 - | D71: DEP1
A72: Depart2 | B72: Department 2 - | D72: DEP2
A73: Depart3 | B73: Department 3 - | D73: DEP3
A74: Depart4 | B74: Department 4 - | D74: DEP4
A75: Depart5 | B75: Department 5 - | D75: DEP5
A76: Depart6 | B76: Department 6 - | D76: DEP6
A77: Depart7 | B77: Department 7 - | D77: DEP7
A78: Depart8 | B78: Department 8 - | D78: DEP8
A79: Depart9 | B79: Department 9 - | D79: DEP9
A80: Depart10 | B80: Department 10 - | D80: DEP10
A81: Depart11 | B81: Department 11 - | D81: DEP11
A82: Depart12 | B82: Department 12 - | D82: DEP12
A83: Depart13 | B83: Department 13 - | D83: DEP13
A84: Depart14 | B84: Department 14 - | D84: DEP14
A87: Base year of forecast column selection names
A88: Choose | B88: ACT
B89: APP
B90: ADJ
A92: Standard nomenclature
A93: Muni | B93: ='Lookup and lists'!B28 -> LIM351 Blouberg
A94: Municipal Entities | B94: 2 | C94: Type of report: | D94: 1
A95: =IF((MuniEntities=1)*(MuniType=2),"YES","NO") -> NO | B95: Does this municipality have entities (consolidated budget and entity budgets required)? YES/NO
A96: Entity 1 | B96: (Pty) Ltd Example 1 - Municipal entity - | D96: Ent1
A97: Entity 2 | B97: (Pty) Ltd Example 2 - Municipal entity - | D97: Ent2
A98: Entity 3 | B98: Municipal Entity Example 3 | D98: Ent3
A99: Budget approval tables | C99: Chart x-ref | D99: Sch/Tab/Ch | E99: Alternative for municipalities without entities | F99: Alternative for municipalities without entities
B100: =IF(Consolques="YES",E100,F100) -> Table A1 Budget Summary | D100: Table A1 | E100: =D100&"Consolidated Budget Summary" -> Table A1 Consolidated Budget Summary | F100: =D100&"Budget Summary" -> Table A1 Budget Summary
B101: Table A2 Budgeted Financial Performance (revenue and expenditure by functional classification) | C101: Charts 5, 6 | D101: Table A2 | E101: =D101&"Consolidated Budgeted Financial Performance (revenue and expenditure by functional classification)" -> Table A2 Consolidated Budgeted Financial Performance (revenue and expenditure by functional classification) | F101: =D101&"Budgeted Financial Performance (revenue and expenditure by functional classification)" -> Table A2 Budgeted Financial Performance (revenue and expenditure by functional classification)
B102: Table A3 Budgeted Financial Performance (revenue and expenditure by municipal vote) | D102: Table A3 | E102: =D102&"Consolidated Budgeted Financial Performance (revenue and expenditure by municipal vote)" -> Table A3 Consolidated Budgeted Financial Performance (revenue and expenditure by municipal vote) | F102: =D102&"Budgeted Financial Performance (revenue and expenditure by municipal vote)" -> Table A3 Budgeted Financial Performance (revenue and expenditure by municipal vote)
B103: Table A4 Budgeted Financial Performance (revenue and expenditure) | C103: Charts 1, 2, 3, 4 | D103: Table A4 | E103: =D103&"Consolidated Budgeted Financial Performance (revenue and expenditure)" -> Table A4 Consolidated Budgeted Financial Performance (revenue and expenditure) | F103: =D103&"Budgeted Financial Performance (revenue and expenditure)" -> Table A4 Budgeted Financial Performance (revenue and expenditure)
B104: Table A5 Budgeted Capital Expenditure by vote, functional classification and funding | C104: Charts 7, 8, 9, 10, 20 | D104: Table A5 | E104: =D104&"Consolidated Budgeted Capital Expenditure by vote, functional classification and funding" -> Table A5 Consolidated Budgeted Capital Expenditure by vote, functional classification and funding | F104: =D104&"Budgeted Capital Expenditure by vote, functional classification and funding" -> Table A5 Budgeted Capital Expenditure by vote, functional classification and funding
B105: Table A6 Budgeted Financial Position | D105: Table A6 | E105: =D105&"Consolidated Budgeted Financial Position" -> Table A6 Consolidated Budgeted Financial Position | F105: =D105&"Budgeted Financial Position" -> Table A6 Budgeted Financial Position
B106: Table A7 Budgeted Cash Flows | D106: Table A7 | E106: =D106&"Consolidated Budgeted Cash Flows" -> Table A7 Consolidated Budgeted Cash Flows | F106: =D106&"Budgeted Cash Flows" -> Table A7 Budgeted Cash Flows
B107: Table A8 Cash backed reserves/accumulated surplus reconciliation | D107: Table A8 | E107: =D107&"Consolidated Cash backed reserves/accumulated surplus reconciliation" -> Table A8 Consolidated Cash backed reserves/accumulated surplus reconciliation | F107: =D107&"Cash backed reserves/accumulated surplus reconciliation" -> Table A8 Cash backed reserves/accumulated surplus reconciliation
B108: Table A9 Asset Management | D108: Table A9 | E108: =D108&"Consolidated Asset Management" -> Table A9 Consolidated Asset Management | F108: =D108&"Asset Management" -> Table A9 Asset Management
B109: Table A10 Basic service delivery measurement | D109: Table A10 | E109: =D109&"Consolidated basic service delivery measurement" -> Table A10 Consolidated basic service delivery measurement | F109: =D109&"Basic service delivery measurement" -> Table A10 Basic service delivery measurement
A110: Supportinging Tables to the Budget Approval Tables | C110: =$C$99 -> Chart x-ref | D110: =$D$99 -> Sch/Tab/Ch
A111: Supporting Table SA1 | B111: =A111&" Supportinging detail to 'Budgeted Financial Performance'" -> Supporting Table SA1 Supportinging detail to 'Budgeted Financial Performance'
A112: Supporting Table SA2 | B112: =IF(Consolques="YES",E112,F112) -> Supporting Table SA2 Matrix Financial Performance Budget (revenue source/expenditure type and dept.) | E112: =A112&"Consolidated Matrix Financial Performance Budget (revenue source/expenditure type & dept.)" -> Supporting Table SA2 Consolidated Matrix Financial Performance Budget (revenue source/expenditure type & dept.) | F112: =A112&"Matrix Financial Performance Budget (revenue source/expenditure type and dept.)" -> Supporting Table SA2 Matrix Financial Performance Budget (revenue source/expenditure type and dept.)
A113: Supporting Table SA3 | B113: =A113&"Supportinging detail to 'Budgeted Financial Position'" -> Supporting Table SA3 Supportinging detail to 'Budgeted Financial Position'
A114: Supporting Table SA4 | B114: =A114&"Reconciliation of IDP strategic objectives and budget (revenue)" -> Supporting Table SA4 Reconciliation of IDP strategic objectives and budget (revenue) | C114: Chart 11
A115: Supporting Table SA5 | B115: =A115&"Reconciliation of IDP strategic objectives and budget (operating expenditure)" -> Supporting Table SA5 Reconciliation of IDP strategic objectives and budget (operating expenditure) | C115: Chart 12
A116: Supporting Table SA6 | B116: =A116&"Reconciliation of IDP strategic objectives and budget (capital expenditure)" -> Supporting Table SA6 Reconciliation of IDP strategic objectives and budget (capital expenditure) | C116: Chart 13
A117: Supporting Table SA7 | B117: =A117&" Measureable performance objectives" -> Supporting Table SA7 Measureable performance objectives
A118: Supporting Table SA8 | B118: =A118&" Performance indicators and benchmarks" -> Supporting Table SA8 Performance indicators and benchmarks | C118: Chts 15-19
A119: Supporting Table SA9 | B119: =A119&" Social, economic and demographic statistics and assumptions" -> Supporting Table SA9 Social, economic and demographic statistics and assumptions
A120: Supporting Table SA10 | B120: =A120&" Funding measurement" -> Supporting Table SA10 Funding measurement | C120: Chart 14
A121: Supporting Table SA11 | B121: =A121&" Property rates summary" -> Supporting Table SA11 Property rates summary
A122: Supporting Table SA12a | B122: =A122&" Property rates by category (current year)" -> Supporting Table SA12a Property rates by category (current year)
A123: Supporting Table SA12b | B123: =A123&" Property rates by category (budget year)" -> Supporting Table SA12b Property rates by category (budget year)
A124: Supporting Table SA13a | B124: =A124&" Service Tariffs by category" -> Supporting Table SA13a Service Tariffs by category
A125: Supporting Table SA13b | B125: =A125&" Service Tariffs by category - explanatory" -> Supporting Table SA13b Service Tariffs by category - explanatory
A126: Supporting Table SA14 | B126: =A126&" Household bills" -> Supporting Table SA14 Household bills
A127: Supporting Table SA15 | B127: =A127&" Investment particulars by type" -> Supporting Table SA15 Investment particulars by type
A128: Supporting Table SA16 | B128: =A128&" Investment particulars by maturity" -> Supporting Table SA16 Investment particulars by maturity
A129: Supporting Table SA17 | B129: =A129&" Borrowing" -> Supporting Table SA17 Borrowing
A130: Supporting Table SA18 | B130: =A130&" Transfers and grant receipts" -> Supporting Table SA18 Transfers and grant receipts
A131: Supporting Table SA19 | B131: =A131&" Expenditure on transfers and grant programme" -> Supporting Table SA19 Expenditure on transfers and grant programme
A132: Supporting Table SA20 | B132: =A132&" Reconciliation of transfers, grant receipts and unspent funds" -> Supporting Table SA20 Reconciliation of transfers, grant receipts and unspent funds
A133: Supporting Table SA21 | B133: =A133&" Transfers and grants made by the municipality" -> Supporting Table SA21 Transfers and grants made by the municipality
A134: Supporting Table SA22 | B134: =A134&" Summary councillor and staff benefits" -> Supporting Table SA22 Summary councillor and staff benefits
A135: Supporting Table SA23 | B135: =A135&" Salaries, allowances & benefits (political office bearers/councillors/senior managers)" -> Supporting Table SA23 Salaries, allowances & benefits (political office bearers/councillors/senior managers)
A136: Supporting Table SA24 | B136: =A136&" Summary of personnel numbers" -> Supporting Table SA24 Summary of personnel numbers
A137: Supporting Table SA25 | B137: =IF(Consolques="YES",E137,F137) -> Supporting Table SA25 Budgeted monthly revenue and expenditure | E137: =A137&" Consolidated budgeted monthly revenue and expenditure" -> Supporting Table SA25 Consolidated budgeted monthly revenue and expenditure | F137: =A137&" Budgeted monthly revenue and expenditure" -> Supporting Table SA25 Budgeted monthly revenue and expenditure
A138: Supporting Table SA26 | B138: Supporting Table SA26 Budgeted monthly revenue and expenditure (municipal vote) | E138: =A138&" Consolidated budgeted monthly revenue and expenditure (municipal vote)" -> Supporting Table SA26 Consolidated budgeted monthly revenue and expenditure (municipal vote) | F138: =A138&" Budgeted monthly revenue and expenditure (municipal vote)" -> Supporting Table SA26 Budgeted monthly revenue and expenditure (municipal vote)
A139: Supporting Table SA27 | B139: Supporting Table SA27 Budgeted monthly revenue and expenditure (functional classification) | E139: =A139&" Consolidated budgeted monthly revenue and expenditure (functional classification)" -> Supporting Table SA27 Consolidated budgeted monthly revenue and expenditure (functional classification) | F139: =A139&" Budgeted monthly revenue and expenditure (functional classification)" -> Supporting Table SA27 Budgeted monthly revenue and expenditure (functional classification)
A140: Supporting Table SA28 | B140: Supporting Table SA28 Budgeted monthly capital expenditure (municipal vote) | E140: =A140&" Consolidated budgeted monthly capital expenditure (municipal vote)" -> Supporting Table SA28 Consolidated budgeted monthly capital expenditure (municipal vote) | F140: =A140&" Budgeted monthly capital expenditure (municipal vote)" -> Supporting Table SA28 Budgeted monthly capital expenditure (municipal vote)
A141: Supporting Table SA29 | B141: Supporting Table SA29 Budgeted monthly capital expenditure (functional classification) | E141: =A141&" Consolidated budgeted monthly capital expenditure (functional classification)" -> Supporting Table SA29 Consolidated budgeted monthly capital expenditure (functional classification) | F141: =A141&" Budgeted monthly capital expenditure (functional classification)" -> Supporting Table SA29 Budgeted monthly capital expenditure (functional classification)
A142: Supporting Table SA30 | B142: Supporting Table SA30 Budgeted monthly cash flow | E142: =A142&" Consolidated budgeted monthly cash flow" -> Supporting Table SA30 Consolidated budgeted monthly cash flow | F142: =A142&" Budgeted monthly cash flow" -> Supporting Table SA30 Budgeted monthly cash flow
A143: Supporting Table SA31 | B143: NOT REQUIRED - municipality does not have entities | E143: =A143&" Aggregated entity budget" -> Supporting Table SA31 Aggregated entity budget | F143: NOT REQUIRED - municipality does not have entities
A144: Supporting Table SA32 | B144: =A144&" List of external mechanisms" -> Supporting Table SA32 List of external mechanisms
A145: Supporting Table SA33 | B145: =A145&" Contracts having future budgetary implications" -> Supporting Table SA33 Contracts having future budgetary implications
A146: Supporting Table SA34a | B146: =IF(Consolques="YES",E146,F146) -> Supporting Table SA34a Capital expenditure on new assets by asset class | E146: =A146&" Consolidated capital expenditure on new assets by asset class" -> Supporting Table SA34a Consolidated capital expenditure on new assets by asset class | F146: =A146&" Capital expenditure on new assets by asset class" -> Supporting Table SA34a Capital expenditure on new assets by asset class
A147: Supporting Table SA34b | B147: Supporting Table SA34b Capital expenditure on the renewal of existing assets by asset class | E147: =A147&" Consolidated capital expenditure on the renewal of existing assets by asset class" -> Supporting Table SA34b Consolidated capital expenditure on the renewal of existing assets by asset class | F147: =A147&" Capital expenditure on the renewal of existing assets by asset class" -> Supporting Table SA34b Capital expenditure on the renewal of existing assets by asset class
A148: Supporting Table SA34c | B148: Supporting Table SA34c Repairs and maintenance expenditure by asset class | E148: =A148&" Consolidated repairs and maintenance by asset class" -> Supporting Table SA34c Consolidated repairs and maintenance by asset class | F148: =A148&" Repairs and maintenance expenditure by asset class" -> Supporting Table SA34c Repairs and maintenance expenditure by asset class
A149: Supporting Table SA34d | B149: =IF(Consolques="YES",E149,F149) -> Supporting Table SA34d Depreciation by asset class | E149: =A149&" Consolidated Depreciation by asset class" -> Supporting Table SA34d Consolidated Depreciation by asset class | F149: =A149&" Depreciation by asset class" -> Supporting Table SA34d Depreciation by asset class
A150: Supporting Table SA34e | B150: =IF(Consolques="YES",E150,F150) -> Supporting Table SA34e Capital expenditure on the upgrading of existing assets by asset class | E150: =A150&" Consolidated capital expenditure on the upgrading of existing assets by asset class" -> Supporting Table SA34e Consolidated capital expenditure on the upgrading of existing assets by asset class | F150: =A150&" Capital expenditure on the upgrading of existing assets by asset class" -> Supporting Table SA34e Capital expenditure on the upgrading of existing assets by asset class
A151: Supporting Table SA35 | B151: Supporting Table SA35 Future financial implications of the capital budget | E151: =A151&" Consolidated future financial implications of the capital budget" -> Supporting Table SA35 Consolidated future financial implications of the capital budget | F151: =A151& " Future financial implications of the capital budget" -> Supporting Table SA35 Future financial implications of the capital budget
A152: Supporting Table SA36 | B152: Supporting Table SA36 Detailed capital budget | E152: =A152&" Consolidated detailed capital budget" -> Supporting Table SA36 Consolidated detailed capital budget | F152: =A152& " Detailed capital budget" -> Supporting Table SA36 Detailed capital budget
A153: Supporting Table SA37 | B153: Supporting Table SA37 Projects delayed from previous financial year/s | E153: =A153&" Consolidated projects delayed from previous financial year/s" -> Supporting Table SA37 Consolidated projects delayed from previous financial year/s | F153: =A153& " Projects delayed from previous financial year/s" -> Supporting Table SA37 Projects delayed from previous financial year/s
A154: Supporting Table SA38 | B154: =IF(Consolques="YES",E154,F154) -> Supporting Table SA38 Detailed operational projects | E154: =A154&" Consolidated detailed operational projects" -> Supporting Table SA38 Consolidated detailed operational projects | F154: =A154& " Detailed operational projects" -> Supporting Table SA38 Detailed operational projects
A156: Budget Charts | B156: Charts | C156: Cross reference
A157: Chart A1 | B157: =A157&"Revenue by Municipal Vote" -> Chart A1 Revenue by Municipal Vote
A158: Chart A2 | B158: =A158&"Expenditure by Municipal Vote" -> Chart A2 Expenditure by Municipal Vote
A159: Chart A3 | B159: =A159&"Revenue by Standard Classification" -> Chart A3 Revenue by Standard Classification | C159: A2
A160: Chart A4 | B160: =A160&"Expenditure by Standard Classification" -> Chart A4 Expenditure by Standard Classification | C160: A2
A161: Chart A5 | B161: =A161&"Revenue by Major Source (refer 'Minor' source for 'Other Revenue' allocation" -> Chart A5 Revenue by Major Source (refer 'Minor' source for 'Other Revenue' allocation | C161: A3
A162: Chart A6 | B162: =A162&"Revenue by Minor Source (Other)" -> Chart A6 Revenue by Minor Source (Other) | C162: A3
A163: Chart A7 | B163: =A163&"Expenditure by Major Type" -> Chart A7 Expenditure by Major Type | C163: A3
A164: Chart A8 | B164: =A164&"Expenditure by Minor Type (Other)" -> Chart A8 Expenditure by Minor Type (Other) | C164: A3
A165: Chart A9 | B165: =A165&"Capital Expenditure by Municipal Vote/Appropriation (Major)" -> Chart A9 Capital Expenditure by Municipal Vote/Appropriation (Major) | C165: A5
A166: Chart A10 | B166: =A166&"Capital Expenditure by Municipal Vote/Appropriation (Minor)" -> Chart A10 Capital Expenditure by Municipal Vote/Appropriation (Minor) | C166: A5
A167: Chart A11 | B167: =A166&"Capital Expenditure by Standard Classification" -> Chart A10 Capital Expenditure by Standard Classification | C167: A5
A168: Chart A12 | B168: =A168&"Capital expenditure performance trend" -> Chart A12 Capital expenditure performance trend | C168: A5
A169: Chart A13 | B169: =A169&"Capital funding by Source" -> Chart A13 Capital funding by Source | C169: A5
A170: Chart A14 | B170: =A170&"Cash flow trend" -> Chart A14 Cash flow trend | C170: A7
A171: Chart A15 | B171: =A171&"IDP Strategic Objective - Revenue" -> Chart A15 IDP Strategic Objective - Revenue | C171: Table A4
A172: Chart A16 | B172: =A172&"IDP Strategic Objective - Expenditure" -> Chart A16 IDP Strategic Objective - Expenditure | C172: Table A5
A173: Chart A17 | B173: =A173&"IDP Strategic Objective - Capital Expenditure" -> Chart A17 IDP Strategic Objective - Capital Expenditure | C173: Table A6
A174: Chart A18 | B174: =A174&"Debt (borrowing to Total Revenue)" -> Chart A18 Debt (borrowing to Total Revenue) | C174: Table A8
A175: Chart A19 | B175: =A175&"Debtors' trend analysis" -> Chart A19 Debtors' trend analysis | C175: Table A8
A176: Chart A20 | B176: =A176&"Distribution losses" -> Chart A20 Distribution losses | C176: Table A8
A177: Chart A21 | B177: =A177&"Borrowed funding of capital expenditure" -> Chart A21 Borrowed funding of capital expenditure | C177: Table A8
A178: Chart A22 | B178: =A178&"Expenditure analysis (% of Revenue)" -> Chart A22 Expenditure analysis (% of Revenue) | C178: Table A8
A179: Chart A23 | B179: =A179&"Increases in service charges" -> Chart A23 Increases in service charges | C179: Table A10

Sheet Lookup and lists (hidden)
A1: Description | B1: 2013 | C1: 2014 | D1: 2015 | E1: 2016 | F1: 2017 | G1: 2018 | H1: 2019 | I1: 2020 | J1: 2021 | K1: 2022 | L1: 2023 | M1: 2024 | N1: 2025 | O1: 2026 | Q1: Lists | Y1: Grants: | Z1: National - opex | AA1: Provincial - opex | AB1: National - capex | AC1: Provincial - capex
A2: ='Template names'!C2 -> Prior year -1 | B2: =B1-2&"/"&RIGHT(B1,2)-1 -> 2011/12 | C2: 2012/13 | D2: 2013/14 | E2: 2014/15 | F2: 2015/16 | G2: 2016/17 | H2: 2017/18 | I2: 2018/19 | J2: =J1-2&"/"&RIGHT(J1,2)-1 -> 2019/20 | K2: 2020/21 | L2: 2021/22 | M2: 2022/23 | N2: 2023/24 | O2: 2024/25 | Q2: Yes | R2: <1 | S2: <4 | T2: Market | U2: Land & impr. | V2: Yes | W2: Uniform | X2: Yrs | Z2: Local Government Equitable Share | AA2: Health subsidy | AB2: Municipal Infrastructure Grant (MIG) | AC2: Agriculture
A3: ='Template names'!C3 -> Prior year -2 | B3: =B1-3&"/"&RIGHT(B1,2)-2 -> 2010/11 | C3: 2011/12 | D3: 2012/13 | E3: 2013/14 | F3: 2014/15 | G3: 2015/16 | H3: 2016/17 | I3: 2017/18 | J3: =J1-3&"/"&RIGHT(J1,2)-2 -> 2018/19 | K3: 2019/20 | L3: 2020/21 | M3: 2021/22 | N3: 2022/23 | O3: 2023/24 | Q3: No | R3: 1 | S3: 4 | T3: Dep.Replace | U3: Land only | V3: No | W3: Variable | X3: Mths | Z3: RSC Levy Replacement | AA3: Ambulance subsidy | AB3: Public Transport and Systems | AC3: Education
A4: ='Template names'!C4 -> Prior year -3 | B4: =B1-4&"/"&RIGHT(B1,2)-3 -> 2009/10 | C4: 2010/11 | D4: 2011/12 | E4: 2012/13 | F4: 2013/14 | G4: 2014/15 | H4: 2015/16 | I4: 2016/17 | J4: =J1-4&"/"&RIGHT(J1,2)-3 -> 2017/18 | K4: 2018/19 | L4: 2019/20 | M4: 2020/21 | N4: 2021/22 | O4: 2022/23 | R4: 2 | S4: 5 | T4: Other | U4: Other | Z4: Finance Management | AA4: Housing | AB4: Rural Transport Services and Infrastructure | AC4: Health
A5: ='Template names'!C5 -> Year in which budget is being prepared | B5: ="Current Year "& B1-1&"/"&RIGHT(B1,2) -> Current Year 2012/13 | C5: Current Year 2013/14 | D5: Current Year 2014/15 | E5: Current Year 2015/16 | F5: Current Year 2016/17 | G5: Current Year 2017/18 | H5: Current Year 2018/19 | I5: Current Year 2019/20 | J5: ="Current Year "& J1-1&"/"&RIGHT(J1,2) -> Current Year 2020/21 | K5: Current Year 2021/22 | L5: Current Year 2022/23 | M5: Current Year 2023/24 | N5: Current Year 2024/25 | O5: Current Year 2025/26 | R5: 3 | S5: 6 | Z5: Municipal Systems Improvement | AA5: Sport and Recreation | AB5: Regional Bulk Infrastructure | AC5: Housing and Local Government
A6: ='Template names'!C6 -> Year in which budget is being prepared | B6: =B1-1&"/"&RIGHT(B1,2) -> 2012/13 | C6: 2013/14 | D6: 2014/15 | E6: 2015/16 | F6: 2016/17 | G6: 2017/18 | H6: 2018/19 | I6: 2019/20 | J6: =J1-1&"/"&RIGHT(J1,2) -> 2020/21 | K6: 2021/22 | L6: 2022/23 | M6: 2023/24 | N6: 2024/25 | O6: 2025/26 | R6: 4 | S6: 6-10 | Z6: Water Services Operating Subsidy | AB6: Rural Households Infrastructure | AC6: Other Departments
A7: ='Template names'!C7 -> MTREF name | B7: =B1&"/"&RIGHT(B1,2)+1&" Medium Term Revenue & Expenditure Framework" -> 2013/14 Medium Term Revenue & Expenditure Framework | C7: 2014/15 Medium Term Revenue & Expenditure Framework | D7: 2015/16 Medium Term Revenue & Expenditure Framework | E7: 2016/17 Medium Term Revenue & Expenditure Framework | F7: 2017/18 Medium Term Revenue & Expenditure Framework | G7: 2018/19 Medium Term Revenue & Expenditure Framework | H7: 2019/20 Medium Term Revenue & Expenditure Framework | I7: 2020/21 Medium Term Revenue & Expenditure Framework | J7: =J1&"/"&RIGHT(J1,2)+1&" Medium Term Revenue & Expenditure Framework" -> 2021/22 Medium Term Revenue & Expenditure Framework | K7: 2022/23 Medium Term Revenue & Expenditure Framework | L7: 2023/24 Medium Term Revenue & Expenditure Framework | M7: 2024/25 Medium Term Revenue & Expenditure Framework | N7: 2025/26 Medium Term Revenue & Expenditure Framework | O7: 2026/27 Medium Term Revenue & Expenditure Framework | R7: 5 | S7: >10 | Z7: Energy Efficiency and Demand Management | AB7: Neighbourhood Development Partnership | AC7: Public Works, Roads, Transport
A8: ='Template names'!C15 -> 1st year of MTREF | B8: ="Budget Year "&B1&"/"&RIGHT(B1,2)+1 -> Budget Year 2013/14 | C8: Budget Year 2014/15 | D8: Budget Year 2015/16 | E8: Budget Year 2016/17 | F8: Budget Year 2017/18 | G8: Budget Year 2018/19 | H8: Budget Year 2019/20 | I8: Budget Year 2020/21 | J8: ="Budget Year "&J1&"/"&RIGHT(J1,2)+1 -> Budget Year 2021/22 | K8: Budget Year 2022/23 | L8: Budget Year 2023/24 | M8: Budget Year 2024/25 | N8: Budget Year 2025/26 | O8: Budget Year 2026/27 | R8: >5 | Z8: Integrated National Electrification Programme | AB8: 2010 FIFA World Cup Stadiums Development | AC8: Sport and Recreation
A9: ='Template names'!C16 -> 2nd year of MTREF | B9: ="Budget Year +1 "&B1+1&"/"&RIGHT(B1,2)+2 -> Budget Year +1 2014/15 | C9: Budget Year +1 2015/16 | D9: Budget Year +1 2016/17 | E9: Budget Year +1 2017/18 | F9: Budget Year +1 2018/19 | G9: Budget Year +1 2019/20 | H9: Budget Year +1 2020/21 | I9: Budget Year +1 2021/22 | J9: ="Budget Year +1 "&J1+1&"/"&RIGHT(J1,2)+2 -> Budget Year +1 2022/23 | K9: Budget Year +1 2023/24 | L9: Budget Year +1 2024/25 | M9: Budget Year +1 2025/26 | N9: Budget Year +1 2026/27 | O9: Budget Year +1 2027/28 | Z9: Municipal Drought Relief
A10: ='Template names'!C17 -> 3rd year of MTREF | B10: ="Budget Year +2 "&B1+2&"/"&RIGHT(B1,2)+3 -> Budget Year +2 2015/16 | C10: Budget Year +2 2016/17 | D10: Budget Year +2 2017/18 | E10: Budget Year +2 2018/19 | F10: Budget Year +2 2019/20 | G10: Budget Year +2 2020/21 | H10: Budget Year +2 2021/22 | I10: Budget Year +2 2022/23 | J10: ="Budget Year +2 "&J1+2&"/"&RIGHT(J1,2)+3 -> Budget Year +2 2023/24 | K10: Budget Year +2 2024/25 | L10: Budget Year +2 2025/26 | M10: Budget Year +2 2026/27 | N10: Budget Year +2 2027/28 | O10: Budget Year +2 2028/29 | Z10: 2010 FIFA World Cup Operating
A11: ='Template names'!C18 -> 1st yr of long term forecast | B11: ="Forecast "&B1+3&"/"&RIGHT(B1,2)+4 -> Forecast 2016/17 | C11: Forecast 2017/18 | D11: Forecast 2018/19 | E11: Forecast 2019/20 | F11: Forecast 2020/21 | G11: Forecast 2021/22 | H11: Forecast 2022/23 | I11: Forecast 2023/24 | J11: ="Forecast "&J1+3&"/"&RIGHT(J1,2)+4 -> Forecast 2024/25 | K11: Forecast 2025/26 | L11: Forecast 2026/27 | M11: Forecast 2027/28 | N11: Forecast 2028/29 | O11: Forecast 2029/30 | Z11: Electricity Demand Side Management
A12: ='Template names'!C19 -> Next yr of long term forecast | B12: ="Forecast "&B1+4&"/"&RIGHT(B1,2)+5 -> Forecast 2017/18 | C12: Forecast 2018/19 | D12: Forecast 2019/20 | E12: Forecast 2020/21 | F12: Forecast 2021/22 | G12: Forecast 2022/23 | H12: Forecast 2023/24 | I12: Forecast 2024/25 | J12: ="Forecast "&J1+4&"/"&RIGHT(J1,2)+5 -> Forecast 2025/26 | K12: Forecast 2026/27 | L12: Forecast 2027/28 | M12: Forecast 2028/29 | N12: Forecast 2029/30 | O12: Forecast 2030/31 | Z12: EPWP Incentive
A13: ='Template names'!C20 -> Next yr of long term forecast | B13: ="Forecast "&B1+5&"/"&RIGHT(B1,2)+6 -> Forecast 2018/19 | C13: Forecast 2019/20 | D13: Forecast 2020/21 | E13: Forecast 2021/22 | F13: Forecast 2022/23 | G13: Forecast 2023/24 | H13: Forecast 2024/25 | I13: Forecast 2025/26 | J13: ="Forecast "&J1+5&"/"&RIGHT(J1,2)+6 -> Forecast 2026/27 | K13: Forecast 2027/28 | L13: Forecast 2028/29 | M13: Forecast 2029/30 | N13: Forecast 2030/31 | O13: Forecast 2031/32
A14: ='Template names'!C21 -> Next yr of long term forecast | B14: ="Forecast "&B1+6&"/"&RIGHT(B1,2)+7 -> Forecast 2019/20 | C14: Forecast 2020/21 | D14: Forecast 2021/22 | E14: Forecast 2022/23 | F14: Forecast 2023/24 | G14: Forecast 2024/25 | H14: Forecast 2025/26 | I14: Forecast 2026/27 | J14: ="Forecast "&J1+6&"/"&RIGHT(J1,2)+7 -> Forecast 2027/28 | K14: Forecast 2028/29 | L14: Forecast 2029/30 | M14: Forecast 2030/31 | N14: Forecast 2031/32 | O14: Forecast 2032/33 | Z14: Asset Class | AA14: Asset sub-class old | AB14: Asset sub-class | AC14: IUDF | AD14: MTSF
A15: ='Template names'!C22 -> Next yr of long term forecast | B15: ="Forecast "&B1+7&"/"&RIGHT(B1,2)+8 -> Forecast 2020/21 | C15: Forecast 2021/22 | D15: Forecast 2022/23 | E15: Forecast 2023/24 | F15: Forecast 2024/25 | G15: Forecast 2025/26 | H15: Forecast 2026/27 | I15: Forecast 2027/28 | J15: ="Forecast "&J1+7&"/"&RIGHT(J1,2)+8 -> Forecast 2028/29 | K15: Forecast 2029/30 | L15: Forecast 2030/31 | M15: Forecast 2031/32 | N15: Forecast 2032/33 | O15: Forecast 2033/34
A16: ='Template names'!C23 -> Next yr of long term forecast | B16: ="Forecast "&B1+8&"/"&RIGHT(B1,2)+9 -> Forecast 2021/22 | C16: Forecast 2022/23 | D16: Forecast 2023/24 | E16: Forecast 2024/25 | F16: Forecast 2025/26 | G16: Forecast 2026/27 | H16: Forecast 2027/28 | I16: Forecast 2028/29 | J16: ="Forecast "&J1+8&"/"&RIGHT(J1,2)+9 -> Forecast 2029/30 | K16: Forecast 2030/31 | L16: Forecast 2031/32 | M16: Forecast 2032/33 | N16: Forecast 2033/34 | O16: Forecast 2034/35 | Z16: Roads Infrastructure | AA16: Roads, Pavements & Bridges | AB16: Roads | AC16: Spatial integration | AD16: Quality basic education
A17: ='Template names'!C24 -> Next yr of long term forecast | B17: ="Forecast "&B1+9&"/"&RIGHT(B1,2)+10 -> Forecast 2022/23 | C17: Forecast 2023/24 | D17: Forecast 2024/25 | E17: Forecast 2025/26 | F17: Forecast 2026/27 | G17: Forecast 2027/28 | H17: Forecast 2028/29 | I17: Forecast 2029/30 | J17: ="Forecast "&J1+9&"/"&RIGHT(J1,2)+10 -> Forecast 2030/31 | K17: Forecast 2031/32 | L17: Forecast 2032/33 | M17: Forecast 2033/34 | N17: Forecast 2034/35 | O17: Forecast 2035/36 | Z17: Storm water Infrastructure | AA17: Storm water | AB17: Road Structures | AC17: Inclusion and access | AD17: A long and healthy life for all South Africans
A18: ='Template names'!C25 -> Next yr of long term forecast | B18: ="Forecast "&B1+10&"/"&RIGHT(B1,2)+11 -> Forecast 2023/24 | C18: Forecast 2024/25 | D18: Forecast 2025/26 | E18: Forecast 2026/27 | F18: Forecast 2027/28 | G18: Forecast 2028/29 | H18: Forecast 2029/30 | I18: Forecast 2030/31 | J18: ="Forecast "&J1+10&"/"&RIGHT(J1,2)+11 -> Forecast 2031/32 | K18: Forecast 2032/33 | L18: Forecast 2033/34 | M18: Forecast 2034/35 | N18: Forecast 2035/36 | O18: Forecast 2036/37 | Z18: Electrical Infrastructure | AA18: Generation | AB18: Road Furniture | AC18: Growth | AD18: All people in South Africa are and feel safe
A19: ='Template names'!C26 -> Next yr of long term forecast | B19: ="Forecast "&B1+11&"/"&RIGHT(B1,2)+12 -> Forecast 2024/25 | C19: Forecast 2025/26 | D19: Forecast 2026/27 | E19: Forecast 2027/28 | F19: Forecast 2028/29 | G19: Forecast 2029/30 | H19: Forecast 2030/31 | I19: Forecast 2031/32 | J19: ="Forecast "&J1+11&"/"&RIGHT(J1,2)+12 -> Forecast 2032/33 | K19: Forecast 2033/34 | L19: Forecast 2034/35 | M19: Forecast 2035/36 | N19: Forecast 2036/37 | O19: Forecast 2037/38 | Z19: Water Supply Infrastructure | AA19: Transmission & Reticulation | AB19: Capital Spares | AC19: Governance | AD19: Decent employment through inclusive growth
A20: ='Template names'!C27 -> Next yr of long term forecast | B20: ="Forecast "&B1+12&"/"&RIGHT(B1,2)+13 -> Forecast 2025/26 | C20: Forecast 2026/27 | D20: Forecast 2027/28 | E20: Forecast 2028/29 | F20: Forecast 2029/30 | G20: Forecast 2030/31 | H20: Forecast 2031/32 | I20: Forecast 2032/33 | J20: ="Forecast "&J1+12&"/"&RIGHT(J1,2)+13 -> Forecast 2033/34 | K20: Forecast 2034/35 | L20: Forecast 2035/36 | M20: Forecast 2036/37 | N20: Forecast 2037/38 | O20: Forecast 2038/39 | Z20: Sanitation Infrastructure | AA20: Street Lighting | AB20: Drainage Collection | AD20: A skilled and capable workforce to support an inclusive growth path
A21: ='Template names'!C28 -> Next yr of long term forecast | B21: ="Forecast "&B1+13&"/"&RIGHT(B1,2)+14 -> Forecast 2026/27 | C21: Forecast 2027/28 | D21: Forecast 2028/29 | E21: Forecast 2029/30 | F21: Forecast 2030/31 | G21: Forecast 2031/32 | H21: Forecast 2032/33 | I21: Forecast 2033/34 | J21: ="Forecast "&J1+13&"/"&RIGHT(J1,2)+14 -> Forecast 2034/35 | K21: Forecast 2035/36 | L21: Forecast 2036/37 | M21: Forecast 2037/38 | N21: Forecast 2038/39 | O21: Forecast 2039/40 | Z21: Solid Waste Infrastructure | AA21: Dams & Reservoirs | AB21: Storm water Conveyance | AD21: An efficient, competitive and responsive economic infrastructure network
A22: ='Template names'!C29 -> Next yr of long term forecast | B22: ="Forecast "&B1+14&"/"&RIGHT(B1,2)+15 -> Forecast 2027/28 | C22: Forecast 2028/29 | D22: Forecast 2029/30 | E22: Forecast 2030/31 | F22: Forecast 2031/32 | G22: Forecast 2032/33 | H22: Forecast 2033/34 | I22: Forecast 2034/35 | J22: ="Forecast "&J1+14&"/"&RIGHT(J1,2)+15 -> Forecast 2035/36 | K22: Forecast 2036/37 | L22: Forecast 2037/38 | M22: Forecast 2038/39 | N22: Forecast 2039/40 | O22: Forecast 2040/41 | Z22: Rail Infrastructure | AA22: Water purification | AB22: Attenuation | AD22: Vibrant, equitable, sustainable rural communities contributing towards food security for all
A23: Adjustments Budget | B23: ="Annual target " & B1&"/"&RIGHT(B1,2)+1 -> Annual target 2013/14 | C23: Annual target 2014/15 | D23: Annual target 2015/16 | E23: Annual target 2016/17 | F23: Annual target 2017/18 | G23: Annual target 2018/19 | H23: Annual target 2019/20 | I23: Annual target 2020/21 | J23: ="Annual target " & J1&"/"&RIGHT(J1,2)+1 -> Annual target 2021/22 | K23: Annual target 2022/23 | L23: Annual target 2023/24 | M23: Annual target 2024/25 | N23: Annual target 2025/26 | O23: Annual target 2026/27 | Z23: Coastal Infrastructure | AA23: Reticulation | AB23: Power Plants | AD23: Sustainable human settlements and improved quality of household life
A24: =A23 -> Adjustments Budget | B24: ="Revised target "& B1&"/"&RIGHT(B1,2)+1 -> Revised target 2013/14 | C24: Revised target 2014/15 | D24: Revised target 2015/16 | E24: Revised target 2016/17 | F24: Revised target 2017/18 | G24: Revised target 2018/19 | H24: Revised target 2019/20 | I24: Revised target 2020/21 | J24: ="Revised target "& J1&"/"&RIGHT(J1,2)+1 -> Revised target 2021/22 | K24: Revised target 2022/23 | L24: Revised target 2023/24 | M24: Revised target 2024/25 | N24: Revised target 2025/26 | O24: Revised target 2026/27 | Z24: Information and Communication Infrastructure | AA24: Sewerage purification | AB24: HV Substations | AD24: Responsive, accountable, effective and efficient local government
A25: NOTE: This sheet should not be directly amended - select headings from sheet 'S' | Z25: Community Facilities | AA25: Waste Management | AB25: HV Switching Station | AD25: Protect and enhance our environmental assets and natural resources
Z26: Sport and Recreation Facilities | AA26: Transportation | AB26: HV Transmission Conductors | AD26: Create a better South Africa and contribute to a better Africa and a better world
A27: Name link | B27: 140 | Z27: Heritage assets | AA27: Gas | AB27: MV Substations | AD27: An efficient, effective and development-oriented public service
A28: Name of Muni | B28: =INDEX(B29:B307,B27,1) -> LIM351 Blouberg | Z28: Revenue Generating | AA28: Parks & gardens | AB28: MV Switching Stations | AD28: A comprehensive, responsive and sustainable social protection system
B29: Choose name from list | C29: Set name on 'Instructions' sheet | Z29: Non-revenue Generating | AA29: Sportsfields & stadia | AB29: MV Networks | AD29: A diverse, socially cohesive society with a common national identity
B30: BUF Buffalo City | C30: EC EASTERN CAPE | Z30: Operational Buildings | AA30: Swimming pools | AB30: LV Networks
B31: NMA Nelson Mandela Bay | C31: EC EASTERN CAPE | Z31: Housing | AA31: Community halls | AB31: Capital Spares
B32: EC101 Dr Beyers Naude | C32: EC EASTERN CAPE | Z32: Biological or Cultivated Assets | AA32: Libraries | AB32: Dams and Weirs
B33: EC102 Blue Crane Route | C33: EC EASTERN CAPE | Z33: Servitudes | AA33: Recreational facilities | AB33: Boreholes
B34: EC104 Makana | C34: EC EASTERN CAPE | Z34: Licences and Rights | AA34: Fire, safety & emergency | AB34: Reservoirs
B35: EC105 Ndlambe | C35: EC EASTERN CAPE | Z35: Computer Equipment | AA35: Security and policing | AB35: Pump Stations
B36: EC106 Sundays River Valley | C36: EC EASTERN CAPE | Z36: Furniture and Office Equipment | AA36: Buses | AB36: Water Treatment Works
B37: EC108 Kouga | C37: EC EASTERN CAPE | Z37: Machinery and Equipment | AA37: Clinics | AB37: Bulk Mains
B38: EC109 Kou-Kamma | C38: EC EASTERN CAPE | Z38: Transport Assets | AA38: Museums & Art Galleries | AB38: Distribution
B39: DC10 Sarah Baartman | C39: EC EASTERN CAPE | Z39: Land | AA39: Cemeteries | AB39: Distribution Points
B40: EC121 Mbhashe | C40: EC EASTERN CAPE | Z40: Zoo's, Marine and Non-biological Animals | AA40: Social rental housing | AB40: PRV Stations
B41: EC122 Mnquma | C41: EC EASTERN CAPE | AA41: Buildings | AB41: Capital Spares
B42: EC123 Great Kei | C42: EC EASTERN CAPE | AA42: Housing development | AB42: Pump Station
B43: EC124 Amahlathi | C43: EC EASTERN CAPE | AA43: General vehicles | AB43: Reticulation
B44: EC126 Ngqushwa | C44: EC EASTERN CAPE | AA44: Specialised vehicles - Refuse | AB44: Waste Water Treatment Works
B45: EC129 Raymond Mhlaba | C45: EC EASTERN CAPE | AA45: Specialised vehicles - Fire | AB45: Outfall Sewers
B46: DC12 Amathole | C46: EC EASTERN CAPE | AA46: Specialised vehicles - Conservancy | AB46: Toilet Facilities
B47: EC131 Inxuba Yethemba | C47: EC EASTERN CAPE | AA47: Specialised vehicles - Ambulances | AB47: Capital Spares
B48: EC135 Intsika Yethu | C48: EC EASTERN CAPE | AA48: Plant & equipment | AB48: Landfill Sites
B49: EC136 Emalahleni (Ec) | C49: EC EASTERN CAPE | AA49: Computers - hardware/equipment | AB49: Waste Transfer Stations
B50: EC137 Engcobo | C50: EC EASTERN CAPE | AA50: Furniture and other office equipment | AB50: Waste Processing Facilities
B51: EC138 Sakhisizwe | C51: EC EASTERN CAPE | AA51: Abattoirs | AB51: Waste Drop-off Points
B52: EC139 Enoch Mgijima | C52: EC EASTERN CAPE | AA52: Markets | AB52: Waste Separation Facilities
B53: DC13 Chris Hani | C53: EC EASTERN CAPE | AA53: Civic Land and Buildings | AB53: Electricity Generation Facilities
B54: EC141 Elundini | C54: EC EASTERN CAPE | AA54: Other Buildings | AB54: Capital Spares
B55: EC142 Senqu | C55: EC EASTERN CAPE | AA55: Other Land | AB55: Rail Lines
B56: EC145 Walter Sisulu | C56: EC EASTERN CAPE | AA56: Surplus Assets - (Investment or Inventory) | AB56: Rail Structures
B57: DC14 Joe Gqabi | C57: EC EASTERN CAPE | AA57: Computers - software & programming | AB57: Rail Furniture
B58: EC153 Ngquza Hills | C58: EC EASTERN CAPE | AA58: Other | AB58: Drainage Collection
B59: EC154 Port St Johns | C59: EC EASTERN CAPE | AB59: Storm water Conveyance
B60: EC155 Nyandeni | C60: EC EASTERN CAPE | Z60: SA16 - Investments | AB60: Attenuation
B61: EC156 Mhlontlo | C61: EC EASTERN CAPE | Z61: Security | AA61: Interest rate | AB61: MV Substations
B62: EC157 King Sabata Dalindyebo | C62: EC EASTERN CAPE | Z62: Yes | AA62: Fixed | AB62: LV Networks
B63: DC15 O .R. Tambo | C63: EC EASTERN CAPE | Z63: No | AA63: Variable | AB63: Capital Spares
B64: EC441 Matatiele | C64: EC EASTERN CAPE | AB64: Sand Pumps
B65: EC442 Umzimvubu | C65: EC EASTERN CAPE | AB65: Piers
B66: EC443 Winnie Madikizela Mandela | C66: EC EASTERN CAPE | Z66: SA36, SA37 - Capital projects | AB66: Revetments
B67: EC444 Ntabankulu | C67: EC EASTERN CAPE | Z67: Yes | AB67: Promenades
B68: DC44 Alfred Nzo | C68: EC EASTERN CAPE | Z68: No | AB68: Capital Spares
B69: MAN Mangaung | C69: FS FREE STATE | AB69: Data Centres
B70: FS161 Letsemeng | C70: FS FREE STATE | AB70: Core Layers
B71: FS162 Kopanong | C71: FS FREE STATE | AB71: Distribution Layers
B72: FS163 Mohokare | C72: FS FREE STATE | AB72: Capital Spares
B73: DC16 Xhariep | C73: FS FREE STATE | AB73: Halls
B74: FS181 Masilonyana | C74: FS FREE STATE | AB74: Centres
B75: FS182 Tokologo | C75: FS FREE STATE | AB75: Crèches
B76: FS183 Tswelopele | C76: FS FREE STATE | AB76: Clinics/Care Centres
B77: FS184 Matjhabeng | C77: FS FREE STATE | AB77: Fire/Ambulance Stations
B78: FS185 Nala | C78: FS FREE STATE | AB78: Testing Stations
B79: DC18 Lejweleputswa | C79: FS FREE STATE | AB79: Museums
B80: FS191 Setsoto | C80: FS FREE STATE | AB80: Galleries
B81: FS192 Dihlabeng | C81: FS FREE STATE | AB81: Theatres
B82: FS193 Nketoana | C82: FS FREE STATE | AB82: Libraries
B83: FS194 Maluti-a-Phofung | C83: FS FREE STATE | AB83: Cemeteries/Crematoria
B84: FS195 Phumelela | C84: FS FREE STATE | AB84: Police
B85: FS196 Mantsopa | C85: FS FREE STATE | AB85: Purls
B86: DC19 Thabo Mofutsanyana | C86: FS FREE STATE | AB86: Public Open Space
B87: FS201 Moqhaka | C87: FS FREE STATE | AB87: Nature Reserves
B88: FS203 Ngwathe | C88: FS FREE STATE | AB88: Public Ablution Facilities
B89: FS204 Metsimaholo | C89: FS FREE STATE | AB89: Markets
B90: FS205 Mafube | C90: FS FREE STATE | AB90: Stalls
B91: DC20 Fezile Dabi | C91: FS FREE STATE | AB91: Abattoirs
B92: EKU City of Ekurhuleni | C92: GT GAUTENG | AB92: Airports
B93: JHB City Of Johannesburg | C93: GT GAUTENG | AB93: Taxi Ranks/Bus Terminals
B94: TSH City Of Tshwane | C94: GT GAUTENG | AB94: Capital Spares
B95: GT421 Emfuleni | C95: GT GAUTENG | AB95: Indoor Facilities
B96: GT422 Midvaal | C96: GT GAUTENG | AB96: Outdoor Facilities
B97: GT423 Lesedi | C97: GT GAUTENG | AB97: Capital Spares
B98: DC42 Sedibeng | C98: GT GAUTENG | AB98: Monuments
B99: GT481 Mogale City | C99: GT GAUTENG | AB99: Historic Buildings
B100: GT484 Merafong City | C100: GT GAUTENG | AB100: Works of Art
B101: GT485 Rand West City | C101: GT GAUTENG | AB101: Conservation Areas
B102: DC48 West Rand | C102: GT GAUTENG | AB102: Other Heritage
B103: ETH eThekwini | C103: KZN KWAZULU-NATAL | AB103: Improved Property
B104: KZN212 Umdoni | C104: KZN KWAZULU-NATAL | AB104: Unimproved Property
B105: KZN213 Umzumbe | C105: KZN KWAZULU-NATAL | AB105: Municipal Offices
B106: KZN214 uMuziwabantu | C106: KZN KWAZULU-NATAL | AB106: Pay/Enquiry Points
B107: KZN216 Ray Nkonyeni | C107: KZN KWAZULU-NATAL | AB107: Building Plan Offices
B108: DC21 Ugu | C108: KZN KWAZULU-NATAL | AB108: Workshops
B109: KZN221 uMshwathi | C109: KZN KWAZULU-NATAL | AB109: Yards
B110: KZN222 uMngeni | C110: KZN KWAZULU-NATAL | AB110: Stores
B111: KZN223 Mpofana | C111: KZN KWAZULU-NATAL | AB111: Laboratories
B112: KZN224 Impendle | C112: KZN KWAZULU-NATAL | AB112: Training Centres
B113: KZN225 Msunduzi | C113: KZN KWAZULU-NATAL | AB113: Manufacturing Plant
B114: KZN226 Mkhambathini | C114: KZN KWAZULU-NATAL | AB114: Depots
B115: KZN227 Richmond | C115: KZN KWAZULU-NATAL | AB115: Capital Spares
B116: DC22 uMgungundlovu | C116: KZN KWAZULU-NATAL | AB116: Staff Housing
B117: KZN235 Okhahlamba | C117: KZN KWAZULU-NATAL | AB117: Social Housing
B118: KZN237 Inkosi Langalibalele | C118: KZN KWAZULU-NATAL | AB118: Capital Spares
B119: KZN238 Alfred Duma | C119: KZN KWAZULU-NATAL | AB119: Water Rights
B120: DC23 Uthukela | C120: KZN KWAZULU-NATAL | AB120: Effluent Licenses
B121: KZN241 Endumeni | C121: KZN KWAZULU-NATAL | AB121: Solid Waste Licenses
B122: KZN242 Nquthu | C122: KZN KWAZULU-NATAL | AB122: Computer Software and Applications
B123: KZN244 Msinga | C123: KZN KWAZULU-NATAL | AB123: Load Settlement Software Applications
B124: KZN245 Umvoti | C124: KZN KWAZULU-NATAL | AB124: Unspecified
B125: DC24 Umzinyathi | C125: KZN KWAZULU-NATAL
B126: KZN252 Newcastle | C126: KZN KWAZULU-NATAL
B127: KZN253 Emadlangeni | C127: KZN KWAZULU-NATAL
B128: KZN254 Dannhauser | C128: KZN KWAZULU-NATAL
B129: DC25 Amajuba | C129: KZN KWAZULU-NATAL
B130: KZN261 eDumbe | C130: KZN KWAZULU-NATAL
B131: KZN262 uPhongolo | C131: KZN KWAZULU-NATAL
B132: KZN263 Abaqulusi | C132: KZN KWAZULU-NATAL
B133: KZN265 Nongoma | C133: KZN KWAZULU-NATAL
B134: KZN266 Ulundi | C134: KZN KWAZULU-NATAL
B135: DC26 Zululand | C135: KZN KWAZULU-NATAL
B136: KZN271 Umhlabuyalingana | C136: KZN KWAZULU-NATAL
B137: KZN272 Jozini | C137: KZN KWAZULU-NATAL
B138: KZN275 Mtubatuba | C138: KZN KWAZULU-NATAL
B139: KZN276 Hlabisa Big Five | C139: KZN KWAZULU-NATAL
B140: DC27 Umkhanyakude | C140: KZN KWAZULU-NATAL
B141: KZN281 Mfolozi | C141: KZN KWAZULU-NATAL
B142: KZN282 uMhlathuze | C142: KZN KWAZULU-NATAL
B143: KZN284 uMlalazi | C143: KZN KWAZULU-NATAL
B144: KZN285 Mthonjaneni | C144: KZN KWAZULU-NATAL
B145: KZN286 Nkandla | C145: KZN KWAZULU-NATAL
B146: DC28 King Cetshwayo | C146: KZN KWAZULU-NATAL
B147: KZN291 Mandeni | C147: KZN KWAZULU-NATAL
B148: KZN292 KwaDukuza | C148: KZN KWAZULU-NATAL
B149: KZN293 Ndwedwe | C149: KZN KWAZULU-NATAL
B150: KZN294 Maphumulo | C150: KZN KWAZULU-NATAL
B151: DC29 iLembe | C151: KZN KWAZULU-NATAL
B152: KZN433 Greater Kokstad | C152: KZN KWAZULU-NATAL
B153: KZN434 Ubuhlebezwe | C153: KZN KWAZULU-NATAL
B154: KZN435 Umzimkhulu | C154: KZN KWAZULU-NATAL
B155: KZN436 Dr Nkosazana Dlamini Zuma | C155: KZN KWAZULU-NATAL
B156: DC43 Harry Gwala | C156: KZN KWAZULU-NATAL
B157: LIM331 Greater Giyani | C157: LIM LIMPOPO
B158: LIM332 Greater Letaba | C158: LIM LIMPOPO
B159: LIM333 Greater Tzaneen | C159: LIM LIMPOPO
B160: LIM334 Ba-Phalaborwa | C160: LIM LIMPOPO
B161: LIM335 Maruleng | C161: LIM LIMPOPO
B162: DC33 Mopani | C162: LIM LIMPOPO
B163: LIM341 Musina | C163: LIM LIMPOPO
B164: LIM343 Thulamela | C164: LIM LIMPOPO
B165: LIM344 Makhado | C165: LIM LIMPOPO
B166: LIM345 Collins Chabane | C166: LIM LIMPOPO
B167: DC34 Vhembe | C167: LIM LIMPOPO
B168: LIM351 Blouberg | C168: LIM LIMPOPO
B169: LIM353 Molemole | C169: LIM LIMPOPO
B170: LIM354 Polokwane | C170: LIM LIMPOPO
B171: LIM355 Lepelle-Nkumpi | C171: LIM LIMPOPO
B172: DC35 Capricorn | C172: LIM LIMPOPO
B173: LIM361 Thabazimbi | C173: LIM LIMPOPO
B174: LIM362 Lephalale | C174: LIM LIMPOPO
B175: LIM366 Bela Bela | C175: LIM LIMPOPO
B176: LIM367 Mogalakwena | C176: LIM LIMPOPO
B177: LIM368 Modimolle-Mookgopong | C177: LIM LIMPOPO
B178: DC36 Waterberg | C178: LIM LIMPOPO
B179: LIM471 Ephraim Mogale | C179: LIM LIMPOPO
B180: LIM472 Elias Motsoaledi | C180: LIM LIMPOPO
B181: LIM473 Makhuduthamaga | C181: LIM LIMPOPO
B182: LIM476 Tubatse Fetakgomo | C182: LIM LIMPOPO
B183: DC47 Sekhukhune | C183: LIM LIMPOPO
B184: MP301 Albert Luthuli | C184: MP MPUMALANGA
B185: MP302 Msukaligwa | C185: MP MPUMALANGA
B186: MP303 Mkhondo | C186: MP MPUMALANGA
B187: MP304 Pixley Ka Seme (MP) | C187: MP MPUMALANGA
B188: MP305 Lekwa | C188: MP MPUMALANGA
B189: MP306 Dipaleseng | C189: MP MPUMALANGA
B190: MP307 Govan Mbeki | C190: MP MPUMALANGA
B191: DC30 Gert Sibande | C191: MP MPUMALANGA
B192: MP311 Victor Khanye | C192: MP MPUMALANGA
B193: MP312 Emalahleni (Mp) | C193: MP MPUMALANGA
B194: MP313 Steve Tshwete | C194: MP MPUMALANGA
B195: MP314 Emakhazeni | C195: MP MPUMALANGA
B196: MP315 Thembisile Hani | C196: MP MPUMALANGA
B197: MP316 Dr J.S. Moroka | C197: MP MPUMALANGA
B198: DC31 Nkangala | C198: MP MPUMALANGA
B199: MP321 Thaba Chweu | C199: MP MPUMALANGA
B200: MP324 Nkomazi | C200: MP MPUMALANGA
... 87 more rows

Sheet Org structure
A1: Organisational Structure Votes | C1: Organisational Structure Sub-Votes | E1: Display Sub-Votes
A2: =B2&" - "&C2 -> Vote 01 - Executive & Council | B2: Vote 01 | C2: Executive & Council
A3: =B4&" - "&C4 -> Vote 02 - Finance And Administration | B3: 01.1 | C3: Council General | D3: =CONCATENATE(B3, " - ", C3) -> 01.1 - Council General | E3: 01.1 - Council General
A4: =B6&" - "&C6 -> Vote 03 - Community Service | B4: Vote 02 | C4: Finance And Administration
A5: =B8&" - "&C8 -> Vote 04 - Public And Safety | B5: 02.1 | C5: Municipal Manager | D5: =CONCATENATE(B5, " - ", C5) -> 02.1 - Municipal Manager | E5: 02.1 - Municipal Manager
A6: =B10&" - "&C10 -> Vote 05 - Waste Management | B6: Vote 03 | C6: Community Service
A7: =B16&" - "&C16 -> Vote 06 - Roads Services | B7: 03.1 | C7: Finance Services Administration | D7: =CONCATENATE(B7, " - ", C7) -> 03.1 - Finance Services Administration | E7: 03.1 - Finance Services Administration
A8: =B25&" - "&C25 -> Vote 07 - Econominc Development And Planning | B8: Vote 04 | C8: Public And Safety
A9: =B28&" - "&C28 -> Vote 08 - | B9: 04.1 | C9: Corporate Services Administration | D9: =CONCATENATE(B9, " - ", C9) -> 04.1 - Corporate Services Administration | E9: 04.1 - Corporate Services Administration
A10: Vote 09 - | B10: Vote 05 | C10: Waste Management
A11: Vote 10 - | B11: 05.1 | C11: Technical Services Administration | D11: =CONCATENATE(B11, " - ", C11) -> 05.1 - Technical Services Administration | E11: 05.1 - Technical Services Administration
A12: Vote 11 - | B12: 05.2 | C12: Electrical Services | D12: =CONCATENATE(B12, " - ", C12) -> 05.2 - Electrical Services | E12: 05.2 - Electrical Services
A13: Vote 12 - | B13: 05.3 | C13: Water Services | D13: =CONCATENATE(B13, " - ", C13) -> 05.3 - Water Services | E13: 05.3 - Water Services
A14: Vote 13 - | B14: 05.4 | C14: Sanitation Services | D14: =CONCATENATE(B14, " - ", C14) -> 05.4 - Sanitation Services | E14: 05.4 - Sanitation Services
A15: Vote 14 - | B15: 05.5 | C15: Roads Services | D15: =CONCATENATE(B15, " - ", C15) -> 05.5 - Roads Services | E15: 05.5 - Roads Services
A16: Vote 15 - Other | B16: Vote 06 | C16: Roads Services
B17: 06.1 | C17: Community Services Administration | D17: =CONCATENATE(B17, " - ", C17) -> 06.1 - Community Services Administration | E17: 06.1 - Community Services Administration
B18: 06.2 | C18: Traffic Services | D18: 06.2 - Traffic Services | E18: 06.2 - Traffic Services
B19: 06.3 | C19: Refuse | D19: 06.3 - Refuse | E19: 06.3 - Refuse
B20: 06.4 | C20: Pound Services | D20: 06.4 - Pound Services | E20: 06.4 - Pound Services
B21: 06.5 | C21: Satellite Offices | D21: 06.5 - Satellite Offices | E21: 06.5 - Satellite Offices
B22: 06.6 | C22: Alldays Offices | D22: 06.6 - Alldays Offices | E22: 06.6 - Alldays Offices
B23: 06.7 | C23: Eldorado Offices | D23: 06.7 - Eldorado Offices | E23: 06.7 - Eldorado Offices
B24: 06.8 | C24: Tolwe Offices | D24: 06.8 - Tolwe Offices | E24: 06.8 - Tolwe Offices
B25: Vote 07 | C25: Econominc Development And Planning
B26: 07.1 | C26: Project Management Unit | D26: =CONCATENATE(B26, " - ", C26) -> 07.1 - Project Management Unit | E26: 07.1 - Project Management Unit
B27: 07.2 | C27: Economic Development And Planning | D27: =CONCATENATE(B27, " - ", C27) -> 07.2 - Economic Development And Planning | E27: 07.2 - Economic Development And Planning
B28: Vote 08
B29: Vote 09
B30: Vote 10
B31: Vote 11
B32: Vote 12
B33: Vote 13
B34: Vote 14
B35: Vote 15 | C35: Other

Sheet Contacts
A1: =muni&" - "&" Contact Information" -> LIM351 Blouberg - Contact Information
A3: A. GENERAL INFORMATION
A4: Municipality | B4: =muni -> LIM351 Blouberg | C4: =IF(B4="Choose name from List","Set name on 'Instructions' sheet", "") -> 
A6: Grade | B6: 3 | C6: 1 Grade in terms of the Remuneration of Public Office Bearers Act.
A8: Province | B8: =IF(B4>" ",VLOOKUP(B4,'Lookup and lists'!B29:C307,2, FALSE)," ") -> LIM LIMPOPO
A10: Web Address | B10: www.blouberg.gov.za
A12: e-mail Address | B12: blou@blouberg.gov.za
A14: B. CONTACT INFORMATION
A15: Postal address:
A16: P.O. Box | B16: Box 1593
A17: City / Town | B17: Senwabarwana
A18: Postal Code | B18: 0790
A20: Street address
A21: Building | B21: 2nd Building
A22: Street No. & Name | B22: Senwabarwana/Dendron Road
A23: City / Town | B23: Senwabarwana
A24: Postal Code | B24: 0790
A26: General Contacts
A27: Telephone number | B27: 015 505 7100
A28: Fax number | B28: 015 505 0296
A30: C. POLITICAL LEADERSHIP
A31: Speaker: | C31: Secretary/PA to the Speaker:
A32: ID Number | C32: ID Number
A33: Title | B33: Mrs | C33: Title | D33: Mrs
A34: Name | B34: THAMAGA MN | C34: Name | D34: MALATJI PJ
A35: Telephone number | B35: 015 505 7117 | C35: Telephone number | D35: 015 505 7189
A36: Cell number | B36: 071 234 4190 | C36: Cell number | D36: 076 654 3873
A37: Fax number | B37: 015 505 0296 | C37: Fax number | D37: 105 505 0296
A38: E-mail address | B38: mariankholane@gmail.com | C38: E-mail address | D38: Malatjip@blouberg.gov.za
A40: Mayor/Executive Mayor: | C40: Secretary/PA to the Mayor/Executive Mayor:
A41: ID Number | C41: ID Number
A42: Title | B42: Mr | C42: Title | D42: Ms
A43: Name | B43: PHEEDI S | C43: Name | D43: MATLAPU M
A44: Telephone number | B44: 015 505 7191 | C44: Telephone number | D44: 015 505 7191
A45: Cell number | B45: 082 515 7596 | C45: Cell number | D45: 082 515 7596
A46: Fax number | B46: 015 505 0296 | C46: Fax number | D46: 015 505 0296
A47: E-mail address | B47: Masekapheedi3@gmail.com | C47: E-mail address | D47: matlapum@blouberg.gov.za
A49: Deputy Mayor/Executive Mayor: | C49: Secretary/PA to the Deputy Mayor/Executive Mayor:
A50: ID Number | C50: ID Number
A51: Title | C51: Title
A52: Name | C52: Name
A53: Telephone number | C53: Telephone number
A54: Cell number | C54: Cell number
A55: Fax number | C55: Fax number
A56: E-mail address | C56: E-mail address
A58: D. MANAGEMENT LEADERSHIP
A59: Municipal Manager: | C59: Secretary/PA to the Municipal Manager:
A60: ID Number | C60: ID Number | D60: 8402021376082
A61: Title | B61: Mr | C61: Title | D61: Mrs
A62: Name | B62: RAMOTHOALA R | C62: Name | D62: RAMOLOMO MS
A63: Telephone number | B63: 015 505 7163 | C63: Telephone number | D63: 015 505 7100/21
A64: Cell number | B64: 0825234435 | C64: Cell number | D64: 0786875828
A65: Fax number | B65: 015 505 0296 | C65: Fax number | D65: 015 505 0296
A66: E-mail address | B66: Ramothoalar@blouberg.gov.za | C66: E-mail address | D66: RamolomoM@blouberg.gov.za
A68: Chief Financial Officer | C68: Secretary/PA to the Chief Financial Officer
A69: ID Number | C69: ID Number
A70: Title | B70: Mr | C70: Title
A71: Name | B71: Mabote N.J | C71: Name
A72: Telephone number | B72: 015 505 7147 | C72: Telephone number
A73: Cell number | B73: 082 818 0008 | C73: Cell number
A74: Fax number | B74: 015 505 0296 | C74: Fax number
A75: E-mail address | B75: Mabotej@blouberg.gov.za | C75: E-mail address
A77: Official responsible for submitting financial information | C77: Official responsible for submitting financial information
A78: ID Number | B78: 8107260490086 | C78: ID Number
A79: Title | B79: Ms | C79: Title
A80: Name | B80: Riba M | C80: Name
A81: Telephone number | B81: 015 505 7156 | C81: Telephone number
A82: Cell number | B82: 083 561 9472 | C82: Cell number
A83: Fax number | B83: 015 505 0296 | C83: Fax number
A84: E-mail address | B84: Ribam@blouberg.gov.za | C84: E-mail address
A85: Official responsible for submitting financial information | C85: Official responsible for submitting financial information
A86: ID Number | C86: ID Number
A87: Title | C87: Title
A88: Name | C88: Name
A89: Telephone number | C89: Telephone number
A90: Cell number | C90: Cell number
A91: Fax number | C91: Fax number
A92: E-mail address | C92: E-mail address
A93: Official responsible for submitting financial information | C93: Official responsible for submitting financial information
A94: ID Number | C94: ID Number
A95: Title | C95: Title
A96: Name | C96: Name
A97: Telephone number | C97: Telephone number
A98: Cell number | C98: Cell number
A99: Fax number | C99: Fax number
A100: E-mail address | C100: E-mail address
A101: Official responsible for submitting financial information | C101: Official responsible for submitting financial information
A102: ID Number | C102: ID Number
A103: Title | C103: Title
A104: Name | C104: Name
A105: Telephone number | C105: Telephone number
A106: Cell number | C106: Cell number
A107: Fax number | C107: Fax number
A108: E-mail address | C108: E-mail address
A109: Official responsible for submitting financial information | C109: Official responsible for submitting financial information
A110: ID Number | C110: ID Number
A111: Title | C111: Title
A112: Name | C112: Name
A113: Telephone number | C113: Telephone number
A114: Cell number | C114: Cell number
A115: Fax number | C115: Fax number
A116: E-mail address | C116: E-mail address
A117: Official responsible for submitting financial information | C117: Official responsible for submitting financial information
A118: ID Number | C118: ID Number
A119: Title | C119: Title
A120: Name | C120: Name
A121: Telephone number | C121: Telephone number
A122: Cell number | C122: Cell number
A123: Fax number | C123: Fax number
A124: E-mail address | C124: E-mail address
A125: Official responsible for submitting financial information | C125: Official responsible for submitting financial information
A126: ID Number | C126: ID Number
A127: Title | C127: Title
A128: Name | C128: Name
A129: Telephone number | C129: Telephone number
A130: Cell number | C130: Cell number
A131: Fax number | C131: Fax number
A132: E-mail address | C132: E-mail address
A133: Official responsible for submitting financial information
A134: ID Number
A135: Title
A136: Name
A137: Telephone number
A138: Cell number
A139: Fax number
A140: E-mail address

Sheet A1-Sum
A1: =muni&" - "&Approve1 -> LIM351 Blouberg - Table A1 Budget Summary
A2: =desc -> Description | B2: =head1b -> 2020/21 | C2: =head1A -> 2021/22 | D2: =Head1 -> 2022/23 | E2: =Head2 -> Current Year 2023/24 | I2: =Head3 -> 2024/25 Medium Term Revenue & Expenditure Framework
A3: R thousands | B3: =Head5 -> Audited Outcome | C3: =Head5 -> Audited Outcome | D3: =Head5 -> Audited Outcome | E3: =Head6 -> Original Budget | F3: =Head7 -> Adjusted Budget | G3: =Head8 -> Full Year Forecast | H3: =Head5b -> Pre-audit outcome | I3: =Head9 -> Budget Year 2024/25 | J3: =Head10 -> Budget Year +1 2025/26 | K3: =Head11 -> Budget Year +2 2026/27
A4: Financial Performance
A5: Property rates | B5: ='A4-FinPerf RE'!C21 -> 27550105.13 | C5: ='A4-FinPerf RE'!D21 -> 29497010.89 | D5: ='A4-FinPerf RE'!E21 -> 25228987.14 | E5: ='A4-FinPerf RE'!F21 -> 32970836 | F5: ='A4-FinPerf RE'!G21 -> 32970836 | G5: ='A4-FinPerf RE'!H21 -> 32970836 | H5: ='A4-FinPerf RE'!I21 -> 67728884.61 | I5: ='A4-FinPerf RE'!J21 -> 34586407 | J5: ='A4-FinPerf RE'!K21 -> 36177381 | K5: ='A4-FinPerf RE'!L21 -> 37841540
A6: Service charges | B6: =SUM('A4-FinPerf RE'!C6:C9) -> 30264179.35 | C6: =SUM('A4-FinPerf RE'!D6:D9) -> 31039184.97 | D6: =SUM('A4-FinPerf RE'!E6:E9) -> 33477469.52 | E6: =SUM('A4-FinPerf RE'!F6:F9) -> 60971356 | F6: =SUM('A4-FinPerf RE'!G6:G9) -> 52364886 | G6: =SUM('A4-FinPerf RE'!H6:H9) -> 52364886 | H6: =SUM('A4-FinPerf RE'!I6:I9) -> 33226804.08 | I6: =SUM('A4-FinPerf RE'!J6:J9) -> 57958333 | J6: =SUM('A4-FinPerf RE'!K6:K9) -> 60624416 | K6: =SUM('A4-FinPerf RE'!L6:L9) -> 63413140
A7: Investment revenue | B7: ='A4-FinPerf RE'!C14 -> 1535693.45 | C7: ='A4-FinPerf RE'!D14 -> 2018715.85 | D7: ='A4-FinPerf RE'!E14 -> 4112363.63 | E7: ='A4-FinPerf RE'!F14 -> 3206212 | F7: ='A4-FinPerf RE'!G14 -> 6206212 | G7: ='A4-FinPerf RE'!H14 -> 6206212 | H7: ='A4-FinPerf RE'!I14 -> 5164639.83 | I7: ='A4-FinPerf RE'!J14 -> 8063596 | J7: ='A4-FinPerf RE'!K14 -> 8434521 | K7: ='A4-FinPerf RE'!L14 -> 8814075
A8: Transfer and subsidies - Operational | B8: ='A4-FinPerf RE'!C25 -> 239282517.3 | C8: ='A4-FinPerf RE'!D25 -> 214162630.3 | D8: ='A4-FinPerf RE'!E25 -> 225391142.6 | E8: ='A4-FinPerf RE'!F25 -> 237377000 | F8: ='A4-FinPerf RE'!G25 -> 241377000 | G8: ='A4-FinPerf RE'!H25 -> 241377000 | H8: ='A4-FinPerf RE'!I25 -> 240622291.1 | I8: ='A4-FinPerf RE'!J25 -> 250671000 | J8: ='A4-FinPerf RE'!K25 -> 246554000 | K8: ='A4-FinPerf RE'!L25 -> 237981000
A9: Other own revenue | B9: ='A4-FinPerf RE'!C32-SUM(B5:B8) -> 7331808.3 | C9: ='A4-FinPerf RE'!D32-SUM(C5:C8) -> 12851223.13 | D9: ='A4-FinPerf RE'!E32-SUM(D5:D8) -> 31523088.93 | E9: ='A4-FinPerf RE'!F32-SUM(E5:E8) -> 18464922 | F9: ='A4-FinPerf RE'!G32-SUM(F5:F8) -> 22964921 | G9: ='A4-FinPerf RE'!H32-SUM(G5:G8) -> 22964921 | H9: ='A4-FinPerf RE'!I32-SUM(H5:H8) -> 14890251.01 | I9: ='A4-FinPerf RE'!J32-SUM(I5:I8) -> 14826903 | J9: ='A4-FinPerf RE'!K32-SUM(J5:J8) -> 15508939 | K9: ='A4-FinPerf RE'!L32-SUM(K5:K8) -> 16222351
A10: ='A4-FinPerf RE'!A32 -> Total Revenue (excluding capital transfers and contributions) | B10: =SUM(B5:B9) -> 305964303.6 | C10: =SUM(C5:C9) -> 289568765.1 | D10: 319733051.8 | E10: 352990326 | F10: 355883855 | G10: 355883855 | H10: 361632870.6 | I10: 366106239 | J10: 367299257 | K10: 364272106
A11: Employee costs | B11: ='A4-FinPerf RE'!C34 -> 115511343.4 | C11: ='A4-FinPerf RE'!D34 -> 119858269 | D11: ='A4-FinPerf RE'!E34 -> 124043649 | E11: ='A4-FinPerf RE'!F34 -> 135978991 | F11: ='A4-FinPerf RE'!G34 -> 136323991 | G11: ='A4-FinPerf RE'!H34 -> 136323991 | H11: ='A4-FinPerf RE'!I34 -> 108480080.4 | I11: ='A4-FinPerf RE'!J34 -> 140755081 | J11: ='A4-FinPerf RE'!K34 -> 147206811 | K11: ='A4-FinPerf RE'!L34 -> 153955327
A12: Remuneration of councillors | B12: ='A4-FinPerf RE'!C35 -> 16412060.03 | C12: ='A4-FinPerf RE'!D35 -> 17213956.91 | D12: ='A4-FinPerf RE'!E35 -> 17982273.07 | E12: ='A4-FinPerf RE'!F35 -> 20752503 | F12: ='A4-FinPerf RE'!G35 -> 20752503 | G12: ='A4-FinPerf RE'!H35 -> 20752503 | H12: ='A4-FinPerf RE'!I35 -> 16153871.34 | I12: ='A4-FinPerf RE'!J35 -> 21997665 | J12: ='A4-FinPerf RE'!K35 -> 23009558 | K12: ='A4-FinPerf RE'!L35 -> 24067998
A13: Depreciation and amortisation | B13: ='A4-FinPerf RE'!C39 -> 29419185.92 | C13: ='A4-FinPerf RE'!D39 -> 30420608.43 | D13: ='A4-FinPerf RE'!E39 -> 31482239.38 | E13: ='A4-FinPerf RE'!F39 -> 37667907 | F13: ='A4-FinPerf RE'!G39 -> 37302907 | G13: ='A4-FinPerf RE'!H39 -> 37302907 | H13: ='A4-FinPerf RE'!I39 -> 23319749.46 | I13: ='A4-FinPerf RE'!J39 -> 33513635 | J13: ='A4-FinPerf RE'!K39 -> 35055266 | K13: ='A4-FinPerf RE'!L39 -> 36667805
A14: Interest | B14: ='A4-FinPerf RE'!C40 -> 0 | C14: ='A4-FinPerf RE'!D40 -> 0 | D14: ='A4-FinPerf RE'!E40 -> 0 | E14: ='A4-FinPerf RE'!F40 -> 0 | F14: ='A4-FinPerf RE'!G40 -> 0 | G14: ='A4-FinPerf RE'!H40 -> 0 | H14: ='A4-FinPerf RE'!I40 -> 0 | I14: ='A4-FinPerf RE'!J40 -> 0 | J14: ='A4-FinPerf RE'!K40 -> 0 | K14: ='A4-FinPerf RE'!L40 -> 0
A15: Inventory consumed and bulk purchases | B15: ='A4-FinPerf RE'!C36+'A4-FinPerf RE'!C37 -> 41315280.57 | C15: ='A4-FinPerf RE'!D36+'A4-FinPerf RE'!D37 -> 57305148.64 | D15: ='A4-FinPerf RE'!E36+'A4-FinPerf RE'!E37 -> 56552612.47 | E15: ='A4-FinPerf RE'!F36+'A4-FinPerf RE'!F37 -> 65854960 | F15: ='A4-FinPerf RE'!G36+'A4-FinPerf RE'!G37 -> 65066080 | G15: ='A4-FinPerf RE'!H36+'A4-FinPerf RE'!H37 -> 65066080 | H15: ='A4-FinPerf RE'!I36+'A4-FinPerf RE'!I37 -> 48061012.92 | I15: ='A4-FinPerf RE'!J36+'A4-FinPerf RE'!J37 -> 66777183 | J15: ='A4-FinPerf RE'!K36+'A4-FinPerf RE'!K37 -> 69848933 | K15: ='A4-FinPerf RE'!L36+'A4-FinPerf RE'!L37 -> 73056402
A16: Transfers and subsidies | B16: ='A4-FinPerf RE'!C42 -> 0 | C16: ='A4-FinPerf RE'!D42 -> 49860 | D16: ='A4-FinPerf RE'!E42 -> 0 | E16: ='A4-FinPerf RE'!F42 -> 0 | F16: ='A4-FinPerf RE'!G42 -> 0 | G16: ='A4-FinPerf RE'!H42 -> 0 | H16: ='A4-FinPerf RE'!I42 -> 0 | I16: ='A4-FinPerf RE'!J42 -> 0 | J16: ='A4-FinPerf RE'!K42 -> 0 | K16: ='A4-FinPerf RE'!L42 -> 0
A17: Other expenditure | B17: ='A4-FinPerf RE'!C47-SUM(B11:B16) -> 108576539.1 | C17: ='A4-FinPerf RE'!D47-SUM(C11:C16) -> 103731104.5 | D17: ='A4-FinPerf RE'!E47-SUM(D11:D16) -> 181543847.7 | E17: ='A4-FinPerf RE'!F47-SUM(E11:E16) -> 128817892 | F17: ='A4-FinPerf RE'!G47-SUM(F11:F16) -> 132083047 | G17: ='A4-FinPerf RE'!H47-SUM(G11:G16) -> 132083047 | H17: ='A4-FinPerf RE'!I47-SUM(H11:H16) -> 95873121.7 | I17: ='A4-FinPerf RE'!J47-SUM(I11:I16) -> 169859001 | J17: ='A4-FinPerf RE'!K47-SUM(J11:J16) -> 161807207 | K17: ='A4-FinPerf RE'!L47-SUM(K11:K16) -> 147380621
A18: ='A4-FinPerf RE'!A47 -> Total Expenditure | B18: =SUM(B11:B17) -> 311234409.1 | C18: =SUM(C11:C17) -> 328578947.5 | D18: 411604621.6 | E18: 389072253 | F18: 391528528 | G18: 391528528 | H18: 291887835.8 | I18: 432902565 | J18: 436927775 | K18: 435128153
A19: ='A4-FinPerf RE'!A48 -> Surplus/(Deficit) | B19: =B10-B18 -> -5270105.49 | C19: =C10-C18 -> -39010182.3 | D19: -91871569.82 | E19: -36081927 | F19: -35644673 | G19: -35644673 | H19: 69745034.78 | I19: -66796326 | J19: -69628518 | K19: -70856047
A20: ='A4-FinPerf RE'!A49 -> Transfers and subsidies - capital (monetary allocations) | B20: ='A4-FinPerf RE'!C49 -> 55896304.42 | C20: ='A4-FinPerf RE'!D49 -> 62602152.7 | D20: ='A4-FinPerf RE'!E49 -> 112528034.1 | E20: ='A4-FinPerf RE'!F49 -> 85575000 | F20: ='A4-FinPerf RE'!G49 -> 154966966 | G20: ='A4-FinPerf RE'!H49 -> 154966966 | H20: ='A4-FinPerf RE'!I49 -> 14066938.27 | I20: ='A4-FinPerf RE'!J49 -> 67485000 | J20: ='A4-FinPerf RE'!K49 -> 84932000 | K20: ='A4-FinPerf RE'!L49 -> 74767000
A21: ='A4-FinPerf RE'!A50 -> Transfers and subsidies - capital (in-kind) | B21: ='A4-FinPerf RE'!C50 -> 0 | C21: ='A4-FinPerf RE'!D50 -> 0 | D21: ='A4-FinPerf RE'!E50 -> 0 | E21: ='A4-FinPerf RE'!F50 -> 0 | F21: ='A4-FinPerf RE'!G50 -> 0 | G21: ='A4-FinPerf RE'!H50 -> 0 | H21: ='A4-FinPerf RE'!I50 -> 0 | I21: ='A4-FinPerf RE'!J50 -> 0 | J21: ='A4-FinPerf RE'!K50 -> 0 | K21: ='A4-FinPerf RE'!L50 -> 0
A22: ='A4-FinPerf RE'!A51 -> Surplus/(Deficit) after capital transfers & contributions | B22: =B19+SUM(B20:B21) -> 50626198.93 | C22: =C19+SUM(C20:C21) -> 23591970.4 | D22: 20656464.27 | E22: 49493073 | F22: 119322293 | G22: 119322293 | H22: 83811973.05 | I22: 688674 | J22: 15303482 | K22: 3910953
A23: ='A4-FinPerf RE'!A57 -> Share of Surplus/Deficit attributable to Associate | B23: ='A4-FinPerf RE'!C57 -> 0 | C23: ='A4-FinPerf RE'!D57 -> 0 | D23: ='A4-FinPerf RE'!E57 -> 0 | E23: ='A4-FinPerf RE'!F57 -> 0 | F23: ='A4-FinPerf RE'!G57 -> 0 | G23: ='A4-FinPerf RE'!H57 -> 0 | H23: ='A4-FinPerf RE'!I57 -> 0 | I23: ='A4-FinPerf RE'!J57 -> 0 | J23: ='A4-FinPerf RE'!K57 -> 0 | K23: ='A4-FinPerf RE'!L57 -> 0
A24: ='A4-FinPerf RE'!A59 -> Surplus/(Deficit) for the year | B24: =B22+B23 -> 50626198.93 | C24: =C22+C23 -> 23591970.4 | D24: 20656464.27 | E24: 49493073 | F24: 119322293 | G24: 119322293 | H24: 83811973.05 | I24: 688674 | J24: 15303482 | K24: 3910953
A25: Capital expenditure & funds sources
A26: Capital expenditure | B26: ='A5-Capex'!C63 -> 5444345.83 | C26: ='A5-Capex'!D63 -> 8073757.71 | D26: ='A5-Capex'!E63 -> 99909545.11 | E26: ='A5-Capex'!F63 -> 86892000 | F26: ='A5-Capex'!G63 -> 157328342 | G26: ='A5-Capex'!H63 -> 157328342 | H26: ='A5-Capex'!I63 -> 55452128.77 | I26: ='A5-Capex'!J63 -> 74908531 | J26: ='A5-Capex'!K63 -> 85153800 | K26: ='A5-Capex'!L63 -> 75067002
A27: Transfers recognised - capital | B27: ='A5-Capex'!C70 -> 26013.43 | C27: ='A5-Capex'!D70 -> 0 | D27: ='A5-Capex'!E70 -> 98867988.86 | E27: ='A5-Capex'!F70 -> 85575000 | F27: ='A5-Capex'!G70 -> 155531342 | G27: ='A5-Capex'!H70 -> 155531342 | H27: ='A5-Capex'!I70 -> 54786367.03 | I27: ='A5-Capex'!J70 -> 65785000 | J27: ='A5-Capex'!K70 -> 83153800 | K27: ='A5-Capex'!L70 -> 72878768
A29: ='A5-Capex'!A72 -> Borrowing | B29: ='A5-Capex'!C72 -> 0 | C29: ='A5-Capex'!D72 -> 0 | D29: ='A5-Capex'!E72 -> 0 | E29: ='A5-Capex'!F72 -> 0 | F29: ='A5-Capex'!G72 -> 0 | G29: ='A5-Capex'!H72 -> 0 | H29: ='A5-Capex'!I72 -> 0 | I29: ='A5-Capex'!J72 -> 0 | J29: ='A5-Capex'!K72 -> 0 | K29: ='A5-Capex'!L72 -> 0
A30: ='A5-Capex'!A73 -> Internally generated funds | B30: ='A5-Capex'!C73 -> 5418332.4 | C30: ='A5-Capex'!D73 -> 8073757.71 | D30: ='A5-Capex'!E73 -> 1041556.25 | E30: ='A5-Capex'!F73 -> 1317000 | F30: ='A5-Capex'!G73 -> 1797000 | G30: ='A5-Capex'!H73 -> 1797000 | H30: ='A5-Capex'!I73 -> 665761.74 | I30: ='A5-Capex'!J73 -> 9123531 | J30: ='A5-Capex'!K73 -> 2000000 | K30: ='A5-Capex'!L73 -> 2188234
A31: Total sources of capital funds | B31: =+B27+B29+B30 -> 5444345.83 | C31: =+C27+C29+C30 -> 8073757.71 | D31: 99909545.11 | E31: 86892000 | F31: 157328342 | G31: 157328342 | H31: 55452128.77 | I31: 74908531 | J31: 85153800 | K31: 75067002
A32: Financial position
A33: ='A6-FinPos'!A13 -> Total current assets | B33: ='A6-FinPos'!C13 -> 46791249.94 | C33: ='A6-FinPos'!D13 -> 95700960.75 | D33: ='A6-FinPos'!E13 -> 156830741.5 | E33: ='A6-FinPos'!F13 -> 1075073330 | F33: ='A6-FinPos'!G13 -> 204926449 | G33: ='A6-FinPos'!H13 -> 204926449 | H33: ='A6-FinPos'!I13 -> 311183619.7 | I33: ='A6-FinPos'!J13 -> 263927438 | J33: ='A6-FinPos'!K13 -> 272558429 | K33: ='A6-FinPos'!L13 -> 269403980
A34: ='A6-FinPos'!A25 -> Total non current assets | B34: ='A6-FinPos'!C25 -> 951985586.1 | C34: ='A6-FinPos'!D25 -> 986551571.8 | D34: ='A6-FinPos'!E25 -> 1079694612 | E34: ='A6-FinPos'!F25 -> 159647749 | F34: ='A6-FinPos'!G25 -> 1155682248 | G34: ='A6-FinPos'!H25 -> 1155682248 | H34: ='A6-FinPos'!I25 -> 1118091902 | I34: ='A6-FinPos'!J25 -> 1138425676 | J34: ='A6-FinPos'!K25 -> 1190177940 | K34: ='A6-FinPos'!L25 -> 1314128178
A35: ='A6-FinPos'!A37 -> Total current liabilities | B35: ='A6-FinPos'!C37 -> 58691415.63 | C35: ='A6-FinPos'!D37 -> 89480325.37 | D35: ='A6-FinPos'!E37 -> 113576713.8 | E35: ='A6-FinPos'!F37 -> 52171349 | F35: ='A6-FinPos'!G37 -> 70914844 | G35: ='A6-FinPos'!H37 -> 70914844 | H35: ='A6-FinPos'!I37 -> 227337078.2 | I35: ='A6-FinPos'!J37 -> 75307156 | J35: ='A6-FinPos'!K37 -> 70403285 | K35: ='A6-FinPos'!L37 -> 73571433
A36: ='A6-FinPos'!A43 -> Total non current liabilities | B36: ='A6-FinPos'!C43 -> 19739952.68 | C36: ='A6-FinPos'!D43 -> 23995855.17 | D36: ='A6-FinPos'!E43 -> 38433209.98 | E36: ='A6-FinPos'!F43 -> 18811692 | F36: ='A6-FinPos'!G43 -> 39607525 | G36: ='A6-FinPos'!H43 -> 39607525 | H36: ='A6-FinPos'!I43 -> 38433209.98 | I36: ='A6-FinPos'!J43 -> 27203817 | J36: ='A6-FinPos'!K43 -> 37451761 | K36: ='A6-FinPos'!L43 -> 25427224
A37: Community wealth/Equity | B37: ='A6-FinPos'!C50 -> 1028930454 | C37: ='A6-FinPos'!D50 -> 1055035250 | D37: ='A6-FinPos'!E50 -> 1080275973 | E37: ='A6-FinPos'!F50 -> 1151715342 | F37: ='A6-FinPos'!G50 -> 1221796301 | G37: ='A6-FinPos'!H50 -> 1221796301 | H37: ='A6-FinPos'!I50 -> 1165981293 | I37: ='A6-FinPos'!J50 -> 1339316667 | J37: ='A6-FinPos'!K50 -> 1393895178 | K37: ='A6-FinPos'!L50 -> 1462759397
A38: Cash flows
A39: Net cash from (used) operating | B39: ='A7-CFlow'!C17 -> 115993773.9 | C39: ='A7-CFlow'!D17 -> -52470381.77 | D39: ='A7-CFlow'!E17 -> -132576007.9 | E39: ='A7-CFlow'!F17 -> 88727777 | F39: ='A7-CFlow'!G17 -> 154085118 | G39: ='A7-CFlow'!H17 -> 154085118 | H39: ='A7-CFlow'!I17 -> -30540622.13 | I39: ='A7-CFlow'!J17 -> 79658878 | J39: ='A7-CFlow'!K17 -> 87620992 | K39: ='A7-CFlow'!L17 -> 80310052
A40: Net cash from (used) investing | B40: ='A7-CFlow'!C26 -> -2871040 | C40: ='A7-CFlow'!D26 -> -8073757.71 | D40: ='A7-CFlow'!E26 -> -104774148.6 | E40: ='A7-CFlow'!F26 -> -82027396.47 | F40: ='A7-CFlow'!G26 -> -164381895 | G40: ='A7-CFlow'!H26 -> -164381895 | H40: ='A7-CFlow'!I26 -> -61717038.94 | I40: ='A7-CFlow'!J26 -> -76563581 | J40: ='A7-CFlow'!K26 -> -85646395 | K40: ='A7-CFlow'!L26 -> -75571057
A41: Net cash from (used) financing | B41: ='A7-CFlow'!C35 -> 0 | C41: ='A7-CFlow'!D35 -> 0 | D41: ='A7-CFlow'!E35 -> 0 | E41: ='A7-CFlow'!F35 -> 0 | F41: ='A7-CFlow'!G35 -> 0 | G41: ='A7-CFlow'!H35 -> 0 | H41: ='A7-CFlow'!I35 -> 0 | I41: ='A7-CFlow'!J35 -> 0 | J41: ='A7-CFlow'!K35 -> 0 | K41: ='A7-CFlow'!L35 -> 0
A42: =LEFT('A7-CFlow'!A39,37) -> Cash/cash equivalents at the year end | B42: ='A7-CFlow'!C39 -> 71614973.55 | C42: ='A7-CFlow'!D39 -> -101874742.4 | D42: ='A7-CFlow'!E39 -> -322184707 | E42: ='A7-CFlow'!F39 -> -83560626.47 | F42: ='A7-CFlow'!G39 -> -112910012 | G42: ='A7-CFlow'!H39 -> -112910012 | H42: ='A7-CFlow'!I39 -> -92257661.07 | I42: ='A7-CFlow'!J39 -> 154753055 | J42: ='A7-CFlow'!K39 -> 156727652 | K42: ='A7-CFlow'!L39 -> 161466647
A44: Cash backing/surplus reconciliation
A45: ='A8-ResRecon'!A4 -> Cash and investments available | B45: ='A8-ResRecon'!C8 -> 1330602.88 | C45: ='A8-ResRecon'!D8 -> 89472523.86 | D45: ='A8-ResRecon'!E8 -> 106707276.7 | E45: ='A8-ResRecon'!F8 -> 92096784 | F45: ='A8-ResRecon'!G8 -> 122633484 | G45: ='A8-ResRecon'!H8 -> 122633484 | H45: ='A8-ResRecon'!I8 -> 205090382.7 | I45: ='A8-ResRecon'!J8 -> 215461290 | J45: ='A8-ResRecon'!K8 -> 222928700 | K45: ='A8-ResRecon'!L8 -> 233172347
A46: ='A8-ResRecon'!A10 -> Application of cash and investments | B46: ='A8-ResRecon'!C18 -> 11563070.6 | C46: ='A8-ResRecon'!D18 -> 81055622.76 | D46: ='A8-ResRecon'!E18 -> 61587710.95 | E46: ='A8-ResRecon'!F18 -> -254631083 | F46: ='A8-ResRecon'!G18 -> 29961643 | G46: ='A8-ResRecon'!H18 -> 29961643 | H46: ='A8-ResRecon'!I18 -> 189872570.6 | I46: ='A8-ResRecon'!J18 -> 22459708 | J46: ='A8-ResRecon'!K18 -> 14746179 | K46: ='A8-ResRecon'!L18 -> 16735558
A47: Balance - surplus (shortfall) | B47: =B45-B46 -> -10232467.72 | C47: =C45-C46 -> 8416901.1 | D47: 45119565.72 | E47: 346727867 | F47: 92671841 | G47: 92671841 | H47: 15217812.04 | I47: 193001582 | J47: 208182521 | K47: 216436789
A48: Asset management
A49: Asset register summary (WDV) | B49: ='A9-Asset'!C180 -> 821881307.7 | C49: ='A9-Asset'!D180 -> 778068844.1 | D49: ='A9-Asset'!E180 -> 921957967.1 | E49: ='A9-Asset'!F180 -> 143111074 | F49: ='A9-Asset'!G180 -> 1130092020 | G49: ='A9-Asset'!H180 -> 1130092020 | I49: ='A9-Asset'!I180 -> 1111180398 | J49: ='A9-Asset'!J180 -> 1161679380 | K49: ='A9-Asset'!K180 -> 1284347182
A50: ='A9-Asset'!A183 -> Depreciation | B50: ='A9-Asset'!C183 -> 29419185.92 | C50: ='A9-Asset'!D183 -> 30420608.43 | D50: ='A9-Asset'!E183 -> 31482239.38 | E50: ='A9-Asset'!F183 -> 37667907 | F50: ='A9-Asset'!G183 -> 37302907 | G50: ='A9-Asset'!H183 -> 37302907 | I50: ='A9-Asset'!I183 -> 33513635 | J50: ='A9-Asset'!J183 -> 35055266 | K50: ='A9-Asset'!K183 -> 36667805
A51: Renewal and Upgrading of Existing Assets | B51: ='A9-Asset'!C40+'A9-Asset'!C75 -> 130220 | C51: ='A9-Asset'!D40+'A9-Asset'!D75 -> 93057.64 | D51: ='A9-Asset'!E40+'A9-Asset'!E75 -> 0 | E51: ='A9-Asset'!F40+'A9-Asset'!F75 -> 407000 | F51: ='A9-Asset'!G40+'A9-Asset'!G75 -> 48287000 | G51: ='A9-Asset'!H40+'A9-Asset'!H75 -> 48287000 | I51: ='A9-Asset'!I40+'A9-Asset'!I75 -> 16816000 | J51: ='A9-Asset'!J40+'A9-Asset'!J75 -> 17530800 | K51: ='A9-Asset'!K40+'A9-Asset'!K75 -> 1988234
A52: Repairs and Maintenance | B52: ='A9-Asset'!C184 -> 16037072.02 | C52: ='A9-Asset'!D184 -> 16747919.76 | D52: ='A9-Asset'!E184 -> 5831457.51 | E52: ='A9-Asset'!F184 -> 8820185 | F52: ='A9-Asset'!G184 -> 10868905 | G52: ='A9-Asset'!H184 -> 10868905 | I52: ='A9-Asset'!I184 -> 5931016 | J52: ='A9-Asset'!J184 -> 6203843 | K52: ='A9-Asset'!K184 -> 6489222
A54: Free services
A55: Cost of Free Basic Services provided | B55: ='A10-SerDel'!C60 -> 0.2 | C55: ='A10-SerDel'!D60 -> 19177.77 | D55: ='A10-SerDel'!E60 -> 24456.72 | E55: ='A10-SerDel'!F60 -> 0 | F55: ='A10-SerDel'!G60 -> 6470 | G55: ='A10-SerDel'!H60 -> 6470 | I55: ='A10-SerDel'!I60 -> 4207000 | J55: ='A10-SerDel'!J60 -> 4400522 | K55: ='A10-SerDel'!K60 -> 4602391
A56: Revenue cost of free services provided | B56: ='A10-SerDel'!C79 -> 6664543.75 | C56: ='A10-SerDel'!D79 -> 2981107.94 | D56: ='A10-SerDel'!E79 -> 7823351.55 | E56: ='A10-SerDel'!F79 -> 7156836 | F56: ='A10-SerDel'!G79 -> 7156836 | G56: ='A10-SerDel'!H79 -> 7156836 | I56: ='A10-SerDel'!I79 -> 7586249 | J56: ='A10-SerDel'!J79 -> 7935217 | K56: ='A10-SerDel'!K79 -> 8300237
A57: Households below minimum service level
A58: ='A10-SerDel'!A5 -> Water: | B58: ='A10-SerDel'!C14 -> 0 | C58: ='A10-SerDel'!D14 -> 0 | D58: ='A10-SerDel'!E14 -> 0 | E58: ='A10-SerDel'!F14 -> 0 | F58: ='A10-SerDel'!G14 -> 0 | G58: ='A10-SerDel'!H14 -> 0 | I58: ='A10-SerDel'!I14 -> 0 | J58: ='A10-SerDel'!J14 -> 0 | K58: ='A10-SerDel'!K14 -> 0
A59: ='A10-SerDel'!A16 -> Sanitation/sewerage: | B59: ='A10-SerDel'!C26 -> 0 | C59: ='A10-SerDel'!D26 -> 0 | D59: ='A10-SerDel'!E26 -> 0 | E59: ='A10-SerDel'!F26 -> 0 | F59: ='A10-SerDel'!G26 -> 0 | G59: ='A10-SerDel'!H26 -> 0 | I59: ='A10-SerDel'!I26 -> 0 | J59: ='A10-SerDel'!J26 -> 0 | K59: ='A10-SerDel'!K26 -> 0
A60: ='A10-SerDel'!A28 -> Energy: | B60: ='A10-SerDel'!C35 -> 0 | C60: ='A10-SerDel'!D35 -> 0 | D60: ='A10-SerDel'!E35 -> 0 | E60: ='A10-SerDel'!F35 -> 0 | F60: ='A10-SerDel'!G35 -> 0 | G60: ='A10-SerDel'!H35 -> 0 | I60: ='A10-SerDel'!I35 -> 0 | J60: ='A10-SerDel'!J35 -> 0 | K60: ='A10-SerDel'!K35 -> 0
A61: ='A10-SerDel'!A37 -> Refuse: | B61: ='A10-SerDel'!C45 -> 0 | C61: ='A10-SerDel'!D45 -> 0 | D61: ='A10-SerDel'!E45 -> 0 | E61: ='A10-SerDel'!F45 -> 0 | F61: ='A10-SerDel'!G45 -> 0 | G61: ='A10-SerDel'!H45 -> 0 | I61: ='A10-SerDel'!I45 -> 0 | J61: ='A10-SerDel'!J45 -> 0 | K61: ='A10-SerDel'!K45 -> 0

Sheet A2-FinPerf SC
A1: =muni&" - "&Approve3 -> LIM351 Blouberg - Table A2 Budgeted Financial Performance (revenue and expenditure by functional classification)
A2: ="Functional Classification "&desc -> Functional Classification Description | B2: =head27 -> Ref | C2: =head1b -> 2020/21 | D2: =head1A -> 2021/22 | E2: =Head1 -> 2022/23 | F2: =Head2 -> Current Year 2023/24 | I2: =Head3 -> 2024/25 Medium Term Revenue & Expenditure Framework
A3: R thousand | B3: 1 | C3: =Head5 -> Audited Outcome | D3: =Head5 -> Audited Outcome | E3: =Head5 -> Audited Outcome | F3: =Head6 -> Original Budget | G3: =Head7 -> Adjusted Budget | H3: =Head8 -> Full Year Forecast | I3: =Head9 -> Budget Year 2024/25 | J3: =Head10 -> Budget Year +1 2025/26 | K3: =Head11 -> Budget Year +2 2026/27
A4: Revenue - Functional
A5: Governance and administration | C5: =SUM(C6:C8) -> 270275978.8 | D5: =SUM(D6:D8) -> 245714191.5 | E5: 274907887.2 | F5: 273303155 | G5: 280212957 | H5: 280212957 | I5: 293731126 | J5: 293692120 | K5: 287279040
A6: Executive and council | C6: =A2A!C6 -> 157764.34 | D6: =A2A!D6 -> 0 | E6: =A2A!E6 -> 0 | F6: =A2A!F6 -> 0 | G6: =A2A!G6 -> 0 | H6: =A2A!H6 -> 0 | I6: =A2A!I6 -> 0 | J6: =A2A!J6 -> 0 | K6: =A2A!K6 -> 0
A7: Finance and administration | C7: =A2A!C9 -> 270118214.4 | D7: =A2A!D9 -> 245714191.5 | E7: =A2A!E9 -> 274907887.2 | F7: =A2A!F9 -> 273303155 | G7: =A2A!G9 -> 280212957 | H7: =A2A!H9 -> 280212957 | I7: =A2A!I9 -> 293731126 | J7: =A2A!J9 -> 293692120 | K7: =A2A!K9 -> 287279040
A8: Internal audit | C8: =A2A!C23 -> 0 | D8: =A2A!D23 -> 0 | E8: =A2A!E23 -> 0 | F8: =A2A!F23 -> 0 | G8: =A2A!G23 -> 0 | H8: =A2A!H23 -> 0 | I8: =A2A!I23 -> 0 | J8: =A2A!J23 -> 0 | K8: =A2A!K23 -> 0
A9: Community and public safety | C9: =SUM(C10:C14) -> 3158312.65 | D9: =SUM(D10:D14) -> 3316321.67 | E9: 2742997.67 | F9: 6500000 | G9: 6500000 | H9: 6500000 | I9: 6818500 | J9: 7132151 | K9: 7460230
A10: Community and social services | C10: =A2A!C26 -> 0 | D10: =A2A!D26 -> 0 | E10: =A2A!E26 -> 0 | F10: =A2A!F26 -> 0 | G10: =A2A!G26 -> 0 | H10: =A2A!H26 -> 0 | I10: =A2A!I26 -> 0 | J10: =A2A!J26 -> 0 | K10: =A2A!K26 -> 0
A11: Sport and recreation | C11: =A2A!C48 -> 0 | D11: =A2A!D48 -> 0 | E11: =A2A!E48 -> 0 | F11: =A2A!F48 -> 0 | G11: =A2A!G48 -> 0 | H11: =A2A!H48 -> 0 | I11: =A2A!I48 -> 0 | J11: =A2A!J48 -> 0 | K11: =A2A!K48 -> 0
A12: Public safety | C12: =A2A!C54 -> 3158312.65 | D12: =A2A!D54 -> 3316321.67 | E12: =A2A!E54 -> 2742997.67 | F12: =A2A!F54 -> 6500000 | G12: =A2A!G54 -> 6500000 | H12: =A2A!H54 -> 6500000 | I12: =A2A!I54 -> 6818500 | J12: =A2A!J54 -> 7132151 | K12: =A2A!K54 -> 7460230
A13: Housing | C13: =A2A!C63 -> 0 | D13: =A2A!D63 -> 0 | E13: =A2A!E63 -> 0 | F13: =A2A!F63 -> 0 | G13: =A2A!G63 -> 0 | H13: =A2A!H63 -> 0 | I13: =A2A!I63 -> 0 | J13: =A2A!J63 -> 0 | K13: =A2A!K63 -> 0
A14: Health | C14: =A2A!C66 -> 0 | D14: =A2A!D66 -> 0 | E14: =A2A!E66 -> 0 | F14: =A2A!F66 -> 0 | G14: =A2A!G66 -> 0 | H14: =A2A!H66 -> 0 | I14: =A2A!I66 -> 0 | J14: =A2A!J66 -> 0 | K14: =A2A!K66 -> 0
A15: Economic and environmental services | C15: =SUM(C16:C18) -> 179917.97 | D15: =SUM(D16:D18) -> 70364971.2 | E15: 91173149.63 | F15: 62297374 | G15: 130567251 | H15: 130567251 | I15: 70003555 | J15: 72566408 | K15: 61522590
A16: Planning and development | C16: =A2A!C75 -> 179917.97 | D16: =A2A!D75 -> 57486716.36 | E16: =A2A!E75 -> 91173149.63 | F16: =A2A!F75 -> 62297374 | G16: =A2A!G75 -> 79467251 | H16: =A2A!H75 -> 79467251 | I16: =A2A!I75 -> 54287555 | J16: =A2A!J75 -> 56849408 | K16: =A2A!K75 -> 61522590
A17: Road transport | C17: =A2A!C86 -> 0 | D17: =A2A!D86 -> 12878254.84 | E17: =A2A!E86 -> 0 | F17: =A2A!F86 -> 0 | G17: =A2A!G86 -> 51100000 | H17: =A2A!H86 -> 51100000 | I17: =A2A!I86 -> 15716000 | J17: =A2A!J86 -> 15717000 | K17: =A2A!K86 -> 0
A18: Environmental protection | C18: =A2A!C91 -> 0 | D18: =A2A!D91 -> 0 | E18: =A2A!E91 -> 0 | F18: =A2A!F91 -> 0 | G18: =A2A!G91 -> 0 | H18: =A2A!H91 -> 0 | I18: =A2A!I91 -> 0 | J18: =A2A!J91 -> 0 | K18: =A2A!K91 -> 0
A19: Trading services | C19: =SUM(C20:C23) -> 88246398.6 | D19: =SUM(D20:D23) -> 32775433.5 | E19: 63437051.33 | F19: 96464797 | G19: 93570613 | H19: 93570613 | I19: 63038058 | J19: =SUM(J20:J23) -> 78840578 | K19: 82777246
A20: Energy sources | C20: =A2A!C99 -> 85160922.3 | D20: =A2A!D99 -> 29464538.93 | E20: =A2A!E99 -> 59301265.84 | F20: =A2A!F99 -> 91586673 | G20: =A2A!G99 -> 88992489 | H20: =A2A!H99 -> 88992489 | I20: =A2A!I99 -> 56286558 | J20: =A2A!J99 -> 73875739 | K20: =A2A!K99 -> 77584024
A21: Water management | C21: =A2A!C103 -> 2570.24 | D21: =A2A!D103 -> 11436.52 | E21: =A2A!E103 -> 8162.17 | F21: =A2A!F103 -> 0 | G21: =A2A!G103 -> 0 | H21: =A2A!H103 -> 0 | I21: =A2A!I103 -> 0 | J21: =A2A!J103 -> 0 | K21: =A2A!K103 -> 0
A22: Waste water management | C22: =A2A!C107 -> 0 | D22: =A2A!D107 -> 23524.88 | E22: =A2A!E107 -> 10993.02 | F22: =A2A!F107 -> 0 | G22: =A2A!G107 -> 0 | H22: =A2A!H107 -> 0 | I22: =A2A!I107 -> 0 | J22: =A2A!J107 -> 0 | K22: =A2A!K107 -> 0
A23: Waste management | C23: =A2A!C112 -> 3082906.06 | D23: =A2A!D112 -> 3275933.17 | E23: =A2A!E112 -> 4116630.3 | F23: =A2A!F112 -> 4878124 | G23: =A2A!G112 -> 4578124 | H23: =A2A!H112 -> 4578124 | I23: =A2A!I112 -> 6751500 | J23: =A2A!J112 -> 4964839 | K23: =A2A!K112 -> 5193222
A24: Other | B24: 4 | C24: =A2A!C117 -> 0 | D24: =A2A!D117 -> 0 | E24: =A2A!E117 -> 0 | F24: =A2A!F117 -> 0 | G24: =A2A!G117 -> 0 | H24: =A2A!H117 -> 0 | I24: =A2A!I117 -> 0 | J24: =A2A!J117 -> 0 | K24: =A2A!K117 -> 0
A25: ="Total "&A4 -> Total Revenue - Functional | B25: 2 | C25: =C5+C9+C15+C19+C24 -> 361860608 | D25: =D5+D9+D15+D19+D24 -> 352170917.9 | E25: =E5+E9+E15+E19+E24 -> 432261085.9 | F25: 438565326 | G25: 510850821 | H25: 510850821 | I25: =I5+I9+I15+I19+I24 -> 433591239 | J25: 452231257 | K25: 439039106
A27: Expenditure - Functional
A28: Governance and administration | C28: =SUM(C29:C31) -> 163556363.7 | D28: =SUM(D29:D31) -> 157167716.3 | E28: 246625969.1 | F28: 197140700 | G28: 198528700 | H28: 198528700 | I28: 226413674 | J28: 223037625 | K28: 211404636
A29: Executive and council | C29: =A2A!C128 -> 63224325.02 | D29: =A2A!D128 -> 61439667.02 | E29: =A2A!E128 -> 71221015.14 | F29: =A2A!F128 -> 75200202 | G29: =A2A!G128 -> 78054202 | H29: =A2A!H128 -> 78054202 | I29: =A2A!I128 -> 74063121 | J29: =A2A!J128 -> 77470025 | K29: =A2A!K128 -> 59151328
A30: Finance and administration | C30: =A2A!C131 -> 100332038.6 | D30: =A2A!D131 -> 95728049.31 | E30: =A2A!E131 -> 175404954 | F30: =A2A!F131 -> 121940498 | G30: =A2A!G131 -> 120474498 | H30: =A2A!H131 -> 120474498 | I30: =A2A!I131 -> 152350553 | J30: =A2A!J131 -> 145567600 | K30: =A2A!K131 -> 152253308
A31: Internal audit | C31: =A2A!C145 -> 0 | D31: =A2A!D145 -> 0 | E31: =A2A!E145 -> 0 | F31: =A2A!F145 -> 0 | G31: =A2A!G145 -> 0 | H31: =A2A!H145 -> 0 | I31: =A2A!I145 -> 0 | J31: =A2A!J145 -> 0 | K31: =A2A!K145 -> 0
A32: Community and public safety | C32: =SUM(C33:C37) -> 17627471.58 | D32: =SUM(D33:D37) -> 16366667.65 | E32: 18028859.62 | F32: 17260147 | G32: 17754147 | H32: 17754147 | I32: 18551191 | J32: 19404545 | K32: 20297155
A33: Community and social services | C33: =A2A!C148 -> 0 | D33: =A2A!D148 -> 0 | E33: =A2A!E148 -> 0 | F33: =A2A!F148 -> 0 | G33: =A2A!G148 -> 0 | H33: =A2A!H148 -> 0 | I33: =A2A!I148 -> 0 | J33: =A2A!J148 -> 0 | K33: =A2A!K148 -> 0
A34: Sport and recreation | C34: =A2A!C170 -> 0 | D34: =A2A!D170 -> 0 | E34: =A2A!E170 -> 0 | F34: =A2A!F170 -> 0 | G34: =A2A!G170 -> 0 | H34: =A2A!H170 -> 0 | I34: =A2A!I170 -> 0 | J34: =A2A!J170 -> 0 | K34: =A2A!K170 -> 0
A35: Public safety | C35: =A2A!C176 -> 17627471.58 | D35: =A2A!D176 -> 16366667.65 | E35: =A2A!E176 -> 18028859.62 | F35: =A2A!F176 -> 17260147 | G35: =A2A!G176 -> 17754147 | H35: =A2A!H176 -> 17754147 | I35: =A2A!I176 -> 18551191 | J35: =A2A!J176 -> 19404545 | K35: =A2A!K176 -> 20297155
A36: Housing | C36: =A2A!C185 -> 0 | D36: =A2A!D185 -> 0 | E36: =A2A!E185 -> 0 | F36: =A2A!F185 -> 0 | G36: =A2A!G185 -> 0 | H36: =A2A!H185 -> 0 | I36: =A2A!I185 -> 0 | J36: =A2A!J185 -> 0 | K36: =A2A!K185 -> 0
A37: Health | C37: =A2A!C188 -> 0 | D37: =A2A!D188 -> 0 | E37: =A2A!E188 -> 0 | F37: =A2A!F188 -> 0 | G37: =A2A!G188 -> 0 | H37: =A2A!H188 -> 0 | I37: =A2A!I188 -> 0 | J37: =A2A!J188 -> 0 | K37: =A2A!K188 -> 0
A38: Economic and environmental services | C38: =SUM(C39:C41) -> 44264680.13 | D38: =SUM(D39:D41) -> 37444051.03 | E38: 36413751.07 | F38: 38587921 | G38: 41325921 | H38: 41325921 | I38: 36259765 | J38: 37927714 | K38: 39672388
A39: Planning and development | C39: =A2A!C197 -> 14964747.32 | D39: =A2A!D197 -> 12763468.56 | E39: =A2A!E197 -> 14036496.3 | F39: =A2A!F197 -> 18236205 | G39: =A2A!G197 -> 19531205 | H39: =A2A!H197 -> 19531205 | I39: =A2A!I197 -> 16534740 | J39: =A2A!J197 -> 17295338 | K39: =A2A!K197 -> 18090923
A40: Road transport | C40: =A2A!C208 -> 29299932.81 | D40: =A2A!D208 -> 24680582.47 | E40: =A2A!E208 -> 22377254.77 | F40: =A2A!F208 -> 20351716 | G40: =A2A!G208 -> 21794716 | H40: =A2A!H208 -> 21794716 | I40: =A2A!I208 -> 19725025 | J40: =A2A!J208 -> 20632376 | K40: =A2A!K208 -> 21581465
A41: Environmental protection | C41: =A2A!C213 -> 0 | D41: =A2A!D213 -> 0 | E41: =A2A!E213 -> 0 | F41: =A2A!F213 -> 0 | G41: =A2A!G213 -> 0 | H41: =A2A!H213 -> 0 | I41: =A2A!I213 -> 0 | J41: =A2A!J213 -> 0 | K41: =A2A!K213 -> 0
A42: Trading services | C42: =SUM(C43:C46) -> 83273068.11 | D42: =SUM(D43:D46) -> 113016253.6 | E42: 108642695.1 | F42: =SUM(F43:F46) -> 136083485 | G42: 133869640 | H42: 133869640 | I42: 151677935 | J42: 156557891 | K42: =SUM(K43:K46) -> 159930151
A43: Energy sources | C43: =A2A!C221 -> 63191893.86 | D43: =A2A!D221 -> 82910838.93 | E43: =A2A!E221 -> 87092554.96 | F43: =A2A!F221 -> 100172469 | G43: =A2A!G221 -> 99524624 | H43: =A2A!H221 -> 99524624 | I43: =A2A!I221 -> 112765648 | J43: =A2A!J221 -> 117952867 | K43: =A2A!K221 -> 119549293
A44: Water management | C44: =A2A!C225 -> 0 | D44: =A2A!D225 -> 0 | E44: =A2A!E225 -> 0 | F44: =A2A!F225 -> 0 | G44: =A2A!G225 -> 0 | H44: =A2A!H225 -> 0 | I44: =A2A!I225 -> 0 | J44: =A2A!J225 -> 0 | K44: =A2A!K225 -> 0
A45: Waste water management | C45: =A2A!C229 -> 0 | D45: =A2A!D229 -> 0 | E45: =A2A!E229 -> 0 | F45: =A2A!F229 -> 0 | G45: =A2A!G229 -> 0 | H45: =A2A!H229 -> 0 | I45: =A2A!I229 -> 0 | J45: =A2A!J229 -> 0 | K45: =A2A!K229 -> 0
A46: Waste management | C46: =A2A!C234 -> 20081174.25 | D46: =A2A!D234 -> 30105414.62 | E46: =A2A!E234 -> 21550140.11 | F46: =A2A!F234 -> 35911016 | G46: =A2A!G234 -> 34345016 | H46: =A2A!H234 -> 34345016 | I46: =A2A!I234 -> 38912287 | J46: =A2A!J234 -> 38605024 | K46: =A2A!K234 -> 40380858
A47: Other | B47: 4 | C47: =A2A!C239 -> 0 | D47: =A2A!D239 -> 0 | E47: =A2A!E239 -> 0 | F47: =A2A!F239 -> 0 | G47: =A2A!G239 -> 0 | H47: =A2A!H239 -> 0 | I47: =A2A!I239 -> 0 | J47: =A2A!J239 -> 0 | K47: =A2A!K239 -> 0
A48: ="Total "&A27 -> Total Expenditure - Functional | B48: 3 | C48: =C28+C32+C38+C42+C47 -> 308721583.5 | D48: =D28+D32+D38+D42+D47 -> 323994688.6 | E48: =E28+E32+E38+E42+E47 -> 409711274.9 | F48: =F28+F32+F38+F42+F47 -> 389072253 | G48: 391478408 | H48: 391478408 | I48: 432902565 | J48: 436927775 | K48: 431304330
A49: =result -> Surplus/(Deficit) for the year | C49: =C25-C48 -> 53139024.52 | D49: =D25-D48 -> 28176229.29 | E49: 22549811.01 | F49: 49493073 | G49: 119372413 | H49: 119372413 | I49: 688674 | J49: 15303482 | K49: 7734776
A50: =head27a -> References
A51: 1. Government Finance Statistics Functions and Sub-functions are standardised to assist the compilation of national and international accounts for comparison purposes
A52: 2. Total Revenue by functional classification must reconcile to Total Operating Revenue shown in Budgeted Financial Performance (revenue and expenditure)
A53: 3. Total Expenditure by Functional Classification must reconcile to Total Operating Expenditure shown in Budgeted Financial Performance (revenue and expenditure)
A54: 4. All amounts must be classified under a functional classification . The GFS function 'Other' is only for Abbatoirs, Air Transport, Forestry, Licensing and Regulation, Markets and Tourism - and if used must be supported by footnotes. Nothing else may be placed under 'Other'. Assign associate share to relevant classification.

Sheet A2A
A1: =muni&" - "&Approve3 -> LIM351 Blouberg - Table A2 Budgeted Financial Performance (revenue and expenditure by functional classification)
A2: ="Functional Classification "&desc -> Functional Classification Description | B2: =head27 -> Ref | C2: =head1b -> 2020/21 | D2: =head1A -> 2021/22 | E2: =Head1 -> 2022/23 | F2: =Head2 -> Current Year 2023/24 | I2: =Head3 -> 2024/25 Medium Term Revenue & Expenditure Framework
A3: R thousand | B3: 1 | C3: =Head5 -> Audited Outcome | D3: =Head5 -> Audited Outcome | E3: =Head5 -> Audited Outcome | F3: =Head6 -> Original Budget | G3: =Head7 -> Adjusted Budget | H3: =Head8 -> Full Year Forecast | I3: =Head9 -> Budget Year 2024/25 | J3: =Head10 -> Budget Year +1 2025/26 | K3: =Head11 -> Budget Year +2 2026/27
A4: Revenue - Functional
A5: Municipal governance and administration | C5: =C6+C9+C23 -> 270275978.8 | D5: =D6+D9+D23 -> 245714191.5 | E5: 274907887.2 | F5: 273303155 | G5: 280212957 | H5: 280212957 | I5: 293731126 | J5: 293692120 | K5: 287279040
A6: Executive and council | C6: =SUM(C7:C8) -> 157764.34 | D6: =SUM(D7:D8) -> 0 | E6: 0 | F6: 0 | G6: 0 | H6: 0 | I6: 0 | J6: 0 | K6: 0
A7: Mayor and Council | C7: 0 | D7: 0 | E7: 0 | F7: 0 | G7: 0 | H7: 0 | I7: 0 | J7: 0 | K7: 0
A8: Municipal Manager, Town Secretary and Chief Executive | C8: 157764.34 | D8: 0 | E8: 0 | F8: 0 | G8: 0 | H8: 0 | I8: 0 | J8: 0 | K8: 0
A9: Finance and administration | C9: =SUM(C10:C22) -> 270118214.4 | D9: =SUM(D10:D22) -> 245714191.5 | E9: 274907887.2 | F9: 273303155 | G9: 280212957 | H9: 280212957 | I9: 293731126 | J9: 293692120 | K9: 287279040
A10: Administrative and Corporate Support | C10: 130640.69 | D10: 4408854.77 | E10: 6219635.72 | F10: 296084 | G10: 816084 | H10: 816084 | I10: 310592 | J10: 324879 | K10: 339824
A11: Asset Management
A12: Finance | C12: 269987573.7 | D12: 241305336.7 | E12: 268688251.5 | F12: 273007071 | G12: 279396873 | H12: 279396873 | I12: 293420534 | J12: 293367241 | K12: 286939216
A13: Fleet Management
A14: Human Resources
A15: Information Technology
A16: Legal Services
A17: Marketing, Customer Relations, Publicity and Media Co-ordination
A18: Property Services
A19: Risk Management
A20: Security Services
A21: Supply Chain Management
A22: Valuation Service
A23: Internal audit | C23: =SUM(C24:C24) -> 0 | D23: =SUM(D24:D24) -> 0 | E23: 0 | F23: 0 | G23: 0 | H23: 0 | I23: 0 | J23: 0 | K23: 0
A24: Governance Function
A25: Community and public safety | C25: =C26+C48+C54+C63+C66 -> 3158312.65 | D25: =D26+D48+D54+D63+D66 -> 3316321.67 | E25: 2742997.67 | F25: 6500000 | G25: 6500000 | H25: 6500000 | I25: 6818500 | J25: 7132151 | K25: 7460230
A26: Community and social services | C26: =SUM(C27:C47) -> 0 | D26: =SUM(D27:D47) -> 0 | E26: 0 | F26: 0 | G26: 0 | H26: 0 | I26: 0 | J26: 0 | K26: 0
A27: Aged Care
A28: Agricultural
A29: Animal Care and Diseases
A30: Cemeteries, Funeral Parlours and Crematoriums | C30: 0 | D30: 0 | E30: 0 | F30: 0 | G30: 0 | H30: 0 | I30: 0 | J30: 0 | K30: 0
A31: Child Care Facilities
A32: Community Halls and Facilities
A33: Consumer Protection
A34: Cultural Matters
A35: Disaster Management
A36: Education
A37: Indigenous and Customary Law
A38: Industrial Promotion
A39: Language Policy
A40: Libraries and Archives
A41: Literacy Programmes
A42: Media Services
A43: Museums and Art Galleries
A44: Population Development
A45: Provincial Cultural Matters
A46: Theatres
A47: Zoo's
A48: Sport and recreation | C48: =SUM(C49:C53) -> 0 | D48: =SUM(D49:D53) -> 0 | E48: 0 | F48: 0 | G48: 0 | H48: 0 | I48: 0 | J48: 0 | K48: 0
A49: Beaches and Jetties
A50: Casinos, Racing, Gambling, Wagering
A51: Community Parks (including Nurseries)
A52: Recreational Facilities
A53: Sports Grounds and Stadiums
A54: Public safety | C54: =SUM(C55:C62) -> 3158312.65 | D54: =SUM(D55:D62) -> 3316321.67 | E54: 2742997.67 | F54: 6500000 | G54: 6500000 | H54: 6500000 | I54: 6818500 | J54: 7132151 | K54: 7460230
A55: Civil Defence
A56: Cleansing
A57: Control of Public Nuisances
A58: Fencing and Fences
A59: Fire Fighting and Protection
A60: Licensing and Control of Animals
A61: Police Forces, Traffic and Street Parking Control | C61: 3158312.65 | D61: 3316321.67 | E61: 2742997.67 | F61: 6500000 | G61: 6500000 | H61: 6500000 | I61: 6818500 | J61: 7132151 | K61: 7460230
A62: Pounds | C62: 0 | D62: 0 | E62: 0 | F62: 0 | G62: 0 | H62: 0 | I62: 0 | J62: 0 | K62: 0
A63: Housing | C63: =SUM(C64:C65) -> 0 | D63: =SUM(D64:D65) -> 0 | E63: 0 | F63: 0 | G63: 0 | H63: 0 | I63: 0 | J63: 0 | K63: 0
A64: Housing
A65: Informal Settlements
A66: Health | C66: =SUM(C67:C73) -> 0 | D66: =SUM(D67:D73) -> 0 | E66: 0 | F66: 0 | G66: 0 | H66: 0 | I66: 0 | J66: 0 | K66: 0
A67: Ambulance
A68: Health Services
A69: Laboratory Services
A70: Food Control
A71: Health Surveillance and Prevention of Communicable Diseases including immunizations
A72: Vector Control
A73: Chemical Safety
A74: Economic and environmental services | C74: =C75+C86+C91 -> 179917.97 | D74: =D75+D86+D91 -> 70364971.2 | E74: 91173149.63 | F74: 62297374 | G74: 130567251 | H74: 130567251 | I74: 70003555 | J74: 72566408 | K74: 61522590
A75: Planning and development | C75: =SUM(C76:C85) -> 179917.97 | D75: =SUM(D76:D85) -> 57486716.36 | E75: 91173149.63 | F75: 62297374 | G75: 79467251 | H75: 79467251 | I75: 54287555 | J75: 56849408 | K75: 61522590
A76: Billboards
A77: Corporate Wide Strategic Planning (IDPs, LEDs)
A78: Central City Improvement District
A79: Development Facilitation
A80: Economic Development/Planning | C80: 179917.97 | D80: 880891.61 | E80: 5870829.24 | F80: 9722374 | G80: 10012571 | H80: 10012571 | I80: 2518555 | J80: 2634408 | K80: 2755590
A81: Regional Planning and Development
A82: Town Planning, Building Regulations and Enforcement, and City Engineer
A83: Project Management Unit | C83: 0 | D83: 56605824.75 | E83: 85302320.39 | F83: 52575000 | G83: 69454680 | H83: 69454680 | I83: 51769000 | J83: 54215000 | K83: 58767000
A84: Provincial Planning
A85: Support to Local Municipalities
A86: Road transport | C86: =SUM(C87:C90) -> 0 | D86: =SUM(D87:D90) -> 12878254.84 | E86: 0 | F86: 0 | G86: 51100000 | H86: 51100000 | I86: 15716000 | J86: 15717000 | K86: 0
A87: Public Transport
A88: Road and Traffic Regulation
A89: Roads | C89: 0 | D89: 12878254.84 | E89: 0 | F89: 0 | G89: 51100000 | H89: 51100000 | I89: 15716000 | J89: 15717000 | K89: 0
A90: Taxi Ranks
A91: Environmental protection | C91: =SUM(C92:C97) -> 0 | D91: =SUM(D92:D97) -> 0 | E91: 0 | F91: 0 | G91: 0 | H91: 0 | I91: 0 | J91: 0 | K91: 0
A92: Biodiversity and Landscape
A93: Coastal Protection
A94: Indigenous Forests
A95: Nature Conservation
A96: Pollution Control
A97: Soil Conservation
A98: Trading services | C98: =C99+C103+C107+C112 -> 88246398.6 | D98: =D99+D103+D107+D112 -> 32775433.5 | E98: 63437051.33 | F98: 96464797 | G98: 93570613 | H98: 93570613 | I98: 63038058 | J98: 78840578 | K98: =K99+K103+K107+K112 -> 82777246
A99: Energy sources | C99: =SUM(C100:C102) -> 85160922.3 | D99: =SUM(D100:D102) -> 29464538.93 | E99: 59301265.84 | F99: 91586673 | G99: 88992489 | H99: 88992489 | I99: 56286558 | J99: 73875739 | K99: 77584024
A100: Electricity | C100: 85160922.3 | D100: 29464538.93 | E100: 59301265.84 | F100: 91586673 | G100: 88992489 | H100: 88992489 | I100: 56286558 | J100: 73875739 | K100: 77584024
A101: Street Lighting and Signal Systems
A102: Nonelectric Energy
A103: Water management | C103: =SUM(C104:C106) -> 2570.24 | D103: =SUM(D104:D106) -> 11436.52 | E103: 8162.17 | F103: 0 | G103: 0 | H103: 0 | I103: 0 | J103: 0 | K103: 0
A104: Water Treatment | C104: 2570.24 | D104: 11436.52 | E104: 8162.17 | F104: 0 | G104: 0 | H104: 0 | I104: 0 | J104: 0 | K104: 0
A105: Water Distribution
A106: Water Storage
A107: Waste water management | C107: =SUM(C108:C111) -> 0 | D107: =SUM(D108:D111) -> 23524.88 | E107: 10993.02 | F107: 0 | G107: 0 | H107: 0 | I107: 0 | J107: 0 | K107: 0
A108: Public Toilets
A109: Sewerage
A110: Storm Water Management | C110: 0 | D110: 0 | E110: 0 | F110: 0 | G110: 0 | H110: 0 | I110: 0 | J110: 0 | K110: 0
A111: Waste Water Treatment | C111: 0 | D111: 23524.88 | E111: 10993.02 | F111: 0 | G111: 0 | H111: 0 | I111: 0 | J111: 0 | K111: 0
A112: Waste management | C112: =SUM(C113:C116) -> 3082906.06 | D112: =SUM(D113:D116) -> 3275933.17 | E112: 4116630.3 | F112: 4878124 | G112: 4578124 | H112: 4578124 | I112: 6751500 | J112: 4964839 | K112: 5193222
A113: Recycling
A114: Solid Waste Disposal (Landfill Sites) | C114: 3082906.06 | D114: 3275933.17 | E114: 4116630.3 | F114: 4878124 | G114: 4578124 | H114: 4578124 | I114: 6751500 | J114: 4964839 | K114: 5193222
A115: Solid Waste Removal
A116: Street Cleaning
A117: Other | C117: =SUM(C118:C123) -> 0 | D117: =SUM(D118:D123) -> 0 | E117: 0 | F117: 0 | G117: 0 | H117: 0 | I117: 0 | J117: 0 | K117: 0
A118: Abattoirs
A119: Air Transport
A120: Forestry
A121: Licensing and Regulation
A122: Markets
A123: Tourism
A124: ="Total "&A4 -> Total Revenue - Functional | B124: 2 | C124: =C5+C25+C74+C98+C117 -> 361860608 | D124: =D5+D25+D74+D98+D117 -> 352170917.9 | E124: 432261085.9 | F124: 438565326 | G124: 510850821 | H124: 510850821 | I124: 433591239 | J124: 452231257 | K124: 439039106
A126: Expenditure - Functional
A127: =A5 -> Municipal governance and administration | C127: =C128+C131+C145 -> 163556363.7 | D127: =D128+D131+D145 -> 157167716.3 | E127: 246625969.1 | F127: 197140700 | G127: 198528700 | H127: 198528700 | I127: 226413674 | J127: 223037625 | K127: 211404636
A128: Executive and council | C128: =SUM(C129:C130) -> 63224325.02 | D128: =SUM(D129:D130) -> 61439667.02 | E128: 71221015.14 | F128: 75200202 | G128: 78054202 | H128: 78054202 | I128: 74063121 | J128: 77470025 | K128: 59151328
A129: Mayor and Council | C129: 17719237.32 | D129: 18394330.48 | E129: 19739846.8 | F129: 23557547 | G129: 23717547 | H129: 23717547 | I129: 25208466 | J129: 26368055 | K129: 27580986
A130: Municipal Manager, Town Secretary and Chief Executive | C130: 45505087.7 | D130: 43045336.54 | E130: 51481168.34 | F130: 51642655 | G130: 54336655 | H130: 54336655 | I130: 48854655 | J130: 51101970 | K130: 31570342
A131: Finance and administration | C131: =SUM(C132:C144) -> 100332038.6 | D131: =SUM(D132:D144) -> 95728049.31 | E131: 175404954 | F131: 121940498 | G131: 120474498 | H131: 120474498 | I131: 152350553 | J131: 145567600 | K131: 152253308
A132: Administrative and Corporate Support | C132: 57813190.03 | D132: 57859291.06 | E132: 68914818.25 | F132: 78958554 | G132: 77859554 | H132: 77859554 | I132: 83701715 | J132: 87551993 | K132: 91579382
A133: Asset Management
A134: Finance | C134: 42518848.6 | D134: 37868758.25 | E134: 106490135.7 | F134: 42981944 | G134: 42614944 | H134: 42614944 | I134: 68648838 | J134: 58015607 | K134: 60673926
A135: Fleet Management
A136: Human Resources
A137: Information Technology
A138: Legal Services
A139: Marketing, Customer Relations, Publicity and Media Co-ordination
A140: Property Services
A141: Risk Management
A142: Security Services
A143: Supply Chain Management
A144: Valuation Service
A145: Internal audit | C145: =SUM(C146:C146) -> 0 | D145: =SUM(D146:D146) -> 0 | E145: 0 | F145: 0 | G145: 0 | H145: 0 | I145: 0 | J145: 0 | K145: 0
A146: Governance Function
A147: Community and public safety | C147: =C148+C170+C176+C185+C188 -> 17627471.58 | D147: =D148+D170+D176+D185+D188 -> 16366667.65 | E147: 18028859.62 | F147: 17260147 | G147: 17754147 | H147: 17754147 | I147: 18551191 | J147: 19404545 | K147: 20297155
A148: Community and social services | C148: =SUM(C149:C169) -> 0 | D148: =SUM(D149:D169) -> 0 | E148: 0 | F148: 0 | G148: 0 | H148: 0 | I148: 0 | J148: 0 | K148: 0
A149: Aged Care
A150: Agricultural
A151: Animal Care and Diseases
A152: Cemeteries, Funeral Parlours and Crematoriums | C152: 0 | D152: 0 | E152: 0 | F152: 0 | G152: 0 | H152: 0 | I152: 0 | J152: 0 | K152: 0
A153: Child Care Facilities
A154: Community Halls and Facilities
A155: Consumer Protection
A156: Cultural Matters
A157: Disaster Management
A158: Education
A159: =A37 -> Indigenous and Customary Law
A160: Industrial Promotion
A161: Language Policy
A162: Libraries and Archives | C162: 0 | D162: 0 | E162: 0 | F162: 0 | G162: 0 | H162: 0 | I162: 0 | J162: 0 | K162: 0
A163: Literacy Programmes
A164: Media Services
A165: Museums and Art Galleries
A166: Population Development
A167: Provincial Cultural Matters
A168: Theatres
A169: Zoo's
A170: Sport and recreation | C170: =SUM(C171:C175) -> 0 | D170: =SUM(D171:D175) -> 0 | E170: 0 | F170: 0 | G170: 0 | H170: 0 | I170: 0 | J170: 0 | K170: 0
A171: Beaches and Jetties
A172: Casinos, Racing, Gambling, Wagering
A173: Community Parks (including Nurseries)
A174: Recreational Facilities | C174: 0 | D174: 0 | E174: 0 | F174: 0 | G174: 0 | H174: 0 | I174: 0 | J174: 0 | K174: 0
A175: Sports Grounds and Stadiums
A176: Public safety | C176: =SUM(C177:C184) -> 17627471.58 | D176: =SUM(D177:D184) -> 16366667.65 | E176: 18028859.62 | F176: 17260147 | G176: 17754147 | H176: 17754147 | I176: 18551191 | J176: 19404545 | K176: 20297155
A177: Civil Defence
A178: Cleansing
A179: =A57 -> Control of Public Nuisances
A180: Fencing and Fences
A181: Fire Fighting and Protection
A182: Licensing and Control of Animals
A183: Police Forces, Traffic and Street Parking Control | C183: 17627471.58 | D183: 16205807.65 | E183: 17801790.49 | F183: 17060147 | G183: 17474147 | H183: 17474147 | I183: 18257471 | J183: 19097314 | K183: 19975791
A184: Pounds | C184: 0 | D184: 160860 | E184: 227069.13 | F184: 200000 | G184: 280000 | H184: 280000 | I184: 293720 | J184: 307231 | K184: 321364
A185: =A63 -> Housing | C185: =SUM(C186:C187) -> 0 | D185: =SUM(D186:D187) -> 0 | E185: 0 | F185: 0 | G185: 0 | H185: 0 | I185: 0 | J185: 0 | K185: 0
A186: Housing
A187: Informal Settlements
A188: Health | C188: =SUM(C189:C195) -> 0 | D188: =SUM(D189:D195) -> 0 | E188: 0 | F188: 0 | G188: 0 | H188: 0 | I188: 0 | J188: 0 | K188: 0
A189: Ambulance
A190: Health Services
A191: Laboratory Services
A192: Food Control
A193: Health Surveillance and Prevention of Communicable Diseases including immunizations
A194: Vector Control
A195: Chemical Safety
A196: Economic and environmental services | C196: =C197+C208+C213 -> 44264680.13 | D196: =D197+D208+D213 -> 37444051.03 | E196: 36413751.07 | F196: 38587921 | G196: 41325921 | H196: 41325921 | I196: 36259765 | J196: 37927714 | K196: 39672388
A197: Planning and development | C197: =SUM(C198:C207) -> 14964747.32 | D197: =SUM(D198:D207) -> 12763468.56 | E197: 14036496.3 | F197: 18236205 | G197: 19531205 | H197: 19531205 | I197: 16534740 | J197: 17295338 | K197: 18090923
A198: Billboards
A199: Corporate Wide Strategic Planning (IDPs, LEDs)
A200: Central City Improvement District
A201: Development Facilitation
... 51 more rows

Sheet A3-FinPerf V
A1: =muni&" - "&Approve2 -> LIM351 Blouberg - Table A3 Budgeted Financial Performance (revenue and expenditure by municipal vote)
A2: =Vdesc -> Vote Description | B2: =head27 -> Ref | C2: =head1b -> 2020/21 | D2: =head1A -> 2021/22 | E2: =Head1 -> 2022/23 | F2: =Head2 -> Current Year 2023/24 | I2: =Head3 -> 2024/25 Medium Term Revenue & Expenditure Framework | L2: =Head4 -> LTFS
A3: R thousand | C3: =Head5 -> Audited Outcome | D3: =Head5 -> Audited Outcome | E3: =Head5 -> Audited Outcome | F3: =Head6 -> Original Budget | G3: =Head7 -> Adjusted Budget | H3: =Head8 -> Full Year Forecast | I3: =Head9 -> Budget Year 2024/25 | J3: =Head10 -> Budget Year +1 2025/26 | K3: =Head11 -> Budget Year +2 2026/27 | L3: =Head12 -> Forecast 2027/28 | M3: =Head13 -> Forecast 2028/29 | N3: =Head14 -> Forecast 2029/30 | O3: =Head15 -> Forecast 2030/31 | P3: =Head16 -> Forecast 2031/32 | Q3: =Head17 -> Forecast 2032/33 | R3: =Head18 -> Forecast 2033/34 | S3: =Head19 -> Forecast 2034/35 | T3: =Head20 -> Forecast 2035/36 | U3: =Head21 -> Forecast 2036/37 | V3: =Head22 -> Forecast 2037/38 | W3: =Head23 -> Forecast 2038/39
A4: Revenue by Vote | B4: 1
A5: =A3A!A5 -> Vote 01 - Executive & Council | C5: =A3A!C5 -> 0 | D5: =A3A!D5 -> 0 | E5: =A3A!E5 -> 0 | F5: =A3A!F5 -> 0 | G5: =A3A!G5 -> 0 | H5: =A3A!H5 -> 0 | I5: =A3A!I5 -> 0 | J5: =A3A!J5 -> 0 | K5: =A3A!K5 -> 0
A6: =A3A!A7 -> Vote 02 - Finance And Administration | C6: =A3A!C7 -> 157764.34 | D6: =A3A!D7 -> 0 | E6: =A3A!E7 -> 0 | F6: =A3A!F7 -> 0 | G6: =A3A!G7 -> 0 | H6: =A3A!H7 -> 0 | I6: =A3A!I7 -> 0 | J6: =A3A!J7 -> 0 | K6: =A3A!K7 -> 0
A7: =A3A!A9 -> Vote 03 - Community Service | C7: =A3A!C9 -> 269987573.7 | D7: =A3A!D9 -> 241305336.7 | E7: =A3A!E9 -> 268688251.5 | F7: =A3A!F9 -> 273007071 | G7: =A3A!G9 -> 279396873 | H7: =A3A!H9 -> 279396873 | I7: =A3A!I9 -> 293420534 | J7: =A3A!J9 -> 293367241 | K7: =A3A!K9 -> 286939216
A8: =A3A!A11 -> Vote 04 - Public And Safety | C8: =A3A!C11 -> 130640.69 | D8: =A3A!D11 -> 4408854.77 | E8: =A3A!E11 -> 6219635.72 | F8: =A3A!F11 -> 296084 | G8: =A3A!G11 -> 816084 | H8: =A3A!H11 -> 816084 | I8: =A3A!I11 -> 310592 | J8: =A3A!J11 -> 324879 | K8: =A3A!K11 -> 339824
A9: =A3A!A13 -> Vote 05 - Waste Management | C9: =A3A!C13 -> 85163492.54 | D9: =A3A!D13 -> 42377755.17 | E9: =A3A!E13 -> 59320421.03 | F9: =A3A!F13 -> 91586673 | G9: =A3A!G13 -> 140092489 | H9: =A3A!H13 -> 140092489 | I9: =A3A!I13 -> 72002558 | J9: =A3A!J13 -> 89592739 | K9: =A3A!K13 -> 77584024
A10: =A3A!A19 -> Vote 06 - Roads Services | C10: =A3A!C19 -> 6241218.71 | D10: =A3A!D19 -> 6592254.84 | E10: =A3A!E19 -> 6859627.97 | F10: =A3A!F19 -> 11378124 | G10: =A3A!G19 -> 11078124 | H10: =A3A!H19 -> 11078124 | I10: =A3A!I19 -> 13570000 | J10: =A3A!J19 -> 12096990 | K10: =A3A!K19 -> 12653452
A11: =A3A!A28 -> Vote 07 - Econominc Development And Planning | C11: =A3A!C28 -> 179917.97 | D11: =A3A!D28 -> 57486716.36 | E11: =A3A!E28 -> 91173149.63 | F11: =A3A!F28 -> 62297374 | G11: =A3A!G28 -> 79467251 | H11: =A3A!H28 -> 79467251 | I11: =A3A!I28 -> 54287555 | J11: =A3A!J28 -> 56849408 | K11: =A3A!K28 -> 61522590
A12: ='Org structure'!A9 -> Vote 08 - | C12: =A3A!C31 -> 0 | D12: =A3A!D31 -> 0 | E12: =A3A!E31 -> 0 | F12: =A3A!F31 -> 0 | G12: =A3A!G31 -> 0 | H12: =A3A!H31 -> 0 | I12: =A3A!I31 -> 0 | J12: =A3A!J31 -> 0 | K12: =A3A!K31 -> 0
A13: ='Org structure'!A10 -> Vote 09 - | C13: =A3A!C32 -> 0 | D13: =A3A!D32 -> 0 | E13: =A3A!E32 -> 0 | F13: =A3A!F32 -> 0 | G13: =A3A!G32 -> 0 | H13: =A3A!H32 -> 0 | I13: =A3A!I32 -> 0 | J13: =A3A!J32 -> 0 | K13: =A3A!K32 -> 0
A14: ='Org structure'!A11 -> Vote 10 - | C14: =A3A!C33 -> 0 | D14: =A3A!D33 -> 0 | E14: =A3A!E33 -> 0 | F14: =A3A!F33 -> 0 | G14: =A3A!G33 -> 0 | H14: =A3A!H33 -> 0 | I14: =A3A!I33 -> 0 | J14: =A3A!J33 -> 0 | K14: =A3A!K33 -> 0
A15: ='Org structure'!A12 -> Vote 11 - | C15: =A3A!C34 -> 0 | D15: =A3A!D34 -> 0 | E15: =A3A!E34 -> 0 | F15: =A3A!F34 -> 0 | G15: =A3A!G34 -> 0 | H15: =A3A!H34 -> 0 | I15: =A3A!I34 -> 0 | J15: =A3A!J34 -> 0 | K15: =A3A!K34 -> 0 | L15: =A5A!#REF! -> 
A16: ='Org structure'!A13 -> Vote 12 - | C16: =A3A!C35 -> 0 | D16: =A3A!D35 -> 0 | E16: =A3A!E35 -> 0 | F16: =A3A!F35 -> 0 | G16: =A3A!G35 -> 0 | H16: =A3A!H35 -> 0 | I16: =A3A!I35 -> 0 | J16: =A3A!J35 -> 0 | K16: =A3A!K35 -> 0 | L16: =A5A!#REF! -> 
A17: ='Org structure'!A14 -> Vote 13 - | C17: =A3A!C36 -> 0 | D17: =A3A!D36 -> 0 | E17: =A3A!E36 -> 0 | F17: =A3A!F36 -> 0 | G17: =A3A!G36 -> 0 | H17: =A3A!H36 -> 0 | I17: =A3A!I36 -> 0 | J17: =A3A!J36 -> 0 | K17: =A3A!K36 -> 0 | L17: =A5A!#REF! -> 
A18: ='Org structure'!A15 -> Vote 14 - | C18: =A3A!C37 -> 0 | D18: =A3A!D37 -> 0 | E18: =A3A!E37 -> 0 | F18: =A3A!F37 -> 0 | G18: =A3A!G37 -> 0 | H18: =A3A!H37 -> 0 | I18: =A3A!I37 -> 0 | J18: =A3A!J37 -> 0 | K18: =A3A!K37 -> 0 | L18: =A5A!#REF! -> 
A19: ='Org structure'!A16 -> Vote 15 - Other | C19: =A3A!C38 -> 0 | D19: =A3A!D38 -> 0 | E19: =A3A!E38 -> 0 | F19: =A3A!F38 -> 0 | G19: =A3A!G38 -> 0 | H19: =A3A!H38 -> 0 | I19: =A3A!I38 -> 0 | J19: =A3A!J38 -> 0 | K19: =A3A!K38 -> 0 | L19: =A5A!#REF! -> 
A20: Total Revenue by Vote | B20: 2 | C20: =SUM(C5:C19) -> 361860608 | D20: =SUM(D5:D19) -> 352170917.9 | E20: 432261085.9 | F20: 438565326 | G20: 510850821 | H20: 510850821 | I20: 433591239 | J20: 452231257 | K20: 439039106
A22: Expenditure by Vote to be appropriated | B22: 1
A23: =A3A!A42 -> Vote 01 - Executive & Council | C23: =A3A!C42 -> 17719237.32 | D23: =A3A!D42 -> 18394330.48 | E23: =A3A!E42 -> 19739846.8 | F23: =A3A!F42 -> 23557547 | G23: =A3A!G42 -> 23717547 | H23: =A3A!H42 -> 23717547 | I23: =A3A!I42 -> 25208466 | J23: =A3A!J42 -> 26368055 | K23: =A3A!K42 -> 27580986
A24: =A3A!A44 -> Vote 02 - Finance And Administration | C24: =A3A!C44 -> 45505087.7 | D24: =A3A!D44 -> 43045336.54 | E24: =A3A!E44 -> 51481168.34 | F24: =A3A!F44 -> 51642655 | G24: =A3A!G44 -> 54336655 | H24: =A3A!H44 -> 54336655 | I24: =A3A!I44 -> 48854655 | J24: =A3A!J44 -> 51101970 | K24: =A3A!K44 -> 31570342
A25: =A3A!A46 -> Vote 03 - Community Service | C25: =A3A!C46 -> 42518848.6 | D25: =A3A!D46 -> 37868758.25 | E25: =A3A!E46 -> 106490135.7 | F25: =A3A!F46 -> 42981944 | G25: =A3A!G46 -> 42614944 | H25: =A3A!H46 -> 42614944 | I25: =A3A!I46 -> 68648838 | J25: =A3A!J46 -> 58015607 | K25: =A3A!K46 -> 60673926
A26: =A3A!A48 -> Vote 04 - Public And Safety | C26: =A3A!C48 -> 57813190.03 | D26: =A3A!D48 -> 57859291.06 | E26: =A3A!E48 -> 68914818.25 | F26: =A3A!F48 -> 78708554 | G26: =A3A!G48 -> 77859554 | H26: =A3A!H48 -> 77859554 | I26: =A3A!I48 -> 83701715 | J26: =A3A!J48 -> 87551993 | K26: =A3A!K48 -> 91579382
A27: =A3A!A50 -> Vote 05 - Waste Management | C27: =A3A!C50 -> 92491826.67 | D27: =A3A!D50 -> 107591421.4 | E27: =A3A!E50 -> 109469809.7 | F27: =A3A!F50 -> 120524185 | G27: =A3A!G50 -> 121319340 | H27: =A3A!H50 -> 121319340 | I27: =A3A!I50 -> 132490673 | J27: =A3A!J50 -> 138585243 | K27: =A3A!K50 -> 141130758
A28: =A3A!A56 -> Vote 06 - Roads Services | C28: =A3A!C56 -> 37708645.83 | D28: =A3A!D56 -> 46472082.27 | E28: =A3A!E56 -> 39578999.73 | F28: =A3A!F56 -> 53421163 | G28: =A3A!G56 -> 52099163 | H28: =A3A!H56 -> 52099163 | I28: =A3A!I56 -> 57463478 | J28: =A3A!J56 -> 58009569 | K28: =A3A!K56 -> 60678013
A29: =A3A!A65 -> Vote 07 - Econominc Development And Planning | C29: =A3A!C65 -> 14964747.32 | D29: =A3A!D65 -> 12763468.56 | E29: =A3A!E65 -> 14036496.3 | F29: =A3A!F65 -> 18236205 | G29: =A3A!G65 -> 19531205 | H29: =A3A!H65 -> 19531205 | I29: =A3A!I65 -> 16534740 | J29: =A3A!J65 -> 17295338 | K29: =A3A!K65 -> 18090923
A30: ='Org structure'!A9 -> Vote 08 - | C30: =A3A!C68 -> 0 | D30: =A3A!D68 -> 0 | E30: =A3A!E68 -> 0 | F30: =A3A!F68 -> 0 | G30: =A3A!G68 -> 0 | H30: =A3A!H68 -> 0 | I30: =A3A!I68 -> 0 | J30: =A3A!J68 -> 0 | K30: =A3A!K68 -> 0
A31: ='Org structure'!A10 -> Vote 09 - | C31: =A3A!C69 -> 0 | D31: =A3A!D69 -> 0 | E31: =A3A!E69 -> 0 | F31: =A3A!F69 -> 0 | G31: =A3A!G69 -> 0 | H31: =A3A!H69 -> 0 | I31: =A3A!I69 -> 0 | J31: =A3A!J69 -> 0 | K31: =A3A!K69 -> 0
A32: ='Org structure'!A11 -> Vote 10 - | C32: =A3A!C70 -> 0 | D32: =A3A!D70 -> 0 | E32: =A3A!E70 -> 0 | F32: =A3A!F70 -> 0 | G32: =A3A!G70 -> 0 | H32: =A3A!H70 -> 0 | I32: =A3A!I70 -> 0 | J32: =A3A!J70 -> 0 | K32: =A3A!K70 -> 0
A33: ='Org structure'!A12 -> Vote 11 - | C33: =A3A!C71 -> 0 | D33: =A3A!D71 -> 0 | E33: =A3A!E71 -> 0 | F33: =A3A!F71 -> 0 | G33: =A3A!G71 -> 0 | H33: =A3A!H71 -> 0 | I33: =A3A!I71 -> 0 | J33: =A3A!J71 -> 0 | K33: =A3A!K71 -> 0 | L33: =A3A!#REF! -> 
A34: ='Org structure'!A13 -> Vote 12 - | C34: =A3A!C72 -> 0 | D34: =A3A!D72 -> 0 | E34: =A3A!E72 -> 0 | F34: =A3A!F72 -> 0 | G34: =A3A!G72 -> 0 | H34: =A3A!H72 -> 0 | I34: =A3A!I72 -> 0 | J34: =A3A!J72 -> 0 | K34: =A3A!K72 -> 0 | L34: =A3A!#REF! -> 
A35: ='Org structure'!A14 -> Vote 13 - | C35: =A3A!C73 -> 0 | D35: =A3A!D73 -> 0 | E35: =A3A!E73 -> 0 | F35: =A3A!F73 -> 0 | G35: =A3A!G73 -> 0 | H35: =A3A!H73 -> 0 | I35: =A3A!I73 -> 0 | J35: =A3A!J73 -> 0 | K35: =A3A!K73 -> 0 | L35: =A3A!#REF! -> 
A36: ='Org structure'!A15 -> Vote 14 - | C36: =A3A!C74 -> 0 | D36: =A3A!D74 -> 0 | E36: =A3A!E74 -> 0 | F36: =A3A!F74 -> 0 | G36: =A3A!G74 -> 0 | H36: =A3A!H74 -> 0 | I36: =A3A!I74 -> 0 | J36: =A3A!J74 -> 0 | K36: =A3A!K74 -> 0 | L36: =A3A!#REF! -> 
A37: ='Org structure'!A16 -> Vote 15 - Other | C37: =A3A!C75 -> 0 | D37: =A3A!D75 -> 0 | E37: =A3A!E75 -> 0 | F37: =A3A!F75 -> 0 | G37: =A3A!G75 -> 0 | H37: =A3A!H75 -> 0 | I37: =A3A!I75 -> 0 | J37: =A3A!J75 -> 0 | K37: =A3A!K75 -> 0 | L37: =A3A!#REF! -> 
A38: Total Expenditure by Vote | B38: 2 | C38: =SUM(C23:C37) -> 308721583.5 | D38: =SUM(D23:D37) -> 323994688.6 | E38: =SUM(E23:E37) -> 409711274.9 | F38: 389072253 | G38: 391478408 | H38: 391478408 | I38: 432902565 | J38: 436927775 | K38: 431304330 | L38: =SUM(L23:L29) -> 0 | M38: 0 | N38: 0 | O38: 0 | P38: 0 | Q38: 0 | R38: 0 | S38: 0 | T38: 0 | U38: 0 | V38: 0 | W38: 0
A39: =result -> Surplus/(Deficit) for the year | B39: 2 | C39: =C20-C38 -> 53139024.52 | D39: =D20-D38 -> 28176229.29 | E39: 22549811.01 | F39: 49493073 | G39: 119372413 | H39: 119372413 | I39: 688674 | J39: 15303482 | K39: 7734776 | L39: 0 | M39: 0 | N39: 0 | O39: 0 | P39: 0 | Q39: 0 | R39: 0 | S39: 0 | T39: 0 | U39: 0 | V39: 0 | W39: 0
A40: =head27a -> References
A41: 1. Insert 'Vote'; e.g. department, if different to functional classification structure
A42: 2. Must reconcile to Budgeted Financial Performance (revenue and expenditure)
A43: 3. Assign share in 'associate' to relevant Vote

Sheet A3A
A1: =muni&" - "&Approve2&"A" -> LIM351 Blouberg - Table A3 Budgeted Financial Performance (revenue and expenditure by municipal vote)A
A2: =Vdesc -> Vote Description | B2: =head27 -> Ref | C2: =head1b -> 2020/21 | D2: =head1A -> 2021/22 | E2: =Head1 -> 2022/23 | F2: =Head2 -> Current Year 2023/24 | I2: =Head3 -> 2024/25 Medium Term Revenue & Expenditure Framework | L2: =Head4 -> LTFS
A3: R thousand | C3: =Head5 -> Audited Outcome | D3: =Head5 -> Audited Outcome | E3: =Head5 -> Audited Outcome | F3: =Head6 -> Original Budget | G3: =Head7 -> Adjusted Budget | H3: =Head8 -> Full Year Forecast | I3: =Head9 -> Budget Year 2024/25 | J3: =Head10 -> Budget Year +1 2025/26 | K3: =Head11 -> Budget Year +2 2026/27 | L3: =Head12 -> Forecast 2027/28 | M3: =Head13 -> Forecast 2028/29 | N3: =Head14 -> Forecast 2029/30 | O3: =Head15 -> Forecast 2030/31 | P3: =Head16 -> Forecast 2031/32 | Q3: =Head17 -> Forecast 2032/33 | R3: =Head18 -> Forecast 2033/34 | S3: =Head19 -> Forecast 2034/35 | T3: =Head20 -> Forecast 2035/36 | U3: =Head21 -> Forecast 2036/37 | V3: =Head22 -> Forecast 2037/38 | W3: =Head23 -> Forecast 2038/39
A4: Revenue by Vote | B4: 1
A5: ='Org structure'!A2 -> Vote 01 - Executive & Council | C5: =SUM(C6:C6) -> 0 | D5: 0 | E5: 0 | F5: 0 | G5: 0 | H5: 0 | I5: 0 | J5: 0 | K5: 0
A6: ='Org structure'!E3 -> 01.1 - Council General | C6: 0 | D6: 0 | E6: 0 | F6: 0 | G6: 0 | H6: 0 | I6: 0 | J6: 0 | K6: 0
A7: ='Org structure'!A3 -> Vote 02 - Finance And Administration | C7: =SUM(C8:C8) -> 157764.34 | D7: 0 | E7: 0 | F7: 0 | G7: 0 | H7: 0 | I7: 0 | J7: 0 | K7: 0
A8: ='Org structure'!E5 -> 02.1 - Municipal Manager | C8: 157764.34 | D8: 0 | E8: 0 | F8: 0 | G8: 0 | H8: 0 | I8: 0 | J8: 0 | K8: 0
A9: ='Org structure'!A4 -> Vote 03 - Community Service | C9: =SUM(C10:C10) -> 269987573.7 | D9: 241305336.7 | E9: 268688251.5 | F9: 273007071 | G9: 279396873 | H9: 279396873 | I9: 293420534 | J9: 293367241 | K9: 286939216
A10: ='Org structure'!E7 -> 03.1 - Finance Services Administration | C10: 269987573.7 | D10: 241305336.7 | E10: 268688251.5 | F10: 273007071 | G10: 279396873 | H10: 279396873 | I10: 293420534 | J10: 293367241 | K10: 286939216
A11: ='Org structure'!A5 -> Vote 04 - Public And Safety | C11: =SUM(C12:C12) -> 130640.69 | D11: 4408854.77 | E11: 6219635.72 | F11: 296084 | G11: 816084 | H11: 816084 | I11: 310592 | J11: 324879 | K11: 339824
A12: ='Org structure'!E9 -> 04.1 - Corporate Services Administration | C12: 130640.69 | D12: 4408854.77 | E12: 6219635.72 | F12: 296084 | G12: 816084 | H12: 816084 | I12: 310592 | J12: 324879 | K12: 339824
A13: ='Org structure'!A6 -> Vote 05 - Waste Management | C13: =SUM(C14:C18) -> 85163492.54 | D13: 42377755.17 | E13: 59320421.03 | F13: 91586673 | G13: 140092489 | H13: 140092489 | I13: 72002558 | J13: 89592739 | K13: 77584024
A14: ='Org structure'!E11 -> 05.1 - Technical Services Administration | C14: 0 | D14: 0 | E14: 0 | F14: 0 | G14: 0 | H14: 0 | I14: 0 | J14: 0 | K14: 0
A15: ='Org structure'!E12 -> 05.2 - Electrical Services | C15: 85160922.3 | D15: 29464538.93 | E15: 59301265.84 | F15: 91586673 | G15: 88992489 | H15: 88992489 | I15: 56286558 | J15: 73875739 | K15: 77584024
A16: ='Org structure'!E13 -> 05.3 - Water Services | C16: 2570.24 | D16: 11436.52 | E16: 8162.17 | F16: 0 | G16: 0 | H16: 0 | I16: 0 | J16: 0 | K16: 0
A17: ='Org structure'!E14 -> 05.4 - Sanitation Services | C17: 0 | D17: 23524.88 | E17: 10993.02 | F17: 0 | G17: 0 | H17: 0 | I17: 0 | J17: 0 | K17: 0
A18: ='Org structure'!E15 -> 05.5 - Roads Services | C18: 0 | D18: 12878254.84 | E18: 0 | F18: 0 | G18: 51100000 | H18: 51100000 | I18: 15716000 | J18: 15717000 | K18: 0
A19: ='Org structure'!A7 -> Vote 06 - Roads Services | C19: =SUM(C20:C27) -> 6241218.71 | D19: 6592254.84 | E19: 6859627.97 | F19: 11378124 | G19: 11078124 | H19: 11078124 | I19: 13570000 | J19: 12096990 | K19: 12653452
A20: ='Org structure'!E17 -> 06.1 - Community Services Administration | C20: 1547040 | D20: 1266000 | E20: 1950000 | F20: 1785000 | G20: 1785000 | H20: 1785000 | I20: 3319700 | J20: 1375176 | K20: 1438434
A21: ='Org structure'!E18 -> 06.2 - Traffic Services | C21: 3158312.65 | D21: 3316321.67 | E21: 2742997.67 | F21: 6500000 | G21: 6500000 | H21: 6500000 | I21: 6818500 | J21: 7132151 | K21: 7460230
A22: ='Org structure'!E19 -> 06.3 - Refuse | C22: 1535866.06 | D22: 2009933.17 | E22: 2166630.3 | F22: 3093124 | G22: 2793124 | H22: 2793124 | I22: 3431800 | J22: 3589663 | K22: 3754788
A23: ='Org structure'!E20 -> 06.4 - Pound Services | C23: 0 | D23: 0 | E23: 0 | F23: 0 | G23: 0 | H23: 0 | I23: 0 | J23: 0 | K23: 0
A24: ='Org structure'!E21 -> 06.5 - Satellite Offices | C24: 0 | D24: 0 | E24: 0 | F24: 0 | G24: 0 | H24: 0 | I24: 0 | J24: 0 | K24: 0
A25: ='Org structure'!E22 -> 06.6 - Alldays Offices | C25: 0 | D25: 0 | E25: 0 | F25: 0 | G25: 0 | H25: 0 | I25: 0 | J25: 0 | K25: 0
A26: ='Org structure'!E23 -> 06.7 - Eldorado Offices | C26: 0 | D26: 0 | E26: 0 | F26: 0 | G26: 0 | H26: 0 | I26: 0 | J26: 0 | K26: 0
A27: ='Org structure'!E24 -> 06.8 - Tolwe Offices | C27: 0 | D27: 0 | E27: 0 | F27: 0 | G27: 0 | H27: 0 | I27: 0 | J27: 0 | K27: 0
A28: ='Org structure'!A8 -> Vote 07 - Econominc Development And Planning | C28: =SUM(C29:C30) -> 179917.97 | D28: 57486716.36 | E28: 91173149.63 | F28: 62297374 | G28: 79467251 | H28: 79467251 | I28: 54287555 | J28: 56849408 | K28: 61522590
A29: ='Org structure'!E26 -> 07.1 - Project Management Unit | C29: 0 | D29: 56605824.75 | E29: 85302320.39 | F29: 52575000 | G29: 69454680 | H29: 69454680 | I29: 51769000 | J29: 54215000 | K29: 58767000
A30: ='Org structure'!E27 -> 07.2 - Economic Development And Planning | C30: 179917.97 | D30: 880891.61 | E30: 5870829.24 | F30: 9722374 | G30: 10012571 | H30: 10012571 | I30: 2518555 | J30: 2634408 | K30: 2755590
A31: ='Org structure'!A9 -> Vote 08 - | C31: 0 | D31: 0 | E31: 0 | F31: 0 | G31: 0 | H31: 0 | I31: 0 | J31: 0 | K31: 0
A32: ='Org structure'!A10 -> Vote 09 - | C32: 0 | D32: 0 | E32: 0 | F32: 0 | G32: 0 | H32: 0 | I32: 0 | J32: 0 | K32: 0
A33: ='Org structure'!A11 -> Vote 10 - | C33: 0 | D33: 0 | E33: 0 | F33: 0 | G33: 0 | H33: 0 | I33: 0 | J33: 0 | K33: 0
A34: ='Org structure'!A12 -> Vote 11 - | C34: 0 | D34: 0 | E34: 0 | F34: 0 | G34: 0 | H34: 0 | I34: 0 | J34: 0 | K34: 0
A35: ='Org structure'!A13 -> Vote 12 - | C35: 0 | D35: 0 | E35: 0 | F35: 0 | G35: 0 | H35: 0 | I35: 0 | J35: 0 | K35: 0
A36: ='Org structure'!A14 -> Vote 13 - | C36: 0 | D36: 0 | E36: 0 | F36: 0 | G36: 0 | H36: 0 | I36: 0 | J36: 0 | K36: 0
A37: ='Org structure'!A15 -> Vote 14 - | C37: 0 | D37: 0 | E37: 0 | F37: 0 | G37: 0 | H37: 0 | I37: 0 | J37: 0 | K37: 0
A38: ='Org structure'!A16 -> Vote 15 - Other | C38: 0 | D38: 0 | E38: 0 | F38: 0 | G38: 0 | H38: 0 | I38: 0 | J38: 0 | K38: 0
A39: Total Revenue by Vote | B39: 2 | C39: =C5+C7+C9+C11+C13+C19+C28+C31+C32+C33+C34+C35+C36+C37+C38 -> 361860608 | D39: 352170917.9 | E39: 432261085.9 | F39: 438565326 | G39: 510850821 | H39: 510850821 | I39: 433591239 | J39: 452231257 | K39: 439039106 | L39: =SUM(#REF!) ->  | M39: =SUM(#REF!) ->  | N39: =SUM(#REF!) ->  | O39: =SUM(#REF!) ->  | P39: =SUM(#REF!) ->  | Q39: =SUM(#REF!) ->  | R39: =SUM(#REF!) ->  | S39: =SUM(#REF!) ->  | T39: =SUM(#REF!) ->  | U39: =SUM(#REF!) ->  | V39: =SUM(#REF!) ->  | W39: =SUM(#REF!) -> 
A41: Expenditure by Vote | B41: 1
A42: ='Org structure'!A2 -> Vote 01 - Executive & Council | C42: =SUM(C43:C43) -> 17719237.32 | D42: 18394330.48 | E42: 19739846.8 | F42: 23557547 | G42: 23717547 | H42: 23717547 | I42: 25208466 | J42: 26368055 | K42: 27580986
A43: ='Org structure'!E3 -> 01.1 - Council General | C43: 17719237.32 | D43: 18394330.48 | E43: 19739846.8 | F43: 23557547 | G43: 23717547 | H43: 23717547 | I43: 25208466 | J43: 26368055 | K43: 27580986
A44: ='Org structure'!A3 -> Vote 02 - Finance And Administration | C44: =SUM(C45:C45) -> 45505087.7 | D44: 43045336.54 | E44: 51481168.34 | F44: 51642655 | G44: 54336655 | H44: 54336655 | I44: 48854655 | J44: 51101970 | K44: 31570342
A45: ='Org structure'!E5 -> 02.1 - Municipal Manager | C45: 45505087.7 | D45: 43045336.54 | E45: 51481168.34 | F45: 51642655 | G45: 54336655 | H45: 54336655 | I45: 48854655 | J45: 51101970 | K45: 31570342
A46: ='Org structure'!A4 -> Vote 03 - Community Service | C46: =SUM(C47:C47) -> 42518848.6 | D46: 37868758.25 | E46: 106490135.7 | F46: 42981944 | G46: 42614944 | H46: 42614944 | I46: 68648838 | J46: 58015607 | K46: 60673926
A47: ='Org structure'!E7 -> 03.1 - Finance Services Administration | C47: 42518848.6 | D47: 37868758.25 | E47: 106490135.7 | F47: 42981944 | G47: 42614944 | H47: 42614944 | I47: 68648838 | J47: 58015607 | K47: 60673926
A48: ='Org structure'!A5 -> Vote 04 - Public And Safety | C48: =SUM(C49:C49) -> 57813190.03 | D48: 57859291.06 | E48: 68914818.25 | F48: 78708554 | G48: 77859554 | H48: 77859554 | I48: 83701715 | J48: 87551993 | K48: 91579382
A49: ='Org structure'!E9 -> 04.1 - Corporate Services Administration | C49: 57813190.03 | D49: 57859291.06 | E49: 68914818.25 | F49: 78708554 | G49: 77859554 | H49: 77859554 | I49: 83701715 | J49: 87551993 | K49: 91579382
A50: ='Org structure'!A6 -> Vote 05 - Waste Management | C50: =SUM(C51:C55) -> 92491826.67 | D50: 107591421.4 | E50: 109469809.7 | F50: 120524185 | G50: 121319340 | H50: 121319340 | I50: 132490673 | J50: 138585243 | K50: 141130758
A51: ='Org structure'!E11 -> 05.1 - Technical Services Administration | C51: 4533546.13 | D51: 7125928.34 | E51: 7888569.82 | F51: 7552779 | G51: 7082779 | H51: 7082779 | I51: 7404611 | J51: 7745222 | K51: 8101503
A52: ='Org structure'!E12 -> 05.2 - Electrical Services | C52: 58658347.73 | D52: 75784910.59 | E52: 79203985.14 | F52: 92619690 | G52: 92441845 | H52: 92441845 | I52: 105361037 | J52: 110207645 | K52: 111447790
A53: ='Org structure'!E13 -> 05.3 - Water Services | C53: 0 | D53: 0 | E53: 0 | F53: 0 | G53: 0 | H53: 0 | I53: 0 | J53: 0 | K53: 0
A54: ='Org structure'!E14 -> 05.4 - Sanitation Services | C54: 0 | D54: 0 | E54: 0 | F54: 0 | G54: 0 | H54: 0 | I54: 0 | J54: 0 | K54: 0
A55: ='Org structure'!E15 -> 05.5 - Roads Services | C55: 29299932.81 | D55: 24680582.47 | E55: 22377254.77 | F55: 20351716 | G55: 21794716 | H55: 21794716 | I55: 19725025 | J55: 20632376 | K55: 21581465
A56: ='Org structure'!A7 -> Vote 06 - Roads Services | C56: =SUM(C57:C64) -> 37708645.83 | D56: 46472082.27 | E56: 39578999.73 | F56: 53421163 | G56: 52099163 | H56: 52099163 | I56: 57463478 | J56: 58009569 | K56: 60678013
A57: ='Org structure'!E17 -> 06.1 - Community Services Administration | C57: 16569102.49 | D57: 26418926.07 | E57: 18324422.32 | F57: 30751656 | G57: 29385656 | H57: 29385656 | I57: 31983411 | J57: 31357420 | K57: 32799864
A58: ='Org structure'!E18 -> 06.2 - Traffic Services | C58: 17627471.58 | D58: 16205807.65 | E58: 17801790.49 | F58: 17060147 | G58: 17474147 | H58: 17474147 | I58: 18257471 | J58: 19097314 | K58: 19975791
A59: ='Org structure'!E19 -> 06.3 - Refuse | C59: 3512071.76 | D59: 3686488.55 | E59: 3225717.79 | F59: 5159360 | G59: 4959360 | H59: 4959360 | I59: 6928876 | J59: 7247604 | K59: 7580994
A60: ='Org structure'!E20 -> 06.4 - Pound Services | C60: 0 | D60: 160860 | E60: 227069.13 | F60: 200000 | G60: 280000 | H60: 280000 | I60: 293720 | J60: 307231 | K60: 321364
A61: ='Org structure'!E21 -> 06.5 - Satellite Offices | C61: 0 | D61: 0 | E61: 0 | F61: 100000 | G61: 0 | H61: 0 | I61: 0 | J61: 0 | K61: 0
A62: ='Org structure'!E22 -> 06.6 - Alldays Offices | C62: 0 | D62: 0 | E62: 0 | F62: 50000 | G62: 0 | H62: 0 | I62: 0 | J62: 0 | K62: 0
A63: ='Org structure'!E23 -> 06.7 - Eldorado Offices | C63: 0 | D63: 0 | E63: 0 | F63: 50000 | G63: 0 | H63: 0 | I63: 0 | J63: 0 | K63: 0
A64: ='Org structure'!E24 -> 06.8 - Tolwe Offices | C64: 0 | D64: 0 | E64: 0 | F64: 50000 | G64: 0 | H64: 0 | I64: 0 | J64: 0 | K64: 0
A65: ='Org structure'!A8 -> Vote 07 - Econominc Development And Planning | C65: =SUM(C66:C67) -> 14964747.32 | D65: 12763468.56 | E65: 14036496.3 | F65: 18236205 | G65: 19531205 | H65: 19531205 | I65: 16534740 | J65: 17295338 | K65: 18090923
A66: ='Org structure'!E26 -> 07.1 - Project Management Unit | C66: 0 | D66: 409465.25 | E66: 767400 | F66: 280000 | G66: 0 | H66: 0 | I66: 2100000 | J66: 2196600 | K66: 2297644
A67: ='Org structure'!E27 -> 07.2 - Economic Development And Planning | C67: 14964747.32 | D67: 12354003.31 | E67: 13269096.3 | F67: 17956205 | G67: 19531205 | H67: 19531205 | I67: 14434740 | J67: 15098738 | K67: 15793279
A68: ='Org structure'!A9 -> Vote 08 - | C68: 0 | D68: 0 | E68: 0 | F68: 0 | G68: 0 | H68: 0 | I68: 0 | J68: 0 | K68: 0
A69: ='Org structure'!A10 -> Vote 09 - | C69: 0 | D69: 0 | E69: 0 | F69: 0 | G69: 0 | H69: 0 | I69: 0 | J69: 0 | K69: 0
A70: ='Org structure'!A11 -> Vote 10 - | C70: 0 | D70: 0 | E70: 0 | F70: 0 | G70: 0 | H70: 0 | I70: 0 | J70: 0 | K70: 0
A71: ='Org structure'!A12 -> Vote 11 - | C71: 0 | D71: 0 | E71: 0 | F71: 0 | G71: 0 | H71: 0 | I71: 0 | J71: 0 | K71: 0
A72: ='Org structure'!A13 -> Vote 12 - | C72: 0 | D72: 0 | E72: 0 | F72: 0 | G72: 0 | H72: 0 | I72: 0 | J72: 0 | K72: 0
A73: ='Org structure'!A14 -> Vote 13 - | C73: 0 | D73: 0 | E73: 0 | F73: 0 | G73: 0 | H73: 0 | I73: 0 | J73: 0 | K73: 0
A74: ='Org structure'!A15 -> Vote 14 - | C74: 0 | D74: 0 | E74: 0 | F74: 0 | G74: 0 | H74: 0 | I74: 0 | J74: 0 | K74: 0
A75: ='Org structure'!A16 -> Vote 15 - Other | C75: 0 | D75: 0 | E75: 0 | F75: 0 | G75: 0 | H75: 0 | I75: 0 | J75: 0 | K75: 0
A76: Total Expenditure by Vote | B76: 2 | C76: =C42+C44+C46+C48+C50+C56+C65+C68+C69+C70+C71+C72+C73+C74+C75 -> 308721583.5 | D76: 323994688.6 | E76: 409711274.9 | F76: 389072253 | G76: 391478408 | H76: 391478408 | I76: 432902565 | J76: 436927775 | K76: 431304330 | L76: =SUM(L42:L67) -> 0 | M76: 0 | N76: 0 | O76: 0 | P76: 0 | Q76: 0 | R76: 0 | S76: 0 | T76: 0 | U76: 0 | V76: 0 | W76: 0
A78: =result -> Surplus/(Deficit) for the year | B78: 2 | C78: =C39-C76 -> 53139024.52 | D78: 28176229.29 | E78: 22549811.01 | F78: 49493073 | G78: 119372413 | H78: 119372413 | I78: 688674 | J78: 15303482 | K78: 7734776
A79: =head27a -> References
A80: 1. Insert 'Vote'; e.g. Department, if different to Functional structure
A81: 2. Must reconcile to Financial Performance ('Revenue and Expenditure by Functional Classification' and 'Revenue and Expenditure')
A82: 3. Assign share in 'associate' to relevant Vote

Sheet A4-FinPerf RE
A1: =muni&" - "&Approve4 -> LIM351 Blouberg - Table A4 Budgeted Financial Performance (revenue and expenditure)
A2: =desc -> Description | B2: =head27 -> Ref | C2: =head1b -> 2020/21 | D2: =head1A -> 2021/22 | E2: =Head1 -> 2022/23 | F2: =Head2 -> Current Year 2023/24 | J2: =Head3 -> 2024/25 Medium Term Revenue & Expenditure Framework | M2: =Head4 -> LTFS
A3: R thousand | B3: 1 | C3: =Head5 -> Audited Outcome | D3: =Head5 -> Audited Outcome | E3: =Head5 -> Audited Outcome | F3: =Head6 -> Original Budget | G3: =Head7 -> Adjusted Budget | H3: =Head8 -> Full Year Forecast | I3: =Head5b -> Pre-audit outcome | J3: =Head9 -> Budget Year 2024/25 | K3: =Head10 -> Budget Year +1 2025/26 | L3: =Head11 -> Budget Year +2 2026/27 | M3: =Head12 -> Forecast 2027/28 | N3: =Head13 -> Forecast 2028/29 | O3: =Head14 -> Forecast 2029/30 | P3: =Head15 -> Forecast 2030/31 | Q3: =Head16 -> Forecast 2031/32 | R3: =Head17 -> Forecast 2032/33 | S3: =Head18 -> Forecast 2033/34 | T3: =Head19 -> Forecast 2034/35 | U3: =Head20 -> Forecast 2035/36 | V3: =Head21 -> Forecast 2036/37 | W3: =Head22 -> Forecast 2037/38 | X3: =Head23 -> Forecast 2038/39
A4: Revenue
A5: Exchange Revenue
A6: Service charges - Electricity | B6: 2 | C6: ='SA1'!C17 -> 28825554.81 | D6: ='SA1'!D17 -> 29116330.23 | E6: ='SA1'!E17 -> 31489899.33 | F6: ='SA1'!F17 -> 57971356 | G6: ='SA1'!G17 -> 49864886 | H6: ='SA1'!H17 -> 49864886 | I6: ='SA1'!I17 -> 27315113.27 | J6: ='SA1'!J17 -> 55308333 | K6: ='SA1'!K17 -> 57852516 | L6: ='SA1'!L17 -> 60513732
A7: Service charges - Water | B7: 2 | C7: ='SA1'!C23 -> -0.2 | D7: ='SA1'!D23 -> 0 | E7: ='SA1'!E23 -> 0 | F7: ='SA1'!F23 -> 0 | G7: ='SA1'!G23 -> 0 | H7: ='SA1'!H23 -> 0 | I7: ='SA1'!I23 -> 2826578.6 | J7: ='SA1'!J23 -> 0 | K7: ='SA1'!K23 -> 0 | L7: ='SA1'!L23 -> 0
A8: Service charges - Waste Water Management | B8: 2 | C8: ='SA1'!C29 -> 2570.44 | D8: ='SA1'!D29 -> 34961.4 | E8: ='SA1'!E29 -> 19155.19 | F8: ='SA1'!F29 -> 0 | G8: ='SA1'!G29 -> 0 | H8: ='SA1'!H29 -> 0 | I8: ='SA1'!I29 -> 1360742.61 | J8: ='SA1'!J29 -> 0 | K8: ='SA1'!K29 -> 0 | L8: ='SA1'!L29 -> 0
A9: Service charges - Waste Management | B9: 2 | C9: ='SA1'!C36 -> 1436054.3 | D9: ='SA1'!D36 -> 1887893.34 | E9: ='SA1'!E36 -> 1968415 | F9: ='SA1'!F36 -> 3000000 | G9: ='SA1'!G36 -> 2500000 | H9: ='SA1'!H36 -> 2500000 | I9: ='SA1'!I36 -> 1724369.6 | J9: ='SA1'!J36 -> 2650000 | K9: ='SA1'!K36 -> 2771900 | L9: ='SA1'!L36 -> 2899408
A10: Sale of Goods and Rendering of Services | C10: 358217.82 | D10: 4620449.23 | E10: 6478906.78 | F10: 496339 | G10: 916339 | H10: 916339 | I10: 544484.35 | J10: 416090 | K10: 435230 | L10: 455250
A11: Agency services | C11: 40 | D11: 0 | E11: 0 | F11: 300000 | G11: 300000 | H11: 300000 | I11: 0 | J11: 314700 | K11: 329176 | L11: 344318
A12: Interest
A13: Interest earned from Receivables | C13: 574278.86 | D13: 447119.43 | E13: 795888.53 | F13: 456901 | G13: 956901 | H13: 956901 | I13: 1604944.71 | J13: 1500000 | K13: 1569000 | L13: 1641174
A14: Interest earned from Current and Non Current Assets | C14: 1535693.45 | D14: 2018715.85 | E14: 4112363.63 | F14: 3206212 | G14: 6206212 | H14: 6206212 | I14: 5164639.83 | J14: 8063596 | K14: 8434521 | L14: 8814075
A15: Dividends
A16: Rent on Land | C16: 551690.4 | D16: 550413.06 | E16: 461442.68 | F16: 350000 | G16: 739802 | H16: 739802 | I16: 453686.53 | J16: 926053 | K16: 968651 | L16: 1013209
A17: Rental from Fixed Assets | C17: 0 | D17: 0 | E17: 0 | F17: 0 | G17: 0 | H17: 0 | I17: 0 | J17: 0 | K17: 0 | L17: 0
A18: Licence and permits | C18: 667218.56 | D18: 1200666.21 | E18: 1427943.61 | F18: 1109803 | G18: 5000000 | H18: 5000000 | I18: 950720.85 | J18: 5245000 | K18: 5486270 | L18: 5738638
A19: Operational Revenue | C19: 341006.9 | D19: 1086789.58 | E19: 5922559.03 | F19: 8442316 | G19: 9942316 | H19: 9942316 | I19: 7962977.17 | J19: 2294857 | K19: 2400420 | L19: 2510840
A20: Non-Exchange Revenue
A21: Property rates | B21: 2 | C21: ='SA1'!C10 -> 27550105.13 | D21: ='SA1'!D10 -> 29497010.89 | E21: ='SA1'!E10 -> 25228987.14 | F21: ='SA1'!F10 -> 32970836 | G21: ='SA1'!G10 -> 32970836 | H21: ='SA1'!H10 -> 32970836 | I21: ='SA1'!I10 -> 67728884.61 | J21: ='SA1'!J10 -> 34586407 | K21: ='SA1'!K10 -> 36177381 | L21: ='SA1'!L10 -> 37841540
A22: Surcharges and Taxes
A23: Fines, penalties and forfeits | C23: 4782.96 | D23: 80348.7 | E23: 1799193.99 | F23: 2021540 | G23: 1921540 | H23: 1921540 | I23: 346151.76 | J23: 2801725 | K23: 2930604 | L23: 3065413
A24: Licences or permits | C24: 3156812.65 | D24: 3316321.67 | E24: 2738447.67 | F24: 5000000 | G24: 0 | H24: 0 | I24: 1964699.22 | J24: 0 | K24: 0 | L24: 0
A25: Transfer and subsidies - Operational | C25: 239282517.3 | D25: 214162630.3 | E25: 225391142.6 | F25: 237377000 | G25: 241377000 | H25: 241377000 | I25: 240622291.1 | J25: 250671000 | K25: 246554000 | L25: 237981000
A26: Interest | C26: 1677760.15 | D26: 1549115.25 | E26: 1266423.7 | F26: 288023 | G26: 1188023 | H26: 1188023 | I26: 1062586.42 | J26: 1328478 | K26: 1389588 | L26: 1453509
A27: Fuel Levy
A28: Operational Revenue
A29: Gains on disposal of Assets | C29: 0 | D29: 0 | E29: 0 | F29: 0 | G29: 2000000 | H29: 2000000 | I29: 0 | J29: 0 | K29: 0 | L29: 0
A30: Other Gains | C30: 0 | D30: 0 | E30: 10632282.94 | F30: 0 | G30: 0 | H30: 0 | I30: 0 | J30: 0 | K30: 0 | L30: 0
A31: Discontinued Operations
A32: Total Revenue (excluding capital transfers and contributions) | C32: =SUM(C6:C19)+SUM(C21:C31) -> 305964303.6 | D32: =SUM(D6:D19)+SUM(D21:D31) -> 289568765.1 | E32: 319733051.8 | F32: 352990326 | G32: 355883855 | H32: 355883855 | I32: 361632870.6 | J32: 366106239 | K32: 367299257 | L32: 364272106
A33: Expenditure
A34: Employee related costs | B34: 2 | C34: ='SA1'!C71 -> 115511343.4 | D34: ='SA1'!D71 -> 119858269 | E34: ='SA1'!E71 -> 124043649 | F34: ='SA1'!F71 -> 135978991 | G34: ='SA1'!G71 -> 136323991 | H34: ='SA1'!H71 -> 136323991 | I34: ='SA1'!I71 -> 108480080.4 | J34: ='SA1'!J71 -> 140755081 | K34: ='SA1'!K71 -> 147206811 | L34: ='SA1'!L71 -> 153955327 | M34: ='SA1'!M71 -> 0 | N34: ='SA1'!N71 -> 0 | O34: ='SA1'!O71 -> 0 | P34: ='SA1'!P71 -> 0 | Q34: ='SA1'!Q71 -> 0 | R34: ='SA1'!R71 -> 0 | S34: ='SA1'!S71 -> 0 | T34: ='SA1'!T71 -> 0
A35: Remuneration of councillors | C35: 16412060.03 | D35: 17213956.91 | E35: 17982273.07 | F35: 20752503 | G35: 20752503 | H35: 20752503 | I35: 16153871.34 | J35: 21997665 | K35: 23009558 | L35: 24067998
A36: Bulk purchases - electricity | B36: 2 | C36: ='SA1'!C88 -> 36471695.57 | D36: ='SA1'!D88 -> 50884659.64 | E36: ='SA1'!E88 -> 52983493.47 | F36: ='SA1'!F88 -> 60000000 | G36: ='SA1'!G88 -> 60000000 | H36: ='SA1'!H88 -> 60000000 | I36: ='SA1'!I88 -> 47013721.54 | J36: ='SA1'!J88 -> 61440000 | K36: ='SA1'!K88 -> 64266240 | L36: ='SA1'!L88 -> 67222487
A37: Inventory consumed | B37: 8 | C37: ='SA1'!C169 -> 4843585 | D37: ='SA1'!D169 -> 6420489 | E37: ='SA1'!E169 -> 3569119 | F37: ='SA1'!F169 -> 5854960 | G37: ='SA1'!G169 -> 5066080 | H37: ='SA1'!H169 -> 5066080 | I37: ='SA1'!I169 -> 1047291.38 | J37: ='SA1'!J169 -> 5337183 | K37: ='SA1'!K169 -> 5582693 | L37: ='SA1'!L169 -> 5833915
A38: Debt impairment | B38: 3 | C38: 0 | D38: 0 | E38: 767400 | F38: 0 | G38: 0 | H38: 0 | I38: 0 | J38: 49170559 | K38: 37751726 | L38: 39488306
A39: Depreciation and amortisation | C39: ='SA1'!C83 -> 29419185.92 | D39: ='SA1'!D83 -> 30420608.43 | E39: ='SA1'!E83 -> 31482239.38 | F39: ='SA1'!F83 -> 37667907 | G39: ='SA1'!G83 -> 37302907 | H39: ='SA1'!H83 -> 37302907 | I39: ='SA1'!I83 -> 23319749.46 | J39: ='SA1'!J83 -> 33513635 | K39: ='SA1'!K83 -> 35055266 | L39: ='SA1'!L83 -> 36667805
A40: Interest
A41: Contracted services | C41: ='SA1'!C127 -> 64014182.54 | D41: ='SA1'!D127 -> 60952163.63 | E41: ='SA1'!E127 -> 61218972.2 | F41: ='SA1'!F127 -> 59971051 | G41: ='SA1'!G127 -> 58740026 | H41: ='SA1'!H127 -> 58740026 | I41: ='SA1'!I127 -> 45061817.41 | J41: ='SA1'!J127 -> 54287316 | K41: ='SA1'!K127 -> 54606802 | L41: ='SA1'!L127 -> 35249001
A42: Transfers and subsidies | C42: ='SA1'!C93 -> 0 | D42: ='SA1'!D93 -> 49860 | E42: ='SA1'!E93 -> 0 | F42: ='SA1'!F93 -> 0 | G42: ='SA1'!G93 -> 0 | H42: ='SA1'!H93 -> 0 | I42: ='SA1'!I93 -> 0 | J42: ='SA1'!J93 -> 0 | K42: ='SA1'!K93 -> 0 | L42: ='SA1'!L93 -> 0
A43: Irrecoverable debts written off | C43: 8188217.08 | D43: 2370462.72 | E43: 54121083.6 | F43: 5769623 | G43: 5769623 | H43: 5769623 | I43: 0 | J43: 0 | K43: 0 | L43: 0
A44: Operational costs | C44: ='SA1'!C157 -> 35953436.76 | D44: ='SA1'!D157 -> 40958958.28 | E44: ='SA1'!E157 -> 55028708.82 | F44: ='SA1'!F157 -> 63077218 | G44: ='SA1'!G157 -> 67573398 | H44: ='SA1'!H157 -> 67573398 | I44: ='SA1'!I157 -> 50811304.29 | J44: ='SA1'!J157 -> 66401126 | K44: ='SA1'!K157 -> 69448679 | L44: ='SA1'!L157 -> 72643314
A45: Losses on disposal of Assets | C45: 420702.77 | D45: -550480.13 | E45: -224599.84 | F45: 0 | G45: 0 | H45: 0 | I45: 0 | J45: 0 | K45: 0 | L45: 0
A46: Other Losses | C46: 0 | D46: 0 | E46: 10632282.94 | F46: 0 | G46: 0 | H46: 0 | I46: 0 | J46: 0 | K46: 0 | L46: 0
A47: Total Expenditure | C47: =SUM(C34:C46) -> 311234409.1 | D47: =SUM(D34:D46) -> 328578947.5 | E47: 411604621.6 | F47: 389072253 | G47: 391528528 | H47: 391528528 | I47: 291887835.8 | J47: 432902565 | K47: 436927775 | L47: 435128153 | M47: =SUM(M34:M46) -> 0 | N47: 0 | O47: 0 | P47: 0 | Q47: 0 | R47: 0 | S47: 0 | T47: 0 | U47: 0 | V47: 0 | W47: 0 | X47: 0
A48: Surplus/(Deficit) | C48: =C32-C47 -> -5270105.49 | D48: =D32-D47 -> -39010182.3 | E48: -91871569.82 | F48: -36081927 | G48: -35644673 | H48: -35644673 | I48: 69745034.78 | J48: -66796326 | K48: -69628518 | L48: -70856047 | M48: =M32+M47 -> 0 | N48: 0 | O48: 0 | P48: 0 | Q48: 0 | R48: 0 | S48: 0 | T48: 0 | U48: 0 | V48: 0 | W48: 0 | X48: 0
A49: Transfers and subsidies - capital (monetary allocations) | B49: 6 | C49: 55896304.42 | D49: 62602152.7 | E49: 112528034.1 | F49: 85575000 | G49: 154966966 | H49: 154966966 | I49: 14066938.27 | J49: 67485000 | K49: 84932000 | L49: 74767000
A50: Transfers and subsidies - capital (in-kind) | B50: 6
A51: Surplus/(Deficit) after capital transfers & contributions | C51: =SUM(C48:C50) -> 50626198.93 | D51: =SUM(D48:D50) -> 23591970.4 | E51: 20656464.27 | F51: 49493073 | G51: 119322293 | H51: 119322293 | I51: 83811973.05 | J51: 688674 | K51: 15303482 | L51: 3910953
A52: Income Tax
A53: Surplus/(Deficit) after income tax | C53: =+C51-C52 -> 50626198.93 | D53: =+D51-D52 -> 23591970.4 | E53: 20656464.27 | F53: 49493073 | G53: 119322293 | H53: 119322293 | I53: 83811973.05 | J53: 688674 | K53: 15303482 | L53: 3910953 | M53: 0 | N53: 0 | O53: 0 | P53: 0 | Q53: 0
A54: Share of Surplus/Deficit attributable to Joint Venture
A55: Share of Surplus/Deficit attributable to Minorities
A56: Surplus/(Deficit) attributable to municipality | C56: =SUM(C53:C55) -> 50626198.93 | D56: =SUM(D53:D55) -> 23591970.4 | E56: 20656464.27 | F56: 49493073 | G56: 119322293 | H56: 119322293 | I56: 83811973.05 | J56: 688674 | K56: 15303482 | L56: 3910953 | M56: 0 | N56: 0 | O56: 0 | P56: 0 | Q56: 0
A57: Share of Surplus/Deficit attributable to Associate | B57: 7
A58: Intercompany/Parent subsidiary transactions
A59: =result -> Surplus/(Deficit) for the year | B59: 1 | C59: =SUM(C56:C58) -> 50626198.93 | D59: =SUM(D56:D58) -> 23591970.4 | E59: 20656464.27 | F59: 49493073 | G59: 119322293 | H59: 119322293 | I59: 83811973.05 | J59: 688674 | K59: 15303482 | L59: 3910953 | M59: 0 | N59: 0 | O59: 0 | P59: 0 | Q59: 0 | R59: =R35+R58 -> 0 | S59: 0 | T59: 0 | U59: 0 | V59: 0 | W59: 0 | X59: 0
A60: References
A61: 1. Classifications are revenue sources and expenditure type
A62: 2. Detail to be provided in Table SA1 | O62: =O59-'A4-FinPerf RE'!J59 -> -688674 | P62: =P59-'A4-FinPerf RE'!K59 -> -15303482 | Q62: =Q59-'A4-FinPerf RE'!L59 -> -3910953
A63: 3. Debt impairment includes Impairment and Reversal of Impairment Losses
A64: 4. Expenditure type components previously shown under repairs and maintenance should be allocated back to the originating expenditure group/item; e.g. employee costs
A65: 5. Repairs & maintenance detailed in Table A9 and Table SA34c
A66: 6. Contributions are funds provided by external organisations to assist with infrastructure development; e.g. developer contributions (detail to be provided in Table SA1)
A67: 7. Equity method ( Includes Joint Ventures)
A68: 8. All materials consumed including water consumed and materials used in operations.

Sheet A5-Capex
A2: =Vdesc -> Vote Description | B2: =head27 -> Ref | C2: =head1b -> 2020/21 | D2: =head1A -> 2021/22 | E2: =Head1 -> 2022/23 | F2: =Head2 -> Current Year 2023/24 | J2: =Head3 -> 2024/25 Medium Term Revenue & Expenditure Framework
A3: R thousand | B3: 1 | C3: =Head5 -> Audited Outcome | D3: =Head5 -> Audited Outcome | E3: =Head5 -> Audited Outcome | F3: =Head6 -> Original Budget | G3: =Head7 -> Adjusted Budget | H3: =Head8 -> Full Year Forecast | I3: =Head5b -> Pre-audit outcome | J3: =Head9 -> Budget Year 2024/25 | K3: =Head10 -> Budget Year +1 2025/26 | L3: =Head11 -> Budget Year +2 2026/27
A4: Capital expenditure - Vote
A5: Multi-year expenditure to be appropriated | B5: 2
A6: =A5A!A6 -> Vote 01 - Executive & Council | C6: =A5A!C6 -> 0 | D6: =A5A!D6 -> 0 | E6: =A5A!E6 -> 0 | F6: =A5A!F6 -> 0 | G6: =A5A!G6 -> 0 | H6: =A5A!H6 -> 0 | I6: =A5A!I6 -> 0 | J6: =A5A!J6 -> 0 | K6: =A5A!K6 -> 0 | L6: =A5A!L6 -> 0
A7: =A5A!A7 -> Vote 02 - Finance And Administration | C7: =A5A!C7 -> 0 | D7: =A5A!D7 -> 0 | E7: =A5A!E7 -> 0 | F7: =A5A!F7 -> 0 | G7: =A5A!G7 -> 0 | H7: =A5A!H7 -> 0 | I7: =A5A!I7 -> 0 | J7: =A5A!J7 -> 0 | K7: =A5A!K7 -> 0 | L7: =A5A!L7 -> 0
A8: =A5A!A8 -> Vote 03 - Community Service | C8: =A5A!C8 -> 0 | D8: =A5A!D8 -> 0 | E8: =A5A!E8 -> 0 | F8: =A5A!F8 -> 0 | G8: =A5A!G8 -> 0 | H8: =A5A!H8 -> 0 | I8: =A5A!I8 -> 0 | J8: =A5A!J8 -> 0 | K8: =A5A!K8 -> 0 | L8: =A5A!L8 -> 0
A9: =A5A!A9 -> Vote 04 - Public And Safety | C9: =A5A!C9 -> 0 | D9: =A5A!D9 -> 0 | E9: =A5A!E9 -> 0 | F9: =A5A!F9 -> 0 | G9: =A5A!G9 -> 0 | H9: =A5A!H9 -> 0 | I9: =A5A!I9 -> 0 | J9: =A5A!J9 -> 0 | K9: =A5A!K9 -> 0 | L9: =A5A!L9 -> 0
A10: =A5A!A10 -> Vote 05 - Waste Management | C10: =A5A!C10 -> 0 | D10: =A5A!D10 -> 0 | E10: =A5A!E10 -> 0 | F10: =A5A!F10 -> 0 | G10: =A5A!G10 -> 0 | H10: =A5A!H10 -> 0 | I10: =A5A!I10 -> 0 | J10: =A5A!J10 -> 0 | K10: =A5A!K10 -> 0 | L10: =A5A!L10 -> 0
A11: =A5A!A11 -> Vote 06 - Roads Services | C11: =A5A!C11 -> 0 | D11: =A5A!D11 -> 0 | E11: =A5A!E11 -> 0 | F11: =A5A!F11 -> 0 | G11: =A5A!G11 -> 0 | H11: =A5A!H11 -> 0 | I11: =A5A!I11 -> 0 | J11: =A5A!J11 -> 0 | K11: =A5A!K11 -> 0 | L11: =A5A!L11 -> 0
A12: =A5A!A12 -> Vote 07 - Econominc Development And Planning | C12: =A5A!C12 -> 0 | D12: =A5A!D12 -> 0 | E12: =A5A!E12 -> 0 | F12: =A5A!F12 -> 0 | G12: =A5A!G12 -> 0 | H12: =A5A!H12 -> 0 | I12: =A5A!I12 -> 0 | J12: =A5A!J12 -> 0 | K12: =A5A!K12 -> 0 | L12: =A5A!L12 -> 0
A13: ='Org structure'!A9 -> Vote 08 - | C13: =A5A!C13 -> 0 | D13: =A5A!D13 -> 0 | E13: =A5A!E13 -> 0 | F13: =A5A!F13 -> 0 | G13: =A5A!G13 -> 0 | H13: =A5A!H13 -> 0 | I13: =A5A!I13 -> 0 | J13: =A5A!J13 -> 0 | K13: =A5A!K13 -> 0 | L13: =A5A!L13 -> 0
A14: ='Org structure'!A10 -> Vote 09 - | C14: =A5A!C14 -> 0 | D14: =A5A!D14 -> 0 | E14: =A5A!E14 -> 0 | F14: =A5A!F14 -> 0 | G14: =A5A!G14 -> 0 | H14: =A5A!H14 -> 0 | I14: =A5A!I14 -> 0 | J14: =A5A!J14 -> 0 | K14: =A5A!K14 -> 0 | L14: =A5A!L14 -> 0
A15: ='Org structure'!A11 -> Vote 10 - | C15: =A5A!C15 -> 0 | D15: =A5A!D15 -> 0 | E15: =A5A!E15 -> 0 | F15: =A5A!F15 -> 0 | G15: =A5A!G15 -> 0 | H15: =A5A!H15 -> 0 | I15: =A5A!I15 -> 0 | J15: =A5A!J15 -> 0 | K15: =A5A!K15 -> 0 | L15: =A5A!L15 -> 0
A16: ='Org structure'!A12 -> Vote 11 - | C16: =A5A!C16 -> 0 | D16: =A5A!D16 -> 0 | E16: =A5A!E16 -> 0 | F16: =A5A!F16 -> 0 | G16: =A5A!G16 -> 0 | H16: =A5A!H16 -> 0 | I16: =A5A!I16 -> 0 | J16: =A5A!J16 -> 0 | K16: =A5A!K16 -> 0 | L16: =A5A!L16 -> 0
A17: ='Org structure'!A13 -> Vote 12 - | C17: =A5A!C17 -> 0 | D17: =A5A!D17 -> 0 | E17: =A5A!E17 -> 0 | F17: =A5A!F17 -> 0 | G17: =A5A!G17 -> 0 | H17: =A5A!H17 -> 0 | I17: =A5A!I17 -> 0 | J17: =A5A!J17 -> 0 | K17: =A5A!K17 -> 0 | L17: =A5A!L17 -> 0
A18: ='Org structure'!A14 -> Vote 13 - | C18: =A5A!C18 -> 0 | D18: =A5A!D18 -> 0 | E18: =A5A!E18 -> 0 | F18: =A5A!F18 -> 0 | G18: =A5A!G18 -> 0 | H18: =A5A!H18 -> 0 | I18: =A5A!I18 -> 0 | J18: =A5A!J18 -> 0 | K18: =A5A!K18 -> 0 | L18: =A5A!L18 -> 0
A19: ='Org structure'!A15 -> Vote 14 - | C19: =A5A!C19 -> 0 | D19: =A5A!D19 -> 0 | E19: =A5A!E19 -> 0 | F19: =A5A!F19 -> 0 | G19: =A5A!G19 -> 0 | H19: =A5A!H19 -> 0 | I19: =A5A!I19 -> 0 | J19: =A5A!J19 -> 0 | K19: =A5A!K19 -> 0 | L19: =A5A!L19 -> 0
A20: ='Org structure'!A16 -> Vote 15 - Other | C20: =A5A!C20 -> 0 | D20: =A5A!D20 -> 0 | E20: =A5A!E20 -> 0 | F20: =A5A!F20 -> 0 | G20: =A5A!G20 -> 0 | H20: =A5A!H20 -> 0 | I20: =A5A!I20 -> 0 | J20: =A5A!J20 -> 0 | K20: =A5A!K20 -> 0 | L20: =A5A!L20 -> 0
A21: Capital multi-year expenditure sub-total | B21: 7 | C21: =SUM(C6:C20) -> 0 | D21: =SUM(D6:D20) -> 0 | E21: 0 | F21: 0 | G21: 0 | H21: =SUM(H6:H20) -> 0 | I21: 0 | J21: 0 | K21: 0 | L21: 0
A23: Single-year expenditure to be appropriated | B23: 2
A24: =A5A!A25 -> Vote 01 - Executive & Council | C24: =A5A!C25 -> 0 | D24: =A5A!D25 -> 0 | E24: =A5A!E25 -> 0 | F24: =A5A!F25 -> 0 | G24: =A5A!G25 -> 0 | H24: =A5A!H25 -> 0 | I24: =A5A!I25 -> 0 | J24: =A5A!J25 -> 0 | K24: =A5A!K25 -> 0 | L24: =A5A!L25 -> 0
A25: =A5A!A26 -> Vote 02 - Finance And Administration | C25: =A5A!C26 -> 175337.45 | D25: =A5A!D26 -> 140969 | E25: =A5A!E26 -> 0 | F25: =A5A!F26 -> 300000 | G25: =A5A!G26 -> 0 | H25: =A5A!H26 -> 0 | I25: =A5A!I26 -> 0 | J25: =A5A!J26 -> 0 | K25: =A5A!K26 -> 0 | L25: =A5A!L26 -> 0
A26: =A5A!A28 -> Vote 03 - Community Service | C26: =A5A!C28 -> 228095.1 | D26: =A5A!D28 -> 0 | E26: =A5A!E28 -> 0 | F26: =A5A!F28 -> 0 | G26: =A5A!G28 -> 0 | H26: =A5A!H28 -> 0 | I26: =A5A!I28 -> 0 | J26: =A5A!J28 -> 0 | K26: =A5A!K28 -> 0 | L26: =A5A!L28 -> 0
A27: =A5A!A30 -> Vote 04 - Public And Safety | C27: =A5A!C30 -> 2113835.67 | D27: =A5A!D30 -> 7154745.87 | E27: =A5A!E30 -> 108585 | F27: =A5A!F30 -> 310000 | G27: =A5A!G30 -> 210000 | H27: =A5A!H30 -> 210000 | I27: =A5A!I30 -> 209230.94 | J27: =A5A!J30 -> 5600000 | K27: =A5A!K30 -> 500000 | L27: =A5A!L30 -> 500000
A28: =A5A!A32 -> Vote 05 - Waste Management | C28: =A5A!C32 -> 1638259.82 | D28: =A5A!D32 -> 531085.55 | E28: =A5A!E32 -> 23891624.65 | F28: =A5A!F32 -> 5607000 | G28: =A5A!G32 -> 54151376 | H28: =A5A!H32 -> 54151376 | I28: =A5A!I32 -> 1318813.55 | J28: =A5A!J32 -> 18689531 | K28: =A5A!K32 -> 32530800 | L28: =A5A!L32 -> 17846000
A29: =A5A!A35 -> Vote 06 - Roads Services | C29: =A5A!C35 -> 1142257.79 | D29: =A5A!D35 -> 246957.29 | E29: =A5A!E35 -> 0 | F29: =A5A!F35 -> 200000 | G29: =A5A!G35 -> 300000 | H29: =A5A!H35 -> 300000 | I29: =A5A!I35 -> 98000 | J29: =A5A!J35 -> 250000 | K29: =A5A!K35 -> 0 | L29: =A5A!L35 -> 142234
A30: =A5A!A38 -> Vote 07 - Econominc Development And Planning | C30: =A5A!C38 -> 146560 | D30: =A5A!D38 -> 0 | E30: =A5A!E38 -> 75909335.46 | F30: =A5A!F38 -> 80475000 | G30: =A5A!G38 -> 102666966 | H30: =A5A!H38 -> 102666966 | I30: =A5A!I38 -> 53826084.28 | J30: =A5A!J38 -> 50369000 | K30: =A5A!K38 -> 52123000 | L30: =A5A!L38 -> 56578768
A31: ='Org structure'!A9 -> Vote 08 - | C31: =A5A!C41 -> 0 | D31: =A5A!D41 -> 0 | E31: =A5A!E41 -> 0 | F31: =A5A!F41 -> 0 | G31: =A5A!G41 -> 0 | H31: =A5A!H41 -> 0 | I31: =A5A!I41 -> 0 | J31: =A5A!J41 -> 0 | K31: =A5A!K41 -> 0 | L31: =A5A!L41 -> 0
A32: ='Org structure'!A10 -> Vote 09 - | C32: =A5A!C42 -> 0 | D32: =A5A!D42 -> 0 | E32: =A5A!E42 -> 0 | F32: =A5A!F42 -> 0 | G32: =A5A!G42 -> 0 | H32: =A5A!H42 -> 0 | I32: =A5A!I42 -> 0 | J32: =A5A!J42 -> 0 | K32: =A5A!K42 -> 0 | L32: =A5A!L42 -> 0
A33: ='Org structure'!A11 -> Vote 10 - | C33: =A5A!C43 -> 0 | D33: =A5A!D43 -> 0 | E33: =A5A!E43 -> 0 | F33: =A5A!F43 -> 0 | G33: =A5A!G43 -> 0 | H33: =A5A!H43 -> 0 | I33: =A5A!I43 -> 0 | J33: =A5A!J43 -> 0 | K33: =A5A!K43 -> 0 | L33: =A5A!L43 -> 0
A34: ='Org structure'!A12 -> Vote 11 - | C34: =A5A!C44 -> 0 | D34: =A5A!D44 -> 0 | E34: =A5A!E44 -> 0 | F34: =A5A!F44 -> 0 | G34: =A5A!G44 -> 0 | H34: =A5A!H44 -> 0 | I34: =A5A!I44 -> 0 | J34: =A5A!J44 -> 0 | K34: =A5A!K44 -> 0 | L34: =A5A!L44 -> 0
A35: ='Org structure'!A13 -> Vote 12 - | C35: =A5A!C45 -> 0 | D35: =A5A!D45 -> 0 | E35: =A5A!E45 -> 0 | F35: =A5A!F45 -> 0 | G35: =A5A!G45 -> 0 | H35: =A5A!H45 -> 0 | I35: =A5A!I45 -> 0 | J35: =A5A!J45 -> 0 | K35: =A5A!K45 -> 0 | L35: =A5A!L45 -> 0
A36: ='Org structure'!A14 -> Vote 13 - | C36: =A5A!C46 -> 0 | D36: =A5A!D46 -> 0 | E36: =A5A!E46 -> 0 | F36: =A5A!F46 -> 0 | G36: =A5A!G46 -> 0 | H36: =A5A!H46 -> 0 | I36: =A5A!I46 -> 0 | J36: =A5A!J46 -> 0 | K36: =A5A!K46 -> 0 | L36: =A5A!L46 -> 0
A37: ='Org structure'!A15 -> Vote 14 - | C37: =A5A!C47 -> 0 | D37: =A5A!D47 -> 0 | E37: =A5A!E47 -> 0 | F37: =A5A!F47 -> 0 | G37: =A5A!G47 -> 0 | H37: =A5A!H47 -> 0 | I37: =A5A!I47 -> 0 | J37: =A5A!J47 -> 0 | K37: =A5A!K47 -> 0 | L37: =A5A!L47 -> 0
A38: ='Org structure'!A16 -> Vote 15 - Other | C38: =A5A!C48 -> 0 | D38: =A5A!D48 -> 0 | E38: =A5A!E48 -> 0 | F38: =A5A!F48 -> 0 | G38: =A5A!G48 -> 0 | H38: =A5A!H48 -> 0 | I38: =A5A!I48 -> 0 | J38: =A5A!J48 -> 0 | K38: =A5A!K48 -> 0 | L38: =A5A!L48 -> 0
A39: Capital single-year expenditure sub-total | C39: =SUM(C24:C38) -> 5444345.83 | D39: =SUM(D24:D38) -> 8073757.71 | E39: 99909545.11 | F39: 86892000 | G39: 157328342 | H39: 157328342 | I39: 55452128.77 | J39: 74908531 | K39: 85153800 | L39: 75067002
A40: Total Capital Expenditure - Vote | C40: =C39+C21 -> 5444345.83 | D40: =D39+D21 -> 8073757.71 | E40: 99909545.11 | F40: 86892000 | G40: 157328342 | H40: 157328342 | I40: 55452128.77 | J40: 74908531 | K40: 85153800 | L40: 75067002
A42: Capital Expenditure - Functional
A43: Governance and administration | C43: =SUM(C44:C46) -> 2517268.22 | D43: =SUM(D44:D46) -> 7295714.87 | E43: 108585 | F43: 610000 | G43: 210000 | H43: 210000 | I43: 209230.94 | J43: 5600000 | K43: 500000 | L43: 500000
A44: Executive and council | C44: 175337.45 | D44: 140969 | E44: 0 | F44: 300000 | G44: 0 | H44: 0 | I44: 0 | J44: 0 | K44: 0 | L44: 0
A45: Finance and administration | C45: 2341930.77 | D45: 7154745.87 | E45: 108585 | F45: 310000 | G45: 210000 | H45: 210000 | I45: 209230.94 | J45: 5600000 | K45: 500000 | L45: 500000
A46: Internal audit
A47: Community and public safety | C47: =SUM(C48:C52) -> 130434.78 | D47: =SUM(D48:D52) -> 153900 | E47: 0 | F47: 0 | G47: 0 | H47: 0 | I47: 0 | J47: 0 | K47: 0 | L47: 0
A48: Community and social services
A49: Sport and recreation
A50: Public safety | C50: 130434.78 | D50: 153900 | E50: 0 | F50: 0 | G50: 0 | H50: 0 | I50: 0 | J50: 0 | K50: 0 | L50: 0
A51: Housing
A52: Health
A53: Economic and environmental services | C53: =SUM(C54:C56) -> 311573.43 | D53: =SUM(D54:D56) -> 48000 | E53: 75909335.46 | F53: 80475000 | G53: 149766966 | H53: 149766966 | I53: 53826084.28 | J53: 66085000 | K53: 67840000 | L53: 56578768
A54: Planning and development | C54: 146560 | D54: 0 | E54: 75909335.46 | F54: 80475000 | G54: 102666966 | H54: 102666966 | I54: 53826084.28 | J54: 50369000 | K54: 52123000 | L54: 56578768
A55: Road transport | C55: 165013.43 | D55: 48000 | E55: 0 | F55: 0 | G55: 47100000 | H55: 47100000 | I55: 0 | J55: 15716000 | K55: 15717000 | L55: 0
A56: Environmental protection
A57: Trading services | C57: =SUM(C58:C61) -> 2485069.4 | D57: =SUM(D58:D61) -> 576142.84 | E57: 23891624.65 | F57: 5807000 | G57: 7351376 | H57: 7351376 | I57: 1416813.55 | J57: 3223531 | K57: 16813800 | L57: 17988234
A58: Energy sources | C58: 1473246.39 | D58: 483085.55 | E58: 23891624.65 | F58: 5607000 | G58: 7051376 | H58: 7051376 | I58: 1318813.55 | J58: 2973531 | K58: 16813800 | L58: 17846000
A59: Water management
A60: Waste water management
A61: Waste management | C61: 1011823.01 | D61: 93057.29 | E61: 0 | F61: 200000 | G61: 300000 | H61: 300000 | I61: 98000 | J61: 250000 | K61: 0 | L61: 142234
A62: Other
A63: Total Capital Expenditure - Functional | B63: 3 | C63: =C43+C47+C53+C57+C62 -> 5444345.83 | D63: =D43+D47+D53+D57+D62 -> 8073757.71 | E63: 99909545.11 | F63: 86892000 | G63: 157328342 | H63: 157328342 | I63: 55452128.77 | J63: 74908531 | K63: 85153800 | L63: =L43+L47+L53+L57+L62 -> 75067002
A65: Funded by:
A66: National Government | C66: 26013.43 | D66: 0 | E66: 98867988.86 | F66: 85575000 | G66: 155531342 | H66: 155531342 | I66: 54786367.03 | J66: 65785000 | K66: 83153800 | L66: 72878768
A67: Provincial Government
A68: District Municipality
A69: Transfers and subsidies - capital (monetary allocations) (Nat / Prov Departm Agencies, Households, Non-profit Institutions, Private Enterprises, Public Corporatons, Higher Educ Institutions) | C69: 0 | D69: 0 | E69: 0 | F69: 0 | G69: 0 | H69: 0 | I69: 0 | J69: 0 | K69: 0 | L69: 0
A70: Transfers recognised - capital | B70: 4 | C70: =SUM(C66:C69) -> 26013.43 | D70: 0 | E70: 98867988.86 | F70: 85575000 | G70: 155531342 | H70: 155531342 | I70: 54786367.03 | J70: 65785000 | K70: 83153800 | L70: 72878768
A72: Borrowing | B72: 6 | C72: 0 | D72: 0 | E72: 0 | F72: 0 | G72: 0 | H72: 0 | I72: 0 | J72: 0 | K72: 0 | L72: 0
A73: Internally generated funds | C73: 5418332.4 | D73: 8073757.71 | E73: 1041556.25 | F73: 1317000 | G73: 1797000 | H73: 1797000 | I73: 665761.74 | J73: 9123531 | K73: 2000000 | L73: 2188234
A74: Total Capital Funding | B74: 7 | C74: =+C70+C72+C73 -> 5444345.83 | D74: =+D70+D72+D73 -> 8073757.71 | E74: 99909545.11 | F74: 86892000 | G74: 157328342 | H74: 157328342 | I74: 55452128.77 | J74: 74908531 | K74: 85153800 | L74: 75067002
A75: =head27a -> References
A76: 1. Municipalities may choose to appropriate for capital expenditure for three years or for one year (if one year appropriation projected expenditure required for yr2 and yr3).
A77: 2. Include capital component of PPP unitary payment. Note that capital transfers are only appropriated to municipalities for the budget year
A78: 3. Capital expenditure by functional classification must reconcile to the appropriations by vote
A79: 4. Must reconcile to supporting table SA20 and to Budgeted Financial Performance (revenue and expenditure)
A81: 6. Include finance leases and PPP capital funding component of unitary payment - total borrowing/repayments to reconcile to changes in Table SA17
A82: 7. Total Capital Funding must balance with Total Capital Expenditure
A83: 8. Include any capitalised interest (MFMA section 46) as part of relevant capital budget

Sheet A5A
A1: =muni&" - "&Approve5 -> LIM351 Blouberg - Table A5 Budgeted Capital Expenditure by vote, functional classification and funding
A2: =Vdesc -> Vote Description | B2: =head27 -> Ref | C2: =head1b -> 2020/21 | D2: =head1A -> 2021/22 | E2: =Head1 -> 2022/23 | F2: =Head2 -> Current Year 2023/24 | J2: =Head3 -> 2024/25 Medium Term Revenue & Expenditure Framework | N2: ="Multi-year appropriation for "&Head9& " in the "&Head2A&" Annual Budget" -> Multi-year appropriation for Budget Year 2024/25 in the 2023/24 Annual Budget | R2: ="Multi-year appropriation for "&RIGHT(Head10,7)& " in the "&Head2A&" Annual Budget" -> Multi-year appropriation for 2025/26 in the 2023/24 Annual Budget | V2: New multi-year appropriations (funds for new and existing projects)
A3: R thousand | B3: 1 | C3: =Head5 -> Audited Outcome | D3: =Head5 -> Audited Outcome | E3: =Head5 -> Audited Outcome | F3: =Head6 -> Original Budget | G3: =Head7 -> Adjusted Budget | H3: =Head8 -> Full Year Forecast | I3: =Head5b -> Pre-audit outcome | J3: =Head9 -> Budget Year 2024/25 | K3: =Head10 -> Budget Year +1 2025/26 | L3: =Head11 -> Budget Year +2 2026/27 | N3: ="Appropriation for "&RIGHT(Head9,7) -> Appropriation for 2024/25 | O3: ="Adjustments in "&Head2A -> Adjustments in 2023/24 | P3: ="Downward adjustments for "&RIGHT(Head9,7) -> Downward adjustments for 2024/25 | Q3: Appropriation carried forward | R3: ="Appropriation for "&RIGHT(Head9,7) -> Appropriation for 2024/25 | S3: ="Adjustments in "&Head2A -> Adjustments in 2023/24 | T3: ="Downward adjustments for "&RIGHT(Head9,7) -> Downward adjustments for 2024/25 | U3: Appropriation carried forward | V3: =Head9 -> Budget Year 2024/25 | W3: =Head10 -> Budget Year +1 2025/26 | X3: =Head11 -> Budget Year +2 2026/27
A4: Capital expenditure - Municipal Vote
A5: Multi-year expenditure appropriation | B5: 2
A6: ='Org structure'!A2 -> Vote 01 - Executive & Council | C6: 0 | D6: 0 | E6: 0 | F6: 0 | G6: 0 | H6: 0 | I6: 0 | J6: 0 | K6: 0 | L6: 0 | N6: 0 | O6: 0 | P6: 0 | Q6: 0 | R6: 0 | S6: 0 | T6: 0 | U6: 0 | V6: 0 | W6: 0
A7: ='Org structure'!A3 -> Vote 02 - Finance And Administration | C7: 0 | D7: 0 | E7: 0 | F7: 0 | G7: 0 | H7: 0 | I7: 0 | J7: 0 | K7: 0 | L7: 0 | N7: 0 | O7: 0 | P7: 0 | Q7: 0 | R7: 0 | S7: 0 | T7: 0 | U7: 0 | V7: 0 | W7: 0
A8: ='Org structure'!A4 -> Vote 03 - Community Service | C8: 0 | D8: 0 | E8: 0 | F8: 0 | G8: 0 | H8: 0 | I8: 0 | J8: 0 | K8: 0 | L8: 0 | N8: 0 | O8: 0 | P8: 0 | Q8: 0 | R8: 0 | S8: 0 | T8: 0 | U8: 0 | V8: 0 | W8: 0
A9: ='Org structure'!A5 -> Vote 04 - Public And Safety | C9: 0 | D9: 0 | E9: 0 | F9: 0 | G9: 0 | H9: 0 | I9: 0 | J9: 0 | K9: 0 | L9: 0 | N9: 0 | O9: 0 | P9: 0 | Q9: 0 | R9: 0 | S9: 0 | T9: 0 | U9: 0 | V9: 0 | W9: 0
A10: ='Org structure'!A6 -> Vote 05 - Waste Management | C10: 0 | D10: 0 | E10: 0 | F10: 0 | G10: 0 | H10: 0 | I10: 0 | J10: 0 | K10: 0 | L10: 0 | N10: 0 | O10: 0 | P10: 0 | Q10: 0 | R10: 0 | S10: 0 | T10: 0 | U10: 0 | V10: 0 | W10: 0
A11: ='Org structure'!A7 -> Vote 06 - Roads Services | C11: 0 | D11: 0 | E11: 0 | F11: 0 | G11: 0 | H11: 0 | I11: 0 | J11: 0 | K11: 0 | L11: 0 | N11: 0 | O11: 0 | P11: 0 | Q11: 0 | R11: 0 | S11: 0 | T11: 0 | U11: 0 | V11: 0 | W11: 0
A12: ='Org structure'!A8 -> Vote 07 - Econominc Development And Planning | C12: 0 | D12: 0 | E12: 0 | F12: 0 | G12: 0 | H12: 0 | I12: 0 | J12: 0 | K12: 0 | L12: 0 | N12: 0 | O12: 0 | P12: 0 | Q12: 0 | R12: 0 | S12: 0 | T12: 0 | U12: 0 | V12: 0 | W12: 0
A13: ='Org structure'!A9 -> Vote 08 - | C13: 0 | D13: 0 | E13: 0 | F13: 0 | G13: 0 | H13: 0 | I13: 0 | J13: 0 | K13: 0 | L13: 0 | N13: 0 | O13: 0 | P13: 0 | Q13: 0 | R13: 0 | S13: 0 | T13: 0 | U13: 0 | V13: 0 | W13: 0 | X13: 0
A14: ='Org structure'!A10 -> Vote 09 - | C14: 0 | D14: 0 | E14: 0 | F14: 0 | G14: 0 | H14: 0 | I14: 0 | J14: 0 | K14: 0 | L14: 0 | N14: 0 | O14: 0 | P14: 0 | Q14: 0 | R14: 0 | S14: 0 | T14: 0 | U14: 0 | V14: 0 | W14: 0 | X14: 0
A15: ='Org structure'!A11 -> Vote 10 - | C15: 0 | D15: 0 | E15: 0 | F15: 0 | G15: 0 | H15: 0 | I15: 0 | J15: 0 | K15: 0 | L15: 0 | N15: 0 | O15: 0 | P15: 0 | Q15: 0 | R15: 0 | S15: 0 | T15: 0 | U15: 0 | V15: 0 | W15: 0 | X15: 0
A16: ='Org structure'!A12 -> Vote 11 - | C16: 0 | D16: 0 | E16: 0 | F16: 0 | G16: 0 | H16: 0 | I16: 0 | J16: 0 | K16: 0 | L16: 0 | N16: 0 | O16: 0 | P16: 0 | Q16: 0 | R16: 0 | S16: 0 | T16: 0 | U16: 0 | V16: 0 | W16: 0 | X16: 0
A17: ='Org structure'!A13 -> Vote 12 - | C17: 0 | D17: 0 | E17: 0 | F17: 0 | G17: 0 | H17: 0 | I17: 0 | J17: 0 | K17: 0 | L17: 0 | N17: 0 | O17: 0 | P17: 0 | Q17: 0 | R17: 0 | S17: 0 | T17: 0 | U17: 0 | V17: 0 | W17: 0 | X17: 0
A18: ='Org structure'!A14 -> Vote 13 - | C18: 0 | D18: 0 | E18: 0 | F18: 0 | G18: 0 | H18: 0 | I18: 0 | J18: 0 | K18: 0 | L18: 0 | N18: 0 | O18: 0 | P18: 0 | Q18: 0 | R18: 0 | S18: 0 | T18: 0 | U18: 0 | V18: 0 | W18: 0 | X18: 0
A19: ='Org structure'!A15 -> Vote 14 - | C19: 0 | D19: 0 | E19: 0 | F19: 0 | G19: 0 | H19: 0 | I19: 0 | J19: 0 | K19: 0 | L19: 0 | N19: 0 | O19: 0 | P19: 0 | Q19: 0 | R19: 0 | S19: 0 | T19: 0 | U19: 0 | V19: 0 | W19: 0 | X19: 0
A20: ='Org structure'!A16 -> Vote 15 - Other | C20: 0 | D20: 0 | E20: 0 | F20: 0 | G20: 0 | H20: 0 | I20: 0 | J20: 0 | K20: 0 | L20: 0 | N20: 0 | O20: 0 | P20: 0 | Q20: 0 | R20: 0 | S20: 0 | T20: 0 | U20: 0 | V20: 0 | W20: 0 | X20: 0
A21: Capital multi-year expenditure sub-total | C21: =C6+C7+C8+C9+C10+C11+C12+C13+C14+C15+C16+C17+C18+C19+C20 -> 0 | D21: 0 | E21: 0 | F21: 0 | G21: 0 | H21: 0 | I21: 0 | J21: 0 | K21: 0 | L21: 0 | N21: =N6+N7+N8+N9+N10+N11+N12+N13+N14+N15+N16+N17+N18+N19+N20 -> 0 | O21: 0 | P21: 0 | Q21: 0 | R21: 0 | S21: 0 | T21: 0 | U21: 0 | V21: 0 | W21: 0
A23: Capital expenditure - Municipal Vote
A24: Single-year expenditure appropriation | B24: 2
A25: ='Org structure'!A2 -> Vote 01 - Executive & Council | C25: 0 | D25: 0 | E25: 0 | F25: 0 | G25: 0 | H25: 0 | I25: 0 | J25: 0 | K25: 0 | L25: 0
A26: ='Org structure'!A3 -> Vote 02 - Finance And Administration | C26: =SUM(C27:C27) -> 175337.45 | D26: 140969 | E26: 0 | F26: 300000 | G26: 0 | H26: 0 | I26: 0 | J26: 0 | K26: 0 | L26: 0
A27: ='Org structure'!E5 -> 02.1 - Municipal Manager | C27: 175337.45 | D27: 140969 | E27: 0 | F27: 300000 | G27: 0 | H27: 0 | I27: 0 | J27: 0 | K27: 0 | L27: 0
A28: ='Org structure'!A4 -> Vote 03 - Community Service | C28: =SUM(C29:C29) -> 228095.1 | D28: 0 | E28: 0 | F28: 0 | G28: 0 | H28: 0 | I28: 0 | J28: 0 | K28: 0 | L28: 0
A29: ='Org structure'!E7 -> 03.1 - Finance Services Administration | C29: 228095.1 | D29: 0 | E29: 0 | F29: 0 | G29: 0 | H29: 0 | I29: 0 | J29: 0 | K29: 0 | L29: 0
A30: ='Org structure'!A5 -> Vote 04 - Public And Safety | C30: =SUM(C31:C31) -> 2113835.67 | D30: 7154745.87 | E30: 108585 | F30: 310000 | G30: 210000 | H30: 210000 | I30: 209230.94 | J30: 5600000 | K30: 500000 | L30: 500000
A31: ='Org structure'!E9 -> 04.1 - Corporate Services Administration | C31: 2113835.67 | D31: 7154745.87 | E31: 108585 | F31: 310000 | G31: 210000 | H31: 210000 | I31: 209230.94 | J31: 5600000 | K31: 500000 | L31: 500000
A32: ='Org structure'!A6 -> Vote 05 - Waste Management | C32: =SUM(C33:C34) -> 1638259.82 | D32: 531085.55 | E32: 23891624.65 | F32: 5607000 | G32: 54151376 | H32: 54151376 | I32: 1318813.55 | J32: 18689531 | K32: 32530800 | L32: 17846000
A33: ='Org structure'!E12 -> 05.2 - Electrical Services | C33: 1473246.39 | D33: 483085.55 | E33: 23891624.65 | F33: 5607000 | G33: 7051376 | H33: 7051376 | I33: 1318813.55 | J33: 2973531 | K33: 16813800 | L33: 17846000
A34: ='Org structure'!E15 -> 05.5 - Roads Services | C34: 165013.43 | D34: 48000 | E34: 0 | F34: 0 | G34: 47100000 | H34: 47100000 | I34: 0 | J34: 15716000 | K34: 15717000 | L34: 0
A35: ='Org structure'!A7 -> Vote 06 - Roads Services | C35: =SUM(C36:C37) -> 1142257.79 | D35: 246957.29 | E35: 0 | F35: 200000 | G35: 300000 | H35: 300000 | I35: 98000 | J35: 250000 | K35: 0 | L35: 142234
A36: ='Org structure'!E17 -> 06.1 - Community Services Administration | C36: 1011823.01 | D36: 93057.29 | E36: 0 | F36: 200000 | G36: 300000 | H36: 300000 | I36: 98000 | J36: 250000 | K36: 0 | L36: 142234
A37: ='Org structure'!E18 -> 06.2 - Traffic Services | C37: 130434.78 | D37: 153900 | E37: 0 | F37: 0 | G37: 0 | H37: 0 | I37: 0 | J37: 0 | K37: 0 | L37: 0
A38: ='Org structure'!A8 -> Vote 07 - Econominc Development And Planning | C38: =SUM(C39:C40) -> 146560 | D38: 0 | E38: 75909335.46 | F38: 80475000 | G38: 102666966 | H38: 102666966 | I38: 53826084.28 | J38: 50369000 | K38: 52123000 | L38: 56578768
A39: ='Org structure'!E26 -> 07.1 - Project Management Unit | C39: 0 | D39: 0 | E39: 75711335.46 | F39: 80375000 | G39: 102666966 | H39: 102666966 | I39: 53826084.28 | J39: 49769000 | K39: 52123000 | L39: 56578768
A40: ='Org structure'!E27 -> 07.2 - Economic Development And Planning | C40: 146560 | D40: 0 | E40: 198000 | F40: 100000 | G40: 0 | H40: 0 | I40: 0 | J40: 600000 | K40: 0 | L40: 0
A41: ='Org structure'!A9 -> Vote 08 - | C41: 0 | D41: 0 | E41: 0 | F41: 0 | G41: 0 | H41: 0 | I41: 0 | J41: 0 | K41: 0 | L41: 0
A42: ='Org structure'!A10 -> Vote 09 - | C42: 0 | D42: 0 | E42: 0 | F42: 0 | G42: 0 | H42: 0 | I42: 0 | J42: 0 | K42: 0 | L42: 0
A43: ='Org structure'!A11 -> Vote 10 - | C43: 0 | D43: 0 | E43: 0 | F43: 0 | G43: 0 | H43: 0 | I43: 0 | J43: 0 | K43: 0 | L43: 0
A44: ='Org structure'!A12 -> Vote 11 - | C44: 0 | D44: 0 | E44: 0 | F44: 0 | G44: 0 | H44: 0 | I44: 0 | J44: 0 | K44: 0 | L44: 0
A45: ='Org structure'!A13 -> Vote 12 - | C45: 0 | D45: 0 | E45: 0 | F45: 0 | G45: 0 | H45: 0 | I45: 0 | J45: 0 | K45: 0 | L45: 0
A46: ='Org structure'!A14 -> Vote 13 - | C46: 0 | D46: 0 | E46: 0 | F46: 0 | G46: 0 | H46: 0 | I46: 0 | J46: 0 | K46: 0 | L46: 0
A47: ='Org structure'!A15 -> Vote 14 - | C47: 0 | D47: 0 | E47: 0 | F47: 0 | G47: 0 | H47: 0 | I47: 0 | J47: 0 | K47: 0 | L47: 0
A48: ='Org structure'!A16 -> Vote 15 - Other | C48: 0 | D48: 0 | E48: 0 | F48: 0 | G48: 0 | H48: 0 | I48: 0 | J48: 0 | K48: 0 | L48: 0
A49: Capital single-year expenditure sub-total | C49: =C25+C26+C28+C30+C32+C35+C38+C41+C42+C43+C44+C45+C46+C47+C48 -> 5444345.83 | D49: 8073757.71 | E49: 99909545.11 | F49: 86892000 | G49: 157328342 | H49: 157328342 | I49: 55452128.77 | J49: 74908531 | K49: 85153800 | L49: 75067002
A50: Total Capital Expenditure | C50: =C21+C49 -> 5444345.83 | D50: 8073757.71 | E50: 99909545.11 | F50: 86892000 | G50: 157328342 | H50: 157328342 | I50: 55452128.77 | J50: 74908531 | K50: 85153800 | L50: 75067002

Sheet A6-FinPos
A1: =muni&" - "&Approve6 -> LIM351 Blouberg - Table A6 Budgeted Financial Position
A2: =desc -> Description | B2: =head27 -> Ref | C2: =head1b -> 2020/21 | D2: =head1A -> 2021/22 | E2: =Head1 -> 2022/23 | F2: =Head2 -> Current Year 2023/24 | J2: =Head3 -> 2024/25 Medium Term Revenue & Expenditure Framework
A3: R thousand | C3: =Head5 -> Audited Outcome | D3: =Head5 -> Audited Outcome | E3: =Head5 -> Audited Outcome | F3: =Head6 -> Original Budget | G3: =Head7 -> Adjusted Budget | H3: =Head8 -> Full Year Forecast | I3: =Head5b -> Pre-audit outcome | J3: =Head9 -> Budget Year 2024/25 | K3: =Head10 -> Budget Year +1 2025/26 | L3: =Head11 -> Budget Year +2 2026/27
A4: ASSETS
A5: Current assets
A6: Cash and cash equivalents | C6: 1330602.88 | D6: 89472523.86 | E6: 101842673.1 | F6: 92096784 | G6: 113579931 | H6: 113579931 | I6: 193960869 | J6: 204752687 | K6: 211727502 | L6: 221467094
A7: Trade and other receivables from exchange transactions | B7: 1 | C7: ='SA3'!C19 -> 11253499.26 | D7: ='SA3'!D19 -> 10973132.95 | E7: ='SA3'!E19 -> 13045535.07 | F7: ='SA3'!F19 -> 21870570 | G7: ='SA3'!G19 -> 22370570 | H7: ='SA3'!H19 -> 22370570 | I7: ='SA3'!I19 -> 22987865 | J7: ='SA3'!J19 -> 4649905 | K7: ='SA3'!K19 -> 4863998 | L7: ='SA3'!L19 -> 7774885
A8: Receivables from non-exchange transactions | B8: 1 | C8: ='SA3'!C28 -> 19396798.52 | D8: ='SA3'!D28 -> -25249958.64 | E8: ='SA3'!E28 -> 18188266.01 | F8: ='SA3'!F28 -> 941847183 | G8: ='SA3'!G28 -> 44387386 | H8: ='SA3'!H28 -> 44387386 | I8: ='SA3'!I28 -> 65969690.08 | J8: ='SA3'!J28 -> 35928077 | K8: ='SA3'!K28 -> 36647988 | L8: ='SA3'!L28 -> 34061224
A9: Current portion of non-current receivables
A10: Inventory | B10: 2 | C10: ='SA3'!C124 -> 4643332 | D10: ='SA3'!D124 -> 2603082 | E10: ='SA3'!E124 -> 2897361 | F10: ='SA3'!F124 -> 2897361 | G10: ='SA3'!G124 -> 2897361 | H10: ='SA3'!H124 -> 2897361 | I10: ='SA3'!I124 -> 4143784.62 | J10: ='SA3'!J124 -> 2897361 | K10: ='SA3'!K124 -> 2897361 | L10: ='SA3'!L124 -> 2897361
A11: VAT | C11: 9581025.47 | D11: 17124383.05 | E11: 21794962.25 | F11: 16361432 | G11: 21691201 | H11: 21691201 | I11: 25059467 | J11: 2930660 | K11: 3065470 | L11: 3203416
A12: Other current assets | C12: 585991.81 | D12: 777797.53 | E12: -938056 | F12: 0 | G12: 0 | H12: 0 | I12: -938056 | J12: 12768748 | K12: 13356110 | L12: 0
A13: Total current assets | C13: =SUM(C6:C12) -> 46791249.94 | D13: =SUM(D6:D12) -> 95700960.75 | E13: 156830741.5 | F13: 1075073330 | G13: 204926449 | H13: 204926449 | I13: 311183619.7 | J13: 263927438 | K13: 272558429 | L13: 269403980
A14: Non current assets
A15: Investments | C15: 0 | D15: 0 | E15: 4864603.53 | F15: 0 | G15: 9053553 | H15: 9053553 | I15: 11129513.7 | J15: 10708603 | K15: 11201198 | L15: 11705253
A16: Investment property | C16: 8374000.01 | D16: 8950501.09 | E16: 9433600.01 | F16: 8950501 | G16: 9516517 | H16: 9516517 | I16: 9433600.01 | J16: 9516517 | K16: 9954277 | L16: 10402219
A17: Property, plant and equipment | B17: 3 | C17: ='SA3'!C130 -> 943304993.2 | D17: ='SA3'!D130 -> 977360372.5 | E17: ='SA3'!E130 -> 1065221605 | F17: ='SA3'!F130 -> 150697248 | G17: ='SA3'!G130 -> 1136926887 | H17: ='SA3'!H130 -> 1136926887 | I17: ='SA3'!I130 -> 1097403632 | J17: ='SA3'!J130 -> 1117417188 | K17: ='SA3'!K130 -> 1168819154 | L17: ='SA3'!L130 -> 1291808246
A18: Biological assets
A19: Living and non-living resources
A20: Heritage assets | C20: 0 | D20: 0 | E20: 0 | F20: 0 | G20: 0 | H20: 0 | I20: 0 | J20: 0 | K20: 0 | L20: 0
A21: Intangible assets | C21: 306592.97 | D21: 240698.21 | E21: 174803.45 | F21: 0 | G21: 185291 | H21: 185291 | I21: 125156.45 | J21: 783368 | K21: 203311 | L21: 212460
A22: Trade and other receivables from exchange transactions
A23: Non-current receivables from non-exchange transactions
A24: Other non-current assets
A25: Total non current assets | C25: =SUM(C15:C24) -> 951985586.1 | D25: =SUM(D15:D24) -> 986551571.8 | E25: 1079694612 | F25: 159647749 | G25: 1155682248 | H25: 1155682248 | I25: 1118091902 | J25: 1138425676 | K25: 1190177940 | L25: 1314128178
A26: TOTAL ASSETS | C26: =C13+C25 -> 998776836.1 | D26: =D13+D25 -> 1082252533 | E26: =E13+E25 -> 1236525354 | F26: =F13+F25 -> 1234721079 | G26: 1360608697 | H26: 1360608697 | I26: 1429275521 | J26: 1402353114 | K26: 1462736369 | L26: 1583532158
A27: LIABILITIES
A28: Current liabilities
A29: Bank overdraft
A30: Financial liabilities | C30: ='SA3'!C136 -> 0 | D30: ='SA3'!D136 -> 0 | E30: ='SA3'!E136 -> 0 | F30: ='SA3'!F136 -> 0 | G30: ='SA3'!G136 -> 0 | H30: ='SA3'!H136 -> 0 | I30: ='SA3'!I136 -> 0 | J30: ='SA3'!J136 -> 9322788 | K30: ='SA3'!K136 -> 9751636 | L30: ='SA3'!L136 -> 10190459
A31: Consumer deposits | C31: -8680.44 | D31: -8680.44 | E31: -7959.44 | F31: 0 | G31: 0 | H31: 0 | I31: -7959.44 | J31: 0 | K31: 0 | L31: 0
A32: Trade and other payables from exchange transactions | B32: 4 | C32: 49488538.59 | D32: 50691062.78 | E32: 72020176.35 | F32: 37171349 | G32: 43400697 | H32: 43400697 | I32: 54993680.37 | J32: 35483462 | K32: 37115702 | L32: 38785909
A33: Trade and other payables from non-exchange transactions | B33: 5 | C33: 394098.18 | D33: 24315315.17 | E33: 20158138.51 | F33: 10000000 | G33: 5335394 | H33: 5335394 | I33: 141789909.2 | J33: 23000000 | K33: 15690000 | L33: 16396050
A34: Provision | C34: 0 | D34: 0 | E34: 0 | F34: 0 | G34: 0 | H34: 0 | I34: 2346109.89 | J34: 2200906 | K34: 2302147 | L34: 2405744
A35: VAT | C35: 8817459.3 | D35: 14482627.86 | E35: 21406358.34 | F35: 5000000 | G35: 22178753 | H35: 22178753 | I35: 28215338.18 | J35: 5300000 | K35: 5543800 | L35: 5793271
A36: Other current liabilities
A37: Total current liabilities | C37: =SUM(C29:C36) -> 58691415.63 | D37: =SUM(D29:D36) -> 89480325.37 | E37: 113576713.8 | F37: 52171349 | G37: 70914844 | H37: 70914844 | I37: 227337078.2 | J37: 75307156 | K37: 70403285 | L37: 73571433
A38: Non current liabilities
A39: Financial liabilities | B39: 6 | C39: ='SA3'!C148 -> 0 | D39: ='SA3'!D148 -> 774315.49 | E39: ='SA3'!E148 -> 14187045.3 | F39: ='SA3'!F148 -> 774315 | G39: ='SA3'!G148 -> 14961361 | H39: ='SA3'!H148 -> 14961361 | I39: ='SA3'!I148 -> 14187045.3 | J39: ='SA3'!J148 -> 4864257 | K39: ='SA3'!K148 -> 14084582 | L39: ='SA3'!L148 -> 5316787
A40: Provision | B40: 7 | C40: ='SA3'!C162 -> 19739952.68 | D40: ='SA3'!D162 -> 23221539.68 | E40: ='SA3'!E162 -> 24246164.68 | F40: ='SA3'!F162 -> 18037377 | G40: ='SA3'!G162 -> 24646164 | H40: ='SA3'!H162 -> 24646164 | I40: ='SA3'!I162 -> 24246164.68 | J40: ='SA3'!J162 -> 22339560 | K40: ='SA3'!K162 -> 23367179 | L40: ='SA3'!L162 -> 20110437
A41: Long term portion of trade payables | C41: ='SA3'!C151 -> 0 | D41: ='SA3'!D151 -> 0 | E41: ='SA3'!E151 -> 0 | F41: ='SA3'!F151 -> 0 | G41: ='SA3'!G151 -> 0 | H41: ='SA3'!H151 -> 0 | I41: ='SA3'!I151 -> 0 | J41: ='SA3'!J151 -> 0 | K41: ='SA3'!K151 -> 0 | L41: ='SA3'!L151 -> 0
A42: Other non-current liabilities
A43: Total non current liabilities | C43: =SUM(C39:C42) -> 19739952.68 | D43: =SUM(D39:D42) -> 23995855.17 | E43: 38433209.98 | F43: 18811692 | G43: 39607525 | H43: 39607525 | I43: 38433209.98 | J43: 27203817 | K43: 37451761 | L43: 25427224
A44: TOTAL LIABILITIES | C44: =C37+C43 -> 78431368.31 | D44: =D37+D43 -> 113476180.5 | E44: =E37+E43 -> 152009923.7 | F44: =F37+F43 -> 70983041 | G44: 110522369 | H44: 110522369 | I44: 265770288.2 | J44: 102510973 | K44: =K37+K43 -> 107855046 | L44: 98998657
A45: NET ASSETS | C45: =C26-C44 -> 920345467.8 | D45: 968776352 | E45: 1084515430 | F45: 1163738038 | G45: 1250086328 | H45: 1250086328 | I45: 1163505233 | J45: 1299842141 | K45: 1354881323 | L45: 1484533501
A46: COMMUNITY WEALTH/EQUITY
A47: Accumulated surplus/(deficit) | B47: 8 | C47: ='SA3'!C174 -> 1028930454 | D47: ='SA3'!D174 -> 1055035250 | E47: ='SA3'!E174 -> 1080275973 | F47: ='SA3'!F174 -> 1151715342 | G47: ='SA3'!G174 -> 1221796301 | H47: ='SA3'!H174 -> 1221796301 | I47: ='SA3'!I174 -> 1165981293 | J47: ='SA3'!J174 -> 1339316667 | K47: ='SA3'!K174 -> 1393895178 | L47: ='SA3'!L174 -> 1462759397
A48: Reserves and funds | B48: 9 | C48: ='SA3'!C181 -> 0 | D48: ='SA3'!D181 -> 0 | E48: ='SA3'!E181 -> 0 | F48: ='SA3'!F181 -> 0 | G48: ='SA3'!G181 -> 0 | H48: ='SA3'!H181 -> 0 | I48: ='SA3'!I181 -> 0 | J48: ='SA3'!J181 -> 0 | K48: ='SA3'!K181 -> 0 | L48: ='SA3'!L181 -> 0
A49: Other
A50: TOTAL COMMUNITY WEALTH/EQUITY | B50: 10 | C50: =SUM(C47:C49) -> 1028930454 | D50: =SUM(D47:D49) -> 1055035250 | E50: 1080275973 | F50: 1151715342 | G50: 1221796301 | H50: 1221796301 | I50: 1165981293 | J50: 1339316667 | K50: 1393895178 | L50: 1462759397
A51: =head27a -> References
A52: 1. Detail breakdown in Table SA3 for Trade receivables from Exchange and Non-exchange transactions
A53: 2. Include completed low cost housing to be transferred to beneficiaries within 12 months detail provided in Table SA3
A54: 3. Include 'Construction-work-in-progress' (disclosed separately in annual financial statements) detail in SA3
A55: 4. Detail breakdown in Table SA3.
A56: 5. Detail breakdown in Table SA3.
A57: 6. Detail breakdown in Table SA3.
A58: 7 Detail breakdown in Table SA3.
A59: 8. Detail breakdown in Table SA3.
A60: 9. Detail breakdown in Table SA3. Includes reserves to be funded by statute.
A61: 10. Net assets must balance with Total Community Wealth/Equity

Sheet A7-CFlow
A1: =muni&" - "&Approve7 -> LIM351 Blouberg - Table A7 Budgeted Cash Flows
A2: =desc -> Description | B2: =head27 -> Ref | C2: =head1b -> 2020/21 | D2: =head1A -> 2021/22 | E2: =Head1 -> 2022/23 | F2: =Head2 -> Current Year 2023/24 | J2: =Head3 -> 2024/25 Medium Term Revenue & Expenditure Framework
A3: R thousand | C3: =Head5 -> Audited Outcome | D3: =Head5 -> Audited Outcome | E3: =Head5 -> Audited Outcome | F3: =Head6 -> Original Budget | G3: =Head7 -> Adjusted Budget | H3: =Head8 -> Full Year Forecast | I3: =Head5b -> Pre-audit outcome | J3: =Head9 -> Budget Year 2024/25 | K3: =Head10 -> Budget Year +1 2025/26 | L3: =Head11 -> Budget Year +2 2026/27
A4: CASH FLOW FROM OPERATING ACTIVITIES
A5: Receipts
A6: Property rates | C6: 5583084.98 | D6: 57952874.74 | E6: 34034099.25 | F6: 31323787 | G6: 31323787 | H6: 31323787 | I6: 16608554.89 | J6: ='SA30'!N5 -> 32857088 | K6: ='SA30'!O5 -> 34368515 | L6: ='SA30'!P5 -> 35915097
A7: Service charges | C7: 27577323.12 | D7: 31249716.99 | E7: 27238015.44 | F7: 60046503 | G7: 49446503 | H7: 49446503 | I7: 26019590.19 | J7: ='SA30'!N6+'SA30'!N7+'SA30'!N8+'SA30'!N9 -> 57824150 | K7: ='SA30'!O6+'SA30'!O7+'SA30'!O8+'SA30'!O9 -> 60484061 | L7: ='SA30'!P6+'SA30'!P7+'SA30'!P8+'SA30'!P9 -> 63256899
A8: Other revenue | C8: 237562914.4 | D8: 61000042.79 | E8: 192707209.7 | F8: 16833998 | G8: 20964529 | H8: 20964529 | I8: 28186505.02 | J8: ='SA30'!N11+'SA30'!N15+'SA30'!N16+'SA30'!N17+'SA30'!N19+'SA30'!N29 -> 12975762 | K8: ='SA30'!O11+'SA30'!O15+'SA30'!O16+'SA30'!O17+'SA30'!O19+'SA30'!O29 -> 16998518 | L8: ='SA30'!P11+'SA30'!P15+'SA30'!P16+'SA30'!P17+'SA30'!P19+'SA30'!P29 -> 18548472
A9: Transfers and Subsidies - Operational | B9: 1 | C9: 4047000 | D9: 213922000 | E9: 70482920.63 | F9: 237377000 | G9: 241377000 | H9: 241377000 | I9: 237376778.1 | J9: ='SA30'!N18 -> 250671000 | K9: ='SA30'!O18 -> 246554000 | L9: ='SA30'!P18 -> 237981000
A10: Transfers and Subsidies - Capital | B10: 1 | C10: 49525001 | D10: 86764000 | E10: 104336000 | F10: 85575000 | G10: 144966965 | H10: 144966965 | I10: 139159000 | J10: ='SA30'!N23+'SA30'!N24 -> 67485000 | K10: ='SA30'!O23+'SA30'!O24 -> 84932000 | L10: ='SA30'!P23+'SA30'!P24 -> 74767000
A11: Interest | C11: 0 | D11: 833521.92 | E11: 276960.99 | F11: 3206212 | G11: 4706212 | H11: 4706212 | I11: 2937901.56 | J11: ='SA30'!N12+'SA30'!N13 -> 8063596 | K11: ='SA30'!O12+'SA30'!O13 -> 8434521 | L11: ='SA30'!P12+'SA30'!P13 -> 8814075
A12: Dividends | J12: ='SA30'!N14 -> 0 | K12: ='SA30'!O14 -> 0 | L12: ='SA30'!P14 -> 0
A13: Payments
A14: Suppliers and employees | C14: -208301549.6 | D14: -504192538.2 | E14: -561651213.9 | F14: -345634723 | G14: -338699878 | H14: -338699878 | I14: -480828951.9 | J14: =-('SA30'!N35+'SA30'!N36+'SA30'!N38+'SA30'!N39+'SA30'!N40+'SA30'!N41+'SA30'!N44+'SA30'!N50) -> -350217718 | K14: =-('SA30'!O35+'SA30'!O36+'SA30'!O38+'SA30'!O39+'SA30'!O40+'SA30'!O41+'SA30'!O44+'SA30'!O50) -> -364150623 | L14: =-('SA30'!P35+'SA30'!P36+'SA30'!P38+'SA30'!P39+'SA30'!P40+'SA30'!P41+'SA30'!P44+'SA30'!P50) -> -358972491
A15: Interest | J15: =-('SA30'!N37) -> 0 | K15: =-('SA30'!O37) -> 0 | L15: =-('SA30'!P37) -> 0
A16: Transfers and Subsidies | B16: 1 | J16: =-('SA30'!N42+'SA30'!N43) -> 0 | K16: =-('SA30'!O42+'SA30'!O43) -> 0 | L16: =-('SA30'!P42+'SA30'!P43) -> 0
A17: NET CASH FROM/(USED) OPERATING ACTIVITIES | C17: =SUM(C6:C12)+SUM(C14:C16) -> 115993773.9 | D17: =SUM(D6:D12)+SUM(D14:D16) -> -52470381.77 | E17: -132576007.9 | F17: 88727777 | G17: 154085118 | H17: 154085118 | I17: =SUM(I6:I12)+SUM(I14:I16) -> -30540622.13 | J17: 79658878 | K17: 87620992 | L17: 80310052
A18: CASH FLOWS FROM INVESTING ACTIVITIES
A19: Receipts
A20: Proceeds on disposal of PPE | C20: 0 | D20: 0 | E20: 0 | F20: 0 | G20: 2000000 | H20: 2000000 | I20: 0 | J20: ='SA30'!N25 -> 0 | K20: ='SA30'!O25 -> 0 | L20: ='SA30'!P25 -> 0
A22: Decrease (increase) in non-current receivables | J22: ='SA30'!N30 -> 0 | K22: ='SA30'!O30 -> 0 | L22: ='SA30'!P30 -> 0
A23: Decrease (increase) in non-current investments | C23: 0 | D23: 0 | E23: -4864603.53 | F23: 4864603.53 | G23: -9053553 | H23: -9053553 | I23: -6264910.17 | J23: ='SA30'!N31 -> -1655050 | K23: ='SA30'!O31 -> -492595 | L23: ='SA30'!P31 -> -504055
A24: Payments
A25: Capital assets | C25: -2871040 | D25: -8073757.71 | E25: -99909545.11 | F25: -86892000 | G25: -157328342 | H25: -157328342 | I25: -55452128.77 | J25: =-('SA30'!N48) -> -74908531 | K25: =-('SA30'!O48) -> -85153800 | L25: =-('SA30'!P48) -> -75067002
A26: NET CASH FROM/(USED) INVESTING ACTIVITIES | C26: =+C20+C22+C23+C25 -> -2871040 | D26: =+D20+D22+D23+D25 -> -8073757.71 | E26: -104774148.6 | F26: -82027396.47 | G26: -164381895 | H26: -164381895 | I26: -61717038.94 | J26: -76563581 | K26: -85646395 | L26: -75571057
A28: CASH FLOWS FROM FINANCING ACTIVITIES
A29: Receipts
A30: Short term loans | J30: ='SA30'!N26 -> 0 | K30: ='SA30'!O26 -> 0 | L30: ='SA30'!P26 -> 0
A31: Borrowing long term/refinancing | J31: ='SA30'!N27 -> 0 | K31: ='SA30'!O27 -> 0 | L31: ='SA30'!P27 -> 0
A32: Increase (decrease) in consumer deposits | J32: ='SA30'!N28 -> 0 | K32: ='SA30'!O28 -> 0 | L32: ='SA30'!P28 -> 0
A33: Payments
A34: Repayment of borrowing | J34: =-('SA30'!N49) -> 0 | K34: =-('SA30'!O49) -> 0 | L34: =-('SA30'!P49) -> 0
A35: NET CASH FROM/(USED) FINANCING ACTIVITIES | C35: =SUM(C30:C32)+C34 -> 0 | D35: =SUM(D30:D32)+D34 -> 0 | E35: 0 | F35: 0 | G35: 0 | H35: 0 | I35: 0 | J35: 0 | K35: 0 | L35: 0
A37: NET INCREASE/ (DECREASE) IN CASH HELD | C37: =C17+C26+C35 -> 113122733.9 | D37: -60544139.48 | E37: -237350156.5 | F37: 6700380.53 | G37: -10296777 | H37: -10296777 | I37: -92257661.07 | J37: 3095297 | K37: 1974597 | L37: 4738995
A38: Cash/cash equivalents at the year begin: | B38: 2 | C38: -41507760.39 | D38: -41330602.88 | E38: -84834550.5 | F38: -90261007 | G38: -102613235 | H38: -102613235 | I38: 0 | J38: ='SA30'!N54 -> 151657758 | K38: =J39 -> 154753055 | L38: =K39 -> 156727652
A39: Cash/cash equivalents at the year end: | B39: 2 | C39: =C37+C38 -> 71614973.55 | D39: =D37+D38 -> -101874742.4 | E39: =E37+E38 -> -322184707 | F39: =F37+F38 -> -83560626.47 | G39: -112910012 | H39: -112910012 | I39: -92257661.07 | J39: 154753055 | K39: 156727652 | L39: 161466647
A40: =head27a -> References
A41: 1. Local/District municipalities to include transfers from/to District/Local Municipalities
A42: 2. Cash equivalents includes investments with maturities of 3 months or less
A43: 3. The MTREF is populated directly from SA30.
A44: Total receipts | C44: =SUM(C6:C12)+SUM(C20:C22) -> 324295323.5 | D44: 451722156.4 | E44: 429075206 | F44: 434362500 | G44: 494784996 | H44: 494784996 | I44: 450288329.8 | J44: 429876596 | K44: 451771615 | L44: 439282543
A45: Total payments | C45: =SUM(C14:C16)+C25 -> -211172589.6 | D45: -512266295.9 | E45: -661560759 | F45: -432526723 | G45: -496028220 | H45: -496028220 | I45: -536281080.7 | J45: -425126249 | K45: -449304423 | L45: -434039493
C46: =C44+C45 -> 113122733.9 | D46: =D44+D45 -> -60544139.48 | E46: -232485553 | F46: 1835777 | G46: -1243224 | H46: -1243224 | I46: -85992750.9 | J46: 4750347 | K46: 2467192 | L46: 5243050
A47: Borrowings & investments & c.deposits | C47: =C23+C31+C32 -> 0 | D47: =D23+D31+D32 -> 0 | E47: -4864603.53 | F47: 4864603.53 | G47: -9053553 | H47: -9053553 | I47: -6264910.17 | J47: -1655050 | K47: -492595 | L47: -504055
A48: =A34 -> Repayment of borrowing | C48: =C34 -> 0 | D48: =D34 -> 0 | E48: 0 | F48: 0 | G48: 0 | H48: 0 | I48: =I34 -> 0 | J48: 0 | K48: 0 | L48: 0
C49: =C46+C47+C48 -> 113122733.9 | D49: =D46+D47+D48 -> -60544139.48 | E49: -237350156.5 | F49: 6700380.53 | G49: -10296777 | H49: -10296777 | I49: -92257661.07 | J49: 3095297 | K49: 1974597 | L49: 4738995
C50: =C37-C49 -> 0 | D50: 0 | E50: 0 | F50: 0 | G50: 0 | H50: 0 | I50: 0 | J50: 0 | K50: 0 | L50: 0

Sheet A8-ResRecon
A1: =muni&" - "&Approve8 -> LIM351 Blouberg - Table A8 Cash backed reserves/accumulated surplus reconciliation
A2: =desc -> Description | B2: =head27 -> Ref | C2: =head1b -> 2020/21 | D2: =head1A -> 2021/22 | E2: =Head1 -> 2022/23 | F2: =Head2 -> Current Year 2023/24 | J2: =Head3 -> 2024/25 Medium Term Revenue & Expenditure Framework
A3: R thousand | C3: =Head5 -> Audited Outcome | D3: =Head5 -> Audited Outcome | E3: =Head5 -> Audited Outcome | F3: =Head6 -> Original Budget | G3: =Head7 -> Adjusted Budget | H3: =Head8 -> Full Year Forecast | I3: =Head5b -> Pre-audit outcome | J3: =Head9 -> Budget Year 2024/25 | K3: =Head10 -> Budget Year +1 2025/26 | L3: =Head11 -> Budget Year +2 2026/27
A4: Cash and investments available
A5: =LEFT('A7-CFlow'!A39,37) -> Cash/cash equivalents at the year end | B5: 1 | C5: ='A7-CFlow'!C39 -> 71614973.55 | D5: ='A7-CFlow'!D39 -> -101874742.4 | E5: ='A7-CFlow'!E39 -> -322184707 | F5: ='A7-CFlow'!F39 -> -83560626.47 | G5: ='A7-CFlow'!G39 -> -112910012 | H5: ='A7-CFlow'!H39 -> -112910012 | I5: ='A7-CFlow'!I39 -> -92257661.07 | J5: ='A7-CFlow'!J39 -> 154753055 | K5: ='A7-CFlow'!K39 -> 156727652 | L5: ='A7-CFlow'!L39 -> 161466647
A6: Other current investments > 90 days | C6: ='A6-FinPos'!C6-'A6-FinPos'!C29-'A8-ResRecon'!C5 -> -70284370.67 | D6: ='A6-FinPos'!D6-'A6-FinPos'!D29-'A8-ResRecon'!D5 -> 191347266.2 | E6: ='A6-FinPos'!E6-'A6-FinPos'!E29-'A8-ResRecon'!E5 -> 424027380.1 | F6: ='A6-FinPos'!F6-'A6-FinPos'!F29-'A8-ResRecon'!F5 -> 175657410.5 | G6: ='A6-FinPos'!G6-'A6-FinPos'!G29-'A8-ResRecon'!G5 -> 226489943 | H6: ='A6-FinPos'!H6-'A6-FinPos'!H29-'A8-ResRecon'!H5 -> 226489943 | I6: ='A6-FinPos'!I6-'A6-FinPos'!I29-'A8-ResRecon'!I5 -> 286218530 | J6: ='A6-FinPos'!J6-'A6-FinPos'!J29-'A8-ResRecon'!J5 -> 49999632 | K6: ='A6-FinPos'!K6-'A6-FinPos'!K29-'A8-ResRecon'!K5 -> 54999850 | L6: ='A6-FinPos'!L6-'A6-FinPos'!L29-'A8-ResRecon'!L5 -> 60000447
A7: Non current Investments | B7: 1 | C7: ='A6-FinPos'!C15 -> 0 | D7: ='A6-FinPos'!D15 -> 0 | E7: ='A6-FinPos'!E15 -> 4864603.53 | F7: ='A6-FinPos'!F15 -> 0 | G7: ='A6-FinPos'!G15 -> 9053553 | H7: ='A6-FinPos'!H15 -> 9053553 | I7: ='A6-FinPos'!I15 -> 11129513.7 | J7: ='A6-FinPos'!J15 -> 10708603 | K7: ='A6-FinPos'!K15 -> 11201198 | L7: ='A6-FinPos'!L15 -> 11705253
A8: Cash and investments available: | C8: =SUM(C5:C7) -> 1330602.88 | D8: =SUM(D5:D7) -> 89472523.86 | E8: 106707276.7 | F8: 92096784 | G8: 122633484 | H8: 122633484 | I8: 205090382.7 | J8: 215461290 | K8: 222928700 | L8: 233172347
A10: Application of cash and investments
A11: Unspent conditional transfers | C11: ='SA3'!C141 -> 394098.18 | D11: ='SA3'!D141 -> 24315315.17 | E11: ='SA3'!E141 -> 20158138.51 | F11: ='SA3'!F141 -> 10000000 | G11: ='SA3'!G141 -> 5335394 | H11: ='SA3'!H141 -> 5335394 | I11: ='SA3'!I141 -> 141789909.2 | J11: ='SA3'!J141 -> 23000000 | K11: ='SA3'!K141 -> 15690000 | L11: ='SA3'!L141 -> 16396050
A12: Unspent borrowing
A13: Statutory requirements | B13: 2 | C13: -763566.17 | D13: -2641755.19 | E13: -388603.91 | F13: -11361432 | G13: 487552 | H13: 487552 | I13: 3155871.18 | J13: 2369340 | K13: 2478330 | L13: 2589855
A14: Other working capital requirements | B14: 3 | C14: =-C34 -> 11932538.59 | D14: =-D34 -> 59382062.78 | E14: 41818176.35 | F14: =-F34 -> -253269651 | G14: 24138697 | H14: 24138697 | I14: 42580680.37 | J14: -5110538 | K14: -5724298 | L14: -4656091
A15: Other provisions | C15: 0 | D15: 0 | E15: 0 | F15: 0 | G15: 0 | H15: 0 | I15: 2346109.89 | J15: 2200906 | K15: 2302147 | L15: 2405744
A16: Long term investments committed | B16: 4 | C16: =C44 -> 0 | D16: =D44 -> 0 | E16: 0 | F16: 0 | G16: 0 | H16: 0 | I16: 0 | J16: 0 | K16: 0 | L16: 0
A17: Reserves to be backed by cash/investments | B17: 5
A18: Total Application of cash and investments: | C18: =SUM(C11:C17) -> 11563070.6 | D18: =SUM(D11:D17) -> 81055622.76 | E18: 61587710.95 | F18: -254631083 | G18: 29961643 | H18: 29961643 | I18: 189872570.6 | J18: 22459708 | K18: 14746179 | L18: 16735558
A19: Surplus(shortfall) - Excluding Non-Current Creditors Trf to Debt Relief Benefits | C19: =C8-C18 -> -10232467.72 | D19: =D8-D18 -> 8416901.1 | E19: 45119565.72 | F19: 346727867 | G19: 92671841 | H19: 92671841 | I19: 15217812.04 | J19: 193001582 | K19: 208182521 | L19: 216436789
A20: Creditors transferred to Debt Relief - Non-Current portion | C20: ='SA3'!C155 -> 0 | D20: ='SA3'!D155 -> 0 | E20: ='SA3'!E155 -> 0 | F20: ='SA3'!F155 -> 0 | G20: ='SA3'!G155 -> 0 | H20: ='SA3'!H155 -> 0 | I20: ='SA3'!I155 -> 0 | J20: ='SA3'!J155 -> 0 | K20: ='SA3'!K155 -> 0 | L20: ='SA3'!L155 -> 0
A21: Surplus(shortfall) - Including Non-Current Creditors Trf to Debt Relief Benefits | C21: =SUM(C19:C20) -> -10232467.72 | D21: =SUM(D19:D20) -> 8416901.1 | E21: 45119565.72 | F21: 346727867 | G21: 92671841 | H21: 92671841 | I21: 15217812.04 | J21: 193001582 | K21: 208182521 | L21: 216436789
A22: =head27a -> References
A23: 1. Must reconcile with Budgeted Cash Flows
A24: 2. For example: VAT, taxation
A25: 3. Council approval for policy required - include sufficient working capital (e.g. allowing for a % of current debtors > 90 days as uncollectable)
A26: 4. For example: sinking fund requirements for borrowing
A27: 5. Council approval required for each reserve created and basis of cash backing of reserves - Total Reserves to be backed by cash/investments excl Valuation reserve
A30: Other working capital requirements
A31: Debtors | C31: =IF(ISERROR(ROUND(C37*C38,-3)),0,(ROUND(C37*C38,-3))) -> 37556000 | D31: =IF(ISERROR(ROUND(D37*D38,-3)),0,(ROUND(D37*D38,-3))) -> -8691000 | E31: 30202000 | F31: 290441000 | G31: 19262000 | H31: 19262000 | I31: 12413000 | J31: 40594000 | K31: 42840000 | L31: 43442000
A33: Creditors due | C33: ='SA3'!C139+'SA3'!C140 -> 49488538.59 | D33: ='SA3'!D139+'SA3'!D140 -> 50691062.78 | E33: ='SA3'!E139+'SA3'!E140 -> 72020176.35 | F33: ='SA3'!F139+'SA3'!F140 -> 37171349 | G33: ='SA3'!G139+'SA3'!G140 -> 43400697 | H33: ='SA3'!H139+'SA3'!H140 -> 43400697 | I33: ='SA3'!I139+'SA3'!I140 -> 54993680.37 | J33: ='SA3'!J139+'SA3'!J140 -> 35483462 | K33: ='SA3'!K139+'SA3'!K140 -> 37115702 | L33: ='SA3'!L139+'SA3'!L140 -> 38785909
A34: Total | C34: =C31-C33 -> -11932538.59 | D34: =D31-D33 -> -59382062.78 | E34: -41818176.35 | F34: 253269651 | G34: -24138697 | H34: -24138697 | I34: -42580680.37 | J34: 5110538 | K34: 5724298 | L34: 4656091
A36: Debtors collection assumptions
A37: Balance outstanding - debtors | C37: ='A6-FinPos'!C7+'A6-FinPos'!C8+'A6-FinPos'!C9+'A6-FinPos'!C22+'A6-FinPos'!C23 -> 30650297.78 | D37: ='A6-FinPos'!D7+'A6-FinPos'!D8+'A6-FinPos'!D9+'A6-FinPos'!D22+'A6-FinPos'!D23 -> -14276825.69 | E37: ='A6-FinPos'!E7+'A6-FinPos'!E8+'A6-FinPos'!E9+'A6-FinPos'!E22+'A6-FinPos'!E23 -> 31233801.08 | F37: ='A6-FinPos'!F7+'A6-FinPos'!F8+'A6-FinPos'!F9+'A6-FinPos'!F22+'A6-FinPos'!F23 -> 963717753 | G37: ='A6-FinPos'!G7+'A6-FinPos'!G8+'A6-FinPos'!G9+'A6-FinPos'!G22+'A6-FinPos'!G23 -> 66757956 | H37: ='A6-FinPos'!H7+'A6-FinPos'!H8+'A6-FinPos'!H9+'A6-FinPos'!H22+'A6-FinPos'!H23 -> 66757956 | I37: ='A6-FinPos'!I7+'A6-FinPos'!I8+'A6-FinPos'!I9+'A6-FinPos'!I22+'A6-FinPos'!I23 -> 88957555.08 | J37: ='A6-FinPos'!J7+'A6-FinPos'!J8+'A6-FinPos'!J9+'A6-FinPos'!J22+'A6-FinPos'!J23 -> 40577982 | K37: ='A6-FinPos'!K7+'A6-FinPos'!K8+'A6-FinPos'!K9+'A6-FinPos'!K22+'A6-FinPos'!K23 -> 41511986 | L37: ='A6-FinPos'!L7+'A6-FinPos'!L8+'A6-FinPos'!L9+'A6-FinPos'!L22+'A6-FinPos'!L23 -> 41836109
A38: Estimate of debtors collection rate | C38: =IF(ISERROR('SA10'!D10),0,('SA10'!D10)) -> 1.225314016 | D38: =IF(ISERROR('SA10'!E10),0,('SA10'!E10)) -> 0.6087326912 | E38: =IF(ISERROR('SA10'!F10),0,('SA10'!F10)) -> 0.966953978 | F38: =IF(ISERROR('SA10'!G10),0,('SA10'!G10)) -> 0.3013756012 | G38: =IF(ISERROR('SA10'!H10),0,('SA10'!H10)) -> 0.2885362567 | H38: =IF(ISERROR('SA10'!I10),0,('SA10'!I10)) -> 0.2885362567 | I38: =IF(ISERROR('SA10'!J10),0,('SA10'!J10)) -> 0.1395384862 | J38: =IF(ISERROR('SA10'!K10),0,('SA10'!K10)) -> 1.000384956 | K38: =IF(ISERROR('SA10'!L10),0,('SA10'!L10)) -> 1.031993773 | L38: =IF(ISERROR('SA10'!M10),0,('SA10'!M10)) -> 1.038381953
K41: `
A42: =A16 -> Long term investments committed
A43: Balance (Insert description; eg sinking fund)
C44: =SUM(C43:C43) -> 0 | D44: 0 | E44: 0 | F44: 0 | G44: 0 | H44: 0 | I44: 0 | J44: 0 | K44: 0 | L44: 0
A45: =A17 -> Reserves to be backed by cash/investments
A46: Housing Development Fund | C46: ='SA3'!C176 -> 0 | D46: ='SA3'!D176 -> 0 | E46: ='SA3'!E176 -> 0 | F46: ='SA3'!F176 -> 0 | G46: ='SA3'!G176 -> 0 | H46: ='SA3'!H176 -> 0 | I46: ='SA3'!I176 -> 0 | J46: ='SA3'!J176 -> 0 | K46: ='SA3'!K176 -> 0 | L46: ='SA3'!L176 -> 0
A47: Capital replacement | C47: ='SA3'!C177 -> 0 | D47: ='SA3'!D177 -> 0 | E47: ='SA3'!E177 -> 0 | F47: ='SA3'!F177 -> 0 | G47: ='SA3'!G177 -> 0 | H47: ='SA3'!H177 -> 0 | I47: ='SA3'!I177 -> 0 | J47: ='SA3'!J177 -> 0 | K47: ='SA3'!K177 -> 0 | L47: ='SA3'!L177 -> 0
A48: Self-insurance | C48: ='SA3'!C178 -> 0 | D48: ='SA3'!D178 -> 0 | E48: ='SA3'!E178 -> 0 | F48: ='SA3'!F178 -> 0 | G48: ='SA3'!G178 -> 0 | H48: ='SA3'!H178 -> 0 | I48: ='SA3'!I178 -> 0 | J48: ='SA3'!J178 -> 0 | K48: ='SA3'!K178 -> 0 | L48: ='SA3'!L178 -> 0
A49: Compensation for Occupational Injuries and Diseases
A50: Employee Benefit reserve
A51: Non-current Provisions reserve
A52: Valuation roll reserve
A53: Investment in associate account
A54: Capitalisation
B55: 6 | C55: =SUM(C46:C54) -> 0 | D55: =SUM(D46:D54) -> 0 | E55: 0 | F55: 0 | G55: 0 | H55: 0 | I55: 0 | J55: 0 | K55: 0 | L55: 0
A56: Note:
A57: 6. Above reserves do not include Revaluation reserve. Revaluation reserve not required to be cash backed

Sheet A9-Asset
A1: =muni&" - "&Approve9 -> LIM351 Blouberg - Table A9 Asset Management
A2: =desc -> Description | B2: =head27 -> Ref | C2: =head1b -> 2020/21 | D2: =head1A -> 2021/22 | E2: =Head1 -> 2022/23 | F2: =Head2 -> Current Year 2023/24 | I2: =Head3 -> 2024/25 Medium Term Revenue & Expenditure Framework
A3: R thousand | C3: =Head5 -> Audited Outcome | D3: =Head5 -> Audited Outcome | E3: =Head5 -> Audited Outcome | F3: =Head6 -> Original Budget | G3: =Head7 -> Adjusted Budget | H3: =Head8 -> Full Year Forecast | I3: =Head9 -> Budget Year 2024/25 | J3: =Head10 -> Budget Year +1 2025/26 | K3: =Head11 -> Budget Year +2 2026/27
A4: CAPITAL EXPENDITURE
A5: Total New Assets | B5: 1 | C5: =C15+C18+C19+C22+C25+C26+SUM(C29:C35)+C38 -> 5314125.83 | D5: =D15+D18+D19+D22+D25+D26+SUM(D29:D35)+D38 -> 7980700.07 | E5: 99909545.11 | F5: 86485000 | G5: 109041342 | H5: 109041342 | I5: 58092531 | J5: 67623000 | K5: 73078768
A6: Roads Infrastructure | C6: =SA34a!C7 -> 0 | D6: =SA34a!D7 -> 0 | E6: =SA34a!E7 -> 63248283.37 | F6: =SA34a!F7 -> 50531379 | G6: =SA34a!G7 -> 66436157 | H6: =SA34a!H7 -> 66436157 | I6: =SA34a!I7 -> 39776144 | J6: =SA34a!J7 -> 51507480 | K6: =SA34a!K7 -> 55934934
A7: Storm water Infrastructure | C7: =SA34a!C12 -> 0 | D7: =SA34a!D12 -> 0 | E7: =SA34a!E12 -> 0 | F7: =SA34a!F12 -> 0 | G7: =SA34a!G12 -> 0 | H7: =SA34a!H12 -> 0 | I7: =SA34a!I12 -> 0 | J7: =SA34a!J12 -> 0 | K7: =SA34a!K12 -> 0
A8: Electrical Infrastructure | C8: =SA34a!C16 -> 499578.39 | D8: =SA34a!D16 -> 483085.55 | E8: =SA34a!E16 -> 23891624.65 | F8: =SA34a!F16 -> 33000000 | G8: =SA34a!G16 -> 38976662 | H8: =SA34a!H16 -> 38976662 | I8: =SA34a!I16 -> 2073531 | J8: =SA34a!J16 -> 15000000 | K8: =SA34a!K16 -> 16000000
A9: Water Supply Infrastructure | C9: =SA34a!C26 -> 0 | D9: =SA34a!D26 -> 0 | E9: =SA34a!E26 -> 0 | F9: =SA34a!F26 -> 0 | G9: =SA34a!G26 -> 0 | H9: =SA34a!H26 -> 0 | I9: =SA34a!I26 -> 0 | J9: =SA34a!J26 -> 0 | K9: =SA34a!K26 -> 0
A10: Sanitation Infrastructure | C10: =SA34a!C37 -> 0 | D10: =SA34a!D37 -> 0 | E10: =SA34a!E37 -> 0 | F10: =SA34a!F37 -> 0 | G10: =SA34a!G37 -> 0 | H10: =SA34a!H37 -> 0 | I10: =SA34a!I37 -> 0 | J10: =SA34a!J37 -> 0 | K10: =SA34a!K37 -> 0
A11: Solid Waste Infrastructure | C11: =SA34a!C44 -> 0 | D11: =SA34a!D44 -> 0 | E11: =SA34a!E44 -> 0 | F11: =SA34a!F44 -> 0 | G11: =SA34a!G44 -> 0 | H11: =SA34a!H44 -> 0 | I11: =SA34a!I44 -> 0 | J11: =SA34a!J44 -> 0 | K11: =SA34a!K44 -> 0
A12: Rail Infrastructure | C12: =SA34a!C52 -> 0 | D12: =SA34a!D52 -> 0 | E12: =SA34a!E52 -> 0 | F12: =SA34a!F52 -> 0 | G12: =SA34a!G52 -> 0 | H12: =SA34a!H52 -> 0 | I12: =SA34a!I52 -> 0 | J12: =SA34a!J52 -> 0 | K12: =SA34a!K52 -> 0
A13: Coastal Infrastructure | C13: =SA34a!C62 -> 0 | D13: =SA34a!D62 -> 0 | E13: =SA34a!E62 -> 0 | F13: =SA34a!F62 -> 0 | G13: =SA34a!G62 -> 0 | H13: =SA34a!H62 -> 0 | I13: =SA34a!I62 -> 0 | J13: =SA34a!J62 -> 0 | K13: =SA34a!K62 -> 0
A14: Information and Communication Infrastructure | C14: =SA34a!C68 -> 0 | D14: =SA34a!D68 -> 0 | E14: =SA34a!E68 -> 0 | F14: =SA34a!F68 -> 0 | G14: =SA34a!G68 -> 0 | H14: =SA34a!H68 -> 0 | I14: =SA34a!I68 -> 0 | J14: =SA34a!J68 -> 0 | K14: =SA34a!K68 -> 0
A15: Infrastructure | C15: =SUM(C6:C14) -> 499578.39 | D15: =SUM(D6:D14) -> 483085.55 | E15: 87139908.02 | F15: 83531379 | G15: 105412819 | H15: 105412819 | I15: 41849675 | J15: 66507480 | K15: 71934934
A16: Community Facilities | C16: =SA34a!C75 -> 146560 | D16: =SA34a!D75 -> 0 | E16: =SA34a!E75 -> 9191881.51 | F16: =SA34a!F75 -> 2043621 | G16: =SA34a!G75 -> 3118523 | H16: =SA34a!H75 -> 3118523 | I16: =SA34a!I75 -> 0 | J16: =SA34a!J75 -> 0 | K16: =SA34a!K75 -> 0
A17: Sport and Recreation Facilities | C17: =SA34a!C98 -> 0 | D17: =SA34a!D98 -> 0 | E17: =SA34a!E98 -> 3271170.58 | F17: =SA34a!F98 -> 0 | G17: =SA34a!G98 -> 0 | H17: =SA34a!H98 -> 0 | I17: =SA34a!I98 -> 0 | J17: =SA34a!J98 -> 0 | K17: =SA34a!K98 -> 0
A18: Community Assets | C18: =SUM(C16:C17) -> 146560 | D18: =SUM(D16:D17) -> 0 | E18: 12463052.09 | F18: 2043621 | G18: 3118523 | H18: 3118523 | I18: 0 | J18: 0 | K18: 0
A19: Heritage Assets | C19: =SA34a!C103 -> 0 | D19: =SA34a!D103 -> 0 | E19: =SA34a!E103 -> 0 | F19: =SA34a!F103 -> 0 | G19: =SA34a!G103 -> 0 | H19: =SA34a!H103 -> 0 | I19: =SA34a!I103 -> 0 | J19: =SA34a!J103 -> 0 | K19: =SA34a!K103 -> 0
A20: Revenue Generating | C20: =SA34a!C111 -> 0 | D20: =SA34a!D111 -> 0 | E20: =SA34a!E111 -> 0 | F20: =SA34a!F111 -> 0 | G20: =SA34a!G111 -> 0 | H20: =SA34a!H111 -> 0 | I20: =SA34a!I111 -> 0 | J20: =SA34a!J111 -> 0 | K20: =SA34a!K111 -> 0
A21: Non-revenue Generating | C21: =SA34a!C114 -> 0 | D21: =SA34a!D114 -> 0 | E21: =SA34a!E114 -> 0 | F21: =SA34a!F114 -> 0 | G21: =SA34a!G114 -> 0 | H21: =SA34a!H114 -> 0 | I21: =SA34a!I114 -> 0 | J21: =SA34a!J114 -> 0 | K21: =SA34a!K114 -> 0
A22: Investment properties | C22: =SUM(C20:C21) -> 0 | D22: =SUM(D20:D21) -> 0 | E22: 0 | F22: 0 | G22: 0 | H22: 0 | I22: 0 | J22: 0 | K22: 0
A23: Operational Buildings | C23: =SA34a!C119 -> 705255.18 | D23: =SA34a!D119 -> -0.35 | E23: =SA34a!E119 -> 0 | F23: =SA34a!F119 -> 200000 | G23: =SA34a!G119 -> 200000 | H23: =SA34a!H119 -> 200000 | I23: =SA34a!I119 -> 0 | J23: =SA34a!J119 -> 0 | K23: =SA34a!K119 -> 0
A24: Housing | C24: =SA34a!C131 -> 0 | D24: =SA34a!D131 -> 0 | E24: =SA34a!E131 -> 0 | F24: =SA34a!F131 -> 0 | G24: =SA34a!G131 -> 0 | H24: =SA34a!H131 -> 0 | I24: =SA34a!I131 -> 0 | J24: =SA34a!J131 -> 0 | K24: =SA34a!K131 -> 0
A25: Other Assets | C25: =SUM(C23:C24) -> 705255.18 | D25: =SUM(D23:D24) -> -0.35 | E25: 0 | F25: 200000 | G25: 200000 | H25: 200000 | I25: 0 | J25: 0 | K25: 0
A26: Biological or Cultivated Assets | C26: =SA34a!C136 -> 0 | D26: =SA34a!D136 -> 0 | E26: =SA34a!E136 -> 0 | F26: =SA34a!F136 -> 0 | G26: =SA34a!G136 -> 0 | H26: =SA34a!H136 -> 0 | I26: =SA34a!I136 -> 0 | J26: =SA34a!J136 -> 0 | K26: =SA34a!K136 -> 0
A27: Servitudes | C27: =SA34a!C140 -> 0 | D27: =SA34a!D140 -> 0 | E27: =SA34a!E140 -> 0 | F27: =SA34a!F140 -> 0 | G27: =SA34a!G140 -> 0 | H27: =SA34a!H140 -> 0 | I27: =SA34a!I140 -> 0 | J27: =SA34a!J140 -> 0 | K27: =SA34a!K140 -> 0
A28: Licences and Rights | C28: =SA34a!C141 -> 0 | D28: =SA34a!D141 -> 0 | E28: =SA34a!E141 -> 0 | F28: =SA34a!F141 -> 0 | G28: =SA34a!G141 -> 0 | H28: =SA34a!H141 -> 0 | I28: =SA34a!I141 -> 600000 | J28: =SA34a!J141 -> 0 | K28: =SA34a!K141 -> 0
A29: Intangible Assets | C29: =SUM(C27:C28) -> 0 | D29: =SUM(D27:D28) -> 0 | E29: 0 | F29: 0 | G29: 0 | H29: 0 | I29: 600000 | J29: 0 | K29: 0
A30: Computer Equipment | C30: =SA34a!C149 -> 1168215.97 | D30: =SA34a!D149 -> 1381760.19 | E30: =SA34a!E149 -> 108585 | F30: =SA34a!F149 -> 210000 | G30: =SA34a!G149 -> 210000 | H30: =SA34a!H149 -> 210000 | I30: =SA34a!I149 -> 700000 | J30: =SA34a!J149 -> 200000 | K30: =SA34a!K149 -> 200000
A31: Furniture and Office Equipment | C31: =SA34a!C152 -> 106746.11 | D31: =SA34a!D152 -> 63581.68 | E31: =SA34a!E152 -> 0 | F31: =SA34a!F152 -> 100000 | G31: =SA34a!G152 -> 0 | H31: =SA34a!H152 -> 0 | I31: =SA34a!I152 -> 1088451 | J31: =SA34a!J152 -> 915520 | K31: =SA34a!K152 -> 943834
A32: Machinery and Equipment | C32: =SA34a!C155 -> 2066068.61 | D32: =SA34a!D155 -> 298895 | E32: =SA34a!E155 -> 198000 | F32: =SA34a!F155 -> 400000 | G32: =SA34a!G155 -> 100000 | H32: =SA34a!H155 -> 100000 | I32: =SA34a!I155 -> 150000 | J32: =SA34a!J155 -> 0 | K32: =SA34a!K155 -> 0
A33: Transport Assets | C33: =SA34a!C158 -> 621701.57 | D33: =SA34a!D158 -> 5753378 | E33: =SA34a!E158 -> 0 | F33: =SA34a!F158 -> 0 | G33: =SA34a!G158 -> 0 | H33: =SA34a!H158 -> 0 | I33: =SA34a!I158 -> 13704405 | J33: =SA34a!J158 -> 0 | K33: =SA34a!K158 -> 0
A34: Land | C34: =SA34a!C161 -> 0 | D34: =SA34a!D161 -> 0 | E34: =SA34a!E161 -> 0 | F34: =SA34a!F161 -> 0 | G34: =SA34a!G161 -> 0 | H34: =SA34a!H161 -> 0 | I34: =SA34a!I161 -> 0 | J34: =SA34a!J161 -> 0 | K34: =SA34a!K161 -> 0
A35: Zoo's, Marine and Non-biological Animals | C35: =SA34a!C164 -> 0 | D35: =SA34a!D164 -> 0 | E35: =SA34a!E164 -> 0 | F35: =SA34a!F164 -> 0 | G35: =SA34a!G164 -> 0 | H35: =SA34a!H164 -> 0 | I35: =SA34a!I164 -> 0 | J35: =SA34a!J164 -> 0 | K35: =SA34a!K164 -> 0
A36: Mature | C36: =SA34a!C168 -> 0 | D36: =SA34a!D168 -> 0 | E36: =SA34a!E168 -> 0 | F36: =SA34a!F168 -> 0 | G36: =SA34a!G168 -> 0 | H36: =SA34a!H168 -> 0 | I36: =SA34a!I168 -> 0 | J36: =SA34a!J168 -> 0 | K36: =SA34a!K168 -> 0
A37: Immature | C37: =SA34a!C171 -> 0 | D37: =SA34a!D171 -> 0 | E37: =SA34a!E171 -> 0 | F37: =SA34a!F171 -> 0 | G37: =SA34a!G171 -> 0 | H37: =SA34a!H171 -> 0 | I37: =SA34a!I171 -> 0 | J37: =SA34a!J171 -> 0 | K37: =SA34a!K171 -> 0
A38: Living Resources | C38: =SUM(C36:C37) -> 0 | D38: =SUM(D36:D37) -> 0 | E38: 0 | F38: 0 | G38: 0 | H38: 0 | I38: 0 | J38: 0 | K38: 0
A40: Total Renewal of Existing Assets | B40: 2 | C40: =C50+C53+C54+C57+C60+C61+SUM(C64:C70)+C73 -> 0 | D40: =D50+D53+D54+D57+D60+D61+SUM(D64:D70)+D73 -> 0 | E40: 0 | F40: 407000 | G40: 48287000 | H40: 48287000 | I40: 16616000 | J40: 17530800 | K40: 1846000
A41: Roads Infrastructure | C41: =SA34b!C7 -> 0 | D41: =SA34b!D7 -> 0 | E41: =SA34b!E7 -> 0 | F41: =SA34b!F7 -> 0 | G41: =SA34b!G7 -> 47100000 | H41: =SA34b!H7 -> 47100000 | I41: =SA34b!I7 -> 15716000 | J41: =SA34b!J7 -> 15717000 | K41: =SA34b!K7 -> 0
A42: Storm water Infrastructure | C42: =SA34b!C12 -> 0 | D42: =SA34b!D12 -> 0 | E42: =SA34b!E12 -> 0 | F42: =SA34b!F12 -> 0 | G42: =SA34b!G12 -> 0 | H42: =SA34b!H12 -> 0 | I42: =SA34b!I12 -> 0 | J42: =SA34b!J12 -> 0 | K42: =SA34b!K12 -> 0
A43: Electrical Infrastructure | C43: =SA34b!C16 -> 0 | D43: =SA34b!D16 -> 0 | E43: =SA34b!E16 -> 0 | F43: =SA34b!F16 -> 407000 | G43: =SA34b!G16 -> 1187000 | H43: =SA34b!H16 -> 1187000 | I43: =SA34b!I16 -> 900000 | J43: =SA34b!J16 -> 1813800 | K43: =SA34b!K16 -> 1846000
A44: Water Supply Infrastructure | C44: =SA34b!C26 -> 0 | D44: =SA34b!D26 -> 0 | E44: =SA34b!E26 -> 0 | F44: =SA34b!F26 -> 0 | G44: =SA34b!G26 -> 0 | H44: =SA34b!H26 -> 0 | I44: =SA34b!I26 -> 0 | J44: =SA34b!J26 -> 0 | K44: =SA34b!K26 -> 0
A45: Sanitation Infrastructure | C45: =SA34b!C37 -> 0 | D45: =SA34b!D37 -> 0 | E45: =SA34b!E37 -> 0 | F45: =SA34b!F37 -> 0 | G45: =SA34b!G37 -> 0 | H45: =SA34b!H37 -> 0 | I45: =SA34b!I37 -> 0 | J45: =SA34b!J37 -> 0 | K45: =SA34b!K37 -> 0
A46: Solid Waste Infrastructure | C46: =SA34b!C44 -> 0 | D46: =SA34b!D44 -> 0 | E46: =SA34b!E44 -> 0 | F46: =SA34b!F44 -> 0 | G46: =SA34b!G44 -> 0 | H46: =SA34b!H44 -> 0 | I46: =SA34b!I44 -> 0 | J46: =SA34b!J44 -> 0 | K46: =SA34b!K44 -> 0
A47: Rail Infrastructure | C47: =SA34b!C52 -> 0 | D47: =SA34b!D52 -> 0 | E47: =SA34b!E52 -> 0 | F47: =SA34b!F52 -> 0 | G47: =SA34b!G52 -> 0 | H47: =SA34b!H52 -> 0 | I47: =SA34b!I52 -> 0 | J47: =SA34b!J52 -> 0 | K47: =SA34b!K52 -> 0
A48: Coastal Infrastructure | C48: =SA34b!C62 -> 0 | D48: =SA34b!D62 -> 0 | E48: =SA34b!E62 -> 0 | F48: =SA34b!F62 -> 0 | G48: =SA34b!G62 -> 0 | H48: =SA34b!H62 -> 0 | I48: =SA34b!I62 -> 0 | J48: =SA34b!J62 -> 0 | K48: =SA34b!K62 -> 0
A49: Information and Communication Infrastructure | C49: =SA34b!C68 -> 0 | D49: =SA34b!D68 -> 0 | E49: =SA34b!E68 -> 0 | F49: =SA34b!F68 -> 0 | G49: =SA34b!G68 -> 0 | H49: =SA34b!H68 -> 0 | I49: =SA34b!I68 -> 0 | J49: =SA34b!J68 -> 0 | K49: =SA34b!K68 -> 0
A50: Infrastructure | C50: =SUM(C41:C49) -> 0 | D50: =SUM(D41:D49) -> 0 | E50: 0 | F50: 407000 | G50: 48287000 | H50: 48287000 | I50: 16616000 | J50: 17530800 | K50: 1846000
A51: Community Facilities | C51: =SA34b!C75 -> 0 | D51: =SA34b!D75 -> 0 | E51: =SA34b!E75 -> 0 | F51: =SA34b!F75 -> 0 | G51: =SA34b!G75 -> 0 | H51: =SA34b!H75 -> 0 | I51: =SA34b!I75 -> 0 | J51: =SA34b!J75 -> 0 | K51: =SA34b!K75 -> 0
A52: Sport and Recreation Facilities | C52: =SA34b!C98 -> 0 | D52: =SA34b!D98 -> 0 | E52: =SA34b!E98 -> 0 | F52: =SA34b!F98 -> 0 | G52: =SA34b!G98 -> 0 | H52: =SA34b!H98 -> 0 | I52: =SA34b!I98 -> 0 | J52: =SA34b!J98 -> 0 | K52: =SA34b!K98 -> 0
A53: Community Assets | C53: =SUM(C51:C52) -> 0 | D53: =SUM(D51:D52) -> 0 | E53: 0 | F53: 0 | G53: 0 | H53: 0 | I53: 0 | J53: 0 | K53: 0
A54: Heritage Assets | C54: =SA34b!C103 -> 0 | D54: =SA34b!D103 -> 0 | E54: =SA34b!E103 -> 0 | F54: =SA34b!F103 -> 0 | G54: =SA34b!G103 -> 0 | H54: =SA34b!H103 -> 0 | I54: =SA34b!I103 -> 0 | J54: =SA34b!J103 -> 0 | K54: =SA34b!K103 -> 0
A55: Revenue Generating | C55: =SA34b!C111 -> 0 | D55: =SA34b!D111 -> 0 | E55: =SA34b!E111 -> 0 | F55: =SA34b!F111 -> 0 | G55: =SA34b!G111 -> 0 | H55: =SA34b!H111 -> 0 | I55: =SA34b!I111 -> 0 | J55: =SA34b!J111 -> 0 | K55: =SA34b!K111 -> 0
A56: Non-revenue Generating | C56: =SA34b!C114 -> 0 | D56: =SA34b!D114 -> 0 | E56: =SA34b!E114 -> 0 | F56: =SA34b!F114 -> 0 | G56: =SA34b!G114 -> 0 | H56: =SA34b!H114 -> 0 | I56: =SA34b!I114 -> 0 | J56: =SA34b!J114 -> 0 | K56: =SA34b!K114 -> 0
A57: Investment properties | C57: =SUM(C55:C56) -> 0 | D57: =SUM(D55:D56) -> 0 | E57: 0 | F57: 0 | G57: 0 | H57: 0 | I57: 0 | J57: 0 | K57: 0
A58: Operational Buildings | C58: =SA34b!C119 -> 0 | D58: =SA34b!D119 -> 0 | E58: =SA34b!E119 -> 0 | F58: =SA34b!F119 -> 0 | G58: =SA34b!G119 -> 0 | H58: =SA34b!H119 -> 0 | I58: =SA34b!I119 -> 0 | J58: =SA34b!J119 -> 0 | K58: =SA34b!K119 -> 0
A59: Housing | C59: =SA34b!C131 -> 0 | D59: =SA34b!D131 -> 0 | E59: =SA34b!E131 -> 0 | F59: =SA34b!F131 -> 0 | G59: =SA34b!G131 -> 0 | H59: =SA34b!H131 -> 0 | I59: =SA34b!I131 -> 0 | J59: =SA34b!J131 -> 0 | K59: =SA34b!K131 -> 0
A60: Other Assets | C60: =SUM(C58:C59) -> 0 | D60: =SUM(D58:D59) -> 0 | E60: 0 | F60: 0 | G60: 0 | H60: 0 | I60: 0 | J60: 0 | K60: 0
A61: Biological or Cultivated Assets | C61: =SA34b!C136 -> 0 | D61: =SA34b!D136 -> 0 | E61: =SA34b!E136 -> 0 | F61: =SA34b!F136 -> 0 | G61: =SA34b!G136 -> 0 | H61: =SA34b!H136 -> 0 | I61: =SA34b!I136 -> 0 | J61: =SA34b!J136 -> 0 | K61: =SA34b!K136 -> 0
A62: Servitudes | C62: =SA34b!C140 -> 0 | D62: =SA34b!D140 -> 0 | E62: =SA34b!E140 -> 0 | F62: =SA34b!F140 -> 0 | G62: =SA34b!G140 -> 0 | H62: =SA34b!H140 -> 0 | I62: =SA34b!I140 -> 0 | J62: =SA34b!J140 -> 0 | K62: =SA34b!K140 -> 0
A63: Licences and Rights | C63: =SA34b!C141 -> 0 | D63: =SA34b!D141 -> 0 | E63: =SA34b!E141 -> 0 | F63: =SA34b!F141 -> 0 | G63: =SA34b!G141 -> 0 | H63: =SA34b!H141 -> 0 | I63: =SA34b!I141 -> 0 | J63: =SA34b!J141 -> 0 | K63: =SA34b!K141 -> 0
A64: Intangible Assets | C64: =SUM(C62:C63) -> 0 | D64: =SUM(D62:D63) -> 0 | E64: 0 | F64: 0 | G64: 0 | H64: 0 | I64: 0 | J64: 0 | K64: 0
A65: Computer Equipment | C65: =SA34b!C149 -> 0 | D65: =SA34b!D149 -> 0 | E65: =SA34b!E149 -> 0 | F65: =SA34b!F149 -> 0 | G65: =SA34b!G149 -> 0 | H65: =SA34b!H149 -> 0 | I65: =SA34b!I149 -> 0 | J65: =SA34b!J149 -> 0 | K65: =SA34b!K149 -> 0
A66: Furniture and Office Equipment | C66: =SA34b!C152 -> 0 | D66: =SA34b!D152 -> 0 | E66: =SA34b!E152 -> 0 | F66: =SA34b!F152 -> 0 | G66: =SA34b!G152 -> 0 | H66: =SA34b!H152 -> 0 | I66: =SA34b!I152 -> 0 | J66: =SA34b!J152 -> 0 | K66: =SA34b!K152 -> 0
A67: Machinery and Equipment | C67: =SA34b!C155 -> 0 | D67: =SA34b!D155 -> 0 | E67: =SA34b!E155 -> 0 | F67: =SA34b!F155 -> 0 | G67: =SA34b!G155 -> 0 | H67: =SA34b!H155 -> 0 | I67: =SA34b!I155 -> 0 | J67: =SA34b!J155 -> 0 | K67: =SA34b!K155 -> 0
A68: Transport Assets | C68: =SA34b!C158 -> 0 | D68: =SA34b!D158 -> 0 | E68: =SA34b!E158 -> 0 | F68: =SA34b!F158 -> 0 | G68: =SA34b!G158 -> 0 | H68: =SA34b!H158 -> 0 | I68: =SA34b!I158 -> 0 | J68: =SA34b!J158 -> 0 | K68: =SA34b!K158 -> 0
A69: Land | C69: =SA34b!C161 -> 0 | D69: =SA34b!D161 -> 0 | E69: =SA34b!E161 -> 0 | F69: =SA34b!F161 -> 0 | G69: =SA34b!G161 -> 0 | H69: =SA34b!H161 -> 0 | I69: =SA34b!I161 -> 0 | J69: =SA34b!J161 -> 0 | K69: =SA34b!K161 -> 0
A70: Zoo's, Marine and Non-biological Animals | C70: =SA34b!C164 -> 0 | D70: =SA34b!D164 -> 0 | E70: =SA34b!E164 -> 0 | F70: =SA34b!F164 -> 0 | G70: =SA34b!G164 -> 0 | H70: =SA34b!H164 -> 0 | I70: =SA34b!I164 -> 0 | J70: =SA34b!J164 -> 0 | K70: =SA34b!K164 -> 0
A71: Mature | C71: =SA34b!C168 -> 0 | D71: =SA34b!D168 -> 0 | E71: =SA34b!E168 -> 0 | F71: =SA34b!F168 -> 0 | G71: =SA34b!G168 -> 0 | H71: =SA34b!H168 -> 0 | I71: =SA34b!I168 -> 0 | J71: =SA34b!J168 -> 0 | K71: =SA34b!K168 -> 0
A72: Immature | C72: =SA34b!C171 -> 0 | D72: =SA34b!D171 -> 0 | E72: =SA34b!E171 -> 0 | F72: =SA34b!F171 -> 0 | G72: =SA34b!G171 -> 0 | H72: =SA34b!H171 -> 0 | I72: =SA34b!I171 -> 0 | J72: =SA34b!J171 -> 0 | K72: =SA34b!K171 -> 0
A73: Living Resources | C73: =SUM(C71:C72) -> 0 | D73: 0 | E73: 0 | F73: 0 | G73: 0 | H73: 0 | I73: 0 | J73: 0 | K73: 0
A75: Total Upgrading of Existing Assets | B75: 6 | C75: =C85+C88+C89+C92+C95+C96+SUM(C99:C105)+C108 -> 130220 | D75: =D85+D88+D89+D92+D95+D96+SUM(D99:D105)+D108 -> 93057.64 | E75: 0 | F75: 0 | G75: 0 | H75: 0 | I75: 200000 | J75: 0 | K75: 142234
A76: Roads Infrastructure | C76: =SA34e!C7 -> 0 | D76: =SA34e!D7 -> 0 | E76: =SA34e!E7 -> 0 | F76: =SA34e!F7 -> 0 | G76: =SA34e!G7 -> 0 | H76: =SA34e!H7 -> 0 | I76: =SA34e!I7 -> 0 | J76: =SA34e!J7 -> 0 | K76: =SA34e!K7 -> 0
A77: Storm water Infrastructure | C77: =SA34e!C12 -> 0 | D77: =SA34e!D12 -> 0 | E77: =SA34e!E12 -> 0 | F77: =SA34e!F12 -> 0 | G77: =SA34e!G12 -> 0 | H77: =SA34e!H12 -> 0 | I77: =SA34e!I12 -> 0 | J77: =SA34e!J12 -> 0 | K77: =SA34e!K12 -> 0
A78: Electrical Infrastructure | C78: =SA34e!C16 -> 0 | D78: =SA34e!D16 -> 0 | E78: =SA34e!E16 -> 0 | F78: =SA34e!F16 -> 0 | G78: =SA34e!G16 -> 0 | H78: =SA34e!H16 -> 0 | I78: =SA34e!I16 -> 0 | J78: =SA34e!J16 -> 0 | K78: =SA34e!K16 -> 0
A79: Water Supply Infrastructure | C79: =SA34e!C26 -> 0 | D79: =SA34e!D26 -> 0 | E79: =SA34e!E26 -> 0 | F79: =SA34e!F26 -> 0 | G79: =SA34e!G26 -> 0 | H79: =SA34e!H26 -> 0 | I79: =SA34e!I26 -> 0 | J79: =SA34e!J26 -> 0 | K79: =SA34e!K26 -> 0
A80: Sanitation Infrastructure | C80: =SA34e!C37 -> 0 | D80: =SA34e!D37 -> 0 | E80: =SA34e!E37 -> 0 | F80: =SA34e!F37 -> 0 | G80: =SA34e!G37 -> 0 | H80: =SA34e!H37 -> 0 | I80: =SA34e!I37 -> 0 | J80: =SA34e!J37 -> 0 | K80: =SA34e!K37 -> 0
A81: Solid Waste Infrastructure | C81: =SA34e!C44 -> 0 | D81: =SA34e!D44 -> 0 | E81: =SA34e!E44 -> 0 | F81: =SA34e!F44 -> 0 | G81: =SA34e!G44 -> 0 | H81: =SA34e!H44 -> 0 | I81: =SA34e!I44 -> 0 | J81: =SA34e!J44 -> 0 | K81: =SA34e!K44 -> 0
A82: Rail Infrastructure | C82: =SA34e!C52 -> 0 | D82: =SA34e!D52 -> 0 | E82: =SA34e!E52 -> 0 | F82: =SA34e!F52 -> 0 | G82: =SA34e!G52 -> 0 | H82: =SA34e!H52 -> 0 | I82: =SA34e!I52 -> 0 | J82: =SA34e!J52 -> 0 | K82: =SA34e!K52 -> 0
A83: Coastal Infrastructure | C83: =SA34e!C62 -> 0 | D83: =SA34e!D62 -> 0 | E83: =SA34e!E62 -> 0 | F83: =SA34e!F62 -> 0 | G83: =SA34e!G62 -> 0 | H83: =SA34e!H62 -> 0 | I83: =SA34e!I62 -> 0 | J83: =SA34e!J62 -> 0 | K83: =SA34e!K62 -> 0
A84: Information and Communication Infrastructure | C84: =SA34e!C68 -> 0 | D84: =SA34e!D68 -> 0 | E84: =SA34e!E68 -> 0 | F84: =SA34e!F68 -> 0 | G84: =SA34e!G68 -> 0 | H84: =SA34e!H68 -> 0 | I84: =SA34e!I68 -> 0 | J84: =SA34e!J68 -> 0 | K84: =SA34e!K68 -> 0
A85: Infrastructure | C85: =SUM(C76:C84) -> 0 | D85: 0 | E85: 0 | F85: 0 | G85: 0 | H85: 0 | I85: 0 | J85: 0 | K85: 0
A86: Community Facilities | C86: =SA34e!C75 -> 0 | D86: =SA34e!D75 -> 0 | E86: =SA34e!E75 -> 0 | F86: =SA34e!F75 -> 0 | G86: =SA34e!G75 -> 0 | H86: =SA34e!H75 -> 0 | I86: =SA34e!I75 -> 0 | J86: =SA34e!J75 -> 0 | K86: =SA34e!K75 -> 0
A87: Sport and Recreation Facilities | C87: =SA34e!C98 -> 0 | D87: =SA34e!D98 -> 0 | E87: =SA34e!E98 -> 0 | F87: =SA34e!F98 -> 0 | G87: =SA34e!G98 -> 0 | H87: =SA34e!H98 -> 0 | I87: =SA34e!I98 -> 0 | J87: =SA34e!J98 -> 0 | K87: =SA34e!K98 -> 0
A88: Community Assets | C88: =SUM(C86:C87) -> 0 | D88: 0 | E88: 0 | F88: 0 | G88: 0 | H88: 0 | I88: 0 | J88: 0 | K88: 0
A89: Heritage Assets | C89: =SA34e!C103 -> 0 | D89: =SA34e!D103 -> 0 | E89: =SA34e!E103 -> 0 | F89: =SA34e!F103 -> 0 | G89: =SA34e!G103 -> 0 | H89: =SA34e!H103 -> 0 | I89: =SA34e!I103 -> 0 | J89: =SA34e!J103 -> 0 | K89: =SA34e!K103 -> 0
A90: Revenue Generating | C90: =SA34e!C111 -> 0 | D90: =SA34e!D111 -> 0 | E90: =SA34e!E111 -> 0 | F90: =SA34e!F111 -> 0 | G90: =SA34e!G111 -> 0 | H90: =SA34e!H111 -> 0 | I90: =SA34e!I111 -> 0 | J90: =SA34e!J111 -> 0 | K90: =SA34e!K111 -> 0
A91: Non-revenue Generating | C91: =SA34e!C114 -> 0 | D91: =SA34e!D114 -> 0 | E91: =SA34e!E114 -> 0 | F91: =SA34e!F114 -> 0 | G91: =SA34e!G114 -> 0 | H91: =SA34e!H114 -> 0 | I91: =SA34e!I114 -> 0 | J91: =SA34e!J114 -> 0 | K91: =SA34e!K114 -> 0
A92: Investment properties | C92: =SUM(C90:C91) -> 0 | D92: 0 | E92: 0 | F92: 0 | G92: 0 | H92: 0 | I92: 0 | J92: 0 | K92: 0
A93: Operational Buildings | C93: =SA34e!C119 -> 0 | D93: =SA34e!D119 -> 0 | E93: =SA34e!E119 -> 0 | F93: =SA34e!F119 -> 0 | G93: =SA34e!G119 -> 0 | H93: =SA34e!H119 -> 0 | I93: =SA34e!I119 -> 0 | J93: =SA34e!J119 -> 0 | K93: =SA34e!K119 -> 0
A94: Housing | C94: =SA34e!C131 -> 0 | D94: =SA34e!D131 -> 0 | E94: =SA34e!E131 -> 0 | F94: =SA34e!F131 -> 0 | G94: =SA34e!G131 -> 0 | H94: =SA34e!H131 -> 0 | I94: =SA34e!I131 -> 0 | J94: =SA34e!J131 -> 0 | K94: =SA34e!K131 -> 0
A95: Other Assets | C95: =SUM(C93:C94) -> 0 | D95: 0 | E95: 0 | F95: 0 | G95: 0 | H95: 0 | I95: 0 | J95: 0 | K95: 0
A96: Biological or Cultivated Assets | C96: =SA34e!C136 -> 0 | D96: =SA34e!D136 -> 0 | E96: =SA34e!E136 -> 0 | F96: =SA34e!F136 -> 0 | G96: =SA34e!G136 -> 0 | H96: =SA34e!H136 -> 0 | I96: =SA34e!I136 -> 0 | J96: =SA34e!J136 -> 0 | K96: =SA34e!K136 -> 0
A97: Servitudes | C97: =SA34e!C140 -> 0 | D97: =SA34e!D140 -> 0 | E97: =SA34e!E140 -> 0 | F97: =SA34e!F140 -> 0 | G97: =SA34e!G140 -> 0 | H97: =SA34e!H140 -> 0 | I97: =SA34e!I140 -> 0 | J97: =SA34e!J140 -> 0 | K97: =SA34e!K140 -> 0
A98: Licences and Rights | C98: =SA34e!C141 -> 0 | D98: =SA34e!D141 -> 0 | E98: =SA34e!E141 -> 0 | F98: =SA34e!F141 -> 0 | G98: =SA34e!G141 -> 0 | H98: =SA34e!H141 -> 0 | I98: =SA34e!I141 -> 0 | J98: =SA34e!J141 -> 0 | K98: =SA34e!K141 -> 0
A99: Intangible Assets | C99: =SUM(C97:C98) -> 0 | D99: 0 | E99: 0 | F99: 0 | G99: 0 | H99: 0 | I99: 0 | J99: 0 | K99: 0
A100: Computer Equipment | C100: =SA34e!C149 -> 0 | D100: =SA34e!D149 -> 0 | E100: =SA34e!E149 -> 0 | F100: =SA34e!F149 -> 0 | G100: =SA34e!G149 -> 0 | H100: =SA34e!H149 -> 0 | I100: =SA34e!I149 -> 0 | J100: =SA34e!J149 -> 0 | K100: =SA34e!K149 -> 0
A101: Furniture and Office Equipment | C101: =SA34e!C152 -> 0 | D101: =SA34e!D152 -> 0 | E101: =SA34e!E152 -> 0 | F101: =SA34e!F152 -> 0 | G101: =SA34e!G152 -> 0 | H101: =SA34e!H152 -> 0 | I101: =SA34e!I152 -> 0 | J101: =SA34e!J152 -> 0 | K101: =SA34e!K152 -> 0
A102: Machinery and Equipment | C102: =SA34e!C155 -> 130220 | D102: =SA34e!D155 -> 93057.64 | E102: =SA34e!E155 -> 0 | F102: =SA34e!F155 -> 0 | G102: =SA34e!G155 -> 0 | H102: =SA34e!H155 -> 0 | I102: =SA34e!I155 -> 200000 | J102: =SA34e!J155 -> 0 | K102: =SA34e!K155 -> 142234
A103: Transport Assets | C103: =SA34e!C158 -> 0 | D103: =SA34e!D158 -> 0 | E103: =SA34e!E158 -> 0 | F103: =SA34e!F158 -> 0 | G103: =SA34e!G158 -> 0 | H103: =SA34e!H158 -> 0 | I103: =SA34e!I158 -> 0 | J103: =SA34e!J158 -> 0 | K103: =SA34e!K158 -> 0
A104: Land | C104: =SA34e!C161 -> 0 | D104: =SA34e!D161 -> 0 | E104: =SA34e!E161 -> 0 | F104: =SA34e!F161 -> 0 | G104: =SA34e!G161 -> 0 | H104: =SA34e!H161 -> 0 | I104: =SA34e!I161 -> 0 | J104: =SA34e!J161 -> 0 | K104: =SA34e!K161 -> 0
A105: Zoo's, Marine and Non-biological Animals | C105: =SA34e!C164 -> 0 | D105: =SA34e!D164 -> 0 | E105: =SA34e!E164 -> 0 | F105: =SA34e!F164 -> 0 | G105: =SA34e!G164 -> 0 | H105: =SA34e!H164 -> 0 | I105: =SA34e!I164 -> 0 | J105: =SA34e!J164 -> 0 | K105: =SA34e!K164 -> 0
A106: Mature | C106: =SA34e!C168 -> 0 | D106: =SA34e!D168 -> 0 | E106: =SA34e!E168 -> 0 | F106: =SA34e!F168 -> 0 | G106: =SA34e!G168 -> 0 | H106: =SA34e!H168 -> 0 | I106: =SA34e!I168 -> 0 | J106: =SA34e!J168 -> 0 | K106: =SA34e!K168 -> 0
A107: Immature | C107: =SA34b!C171 -> 0 | D107: =SA34b!D171 -> 0 | E107: =SA34b!E171 -> 0 | F107: =SA34b!F171 -> 0 | G107: =SA34b!G171 -> 0 | H107: =SA34b!H171 -> 0 | I107: =SA34b!I171 -> 0 | J107: =SA34b!J171 -> 0 | K107: =SA34b!K171 -> 0
A108: Living Resources | C108: =SUM(C106:C107) -> 0 | D108: =SUM(D106:D107) -> 0 | E108: 0 | F108: 0 | G108: 0 | H108: 0 | I108: 0 | J108: 0 | K108: 0
A110: Total Capital Expenditure | B110: 4 | C110: =+C5+C40+C75 -> 5444345.83 | D110: =+D5+D40+D75 -> 8073757.71 | E110: 99909545.11 | F110: 86892000 | G110: 157328342 | H110: 157328342 | I110: 74908531 | J110: 85153800 | K110: 75067002
A111: Roads Infrastructure | C111: =+C6+C41+C76 -> 0 | D111: 0 | E111: 63248283.37 | F111: 50531379 | G111: 113536157 | H111: 113536157 | I111: 55492144 | J111: 67224480 | K111: 55934934
A112: Storm water Infrastructure | C112: =+C7+C42+C77 -> 0 | D112: 0 | E112: 0 | F112: 0 | G112: 0 | H112: 0 | I112: 0 | J112: 0 | K112: 0
A113: Electrical Infrastructure | C113: =+C8+C43+C78 -> 499578.39 | D113: 483085.55 | E113: 23891624.65 | F113: 33407000 | G113: 40163662 | H113: 40163662 | I113: 2973531 | J113: 16813800 | K113: 17846000
A114: Water Supply Infrastructure | C114: =+C9+C44+C79 -> 0 | D114: 0 | E114: 0 | F114: 0 | G114: 0 | H114: 0 | I114: 0 | J114: 0 | K114: 0
A115: Sanitation Infrastructure | C115: =+C10+C45+C80 -> 0 | D115: 0 | E115: 0 | F115: 0 | G115: 0 | H115: 0 | I115: 0 | J115: 0 | K115: 0
A116: Solid Waste Infrastructure | C116: =+C11+C46+C81 -> 0 | D116: 0 | E116: 0 | F116: 0 | G116: 0 | H116: 0 | I116: 0 | J116: 0 | K116: 0
A117: Rail Infrastructure | C117: =+C12+C47+C82 -> 0 | D117: 0 | E117: 0 | F117: 0 | G117: 0 | H117: 0 | I117: 0 | J117: 0 | K117: 0
A118: Coastal Infrastructure | C118: =+C13+C48+C83 -> 0 | D118: 0 | E118: 0 | F118: 0 | G118: 0 | H118: 0 | I118: 0 | J118: 0 | K118: 0
A119: Information and Communication Infrastructure | C119: =+C14+C49+C84 -> 0 | D119: 0 | E119: 0 | F119: 0 | G119: 0 | H119: 0 | I119: 0 | J119: 0 | K119: 0
A120: Infrastructure | C120: =SUM(C111:C119) -> 499578.39 | D120: =SUM(D111:D119) -> 483085.55 | E120: 87139908.02 | F120: 83938379 | G120: 153699819 | H120: 153699819 | I120: 58465675 | J120: 84038280 | K120: 73780934
A121: Community Facilities | C121: =+C16+C51+C86 -> 146560 | D121: 0 | E121: 9191881.51 | F121: 2043621 | G121: 3118523 | H121: 3118523 | I121: 0 | J121: 0 | K121: 0
A122: Sport and Recreation Facilities | C122: =+C17+C52+C87 -> 0 | D122: 0 | E122: 3271170.58 | F122: 0 | G122: 0 | H122: 0 | I122: 0 | J122: 0 | K122: 0
A123: Community Assets | C123: =SUM(C121:C122) -> 146560 | D123: =SUM(D121:D122) -> 0 | E123: 12463052.09 | F123: 2043621 | G123: 3118523 | H123: 3118523 | I123: 0 | J123: 0 | K123: 0
A124: Heritage Assets | C124: =+C19+C54+C89 -> 0 | D124: 0 | E124: 0 | F124: 0 | G124: 0 | H124: 0 | I124: 0 | J124: 0 | K124: 0
A125: Revenue Generating | C125: =+C20+C55+C90 -> 0 | D125: 0 | E125: 0 | F125: 0 | G125: 0 | H125: 0 | I125: 0 | J125: 0 | K125: 0
A126: Non-revenue Generating | C126: =+C21+C56+C91 -> 0 | D126: 0 | E126: 0 | F126: 0 | G126: 0 | H126: 0 | I126: 0 | J126: 0 | K126: 0
A127: Investment properties | C127: =SUM(C125:C126) -> 0 | D127: =SUM(D125:D126) -> 0 | E127: 0 | F127: 0 | G127: 0 | H127: 0 | I127: 0 | J127: 0 | K127: 0
A128: Operational Buildings | C128: =+C23+C58+C93 -> 705255.18 | D128: -0.35 | E128: 0 | F128: 200000 | G128: 200000 | H128: 200000 | I128: 0 | J128: 0 | K128: 0
A129: Housing | C129: =+C24+C59+C94 -> 0 | D129: 0 | E129: 0 | F129: 0 | G129: 0 | H129: 0 | I129: 0 | J129: 0 | K129: 0
A130: Other Assets | C130: =SUM(C128:C129) -> 705255.18 | D130: -0.35 | E130: 0 | F130: 200000 | G130: 200000 | H130: 200000 | I130: 0 | J130: 0 | K130: 0
A131: Biological or Cultivated Assets | C131: =+C26+C61+C96 -> 0 | D131: 0 | E131: 0 | F131: 0 | G131: 0 | H131: 0 | I131: 0 | J131: 0 | K131: 0
A132: Servitudes | C132: =+C27+C62+C97 -> 0 | D132: 0 | E132: 0 | F132: 0 | G132: 0 | H132: 0 | I132: 0 | J132: 0 | K132: 0
A133: Licences and Rights | C133: =+C28+C63+C98 -> 0 | D133: 0 | E133: 0 | F133: 0 | G133: 0 | H133: 0 | I133: 600000 | J133: 0 | K133: 0
A134: Intangible Assets | C134: =SUM(C132:C133) -> 0 | D134: =SUM(D132:D133) -> 0 | E134: 0 | F134: 0 | G134: 0 | H134: 0 | I134: 600000 | J134: 0 | K134: 0
A135: Computer Equipment | C135: =+C30+C65+C100 -> 1168215.97 | D135: 1381760.19 | E135: 108585 | F135: 210000 | G135: 210000 | H135: 210000 | I135: 700000 | J135: 200000 | K135: 200000
A136: Furniture and Office Equipment | C136: =+C31+C66+C101 -> 106746.11 | D136: 63581.68 | E136: 0 | F136: 100000 | G136: 0 | H136: 0 | I136: 1088451 | J136: 915520 | K136: 943834
A137: Machinery and Equipment | C137: =+C32+C67+C102 -> 2196288.61 | D137: 391952.64 | E137: 198000 | F137: 400000 | G137: 100000 | H137: 100000 | I137: 350000 | J137: 0 | K137: 142234
A138: Transport Assets | C138: =+C33+C68+C103 -> 621701.57 | D138: 5753378 | E138: 0 | F138: 0 | G138: 0 | H138: 0 | I138: 13704405 | J138: 0 | K138: 0
A139: Land | C139: =+C34+C69+C104 -> 0 | D139: 0 | E139: 0 | F139: 0 | G139: 0 | H139: 0 | I139: 0 | J139: 0 | K139: 0
A140: Zoo's, Marine and Non-biological Animals | C140: =+C35+C70+C105 -> 0 | D140: 0 | E140: 0 | F140: 0 | G140: 0 | H140: 0 | I140: 0 | J140: 0 | K140: 0
A141: Mature | C141: =+C36+C71+C106 -> 0 | D141: =+D36+D71+D106 -> 0 | E141: 0 | F141: 0 | G141: 0 | H141: 0 | I141: 0 | J141: 0 | K141: 0
A142: Immature | C142: =+C37+C72+C107 -> 0 | D142: =+D37+D72+D107 -> 0 | E142: 0 | F142: 0 | G142: 0 | H142: 0 | I142: 0 | J142: 0 | K142: 0
A143: Living Resources | C143: =SUM(C141:C142) -> 0 | D143: 0 | E143: 0 | F143: 0 | G143: 0 | H143: 0 | I143: 0 | J143: 0 | K143: 0
A144: TOTAL CAPITAL EXPENDITURE - Asset class | C144: =+C5+C40+C75 -> 5444345.83 | D144: =+D5+D40+D75 -> 8073757.71 | E144: 99909545.11 | F144: 86892000 | G144: 157328342 | H144: 157328342 | I144: 74908531 | J144: 85153800 | K144: 75067002
A146: ASSET REGISTER SUMMARY - PPE (WDV) | B146: 5 | C146: =C156+C159+C160+C163+C166+C167+C170+C171+C172+C173+C174+C175+C176+C179 -> 821881307.7 | D146: =D156+D159+D160+D163+D166+D167+D170+D171+D172+D173+D174+D175+D176+D179 -> 778068844.1 | E146: 921957967.1 | F146: 143111074 | G146: 1130092020 | H146: 1130092020 | I146: 1111180398 | J146: 1161679380 | K146: 1284347182
A147: Roads Infrastructure | C147: 196697491.7 | D147: 191169247.7 | E147: 249238130 | F147: 238148665 | G147: 372401728 | H147: 372401728 | I147: 255112379 | J147: 276027245 | K147: 274133825
A148: Storm water Infrastructure | C148: 23961836.61 | D148: 23961836.61 | E148: 47332042.61 | F148: 23961836 | G148: 47332043 | H148: 47332043 | I148: 24441073 | J148: 25565362 | K148: 26715804
A149: Electrical Infrastructure | C149: 412366978.2 | D149: 399436687.5 | E149: 409001960.2 | F149: -316250987 | G149: 482165620 | H149: 482165620 | I149: -346684456 | J149: -348928454 | K149: -364354656
A150: Water Supply Infrastructure | C150: 77600 | D150: 77600 | E150: 77600 | F150: 0 | G150: 77600 | H150: 77600 | I150: 0 | J150: 0 | K150: 0
A151: Sanitation Infrastructure
A152: Solid Waste Infrastructure | C152: 0 | D152: -903636.29 | E152: -903636.29 | F152: 0 | G152: -903637 | H152: -903637 | I152: 0 | J152: 0 | K152: 0
A153: Rail Infrastructure
A154: Coastal Infrastructure
A155: Information and Communication Infrastructure
A156: Infrastructure | C156: =SUM(C147:C155) -> 633103906.5 | D156: =SUM(D147:D155) -> 613741735.5 | E156: 704746096.5 | F156: -54140486 | G156: 901073354 | H156: 901073354 | I156: -67131004 | J156: -47335847 | K156: -63505027
A159: Community Assets | C159: 146974904.2 | D159: 117606915 | E159: 152195059.3 | F159: 166611309 | G159: 159269036 | H159: 159269036 | I159: 44981638 | J159: 47050794 | K159: 49168079
A160: Heritage Assets | C160: 0 | D160: 0 | E160: 0 | F160: 0 | G160: 0 | H160: 0 | I160: 0 | J160: 0 | K160: 0
A163: Investment properties | C163: 8374000.01 | D163: 8950501.09 | E163: 9433600.01 | F163: 8950501 | G163: 9516517 | H163: 9516517 | I163: 9516517 | J163: 9954277 | K163: 10402219
A166: Other Assets | C166: 771176.38 | D166: 771176.03 | E166: 2075523.86 | F166: 200000 | G166: 2283205 | H166: 2283205 | I166: 0 | J166: 0 | K166: 0
A167: Biological or Cultivated Assets
A170: Intangible Assets | C170: 306592.97 | D170: 240698.21 | E170: 174803.45 | F170: 0 | G170: 185291 | H170: 185291 | I170: 783368 | J170: 203311 | K170: 212460
A171: Computer Equipment | C171: 3944440.03 | D171: 4148136.22 | E171: 3356409.43 | F171: 2305848 | G171: 2518122 | H171: 2518122 | I171: 919311 | J171: 429399 | K171: 439722
A172: Furniture and Office Equipment | C172: 2947702.07 | D172: 2607064.75 | E172: 2299003.15 | F172: 5618743 | G172: 5327721 | H172: 5327721 | I172: 1107869163 | J172: 1151181844 | K172: 1287283091
A173: Machinery and Equipment | C173: 5106964.86 | D173: 5217582.5 | E173: 18263635.91 | F173: 2911493 | G173: 25533119 | H173: 25533119 | I173: 537000 | J173: 195602 | K173: 346638
A174: Transport Assets | C174: 12595330.73 | D174: 17028744.73 | E174: 21657545.45 | F174: 10653666 | G174: 24385655 | H174: 24385655 | I174: 13704405 | J174: 0 | K174: 0
A175: Land | C175: 7756290 | D175: 7756290 | E175: 7756290 | F175: 0 | G175: 0 | H175: 0 | I175: 0 | J175: 0 | K175: 0
A176: Zoo's, Marine and Non-biological Animals
A179: Living Resources
A180: TOTAL ASSET REGISTER SUMMARY - PPE (WDV) | B180: 5 | C180: =C156+C159+C160+C163+C166+C167+C170+C171+C172+C173+C174+C175+C176+C179 -> 821881307.7 | D180: =D156+D159+D160+D163+D166+D167+D170+D171+D172+D173+D174+D175+D176+D179 -> 778068844.1 | E180: 921957967.1 | F180: =F156+F159+F160+F163+F166+F167+F170+F171+F172+F173+F174+F175+F176+F179 -> 143111074 | G180: =G156+G159+G160+G163+G166+G167+G170+G171+G172+G173+G174+G175+G176+G179 -> 1130092020 | H180: 1130092020 | I180: 1111180398 | J180: 1161679380 | K180: 1284347182
A182: EXPENDITURE OTHER ITEMS | C182: =SUM(C183:C184) -> 45456257.94 | D182: =SUM(D183:D184) -> 47168528.19 | E182: 37313696.89 | F182: 46488092 | G182: 48171812 | H182: 48171812 | I182: 39444651 | J182: 41259109 | K182: 43157027
A183: Depreciation | B183: 7 | C183: =SA34d!C175 -> 29419185.92 | D183: =SA34d!D175 -> 30420608.43 | E183: =SA34d!E175 -> 31482239.38 | F183: =SA34d!F175 -> 37667907 | G183: =SA34d!G175 -> 37302907 | H183: =SA34d!H175 -> 37302907 | I183: =SA34d!I175 -> 33513635 | J183: =SA34d!J175 -> 35055266 | K183: =SA34d!K175 -> 36667805
A184: Repairs and Maintenance by Asset Class | B184: 3 | C184: =C194+C197+C198+C201+C204+C205+SUM(C208:C214)+C217 -> 16037072.02 | D184: =D194+D197+D198+D201+D204+D205+SUM(D208:D214)+D217 -> 16747919.76 | E184: 5831457.51 | F184: 8820185 | G184: 10868905 | H184: 10868905 | I184: 5931016 | J184: 6203843 | K184: 6489222
A185: Roads Infrastructure | C185: =SA34c!C7 -> 888887.53 | D185: =SA34c!D7 -> 1541980.1 | E185: =SA34c!E7 -> 1593427.18 | F185: =SA34c!F7 -> 1934000 | G185: =SA34c!G7 -> 791300 | H185: =SA34c!H7 -> 791300 | I185: =SA34c!I7 -> 300014 | J185: =SA34c!J7 -> 313815 | K185: =SA34c!K7 -> 328251
A186: Storm water Infrastructure | C186: =SA34c!C12 -> 8197044.11 | D186: =SA34c!D12 -> 9452853.05 | E186: =SA34c!E12 -> 0 | F186: =SA34c!F12 -> 0 | G186: =SA34c!G12 -> 4000000 | H186: =SA34c!H12 -> 4000000 | I186: =SA34c!I12 -> 0 | J186: =SA34c!J12 -> 0 | K186: =SA34c!K12 -> 0
A187: Electrical Infrastructure | C187: =SA34c!C16 -> 1587578.91 | D187: =SA34c!D16 -> 2171308.31 | E187: =SA34c!E16 -> 1375938.77 | F187: =SA34c!F16 -> 2508000 | G187: =SA34c!G16 -> 2108000 | H187: =SA34c!H16 -> 2108000 | I187: =SA34c!I16 -> 2000000 | J187: =SA34c!J16 -> 2092000 | K187: =SA34c!K16 -> 2188232
A188: Water Supply Infrastructure | C188: =SA34c!C26 -> 0 | D188: =SA34c!D26 -> 0 | E188: =SA34c!E26 -> 0 | F188: =SA34c!F26 -> 0 | G188: =SA34c!G26 -> 0 | H188: =SA34c!H26 -> 0 | I188: =SA34c!I26 -> 0 | J188: =SA34c!J26 -> 0 | K188: =SA34c!K26 -> 0
A189: Sanitation Infrastructure | C189: =SA34c!C37 -> 0 | D189: =SA34c!D37 -> 0 | E189: =SA34c!E37 -> 0 | F189: =SA34c!F37 -> 0 | G189: =SA34c!G37 -> 0 | H189: =SA34c!H37 -> 0 | I189: =SA34c!I37 -> 0 | J189: =SA34c!J37 -> 0 | K189: =SA34c!K37 -> 0
A190: Solid Waste Infrastructure | C190: =SA34c!C44 -> 0 | D190: =SA34c!D44 -> 0 | E190: =SA34c!E44 -> 0 | F190: =SA34c!F44 -> 0 | G190: =SA34c!G44 -> 0 | H190: =SA34c!H44 -> 0 | I190: =SA34c!I44 -> 0 | J190: =SA34c!J44 -> 0 | K190: =SA34c!K44 -> 0
A191: Rail Infrastructure | C191: =SA34c!C52 -> 0 | D191: =SA34c!D52 -> 0 | E191: =SA34c!E52 -> 0 | F191: =SA34c!F52 -> 0 | G191: =SA34c!G52 -> 0 | H191: =SA34c!H52 -> 0 | I191: =SA34c!I52 -> 0 | J191: =SA34c!J52 -> 0 | K191: =SA34c!K52 -> 0
A192: Coastal Infrastructure | C192: =SA34c!C62 -> 0 | D192: =SA34c!D62 -> 0 | E192: =SA34c!E62 -> 0 | F192: =SA34c!F62 -> 0 | G192: =SA34c!G62 -> 0 | H192: =SA34c!H62 -> 0 | I192: =SA34c!I62 -> 0 | J192: =SA34c!J62 -> 0 | K192: =SA34c!K62 -> 0
A193: Information and Communication Infrastructure | C193: =SA34c!C68 -> 0 | D193: =SA34c!D68 -> 0 | E193: =SA34c!E68 -> 0 | F193: =SA34c!F68 -> 1900000 | G193: =SA34c!G68 -> 1500000 | H193: =SA34c!H68 -> 1500000 | I193: =SA34c!I68 -> 100000 | J193: =SA34c!J68 -> 104600 | K193: =SA34c!K68 -> 109412
A194: Infrastructure | C194: =SUM(C185:C193) -> 10673510.55 | D194: =SUM(D185:D193) -> 13166141.46 | E194: 2969365.95 | F194: 6342000 | G194: 8399300 | H194: 8399300 | I194: 2400014 | J194: 2510415 | K194: 2625895
A195: Community Facilities | C195: =SA34c!C75 -> 239484.17 | D195: =SA34c!D75 -> 453487.79 | E195: =SA34c!E75 -> 84505.9 | F195: =SA34c!F75 -> 100000 | G195: =SA34c!G75 -> 130000 | H195: =SA34c!H75 -> 130000 | I195: =SA34c!I75 -> 200000 | J195: =SA34c!J75 -> 209200 | K195: =SA34c!K75 -> 218824
A196: Sport and Recreation Facilities | C196: =SA34c!C98 -> 401697.23 | D196: =SA34c!D98 -> 75300 | E196: =SA34c!E98 -> 0 | F196: =SA34c!F98 -> 200000 | G196: =SA34c!G98 -> 168000 | H196: =SA34c!H98 -> 168000 | I196: =SA34c!I98 -> 100000 | J196: =SA34c!J98 -> 104600 | K196: =SA34c!K98 -> 109412
A197: Community Assets | C197: =SUM(C195:C196) -> 641181.4 | D197: 528787.79 | E197: 84505.9 | F197: 300000 | G197: 298000 | H197: 298000 | I197: 300000 | J197: 313800 | K197: 328236
A198: Heritage Assets | C198: =SA34c!C103 -> 0 | D198: =SA34c!D103 -> 0 | E198: =SA34c!E103 -> 0 | F198: =SA34c!F103 -> 0 | G198: =SA34c!G103 -> 0 | H198: =SA34c!H103 -> 0 | I198: =SA34c!I103 -> 0 | J198: =SA34c!J103 -> 0 | K198: =SA34c!K103 -> 0
A199: Revenue Generating | C199: =SA34c!C111 -> 0 | D199: =SA34c!D111 -> 0 | E199: =SA34c!E111 -> 0 | F199: =SA34c!F111 -> 0 | G199: =SA34c!G111 -> 0 | H199: =SA34c!H111 -> 0 | I199: =SA34c!I111 -> 0 | J199: =SA34c!J111 -> 0 | K199: =SA34c!K111 -> 0
A200: Non-revenue Generating | C200: =SA34c!C114 -> 0 | D200: =SA34c!D114 -> 0 | E200: =SA34c!E114 -> 0 | F200: =SA34c!F114 -> 0 | G200: =SA34c!G114 -> 0 | H200: =SA34c!H114 -> 0 | I200: =SA34c!I114 -> 0 | J200: =SA34c!J114 -> 0 | K200: =SA34c!K114 -> 0
A201: Investment properties | C201: =SUM(C199:C200) -> 0 | D201: 0 | E201: 0 | F201: 0 | G201: 0 | H201: 0 | I201: 0 | J201: 0 | K201: 0
A202: Operational Buildings | C202: =SA34c!C119 -> 1032038.22 | D202: =SA34c!D119 -> 473995.77 | E202: =SA34c!E119 -> 151226.98 | F202: =SA34c!F119 -> 455000 | G202: =SA34c!G119 -> 548420 | H202: =SA34c!H119 -> 548420 | I202: =SA34c!I119 -> 1477281 | J202: =SA34c!J119 -> 1545236 | K202: =SA34c!K119 -> 1616317
A203: Housing | C203: =SA34c!C131 -> 0 | D203: =SA34c!D131 -> 0 | E203: =SA34c!E131 -> 0 | F203: =SA34c!F131 -> 0 | G203: =SA34c!G131 -> 0 | H203: =SA34c!H131 -> 0 | I203: =SA34c!I131 -> 0 | J203: =SA34c!J131 -> 0 | K203: =SA34c!K131 -> 0
A204: Other Assets | C204: =SUM(C202:C203) -> 1032038.22 | D204: 473995.77 | E204: 151226.98 | F204: 455000 | G204: 548420 | H204: 548420 | I204: 1477281 | J204: 1545236 | K204: 1616317
A205: Biological or Cultivated Assets | C205: =SA34c!C136 -> 0 | D205: =SA34c!D136 -> 0 | E205: =SA34c!E136 -> 0 | F205: =SA34c!F136 -> 0 | G205: =SA34c!G136 -> 0 | H205: =SA34c!H136 -> 0 | I205: =SA34c!I136 -> 0 | J205: =SA34c!J136 -> 0 | K205: =SA34c!K136 -> 0
A206: Servitudes | C206: =SA34c!C140 -> 0 | D206: =SA34c!D140 -> 0 | E206: =SA34c!E140 -> 0 | F206: =SA34c!F140 -> 0 | G206: =SA34c!G140 -> 0 | H206: =SA34c!H140 -> 0 | I206: =SA34c!I140 -> 0 | J206: =SA34c!J140 -> 0 | K206: =SA34c!K140 -> 0
A207: Licences and Rights | C207: =SA34c!C141 -> 0 | D207: =SA34c!D141 -> 0 | E207: =SA34c!E141 -> 0 | F207: =SA34c!F141 -> 0 | G207: =SA34c!G141 -> 0 | H207: =SA34c!H141 -> 0 | I207: =SA34c!I141 -> 0 | J207: =SA34c!J141 -> 0 | K207: =SA34c!K141 -> 0
A208: Intangible Assets | C208: =SUM(C206:C207) -> 0 | D208: 0 | E208: 0 | F208: 0 | G208: 0 | H208: 0 | I208: 0 | J208: 0 | K208: 0
A209: Computer Equipment | C209: =SA34c!C149 -> 129380 | D209: =SA34c!D149 -> 180549.6 | E209: =SA34c!E149 -> 322955 | F209: =SA34c!F149 -> 350192 | G209: =SA34c!G149 -> 350192 | H209: =SA34c!H149 -> 350192 | I209: =SA34c!I149 -> 367351 | J209: =SA34c!J149 -> 384249 | K209: =SA34c!K149 -> 401924
A210: Furniture and Office Equipment | C210: =SA34c!C152 -> 0 | D210: =SA34c!D152 -> -52543.5 | E210: =SA34c!E152 -> 0 | F210: =SA34c!F152 -> 121232 | G210: =SA34c!G152 -> 71232 | H210: =SA34c!H152 -> 71232 | I210: =SA34c!I152 -> 124722 | J210: =SA34c!J152 -> 130459 | K210: =SA34c!K152 -> 136461
A211: Machinery and Equipment | C211: =SA34c!C155 -> 52939.8 | D211: =SA34c!D155 -> 20565 | E211: =SA34c!E155 -> 85594.63 | F211: =SA34c!F155 -> 50000 | G211: =SA34c!G155 -> 0 | H211: =SA34c!H155 -> 0 | I211: =SA34c!I155 -> 50000 | J211: =SA34c!J155 -> 52300 | K211: =SA34c!K155 -> 54706
A212: Transport Assets | C212: =SA34c!C158 -> 3508022.05 | D212: =SA34c!D158 -> 2430423.64 | E212: =SA34c!E158 -> 2217809.05 | F212: =SA34c!F158 -> 1201761 | G212: =SA34c!G158 -> 1201761 | H212: =SA34c!H158 -> 1201761 | I212: =SA34c!I158 -> 1211648 | J212: =SA34c!J158 -> 1267384 | K212: =SA34c!K158 -> 1325683
A213: Land | C213: =SA34c!C161 -> 0 | D213: =SA34c!D161 -> 0 | E213: =SA34c!E161 -> 0 | F213: =SA34c!F161 -> 0 | G213: =SA34c!G161 -> 0 | H213: =SA34c!H161 -> 0 | I213: =SA34c!I161 -> 0 | J213: =SA34c!J161 -> 0 | K213: =SA34c!K161 -> 0
A214: Zoo's, Marine and Non-biological Animals | C214: =SA34c!C164 -> 0 | D214: =SA34c!D164 -> 0 | E214: =SA34c!E164 -> 0 | F214: =SA34c!F164 -> 0 | G214: =SA34c!G164 -> 0 | H214: =SA34c!H164 -> 0 | I214: =SA34c!I164 -> 0 | J214: =SA34c!J164 -> 0 | K214: =SA34c!K164 -> 0
A215: Mature | C215: =SA34c!C168 -> 0 | D215: =SA34c!D168 -> 0 | E215: =SA34c!E168 -> 0 | F215: =SA34c!F168 -> 0 | G215: =SA34c!G168 -> 0 | H215: =SA34c!H168 -> 0 | I215: =SA34c!I168 -> 0 | J215: =SA34c!J168 -> 0 | K215: =SA34c!K168 -> 0
... 16 more rows

Sheet A10-SerDel
A1: =muni&" - "&Approve10 -> LIM351 Blouberg - Table A10 Basic service delivery measurement
A2: =desc -> Description | B2: =head27 -> Ref | C2: =head1b -> 2020/21 | D2: =head1A -> 2021/22 | E2: =Head1 -> 2022/23 | F2: =Head2 -> Current Year 2023/24 | I2: =Head3 -> 2024/25 Medium Term Revenue & Expenditure Framework
C3: =Head5A -> Outcome | D3: =Head5A -> Outcome | E3: =Head5A -> Outcome | F3: =Head6 -> Original Budget | G3: =Head7 -> Adjusted Budget | H3: =Head8 -> Full Year Forecast | I3: =Head9 -> Budget Year 2024/25 | J3: =Head10 -> Budget Year +1 2025/26 | K3: =Head11 -> Budget Year +2 2026/27
A4: Household service targets | B4: 1
A5: Water:
A6: Piped water inside dwelling | C6: ='SA9'!E67 -> 0 | D6: ='SA9'!F67 -> 0 | E6: ='SA9'!G67 -> 0 | F6: ='SA9'!H67 -> 0 | G6: ='SA9'!I67 -> 0 | H6: ='SA9'!J67 -> 0 | I6: ='SA9'!K67 -> 0 | J6: ='SA9'!L67 -> 0 | K6: ='SA9'!M67 -> 0
A7: Piped water inside yard (but not in dwelling) | C7: ='SA9'!E68 -> 0 | D7: ='SA9'!F68 -> 0 | E7: ='SA9'!G68 -> 0 | F7: ='SA9'!H68 -> 0 | G7: ='SA9'!I68 -> 0 | H7: ='SA9'!J68 -> 0 | I7: ='SA9'!K68 -> 0 | J7: ='SA9'!L68 -> 0 | K7: ='SA9'!M68 -> 0
A8: Using public tap (at least min.service level) | B8: 2 | C8: ='SA9'!E69 -> 0 | D8: ='SA9'!F69 -> 0 | E8: ='SA9'!G69 -> 0 | F8: ='SA9'!H69 -> 0 | G8: ='SA9'!I69 -> 0 | H8: ='SA9'!J69 -> 0 | I8: ='SA9'!K69 -> 0 | J8: ='SA9'!L69 -> 0 | K8: ='SA9'!M69 -> 0
A9: Other water supply (at least min.service level) | B9: 4 | C9: ='SA9'!E70 -> 0 | D9: ='SA9'!F70 -> 0 | E9: ='SA9'!G70 -> 0 | F9: ='SA9'!H70 -> 0 | G9: ='SA9'!I70 -> 0 | H9: ='SA9'!J70 -> 0 | I9: ='SA9'!K70 -> 0 | J9: ='SA9'!L70 -> 0 | K9: ='SA9'!M70 -> 0
A10: Minimum Service Level and Above sub-total | C10: =SUM(C6:C9) -> 0 | D10: =SUM(D6:D9) -> 0 | E10: 0 | F10: 0 | G10: 0 | H10: 0 | I10: 0 | J10: 0 | K10: 0
A11: Using public tap (< min.service level) | B11: 3 | C11: ='SA9'!E72 -> 0 | D11: ='SA9'!F72 -> 0 | E11: ='SA9'!G72 -> 0 | F11: ='SA9'!H72 -> 0 | G11: ='SA9'!I72 -> 0 | H11: ='SA9'!J72 -> 0 | I11: ='SA9'!K72 -> 0 | J11: ='SA9'!L72 -> 0 | K11: ='SA9'!M72 -> 0
A12: Other water supply (< min.service level) | B12: =B9 -> 4 | C12: ='SA9'!E73 -> 0 | D12: ='SA9'!F73 -> 0 | E12: ='SA9'!G73 -> 0 | F12: ='SA9'!H73 -> 0 | G12: ='SA9'!I73 -> 0 | H12: ='SA9'!J73 -> 0 | I12: ='SA9'!K73 -> 0 | J12: ='SA9'!L73 -> 0 | K12: ='SA9'!M73 -> 0
A13: No water supply | C13: ='SA9'!E74 -> 0 | D13: ='SA9'!F74 -> 0 | E13: ='SA9'!G74 -> 0 | F13: ='SA9'!H74 -> 0 | G13: ='SA9'!I74 -> 0 | H13: ='SA9'!J74 -> 0 | I13: ='SA9'!K74 -> 0 | J13: ='SA9'!L74 -> 0 | K13: ='SA9'!M74 -> 0
A14: Below Minimum Service Level sub-total | C14: =SUM(C11:C13) -> 0 | D14: =SUM(D11:D13) -> 0 | E14: 0 | F14: 0 | G14: 0 | H14: 0 | I14: 0 | J14: 0 | K14: 0
A15: Total number of households | B15: 5 | C15: =C10+C14 -> 0 | D15: =D10+D14 -> 0 | E15: 0 | F15: 0 | G15: 0 | H15: 0 | I15: 0 | J15: 0 | K15: 0
A16: Sanitation/sewerage:
A17: Flush toilet (connected to sewerage) | C17: ='SA9'!E78 -> 0 | D17: ='SA9'!F78 -> 0 | E17: ='SA9'!G78 -> 0 | F17: ='SA9'!H78 -> 0 | G17: ='SA9'!I78 -> 0 | H17: ='SA9'!J78 -> 0 | I17: ='SA9'!K78 -> 0 | J17: ='SA9'!L78 -> 0 | K17: ='SA9'!M78 -> 0
A18: Flush toilet (with septic tank) | C18: ='SA9'!E79 -> 0 | D18: ='SA9'!F79 -> 0 | E18: ='SA9'!G79 -> 0 | F18: ='SA9'!H79 -> 0 | G18: ='SA9'!I79 -> 0 | H18: ='SA9'!J79 -> 0 | I18: ='SA9'!K79 -> 0 | J18: ='SA9'!L79 -> 0 | K18: ='SA9'!M79 -> 0
A19: Chemical toilet | C19: ='SA9'!E80 -> 0 | D19: ='SA9'!F80 -> 0 | E19: ='SA9'!G80 -> 0 | F19: ='SA9'!H80 -> 0 | G19: ='SA9'!I80 -> 0 | H19: ='SA9'!J80 -> 0 | I19: ='SA9'!K80 -> 0 | J19: ='SA9'!L80 -> 0 | K19: ='SA9'!M80 -> 0
A20: Pit toilet (ventilated) | C20: ='SA9'!E81 -> 0 | D20: ='SA9'!F81 -> 0 | E20: ='SA9'!G81 -> 0 | F20: ='SA9'!H81 -> 0 | G20: ='SA9'!I81 -> 0 | H20: ='SA9'!J81 -> 0 | I20: ='SA9'!K81 -> 0 | J20: ='SA9'!L81 -> 0 | K20: ='SA9'!M81 -> 0
A21: Other toilet provisions (> min.service level) | C21: ='SA9'!E82 -> 0 | D21: ='SA9'!F82 -> 0 | E21: ='SA9'!G82 -> 0 | F21: ='SA9'!H82 -> 0 | G21: ='SA9'!I82 -> 0 | H21: ='SA9'!J82 -> 0 | I21: ='SA9'!K82 -> 0 | J21: ='SA9'!L82 -> 0 | K21: ='SA9'!M82 -> 0
A22: =$A$10 -> Minimum Service Level and Above sub-total | C22: =SUM(C17:C21) -> 0 | D22: =SUM(D17:D21) -> 0 | E22: 0 | F22: 0 | G22: 0 | H22: 0 | I22: 0 | J22: 0 | K22: 0
A23: Bucket toilet | C23: ='SA9'!E84 -> 0 | D23: ='SA9'!F84 -> 0 | E23: ='SA9'!G84 -> 0 | F23: ='SA9'!H84 -> 0 | G23: ='SA9'!I84 -> 0 | H23: ='SA9'!J84 -> 0 | I23: ='SA9'!K84 -> 0 | J23: ='SA9'!L84 -> 0 | K23: ='SA9'!M84 -> 0
A24: Other toilet provisions (< min.service level) | C24: ='SA9'!E85 -> 0 | D24: ='SA9'!F85 -> 0 | E24: ='SA9'!G85 -> 0 | F24: ='SA9'!H85 -> 0 | G24: ='SA9'!I85 -> 0 | H24: ='SA9'!J85 -> 0 | I24: ='SA9'!K85 -> 0 | J24: ='SA9'!L85 -> 0 | K24: ='SA9'!M85 -> 0
A25: No toilet provisions | C25: ='SA9'!E86 -> 0 | D25: ='SA9'!F86 -> 0 | E25: ='SA9'!G86 -> 0 | F25: ='SA9'!H86 -> 0 | G25: ='SA9'!I86 -> 0 | H25: ='SA9'!J86 -> 0 | I25: ='SA9'!K86 -> 0 | J25: ='SA9'!L86 -> 0 | K25: ='SA9'!M86 -> 0
A26: =$A$14 -> Below Minimum Service Level sub-total | C26: =SUM(C23:C25) -> 0 | D26: =SUM(D23:D25) -> 0 | E26: 0 | F26: 0 | G26: 0 | H26: 0 | I26: 0 | J26: 0 | K26: 0
A27: =$A$15 -> Total number of households | B27: =$B$15 -> 5 | C27: =C22+C26 -> 0 | D27: =D22+D26 -> 0 | E27: 0 | F27: 0 | G27: 0 | H27: 0 | I27: 0 | J27: 0 | K27: 0
A28: Energy:
A29: Electricity (at least min.service level) | C29: ='SA9'!E90 -> 0 | D29: ='SA9'!F90 -> 0 | E29: ='SA9'!G90 -> 0 | F29: ='SA9'!H90 -> 0 | G29: ='SA9'!I90 -> 0 | H29: ='SA9'!J90 -> 0 | I29: ='SA9'!K90 -> 5340 | J29: ='SA9'!L90 -> 5210 | K29: ='SA9'!M90 -> 5410
A30: Electricity - prepaid (min.service level) | C30: ='SA9'!E91 -> 0 | D30: ='SA9'!F91 -> 0 | E30: ='SA9'!G91 -> 0 | F30: ='SA9'!H91 -> 0 | G30: ='SA9'!I91 -> 0 | H30: ='SA9'!J91 -> 0 | I30: ='SA9'!K91 -> 0 | J30: ='SA9'!L91 -> 0 | K30: ='SA9'!M91 -> 0
A31: =$A$10 -> Minimum Service Level and Above sub-total | C31: =SUM(C29:C30) -> 0 | D31: =SUM(D29:D30) -> 0 | E31: 0 | F31: 0 | G31: 0 | H31: 0 | I31: 5340 | J31: 5210 | K31: 5410
A32: Electricity (< min.service level) | C32: ='SA9'!E93 -> 0 | D32: ='SA9'!F93 -> 0 | E32: ='SA9'!G93 -> 0 | F32: ='SA9'!H93 -> 0 | G32: ='SA9'!I93 -> 0 | H32: ='SA9'!J93 -> 0 | I32: ='SA9'!K93 -> 0 | J32: ='SA9'!L93 -> 0 | K32: ='SA9'!M93 -> 0
A33: Electricity - prepaid (< min. service level) | C33: ='SA9'!E94 -> 0 | D33: ='SA9'!F94 -> 0 | E33: ='SA9'!G94 -> 0 | F33: ='SA9'!H94 -> 0 | G33: ='SA9'!I94 -> 0 | H33: ='SA9'!J94 -> 0 | I33: ='SA9'!K94 -> 0 | J33: ='SA9'!L94 -> 0 | K33: ='SA9'!M94 -> 0
A34: Other energy sources | C34: ='SA9'!E95 -> 0 | D34: ='SA9'!F95 -> 0 | E34: ='SA9'!G95 -> 0 | F34: ='SA9'!H95 -> 0 | G34: ='SA9'!I95 -> 0 | H34: ='SA9'!J95 -> 0 | I34: ='SA9'!K95 -> 0 | J34: ='SA9'!L95 -> 0 | K34: ='SA9'!M95 -> 0
A35: =$A$14 -> Below Minimum Service Level sub-total | C35: =SUM(C32:C34) -> 0 | D35: =SUM(D32:D34) -> 0 | E35: 0 | F35: 0 | G35: 0 | H35: 0 | I35: 0 | J35: 0 | K35: 0
A36: =$A$15 -> Total number of households | B36: =$B$15 -> 5 | C36: =C31+C35 -> 0 | D36: =D31+D35 -> 0 | E36: 0 | F36: 0 | G36: 0 | H36: 0 | I36: 5340 | J36: 5210 | K36: 5410
A37: Refuse:
A38: Removed at least once a week | C38: ='SA9'!E99 -> 0 | D38: ='SA9'!F99 -> 0 | E38: ='SA9'!G99 -> 0 | F38: ='SA9'!H99 -> 0 | G38: ='SA9'!I99 -> 0 | H38: ='SA9'!J99 -> 0 | I38: ='SA9'!K99 -> 0 | J38: ='SA9'!L99 -> 0 | K38: ='SA9'!M99 -> 0
A39: =$A$10 -> Minimum Service Level and Above sub-total | C39: =SUM(C38) -> 0 | D39: =SUM(D38) -> 0 | E39: 0 | F39: 0 | G39: 0 | H39: 0 | I39: 0 | J39: 0 | K39: 0
A40: Removed less frequently than once a week | C40: ='SA9'!E101 -> 0 | D40: ='SA9'!F101 -> 0 | E40: ='SA9'!G101 -> 0 | F40: ='SA9'!H101 -> 0 | G40: ='SA9'!I101 -> 0 | H40: ='SA9'!J101 -> 0 | I40: ='SA9'!K101 -> 0 | J40: ='SA9'!L101 -> 0 | K40: ='SA9'!M101 -> 0
A41: Using communal refuse dump | C41: ='SA9'!E102 -> 0 | D41: ='SA9'!F102 -> 0 | E41: ='SA9'!G102 -> 0 | F41: ='SA9'!H102 -> 0 | G41: ='SA9'!I102 -> 0 | H41: ='SA9'!J102 -> 0 | I41: ='SA9'!K102 -> 0 | J41: ='SA9'!L102 -> 0 | K41: ='SA9'!M102 -> 0
A42: Using own refuse dump | C42: ='SA9'!E103 -> 0 | D42: ='SA9'!F103 -> 0 | E42: ='SA9'!G103 -> 0 | F42: ='SA9'!H103 -> 0 | G42: ='SA9'!I103 -> 0 | H42: ='SA9'!J103 -> 0 | I42: ='SA9'!K103 -> 0 | J42: ='SA9'!L103 -> 0 | K42: ='SA9'!M103 -> 0
A43: Other rubbish disposal | C43: ='SA9'!E104 -> 0 | D43: ='SA9'!F104 -> 0 | E43: ='SA9'!G104 -> 0 | F43: ='SA9'!H104 -> 0 | G43: ='SA9'!I104 -> 0 | H43: ='SA9'!J104 -> 0 | I43: ='SA9'!K104 -> 0 | J43: ='SA9'!L104 -> 0 | K43: ='SA9'!M104 -> 0
A44: No rubbish disposal | C44: ='SA9'!E105 -> 0 | D44: ='SA9'!F105 -> 0 | E44: ='SA9'!G105 -> 0 | F44: ='SA9'!H105 -> 0 | G44: ='SA9'!I105 -> 0 | H44: ='SA9'!J105 -> 0 | I44: ='SA9'!K105 -> 0 | J44: ='SA9'!L105 -> 0 | K44: ='SA9'!M105 -> 0
A45: =$A$14 -> Below Minimum Service Level sub-total | C45: =SUM(C40:C44) -> 0 | D45: =SUM(D40:D44) -> 0 | E45: 0 | F45: 0 | G45: 0 | H45: 0 | I45: 0 | J45: 0 | K45: 0
A46: =$A$15 -> Total number of households | B46: =$B$15 -> 5 | C46: =C39+C45 -> 0 | D46: =D39+D45 -> 0 | E46: 0 | F46: 0 | G46: 0 | H46: 0 | I46: 0 | J46: 0 | K46: 0
A48: Households receiving Free Basic Service | B48: 7
A49: Water (6 kilolitres per household per month) | C49: ='SA9'!E263 -> 0 | D49: ='SA9'!F263 -> 0 | E49: ='SA9'!G263 -> 0 | F49: ='SA9'!H263 -> 0 | G49: ='SA9'!I263 -> 0 | H49: ='SA9'!J263 -> 0 | I49: ='SA9'!K263 -> 0 | J49: ='SA9'!L263 -> 0 | K49: ='SA9'!M263 -> 0
A50: Sanitation (free minimum level service) | C50: ='SA9'!E275 -> 0 | D50: ='SA9'!F275 -> 0 | E50: ='SA9'!G275 -> 0 | F50: ='SA9'!H275 -> 0 | G50: ='SA9'!I275 -> 0 | H50: ='SA9'!J275 -> 0 | I50: ='SA9'!K275 -> 0 | J50: ='SA9'!L275 -> 0 | K50: ='SA9'!M275 -> 0
A51: Electricity/other energy (50kwh per household per month) | C51: ='SA9'!E251 -> 0 | D51: ='SA9'!F251 -> 0 | E51: ='SA9'!G251 -> 0 | F51: ='SA9'!H251 -> 0 | G51: ='SA9'!I251 -> 0 | H51: ='SA9'!J251 -> 0 | I51: ='SA9'!K251 -> 5340 | J51: ='SA9'!L251 -> 5201 | K51: ='SA9'!M251 -> 5451
A52: Refuse (removed at least once a week) | C52: ='SA9'!E287 -> 0 | D52: ='SA9'!F287 -> 0 | E52: ='SA9'!G287 -> 0 | F52: ='SA9'!H287 -> 0 | G52: ='SA9'!I287 -> 0 | H52: ='SA9'!J287 -> 0 | I52: ='SA9'!K287 -> 0 | J52: ='SA9'!L287 -> 0 | K52: ='SA9'!M287 -> 0
A53: Informal Settlements | C53: ='SA9'!E253+'SA9'!E255+'SA9'!E257+'SA9'!E259+'SA9'!E265+'SA9'!E2267+'SA9'!E269+'SA9'!E271+'SA9'!E277+'SA9'!E279+'SA9'!E281+'SA9'!E283+'SA9'!E289+'SA9'!E291+'SA9'!E293+'SA9'!E295 -> 0 | D53: ='SA9'!F253+'SA9'!F255+'SA9'!F257+'SA9'!F259+'SA9'!F265+'SA9'!F2267+'SA9'!F269+'SA9'!F271+'SA9'!F277+'SA9'!F279+'SA9'!F281+'SA9'!F283+'SA9'!F289+'SA9'!F291+'SA9'!F293+'SA9'!F295 -> 0 | E53: ='SA9'!G253+'SA9'!G255+'SA9'!G257+'SA9'!G259+'SA9'!G265+'SA9'!G2267+'SA9'!G269+'SA9'!G271+'SA9'!G277+'SA9'!G279+'SA9'!G281+'SA9'!G283+'SA9'!G289+'SA9'!G291+'SA9'!G293+'SA9'!G295 -> 0 | F53: ='SA9'!H253+'SA9'!H255+'SA9'!H257+'SA9'!H259+'SA9'!H265+'SA9'!H2267+'SA9'!H269+'SA9'!H271+'SA9'!H277+'SA9'!H279+'SA9'!H281+'SA9'!H283+'SA9'!H289+'SA9'!H291+'SA9'!H293+'SA9'!H295 -> 0 | G53: ='SA9'!I253+'SA9'!I255+'SA9'!I257+'SA9'!I259+'SA9'!I265+'SA9'!I2267+'SA9'!I269+'SA9'!I271+'SA9'!I277+'SA9'!I279+'SA9'!I281+'SA9'!I283+'SA9'!I289+'SA9'!I291+'SA9'!I293+'SA9'!I295 -> 0 | H53: ='SA9'!J253+'SA9'!J255+'SA9'!J257+'SA9'!J259+'SA9'!J265+'SA9'!J2267+'SA9'!J269+'SA9'!J271+'SA9'!J277+'SA9'!J279+'SA9'!J281+'SA9'!J283+'SA9'!J289+'SA9'!J291+'SA9'!J293+'SA9'!J295 -> 0 | I53: ='SA9'!K253+'SA9'!K255+'SA9'!K257+'SA9'!K259+'SA9'!K265+'SA9'!K2267+'SA9'!K269+'SA9'!K271+'SA9'!K277+'SA9'!K279+'SA9'!K281+'SA9'!K283+'SA9'!K289+'SA9'!K291+'SA9'!K293+'SA9'!K295 -> 0 | J53: ='SA9'!L253+'SA9'!L255+'SA9'!L257+'SA9'!L259+'SA9'!L265+'SA9'!L2267+'SA9'!L269+'SA9'!L271+'SA9'!L277+'SA9'!L279+'SA9'!L281+'SA9'!L283+'SA9'!L289+'SA9'!L291+'SA9'!L293+'SA9'!L295 -> 0 | K53: ='SA9'!M253+'SA9'!M255+'SA9'!M257+'SA9'!M259+'SA9'!M265+'SA9'!M2267+'SA9'!M269+'SA9'!M271+'SA9'!M277+'SA9'!M279+'SA9'!M281+'SA9'!M283+'SA9'!M289+'SA9'!M291+'SA9'!M293+'SA9'!M295 -> 0
A54: Cost of Free Basic Services provided - Formal Settlements (R'000)
A55: Water (6 kilolitres per indigent household per month) | C55: ='SA1'!C22 -> 0.2 | D55: ='SA1'!D22 -> 0 | E55: ='SA1'!E22 -> 0 | F55: ='SA1'!F22 -> 0 | G55: ='SA1'!G22 -> 0 | H55: ='SA1'!H22 -> 0 | I55: ='SA1'!J22 -> 0 | J55: ='SA1'!K22 -> 0 | K55: ='SA1'!L22 -> 0
A56: Sanitation (free sanitation service to indigent households) | C56: ='SA1'!C28 -> 0 | D56: ='SA1'!D28 -> 0 | E56: ='SA1'!E28 -> 0 | F56: ='SA1'!F28 -> 0 | G56: ='SA1'!G28 -> 0 | H56: ='SA1'!H28 -> 0 | I56: ='SA1'!J28 -> 0 | J56: ='SA1'!K28 -> 0 | K56: ='SA1'!L28 -> 0
A57: Electricity/other energy (50kwh per indigent household per month) | C57: ='SA1'!C16 -> 0 | D57: ='SA1'!D16 -> 3754.52 | E57: ='SA1'!E16 -> 4401.72 | F57: ='SA1'!F16 -> 0 | G57: ='SA1'!G16 -> 6470 | H57: ='SA1'!H16 -> 6470 | I57: ='SA1'!J16 -> 3147000 | J57: ='SA1'!K16 -> 3291762 | K57: ='SA1'!L16 -> 3443183
A58: Refuse (removed once a week for indigent households) | C58: ='SA1'!C35 -> 0 | D58: ='SA1'!D35 -> 15423.25 | E58: ='SA1'!E35 -> 20055 | F58: ='SA1'!F35 -> 0 | G58: ='SA1'!G35 -> 0 | H58: ='SA1'!H35 -> 0 | I58: ='SA1'!J35 -> 530000 | J58: ='SA1'!K35 -> 554380 | K58: ='SA1'!L35 -> 579881
A59: Cost of Free Basic Services provided - Informal Formal Settlements (R'000) | C59: ='SA9'!E260+'SA9'!E272+'SA9'!E284+'SA9'!E296 -> 0 | D59: ='SA9'!F260+'SA9'!F272+'SA9'!F284+'SA9'!F296 -> 0 | E59: ='SA9'!G260+'SA9'!G272+'SA9'!G284+'SA9'!G296 -> 0 | F59: ='SA9'!H260+'SA9'!H272+'SA9'!H284+'SA9'!H296 -> 0 | G59: ='SA9'!I260+'SA9'!I272+'SA9'!I284+'SA9'!I296 -> 0 | H59: ='SA9'!J260+'SA9'!J272+'SA9'!J284+'SA9'!J296 -> 0 | I59: ='SA9'!K260+'SA9'!K272+'SA9'!K284+'SA9'!K296 -> 530000 | J59: ='SA9'!L260+'SA9'!L272+'SA9'!L284+'SA9'!L296 -> 554380 | K59: ='SA9'!M260+'SA9'!M272+'SA9'!M284+'SA9'!M296 -> 579327
A60: Total cost of FBS provided | B60: 8 | C60: =SUM(C55:C59) -> 0.2 | D60: =SUM(D55:D59) -> 19177.77 | E60: 24456.72 | F60: 0 | G60: 6470 | H60: 6470 | I60: 4207000 | J60: 4400522 | K60: 4602391
A62: Highest level of free service provided per household
A63: Property rates (R value threshold)
A64: Water (kilolitres per household per month)
A65: Sanitation (kilolitres per household per month)
A66: Sanitation (Rand per household per month)
A67: Electricity (kwh per household per month)
A68: Refuse (average litres per week)
A69: Revenue cost of subsidised services provided (R'000) | B69: 9
A70: Property rates (tariff adjustment) ( impermissable values per section 17 of MPRA)
A71: Property rates exemptions, reductions and rebates and impermissable values in excess of section 17 of MPRA) | C71: ='SA1'!C9 -> 6664543.75 | D71: ='SA1'!D9 -> 2981107.94 | E71: ='SA1'!E9 -> 7823351.55 | F71: ='SA1'!F9 -> 7156836 | G71: ='SA1'!G9 -> 7156836 | H71: ='SA1'!H9 -> 7156836 | I71: ='SA1'!J9 -> 7586249 | J71: ='SA1'!K9 -> 7935217 | K71: ='SA1'!L9 -> 8300237
A72: Water (in excess of 6 kilolitres per indigent household per month) | C72: ='SA1'!C21 -> 0 | D72: ='SA1'!D21 -> 0 | E72: ='SA1'!E21 -> 0 | F72: ='SA1'!F21 -> 0 | G72: ='SA1'!G21 -> 0 | H72: ='SA1'!H21 -> 0 | I72: ='SA1'!J21 -> 0 | J72: ='SA1'!K21 -> 0 | K72: ='SA1'!L21 -> 0
A73: Sanitation (in excess of free sanitation service to indigent households) | C73: ='SA1'!C27 -> 0 | D73: ='SA1'!D27 -> 0 | E73: ='SA1'!E27 -> 0 | F73: ='SA1'!F27 -> 0 | G73: ='SA1'!G27 -> 0 | H73: ='SA1'!H27 -> 0 | I73: ='SA1'!J27 -> 0 | J73: ='SA1'!K27 -> 0 | K73: ='SA1'!L27 -> 0
A74: Electricity/other energy (in excess of 50 kwh per indigent household per month) | C74: ='SA1'!C15 -> 0 | D74: ='SA1'!D15 -> 0 | E74: ='SA1'!E15 -> 0 | F74: ='SA1'!F15 -> 0 | G74: ='SA1'!G15 -> 0 | H74: ='SA1'!H15 -> 0 | I74: ='SA1'!J15 -> 0 | J74: ='SA1'!K15 -> 0 | K74: ='SA1'!L15 -> 0
A75: Refuse (in excess of one removal a week for indigent households) | C75: ='SA1'!C34 -> 0 | D75: ='SA1'!D34 -> 0 | E75: ='SA1'!E34 -> 0 | F75: ='SA1'!F34 -> 0 | G75: ='SA1'!G34 -> 0 | H75: ='SA1'!H34 -> 0 | I75: ='SA1'!J34 -> 0 | J75: ='SA1'!K34 -> 0 | K75: ='SA1'!L34 -> 0
A76: Municipal Housing - rental rebates
A77: Housing - top structure subsidies | B77: 6
A78: Other
A79: Total revenue cost of subsidised services provided | C79: =SUM(C70:C78) -> 6664543.75 | D79: =SUM(D70:D78) -> 2981107.94 | E79: 7823351.55 | F79: 7156836 | G79: 7156836 | H79: 7156836 | I79: 7586249 | J79: =SUM(J70:J78) -> 7935217 | K79: =SUM(K70:K78) -> 8300237
A80: =head27a -> References
A81: 1. Include services provided by another entity; e.g. Eskom
A82: 2. Stand distance <= 200m from dwelling
A83: 3. Stand distance > 200m from dwelling
A84: 4. Borehole, spring, rain-water tank etc.
A85: 5. Must agree to total number of households in municipal area (informal settlements receiving services must be included)
A86: 6. Include value of subsidy provided by municipality above provincial subsidy level
A87: 7. Show number of households receiving at least these levels of services completely free (informal settlements must be included)
A88: 8. Must reflect the cost to the municipality of providing the Free Basic Service
A89: 9. Reflect the cost of free or subsidised services in excess to the National policy that are not funded from the Free Basic Services component of the Equitable Share

Sheet SA1
A1: =muni&" - "&TableA1 -> LIM351 Blouberg - Supporting Table SA1 Supportinging detail to 'Budgeted Financial Performance'
A2: =desc -> Description | B2: =head27 -> Ref | C2: =head1b -> 2020/21 | D2: =head1A -> 2021/22 | E2: =Head1 -> 2022/23 | F2: =Head2 -> Current Year 2023/24 | J2: =Head3 -> 2024/25 Medium Term Revenue & Expenditure Framework
C3: =Head5 -> Audited Outcome | D3: =Head5 -> Audited Outcome | E3: =Head5 -> Audited Outcome | F3: =Head6 -> Original Budget | G3: =Head7 -> Adjusted Budget | H3: =Head8 -> Full Year Forecast | I3: =Head5b -> Pre-audit outcome | J3: =Head9 -> Budget Year 2024/25 | K3: =Head10 -> Budget Year +1 2025/26 | L3: =Head11 -> Budget Year +2 2026/27
A4: R thousand
A5: REVENUE ITEMS:
A6: Non-exchange revenue by source
A7: ='A4-FinPerf RE'!A5 -> Exchange Revenue | B7: 6
A8: Total Property Rates | C8: 34214648.88 | D8: 32478118.83 | E8: 33052338.69 | F8: 40127672 | G8: 40127672 | H8: 40127672 | I8: 102323049.8 | J8: 42172656 | K8: 44112598 | L8: 46141777
A9: Less Revenue Foregone (exemptions, reductions and rebates and impermissable values in excess of section 17 of MPRA) | C9: 6664543.75 | D9: 2981107.94 | E9: 7823351.55 | F9: 7156836 | G9: 7156836 | H9: 7156836 | I9: 34594165.17 | J9: 7586249 | K9: 7935217 | L9: 8300237
A10: Net Property Rates | C10: =C8-C9 -> 27550105.13 | D10: =D8-D9 -> 29497010.89 | E10: 25228987.14 | F10: 32970836 | G10: 32970836 | H10: 32970836 | I10: 67728884.61 | J10: 34586407 | K10: 36177381 | L10: 37841540
A12: Exchange revenue service charges
A13: ='A4-FinPerf RE'!A6 -> Service charges - Electricity | B13: 6
A14: ="Total "&A13 -> Total Service charges - Electricity | C14: 28825554.81 | D14: 29120084.75 | E14: 31494301.05 | F14: 57971356 | G14: 49871356 | H14: 49871356 | I14: 27319734.17 | J14: 58455333 | K14: 61144278 | L14: 63956915
A15: Less Revenue Foregone (in excess of 50 kwh per indigent household per month)
A16: Less Cost of Free Basis Services (50 kwh per indigent household per month) | C16: ='SA9'!E250 -> 0 | D16: ='SA9'!F250 -> 3754.52 | E16: ='SA9'!G250 -> 4401.72 | F16: ='SA9'!H250 -> 0 | G16: ='SA9'!I250 -> 6470 | H16: ='SA9'!J250 -> 6470 | I16: 4620.9 | J16: ='SA9'!K250 -> 3147000 | K16: ='SA9'!L250 -> 3291762 | L16: ='SA9'!M250 -> 3443183
A17: ="Net "& A13 -> Net Service charges - Electricity | C17: =C14-C15-C16 -> 28825554.81 | D17: =D14-D15-D16 -> 29116330.23 | E17: 31489899.33 | F17: 57971356 | G17: 49864886 | H17: 49864886 | I17: 27315113.27 | J17: 55308333 | K17: 57852516 | L17: 60513732
A19: ='A4-FinPerf RE'!A7 -> Service charges - Water | B19: 6
A20: ="Total "&A19 -> Total Service charges - Water | C20: 0 | D20: 0 | E20: 0 | F20: 0 | G20: 0 | H20: 0 | I20: 2866578.6 | J20: 0 | K20: 0 | L20: 0
A21: Less Revenue Foregone (in excess of 6 kilolitres per indigent household per month) | C21: 0 | D21: 0 | E21: 0 | F21: 0 | G21: 0 | H21: 0 | I21: 0 | J21: 0 | K21: 0 | L21: 0
A22: Less Cost of Free Basis Services (6 kilolitres per indigent household per month) | C22: ='SA9'!E262 -> 0.2 | D22: ='SA9'!F262 -> 0 | E22: ='SA9'!G262 -> 0 | F22: ='SA9'!H262 -> 0 | G22: ='SA9'!I262 -> 0 | H22: ='SA9'!J262 -> 0 | I22: 40000 | J22: ='SA9'!K262 -> 0 | K22: ='SA9'!L262 -> 0 | L22: ='SA9'!M262 -> 0
A23: ="Net "& A19 -> Net Service charges - Water | C23: =C20-C21-C22 -> -0.2 | D23: =D20-D21-D22 -> 0 | E23: 0 | F23: 0 | G23: 0 | H23: 0 | I23: 2826578.6 | J23: 0 | K23: 0 | L23: 0
A25: ='A4-FinPerf RE'!A8 -> Service charges - Waste Water Management
A26: ="Total "&A25 -> Total Service charges - Waste Water Management | C26: 2570.44 | D26: 34961.4 | E26: 19155.19 | F26: 0 | G26: 0 | H26: 0 | I26: 78956.61 | J26: 0 | K26: 0 | L26: 0
A27: Less Revenue Foregone (in excess of free sanitation service to indigent households)
A28: Less Cost of Free Basis Services (free sanitation service to indigent households) | C28: ='SA9'!E274 -> 0 | D28: ='SA9'!F274 -> 0 | E28: ='SA9'!G274 -> 0 | F28: ='SA9'!H274 -> 0 | G28: ='SA9'!I274 -> 0 | H28: ='SA9'!J274 -> 0 | I28: -1281786 | J28: ='SA9'!K274 -> 0 | K28: ='SA9'!L274 -> 0 | L28: ='SA9'!M274 -> 0
A29: ="Net "& A25 -> Net Service charges - Waste Water Management | C29: =C26-C27-C28 -> 2570.44 | D29: =D26-D27-D28 -> 34961.4 | E29: 19155.19 | F29: 0 | G29: 0 | H29: 0 | I29: =I26-I27-I28 -> 1360742.61 | J29: 0 | K29: 0 | L29: 0
A31: ='A4-FinPerf RE'!A9 -> Service charges - Waste Management | B31: 6
A32: Total refuse removal revenue | C32: 1436054.3 | D32: 1903316.59 | E32: 1988470 | F32: 3000000 | G32: 2500000 | H32: 2500000 | I32: 1741082.1 | J32: 3180000 | K32: 3326280 | L32: 3479289
A33: Total landfill revenue
A34: Less Revenue Foregone (in excess of one removal a week to indigent households)
A35: Less Cost of Free Basis Services (removed once a week to indigent households) | C35: ='SA9'!E286 -> 0 | D35: ='SA9'!F286 -> 15423.25 | E35: ='SA9'!G286 -> 20055 | F35: ='SA9'!H286 -> 0 | G35: ='SA9'!I286 -> 0 | H35: ='SA9'!J286 -> 0 | I35: 16712.5 | J35: ='SA9'!K286 -> 530000 | K35: ='SA9'!L286 -> 554380 | L35: ='SA9'!M286 -> 579881
A36: ="Net "& A31 -> Net Service charges - Waste Management | C36: =SUM(C32:C33)-C34-C35 -> 1436054.3 | D36: =SUM(D32:D33)-D34-D35 -> 1887893.34 | E36: 1968415 | F36: 3000000 | G36: 2500000 | H36: 2500000 | I36: 1724369.6 | J36: 2650000 | K36: 2771900 | L36: 2899408
A51: EXPENDITURE ITEMS:
A52: ='A4-FinPerf RE'!A34 -> Employee related costs
A53: Basic Salaries and Wages | B53: 2 | C53: 65331211.02 | D53: 67979361.74 | E53: 69057406.44 | F53: 74398483 | G53: 72518483 | H53: 72518483 | I53: 60639136.88 | J53: 75502405 | K53: 78952514 | L53: 82561329
A54: Pension and UIF Contributions | C54: 14947290.61 | D54: 16046223.68 | E54: 16538287.09 | F54: 18940604 | G54: 20010504 | H54: 20010504 | I54: 14157991.74 | J54: 20077074 | K54: 21000617 | L54: 21966649
A55: Medical Aid Contributions | C55: 4417210.72 | D55: 4566698.52 | E55: 5038151.56 | F55: 4657387 | G55: 5187387 | H55: 5187387 | I55: 4392754.4 | J55: 4936837 | K55: 5163930 | L55: 5401473
A56: Overtime | C56: 2592188.48 | D56: 3273366.85 | E56: 5410245.88 | F56: 1531000 | G56: 2581000 | H56: 2581000 | I56: 3822986.84 | J56: 1670100 | K56: 1746925 | L56: 1827283
A57: Performance Bonus | C57: 5725859.87 | D57: 5466032.16 | E57: 5280090.68 | F57: 8047094 | G57: 8047094 | H57: 8047094 | I57: 5122856.74 | J57: 8529933 | K57: 8922308 | L57: 9332737
A58: Motor Vehicle Allowance | C58: 16060921.88 | D58: 16340366.59 | E58: 16618893.64 | F58: 21650711 | G58: 20450711 | H58: 20450711 | I58: 14716247.28 | J58: 22979764 | K58: 24036834 | L58: 25142527
A59: Cellphone Allowance | C59: 2222186.83 | D59: 2322770.32 | E59: 3131851.06 | F59: 2818604 | G59: 3453604 | H59: 3453604 | I59: 2692175.06 | J59: 2987726 | K59: 3125163 | L59: 3268919
A60: Housing Allowances | C60: 208220.68 | D60: 213156.71 | E60: 269130.82 | F60: 396165 | G60: 416165 | H60: 416165 | I60: 234610.2 | J60: 419937 | K60: 439253 | L60: 459460
A61: Other benefits and allowances | C61: 448967.79 | D61: 497083.5 | E61: 885052.55 | F61: 585079 | G61: 585179 | H61: 585179 | I61: 801338.98 | J61: 620194 | K61: 648725 | L61: 678565
A62: Payments in lieu of leave | C62: 679705.07 | D62: 1172289.83 | E62: 1234794.34 | F62: 2422644 | G62: 2422644 | H62: 2422644 | I62: 1028131.1 | J62: 2468012 | K62: 2581541 | L62: 2700291
A63: Long service awards | C63: 0 | D63: 0 | E63: 0 | F63: 102224 | G63: 102224 | H63: 102224 | I63: 422441 | J63: 108358 | K63: 113342 | L63: 118556
A64: Post-retirement benefit obligations | B64: 4 | C64: 2297136 | D64: 1808345 | E64: 63567 | F64: 0 | G64: 0 | H64: 0 | I64: 0 | J64: 0 | K64: 0 | L64: 0
A65: Entertainment | C65: 0 | D65: 0 | E65: 0 | F65: 0 | G65: 0 | H65: 0 | I65: 0 | J65: 0 | K65: 0 | L65: 0
A66: Scarcity
A67: Acting and post related allowance | C67: 580444.44 | D67: 172574.07 | E67: 516177.91 | F67: 428996 | G67: 548996 | H67: 548996 | I67: 449410.16 | J67: 454741 | K67: 475659 | L67: 497538
A68: In kind benefits
A69: sub-total | B69: 5 | C69: =SUM(C53:C68) -> 115511343.4 | D69: =SUM(D53:D68) -> 119858269 | E69: 124043649 | F69: 135978991 | G69: 136323991 | H69: 136323991 | I69: 108480080.4 | J69: 140755081 | K69: 147206811 | L69: 153955327
A70: Less: Employees costs capitalised to PPE | C70: 0 | D70: 0 | E70: 0 | F70: 0 | G70: 0 | H70: 0 | I70: 0 | J70: 0 | K70: 0 | L70: 0
A71: ="Total "&A52 -> Total Employee related costs | B71: 1 | C71: =C69-C70 -> 115511343.4 | D71: =D69-D70 -> 119858269 | E71: 124043649 | F71: 135978991 | G71: 136323991 | H71: 136323991 | I71: 108480080.4 | J71: 140755081 | K71: 147206811 | L71: 153955327
A78: ='A4-FinPerf RE'!A39 -> Depreciation and amortisation
A79: Depreciation of Property, Plant & Equipment | C79: 29353290.2 | D79: 30354713.67 | E79: 31416344.62 | F79: 37417907 | G79: 37052907 | H79: 37052907 | I79: 23270102.46 | J79: 33251135 | K79: 34780691 | L79: 36380600
A80: Lease amortisation | C80: 65895.72 | D80: 65894.76 | E80: 65894.76 | F80: 250000 | G80: 250000 | H80: 250000 | I80: 49647 | J80: 262500 | K80: 274575 | L80: 287205
A81: Capital asset impairment | C81: 0 | D81: 0 | E81: 0 | F81: 0 | G81: 0 | H81: 0 | I81: 0 | J81: 0 | K81: 0 | L81: 0
A83: ="Total "&LEFT(A78,35) -> Total Depreciation and amortisation | B83: 1 | C83: =SUM(C79:C81) -> 29419185.92 | D83: =SUM(D79:D81) -> 30420608.43 | E83: 31482239.38 | F83: 37667907 | G83: 37302907 | H83: 37302907 | I83: 23319749.46 | J83: 33513635 | K83: 35055266 | L83: 36667805
A85: Bulk purchases - electricity
A86: Electricity bulk purchases | C86: 36471695.57 | D86: 50884659.64 | E86: 52983493.47 | F86: 60000000 | G86: 60000000 | H86: 60000000 | I86: 47013721.54 | J86: 61440000 | K86: 64266240 | L86: 67222487
A88: Total bulk purchases | B88: 1 | C88: =SUM(C86:C87) -> 36471695.57 | D88: =SUM(D86:D87) -> 50884659.64 | E88: 52983493.47 | F88: 60000000 | G88: 60000000 | H88: 60000000 | I88: 47013721.54 | J88: 61440000 | K88: 64266240 | L88: 67222487
A90: Transfers and grants
A91: Cash transfers and grants | C91: ='SA21'!C32 -> 0 | D91: ='SA21'!D32 -> 0 | E91: ='SA21'!E32 -> 0 | F91: ='SA21'!F32 -> 0 | G91: ='SA21'!G32 -> 0 | H91: ='SA21'!H32 -> 0 | I91: ='SA21'!I32 -> 0 | J91: ='SA21'!J32 -> 0 | K91: ='SA21'!K32 -> 0 | L91: ='SA21'!L32 -> 0
A92: Non-cash transfers and grants | C92: ='SA21'!C65 -> 0 | D92: ='SA21'!D65 -> 49860 | E92: ='SA21'!E65 -> 0 | F92: ='SA21'!F65 -> 0 | G92: ='SA21'!G65 -> 0 | H92: ='SA21'!H65 -> 0 | I92: ='SA21'!I65 -> 0 | J92: ='SA21'!J65 -> 0 | K92: ='SA21'!K65 -> 0 | L92: ='SA21'!L65 -> 0
A93: Total transfers and grants | B93: 1 | C93: =SUM(C91:C92) -> 0 | D93: =SUM(D91:D92) -> 49860 | E93: 0 | F93: 0 | G93: 0 | H93: 0 | I93: 0 | J93: 0 | K93: 0 | L93: 0
A95: Contracted Services
A96: Outsourced Services | C96: 25099737.95 | D96: 23913021.59 | E96: 27554709.24 | F96: 38554163 | G96: 38153418 | H96: 38153418 | I96: 30543540.86 | J96: 37675359 | K96: 37311195 | L96: 17145193
A97: Consultants and Professional Services | C97: 31871785.89 | D97: 31551661.72 | E97: 29617146.55 | F97: 15332464 | G97: 16199764 | H97: 16199764 | I97: 11672751.46 | J97: 10892603 | K97: 11313163 | L97: 11846169
A98: Contractors | C98: 7042658.7 | D98: 5487480.32 | E98: 4047116.41 | F98: 6084424 | G98: 4386844 | H98: 4386844 | I98: 2845525.09 | J98: 5719354 | K98: 5982444 | L98: 6257639
A127: Total contracted services | C127: =SUM(C96:C98) -> 64014182.54 | D127: =SUM(D96:D98) -> 60952163.63 | E127: 61218972.2 | F127: 59971051 | G127: 58740026 | H127: 58740026 | I127: 45061817.41 | J127: 54287316 | K127: 54606802 | L127: 35249001
A129: Operational Costs
A130: Collection costs | C130: 1379708.7 | D130: 1007342.82 | E130: 1016241.81 | F130: 1050000 | G130: 1050000 | H130: 1050000 | I130: 0 | J130: 1101450 | K130: 1152117 | L130: 1205114
A131: Contributions to 'other' provisions | C131: 0 | D131: 0 | E131: 0 | F131: 0 | G131: 0 | H131: 0 | I131: 0 | J131: 0 | K131: 0 | L131: 0
A133: Audit fees | C133: 3405711.6 | D133: 4559574.17 | E133: 4370568.59 | F133: 5000000 | G133: 5000000 | H133: 5000000 | I133: 4754783.6 | J133: 5245000 | K133: 5486270 | L133: 5738638
A136: Other Operational Costs | C136: 31168016.46 | D136: 35392041.29 | E136: 49641898.42 | F136: 57027218 | G136: 61523398 | H136: 61523398 | I136: 46056520.69 | J136: 60054676 | K136: 62810292 | L136: 65699562
A157: Total Operational Costs | B157: 1 | C157: =+C130+C131+C133+C136 -> 35953436.76 | D157: =+D130+D131+D133+D136 -> 40958958.28 | E157: 55028708.82 | F157: 63077218 | G157: 67573398 | H157: 67573398 | I157: 50811304.29 | J157: 66401126 | K157: 69448679 | L157: 72643314
A159: Repairs and Maintenance by Expenditure Item | B159: 8
A160: Employee related costs
A161: Inventory Consumed (Project Maintenance) | C161: 0 | D161: 0 | E161: 0 | F161: 0 | G161: 0 | H161: 0 | I161: 0 | J161: 0 | K161: 0 | L161: 0
A162: Contracted Services | C162: 15786232.36 | D162: 16552287.61 | E162: 5640543.59 | F162: 6818424 | G162: 9167144 | H162: 9167144 | I162: 6626945.45 | J162: 5719368 | K162: 5982459 | L162: 6257655
A163: Operational Costs | C163: 250839.66 | D163: 195632.15 | E163: 190913.92 | F163: 2001761 | G163: 1701761 | H163: 1701761 | I163: 162279.49 | J163: 211648 | K163: 221384 | L163: 231567
A164: Total Repairs and Maintenance Expenditure | B164: 9 | C164: =SUM(C160:C163) -> 16037072.02 | D164: =SUM(D160:D163) -> 16747919.76 | E164: 5831457.51 | F164: 8820185 | G164: 10868905 | H164: 10868905 | I164: 6789224.94 | J164: 5931016 | K164: 6203843 | L164: 6489222
A166: Inventory Consumed
A167: Inventory Consumed - Water | C167: =-'SA3'!C37 -> 0 | D167: =-'SA3'!D37 -> 0 | E167: =-'SA3'!E37 -> 0 | F167: =-'SA3'!F37 -> 0 | G167: =-'SA3'!G37 -> 0 | H167: =-'SA3'!H37 -> 0 | I167: =-'SA3'!I37 -> 0 | J167: =-'SA3'!J37 -> 0 | K167: =-'SA3'!K37 -> 0 | L167: =-'SA3'!L37 -> 0
A168: Inventory Consumed - Other | C168: =-'SA3'!C66-'SA3'!C75-'SA3'!C82-'SA3'!C90-'SA3'!C98 -> 4843585 | D168: =-'SA3'!D66-'SA3'!D75-'SA3'!D82-'SA3'!D90-'SA3'!D98 -> 6420489 | E168: =-'SA3'!E66-'SA3'!E75-'SA3'!E82-'SA3'!E90-'SA3'!E98 -> 3569119 | F168: =-'SA3'!F66-'SA3'!F75-'SA3'!F82-'SA3'!F90-'SA3'!F98 -> 5854960 | G168: =-'SA3'!G66-'SA3'!G75-'SA3'!G82-'SA3'!G90-'SA3'!G98 -> 5066080 | H168: =-'SA3'!H66-'SA3'!H75-'SA3'!H82-'SA3'!H90-'SA3'!H98 -> 5066080 | I168: =-'SA3'!I66-'SA3'!I75-'SA3'!I82-'SA3'!I90-'SA3'!I98 -> 1047291.38 | J168: =-'SA3'!J66-'SA3'!J75-'SA3'!J82-'SA3'!J90-'SA3'!J98 -> 5337183 | K168: =-'SA3'!K66-'SA3'!K75-'SA3'!K82-'SA3'!K90-'SA3'!K98 -> 5582693 | L168: =-'SA3'!L66-'SA3'!L75-'SA3'!L82-'SA3'!L90-'SA3'!L98 -> 5833915
A169: Total Inventory Consumed & Other Material | C169: =SUM(C167:C168) -> 4843585 | D169: =SUM(D167:D168) -> 6420489 | E169: 3569119 | F169: 5854960 | G169: 5066080 | H169: 5066080 | I169: 1047291.38 | J169: 5337183 | K169: 5582693 | L169: 5833915
A171: check | C171: =C164-SA34c!C175 -> 0 | D171: =D164-SA34c!D175 -> 0 | E171: =E164-SA34c!E175 -> 0 | F171: =F164-SA34c!F175 -> 0 | G171: =G164-SA34c!G175 -> 0 | H171: =H164-SA34c!H175 -> 0 | J171: =J164-SA34c!I175 -> 0 | K171: =K164-SA34c!J175 -> 0 | L171: =L164-SA34c!K175 -> 0
A172: =head27a -> References
A173: 1. Must reconcile with 'Budgeted Financial Performance (Revenue and Expenditure)
A174: 2. Must reconcile to supporting documentation on staff salaries
A176: 4. Expenditure to meet any 'unfunded obligations'
A177: 5 This sub-total must agree with the total on SA22, but excluding councillor and board member items
A178: 6. Include a note for each revenue item that is affected by 'revenue foregone'
A180: 8. Repairs and Maintenance is not a GRAP item. However to facilitate transparency, municipalities must provide a breakdown of the amounts included in the relevant GRAP items that will be spent on Repairs and Maintenance.
A181: 9. Must reconcile with Repairs and Maintenance by Asset Class (Total Repairs and Maintenance) on Table SA34c.

Sheet SA2
A1: =muni&" - "&TableA2 -> LIM351 Blouberg - Supporting Table SA2 Matrix Financial Performance Budget (revenue source/expenditure type and dept.)
A2: =desc -> Description | B2: =head27 -> Ref | C2: ='A3-FinPerf V'!A5 -> Vote 01 - Executive & Council | D2: ='A3-FinPerf V'!A6 -> Vote 02 - Finance And Administration | E2: ='A3-FinPerf V'!A7 -> Vote 03 - Community Service | F2: ='A3-FinPerf V'!A8 -> Vote 04 - Public And Safety | G2: ='A3-FinPerf V'!A9 -> Vote 05 - Waste Management | H2: ='A3-FinPerf V'!A10 -> Vote 06 - Roads Services | I2: ='A3-FinPerf V'!A11 -> Vote 07 - Econominc Development And Planning | J2: ='A3-FinPerf V'!A12 -> Vote 08 - | K2: ='A3-FinPerf V'!A13 -> Vote 09 - | L2: ='A3-FinPerf V'!A14 -> Vote 10 - | M2: ='A3-FinPerf V'!A15 -> Vote 11 - | N2: ='A3-FinPerf V'!A16 -> Vote 12 - | O2: ='A3-FinPerf V'!A17 -> Vote 13 - | P2: ='A3-FinPerf V'!A18 -> Vote 14 - | Q2: ='A3-FinPerf V'!A19 -> Vote 15 - Other | R2: Total
A3: R thousand | B3: 1 | C3: R'000 | D3: R'000 | E3: R'000 | F3: R'000 | G3: R'000 | H3: R'000 | Q3: R'000 | R3: R'000
A4: Revenue
A5: Exchange Revenue
A6: Service charges - Electricity | G6: 55308333 | R6: =SUM(C6:Q6) -> 55308333
A7: Service charges - Water | G7: 0 | R7: =SUM(C7:Q7) -> 0
A8: Service charges - Waste Water Management | G8: 0 | R8: 0
A9: Service charges - Waste Management | H9: 2650000 | R9: 2650000
A10: Sale of Goods and Rendering of Services | E10: 0 | F10: 15735 | H10: 31800 | I10: 368555 | R10: 416090
A11: Agency services | H11: 314700 | R11: 314700
A12: Interest | R12: 0
A13: Interest earned from Receivables | E13: 0 | G13: 750000 | H13: 750000 | R13: 1500000
A14: Interest earned from Current and Non Current Assets | E14: 8063596 | R14: 8063596
A15: Dividends | R15: 0
A16: Rent on Land | E16: 776053 | H16: 0 | I16: 150000 | R16: 926053
A17: Rental from Fixed Assets | E17: 0 | R17: 0
A18: Licence and permits | E18: 0 | F18: 0 | H18: 5245000 | I18: 0 | R18: 5245000
A19: Operational Revenue | D19: 0 | E19: 0 | F19: 294857 | H19: 0 | I19: 2000000 | R19: 2294857
A20: Non-Exchange Revenue
A21: Property rates | E21: 34586407 | R21: =SUM(C21:Q21) -> 34586407
A22: Surcharges and Taxes | R22: 0
A23: Fines, penalties and forfeits | E23: 0 | G23: 228225 | H23: 2573500 | R23: 2801725
A24: Licences or permits | H24: 0 | R24: 0
A25: Transfer and subsidies - Operational | C25: 0 | D25: 0 | E25: 248666000 | F25: 0 | G25: 0 | H25: 2005000 | I25: 0 | R25: 250671000
A26: Interest | E26: 1328478 | R26: 1328478
A27: Fuel Levy | R27: 0
A28: Operational Revenue | R28: 0
A29: Gains on disposal of Assets | D29: 0 | E29: 0 | F29: 0 | G29: 0 | H29: 0 | I29: 0 | R29: 0
A30: Other Gains | E30: 0 | R30: 0
A31: Discontinued Operations | R31: 0
A32: Total Revenue (excluding capital transfers and contributions) | C32: =SUM(C6:C19)+SUM(C21:C31) -> 0 | D32: =SUM(D6:D19)+SUM(D21:D31) -> 0 | E32: 293420534 | F32: 310592 | G32: 56286558 | H32: 13570000 | I32: 2518555 | J32: 0 | K32: 0 | L32: 0 | M32: 0 | N32: 0 | O32: 0 | P32: 0 | Q32: 0 | R32: 366106239
A33: Expenditure
A34: Employee related costs | C34: 0 | D34: 19218606 | E34: 20487012 | F34: 35152861 | G34: 25385607 | H34: 29869902 | I34: 10641093 | R34: =SUM(C34:Q34) -> 140755081
A35: Remuneration of councillors | C35: 21997665 | R35: =SUM(C35:Q35) -> 21997665
A36: Bulk purchases - electricity | G36: 61440000 | R36: 61440000
A37: Inventory consumed | E37: 0 | F37: 5337183 | G37: 0 | H37: 0 | R37: 5337183
A38: Debt impairment | D38: 0 | E38: 29720703 | F38: 0 | G38: 17586113 | H38: 1863743 | I38: 0 | R38: 49170559
A39: Depreciation and amortisation | D39: 25711 | E39: 2527758 | F39: 1929891 | G39: 20245467 | H39: 8777796 | I39: 7012 | R39: 33513635
A40: Interest | R40: 0
A41: Contracted services | C41: 1683039 | D41: 21757392 | E41: 6673950 | F41: 4202073 | G41: 2344885 | H41: 14037338 | I41: 3588639 | R41: 54287316
A42: Transfers and subsidies | C42: 0 | F42: 0 | I42: 0 | R42: 0
A43: Irrecoverable debts written off | E43: 0 | G43: 0 | H43: 0 | R43: 0
A44: Operational costs | C44: 1527762 | D44: 7852946 | E44: 8439415 | F44: 42296890 | G44: 1780271 | H44: 2205846 | I44: 2297996 | R44: 66401126
A45: Losses on disposal of Assets | D45: 0 | E45: 0 | F45: 0 | G45: 0 | H45: 0 | I45: 0 | R45: 0
A46: Other Losses | E46: 0 | F46: 0 | R46: 0
A47: Total Expenditure | C47: =SUM(C34:C46) -> 25208466 | D47: =SUM(D34:D46) -> 48854655 | E47: 67848838 | F47: 88918898 | G47: 128782343 | H47: 56754625 | I47: 16534740 | J47: 0 | K47: 0 | L47: 0 | M47: 0 | N47: 0 | O47: 0 | P47: 0 | Q47: 0 | R47: =SUM(R34:R46) -> 432902565
A48: Surplus/(Deficit) | C48: =+C32-C47 -> -25208466 | D48: =+D32-D47 -> -48854655 | E48: 225571696 | F48: -88608306 | G48: -72495785 | H48: -43184625 | I48: -14016185 | J48: 0 | K48: 0 | L48: 0 | M48: 0 | N48: 0 | O48: 0 | P48: 0 | Q48: 0 | R48: -66796326
A49: Transfers and subsidies - capital (monetary allocations) | G49: 15716000 | I49: 51769000 | R49: =SUM(C49:Q49) -> 67485000
A50: Transfers and subsidies - capital (in-kind) | R50: =SUM(C50:Q50) -> 0
A51: Surplus/(Deficit) after capital transfers & contributions | C51: =SUM(C48:C50) -> -25208466 | D51: =SUM(D48:D50) -> -48854655 | E51: 225571696 | F51: -88608306 | G51: -56779785 | H51: -43184625 | I51: 37752815 | J51: 0 | K51: 0 | L51: 0 | M51: 0 | N51: 0 | O51: 0 | P51: 0 | Q51: 0 | R51: 688674
A52: =head27a -> References
A53: 1. Departmental columns to be based on municipal organisation structure
R54: ='A4-FinPerf RE'!J51-'SA2'!#REF! -> 

Sheet SA3
A1: =muni&" - "&TableA3 -> LIM351 Blouberg - Supporting Table SA3 Supportinging detail to 'Budgeted Financial Position'
A2: =desc -> Description | B2: =head27 -> Ref | C2: =head1b -> 2020/21 | D2: =head1A -> 2021/22 | E2: =Head1 -> 2022/23 | F2: =Head2 -> Current Year 2023/24 | J2: =Head3 -> 2024/25 Medium Term Revenue & Expenditure Framework
C3: =Head5 -> Audited Outcome | D3: =Head5 -> Audited Outcome | E3: =Head5 -> Audited Outcome | F3: =Head6 -> Original Budget | G3: =Head7 -> Adjusted Budget | H3: =Head8 -> Full Year Forecast | I3: =Head5b -> Pre-audit outcome | J3: =Head9 -> Budget Year 2024/25 | K3: =Head10 -> Budget Year +1 2025/26 | L3: =Head11 -> Budget Year +2 2026/27
A4: R thousand
A5: ASSETS
A6: Trade and other receivables from exchange transactions
A7: Electricity | C7: 20115209.82 | D7: 21315171.86 | E7: 27048683.51 | F7: 21329836 | G7: 21329836 | H7: 21329836 | I7: 30180690.09 | J7: 20792849 | K7: 21937814 | L7: 25617023
A8: Water | C8: 0 | D8: 0 | E8: 0 | F8: 0 | G8: 0 | H8: 0 | I8: 3306596.44 | J8: 0 | K8: 0 | L8: 0
A9: Waste | C9: 3396686.4 | D9: 5090355.41 | E9: 6968356.49 | F9: 5042345 | G9: 5542345 | H9: 5542345 | I9: 8695114.65 | J9: 5491457 | K9: 5555767 | L9: 5805777
A10: Waste Water | C10: 0 | D10: 0 | E10: 0 | F10: 0 | G10: 0 | H10: 0 | I10: 1475216.31 | J10: 0 | K10: 0 | L10: 0
A11: Other trade receivables from exchange transactions | C11: 1734778.88 | D11: 1767727.62 | E11: 3023932.56 | F11: 1742959 | G11: 1742959 | H11: 1742959 | I11: 3325685 | J11: 0 | K11: 0 | L11: 0
A12: Gross: Trade and other receivables from exchange transactions | C12: =SUM(C7:C11) -> 25246675.1 | D12: =SUM(D7:D11) -> 28173254.89 | E12: 37040972.56 | F12: 28115140 | G12: 28615140 | H12: 28615140 | I12: 46983302.49 | J12: 26284306 | K12: 27493581 | L12: 31422800
A13: Less: Impairment for debt | C13: =SUM(C14:C18) -> -13993175.84 | D13: =SUM(D14:D18) -> -17200121.94 | E13: -23995437.49 | F13: -6244570 | G13: -6244570 | H13: -6244570 | I13: -23995437.49 | J13: -21634401 | K13: -22629583 | L13: -23647915
A14: Impairment for Electricity | C14: -10543557.07 | D14: -13281317.2 | E14: -17355009.35 | F14: -2719978 | G14: -2719978 | H14: -2719978 | I14: -17355009.35 | J14: -17355009 | K14: -18153339 | L14: -18970240
A15: Impairment for Water | C15: 0 | D15: 0 | E15: 0 | F15: 0 | G15: 0 | H15: 0 | I15: 0 | J15: 0 | K15: 0 | L15: 0
A16: Impairment for Waste | C16: -1623127.04 | D16: -2525553.74 | E16: -4279392.78 | F16: -2525553 | G16: -2525553 | H16: -2525553 | I16: -4279392.78 | J16: -4279392 | K16: -4476244 | L16: -4677675
A17: Impairment for Waste Water | C17: 0 | D17: 0 | E17: 0 | F17: 0 | G17: 0 | H17: 0 | I17: 0 | J17: 0 | K17: 0 | L17: 0
A18: Impairment for other trade receivalbes from exchange transactions | C18: -1826491.73 | D18: -1393251 | E18: -2361035.36 | F18: -999039 | G18: -999039 | H18: -999039 | I18: -2361035.36 | J18: 0 | K18: 0 | L18: 0
A19: Total net Trade and other receivables from Exchange Transactions | C19: =+C12+C13 -> 11253499.26 | D19: =+D12+D13 -> 10973132.95 | E19: 13045535.07 | F19: 21870570 | G19: 22370570 | H19: 22370570 | I19: 22987865 | J19: 4649905 | K19: 4863998 | L19: 7774885
A21: Receivables from non-exchange transactions
A22: Property rates | C22: 21758790.7 | D22: -26910992.02 | E22: 79469592.52 | F22: 954575281 | G22: 105015484 | H22: 105015484 | I22: 127251016.6 | J22: 91574195 | K22: 94853827 | L22: 94886327
A23: Less: Impairment of Property rates | C23: -2824492.18 | D23: 1216433.38 | E23: -62431196.96 | F23: -13172698 | G23: -61072698 | H23: -61072698 | I23: -62431196.96 | J23: -49526193 | K23: -51804397 | L23: -54135597
A24: Net Property rates | C24: =+C22+C23 -> 18934298.52 | D24: =+D22+D23 -> -25694558.64 | E24: 17038395.56 | F24: 941402583 | G24: 43942786 | H24: 43942786 | I24: 64819819.63 | J24: 42048002 | K24: 43049430 | L24: 40750730
A25: Other receivables from non-exchange transactions | C25: 6082477.05 | D25: 6444527.05 | E25: 7342879.05 | F25: 6444527 | G25: 6444527 | H25: 6444527 | I25: 7342879.05 | J25: 0 | K25: 0 | L25: 0
A26: Impairment for other receivalbes from non-exchange transactions | C26: -5619977.05 | D26: -5999927.05 | E26: -6193008.6 | F26: -5999927 | G26: -5999927 | H26: -5999927 | I26: -6193008.6 | J26: -6119925 | K26: -6401442 | L26: -6689506
A27: Net other receivables from non-exchange transactions | C27: =+C25+C26 -> 462500 | D27: =+D25+D26 -> 444600 | E27: 1149870.45 | F27: 444600 | G27: 444600 | H27: 444600 | I27: 1149870.45 | J27: -6119925 | K27: -6401442 | L27: -6689506
A28: Total net Receivables from non-exchange transactions | C28: =+C24+C27 -> 19396798.52 | D28: =+D24+D27 -> -25249958.64 | E28: 18188266.01 | F28: 941847183 | G28: 44387386 | H28: 44387386 | I28: 65969690.08 | J28: 35928077 | K28: 36647988 | L28: 34061224
A30: Inventory
A31: Water
A32: Opening Balance | C32: 0 | D32: =C61 -> 0 | E32: =D61 -> 0 | F32: =E61 -> 0 | G32: =E61 -> 0 | H32: =E61 -> 0 | I32: =E61 -> 0 | J32: =G61 -> 0 | K32: =J61 -> 0 | L32: =K61 -> 0
A33: System Input Volume | C33: =(SUM(C34:C36)) -> 0 | D33: =(SUM(D34:D36)) -> 0 | E33: 0 | F33: 0 | G33: 0 | H33: 0 | I33: 0 | J33: 0 | K33: 0 | L33: 0
A34: Water Treatment Works | F34: 0 | G34: 0 | H34: 0 | I34: 0 | J34: 0 | K34: 0 | L34: 0
A35: Bulk Purchases | F35: 0 | G35: 0 | H35: 0 | I35: 0 | J35: 0 | K35: 0 | L35: 0
A36: Natural Sources | F36: 0 | G36: 0 | H36: 0 | I36: 0 | J36: 0 | K36: 0 | L36: 0
A37: Authorised Consumption | B37: 6 | C37: =C38+C47 -> 0 | D37: =D38+D47 -> 0 | E37: 0 | F37: 0 | G37: 0 | H37: 0 | I37: 0 | J37: 0 | K37: 0 | L37: 0
A38: Billed Authorised Consumption | C38: =C43+C39 -> 0 | D38: =D43+D39 -> 0 | E38: 0 | F38: 0 | G38: 0 | H38: 0 | I38: 0 | J38: 0 | K38: 0 | L38: 0
A39: Billed Metered Consumption | C39: =SUM(C40:C42) -> 0 | D39: =SUM(D40:D42) -> 0 | E39: 0 | F39: 0 | G39: 0 | H39: 0 | I39: 0 | J39: 0 | K39: 0 | L39: 0
A40: Free Basic Water | F40: 0 | G40: 0 | H40: 0 | I40: 0 | J40: 0 | K40: 0 | L40: 0
A41: Subsidised Water | F41: 0 | G41: 0 | H41: 0 | I41: 0 | J41: 0 | K41: 0 | L41: 0
A42: Revenue Water | F42: 0 | G42: 0 | H42: 0 | I42: 0 | J42: 0 | K42: 0 | L42: 0
A43: Billed Unmetered Consumption | C43: =SUM(C44:C46) -> 0 | D43: =SUM(D44:D46) -> 0 | E43: 0 | F43: 0 | G43: 0 | H43: 0 | I43: 0 | J43: 0 | K43: 0 | L43: 0
A44: Free Basic Water | F44: 0 | G44: 0 | H44: 0 | I44: 0 | J44: 0 | K44: 0 | L44: 0
A45: Subsidised Water | F45: 0 | G45: 0 | H45: 0 | I45: 0 | J45: 0 | K45: 0 | L45: 0
A46: Revenue Water | F46: 0 | G46: 0 | H46: 0 | I46: 0 | J46: 0 | K46: 0 | L46: 0
A47: UnBilled Authorised Consumption | C47: =SUM(C48:C49) -> 0 | D47: =SUM(D48:D49) -> 0 | E47: 0 | F47: 0 | G47: 0 | H47: 0 | I47: 0 | J47: 0 | K47: 0 | L47: 0
A48: Unbilled Metered Consumption | F48: 0 | G48: 0 | H48: 0 | I48: 0 | J48: 0 | K48: 0 | L48: 0
A49: Unbilled Unmetered Consumption | F49: 0 | G49: 0 | H49: 0 | I49: 0 | J49: 0 | K49: 0 | L49: 0
A50: Water Losses | C50: =C51+C54 -> 0 | D50: =D51+D54 -> 0 | E50: 0 | F50: 0 | G50: 0 | H50: 0 | I50: 0 | J50: 0 | K50: 0 | L50: 0
A51: Apparent losses | C51: =SUM(C52:C53) -> 0 | D51: =SUM(D52:D53) -> 0 | E51: 0 | F51: 0 | G51: 0 | H51: 0 | I51: 0 | J51: 0 | K51: 0 | L51: 0
A52: Unauthorised Consumption | F52: 0 | G52: 0 | H52: 0 | I52: 0 | J52: 0 | K52: 0 | L52: 0
A53: Customer Meter Inaccuracies | F53: 0 | G53: 0 | H53: 0 | I53: 0 | J53: 0 | K53: 0 | L53: 0
A54: Real losses | C54: =SUM(C55:C59) -> 0 | D54: =SUM(D55:D59) -> 0 | E54: 0 | F54: 0 | G54: 0 | H54: 0 | I54: 0 | J54: 0 | K54: 0 | L54: 0
A55: Leakage on Transmission and Distribution Mains | F55: 0 | G55: 0 | H55: 0 | I55: 0 | J55: 0 | K55: 0 | L55: 0
A56: Leakage and Overflows at Storage Tanks/Reservoirs | F56: 0 | G56: 0 | H56: 0 | I56: 0 | J56: 0 | K56: 0 | L56: 0
A57: Leakage on Service Connections up to the point of Customer Meter | F57: 0 | G57: 0 | H57: 0 | I57: 0 | J57: 0 | K57: 0 | L57: 0
A58: Data Transfer and Management Errors | F58: 0 | G58: 0 | H58: 0 | I58: 0 | J58: 0 | K58: 0 | L58: 0
A59: Unavoidable Annual Real Losses | F59: 0 | G59: 0 | H59: 0 | I59: 0 | J59: 0 | K59: 0 | L59: 0
A60: Non-revenue Water | C60: =C47+C50 -> 0 | D60: =D47+D50 -> 0 | E60: 0 | F60: 0 | G60: 0 | H60: 0 | I60: 0 | J60: 0 | K60: 0 | L60: 0
A61: Closing Balance Water | C61: =C32+C33+C37+C50 -> 0 | D61: =D32+D33+D37+D50 -> 0 | E61: 0 | F61: 0 | G61: 0 | H61: 0 | I61: 0 | J61: 0 | K61: 0 | L61: 0
A63: Agricultural
A64: Opening Balance | D64: =C69 -> 0 | E64: =D69 -> 0 | F64: =E69 -> 0 | G64: =E69 -> 0 | H64: =E69 -> 0 | I64: =E69 -> 0 | J64: =G69 -> 0 | K64: =J69 -> 0 | L64: =K69 -> 0
A65: Acquisitions
A66: Issues | B66: 7
A67: Adjustments | B67: 8
A68: Write-offs | B68: 9
A69: Closing balance - Agricultural | C69: =SUM(C64:C68) -> 0 | D69: 0 | E69: 0 | F69: 0 | G69: 0 | H69: 0 | I69: 0 | J69: 0 | K69: 0 | L69: 0
A71: Consumables
A72: Standard Rated
A73: Opening Balance | C73: 3644856 | D73: =C78 -> 3448774 | E73: =D78 -> 1345372 | F73: =E78 -> 1679943 | G73: =E78 -> 1679943 | H73: =E78 -> 1679943 | I73: =E78 -> 1679943 | J73: =G78 -> 1679943 | K73: =J78 -> 1679943 | L73: =K78 -> 1679943
A74: Acquisitions | C74: 4647503 | D74: 4317087 | E74: 14160273 | F74: 5854960 | G74: 5066080 | H74: 5066080 | I74: 2293715 | J74: 5337183 | K74: 5582693 | L74: 5833915
A75: Issues | B75: 7 | C75: -4843585 | D75: -6420489 | E75: -3569119 | F75: -5854960 | G75: -5066080 | H75: -5066080 | I75: -1047291.38 | J75: -5337183 | K75: -5582693 | L75: -5833915
A76: Adjustments | B76: 8 | F76: 0 | G76: 0 | H76: 0 | I76: 0 | J76: 0 | K76: 0 | L76: 0
A77: Write-offs | B77: 9 | E77: -10256583 | F77: 0 | G77: 0 | H77: 0 | I77: 0 | J77: 0 | K77: 0 | L77: 0
A78: Closing balance - Consumables Standard Rated | C78: =SUM(C73:C77) -> 3448774 | D78: =SUM(D73:D77) -> 1345372 | E78: 1679943 | F78: 1679943 | G78: 1679943 | H78: 1679943 | I78: 2926366.62 | J78: 1679943 | K78: 1679943 | L78: 1679943
A79: Zero Rated
A80: Opening Balance | C80: 0 | D80: =C85 -> 0 | E80: =D85 -> 0 | F80: =E85 -> 0 | G80: =E85 -> 0 | H80: =E85 -> 0 | I80: =E85 -> 0 | J80: =G85 -> 0 | K80: =J85 -> 0 | L80: =K85 -> 0
A81: Acquisitions | F81: 0 | G81: 0 | H81: 0 | I81: 0 | J81: 0 | K81: 0 | L81: 0
A82: Issues | B82: 7 | F82: 0 | G82: 0 | H82: 0 | I82: 0 | J82: 0 | K82: 0 | L82: 0
A83: Adjustments | B83: 8 | F83: 0 | G83: 0 | H83: 0 | I83: 0 | J83: 0 | K83: 0 | L83: 0
A84: Write-offs | B84: 9 | F84: 0 | G84: 0 | H84: 0 | I84: 0 | J84: 0 | K84: 0 | L84: 0
A85: Closing balance - Consumables Zero Rated | C85: =SUM(C80:C84) -> 0 | D85: =SUM(D80:D84) -> 0 | E85: =SUM(E80:E84) -> 0 | F85: 0 | G85: 0 | H85: 0 | I85: 0 | J85: 0 | K85: 0 | L85: 0
A87: Finished Goods
A88: Opening Balance | D88: =C93 -> 0 | E88: =D93 -> 0 | F88: =E93 -> 0 | G88: =E93 -> 0 | H88: =E93 -> 0 | I88: =E93 -> 0 | J88: =G93 -> 0 | K88: =J93 -> 0 | L88: =K93 -> 0
A89: Acquisitions
A90: Issues | B90: 7
A91: Adjustments | B91: 8
A92: Write-offs | B92: 9
A93: Closing balance - Finished Goods | C93: =SUM(C88:C92) -> 0 | D93: =SUM(D88:D92) -> 0 | E93: 0 | F93: 0 | G93: 0 | H93: 0 | I93: 0 | J93: 0 | K93: 0 | L93: 0
A95: Materials and Supplies
A96: Opening Balance | C96: 0 | D96: =C101 -> 0 | E96: =D101 -> 0 | F96: =E101 -> 0 | G96: =E101 -> 0 | H96: =E101 -> 0 | I96: =E101 -> 0 | J96: =G101 -> 0 | K96: =J101 -> 0 | L96: =K101 -> 0
A97: Acquisitions | F97: 0 | G97: 0 | H97: 0 | I97: 0 | J97: 0 | K97: 0 | L97: 0
A98: Issues | B98: 7 | F98: 0 | G98: 0 | H98: 0 | I98: 0 | J98: 0 | K98: 0 | L98: 0
A99: Adjustments | B99: 8 | F99: 0 | G99: 0 | H99: 0 | I99: 0 | J99: 0 | K99: 0 | L99: 0
A100: Write-offs | B100: 9 | F100: 0 | G100: 0 | H100: 0 | I100: 0 | J100: 0 | K100: 0 | L100: 0
A101: Closing balance - Materials and Supplies | C101: =SUM(C96:C100) -> 0 | D101: =SUM(D96:D100) -> 0 | E101: 0 | F101: 0 | G101: 0 | H101: 0 | I101: 0 | J101: 0 | K101: 0 | L101: 0
A103: Work-in-progress
A104: Opening Balance | D104: =C107 -> 0 | E104: =D107 -> 0 | F104: =E107 -> 0 | G104: =E107 -> 0 | H104: =E107 -> 0 | I104: =E107 -> 0 | J104: =G107 -> 0 | K104: =J107 -> 0 | L104: =K107 -> 0
A105: Materials
A106: Transfers
A107: Closing balance - Work-in-progress | C107: =SUM(C104:C106) -> 0 | D107: =SUM(D104:D106) -> 0 | E107: 0 | F107: 0 | G107: 0 | H107: 0 | I107: 0 | J107: 0 | K107: 0 | L107: 0
A109: Housing Stock
A110: Opening Balance | D110: =C114 -> 0 | E110: =D114 -> 0 | F110: =E114 -> 0 | G110: =E114 -> 0 | H110: =E114 -> 0 | I110: =E114 -> 0 | J110: =G114 -> 0 | K110: =J114 -> 0 | L110: =K114 -> 0
A111: Acquisitions
A112: Transfers
A113: Sales
A114: Closing Balance - Housing Stock | C114: =+SUM(C110:C113) -> 0 | D114: =+SUM(D110:D113) -> 0 | E114: 0 | F114: 0 | G114: 0 | H114: 0 | I114: 0 | J114: 0 | K114: 0 | L114: 0
A116: Land
A117: Opening Balance | C117: 355228 | D117: =C123 -> 1194558 | E117: =D123 -> 1257710 | F117: =E123 -> 1217418 | G117: =E123 -> 1217418 | H117: =E123 -> 1217418 | I117: =E123 -> 1217418 | J117: =G123 -> 1217418 | K117: =J123 -> 1217418 | L117: =K123 -> 1217418
A118: Acquisitions | C118: 839330 | D118: 63152 | E118: -40292 | F118: 0 | G118: 0 | H118: 0 | I118: 0 | J118: 0 | K118: 0 | L118: 0
A119: Sales | F119: 0 | G119: 0 | H119: 0 | I119: 0 | J119: 0 | K119: 0 | L119: 0
A120: Adjustments | F120: 0 | G120: 0 | H120: 0 | I120: 0 | J120: 0 | K120: 0 | L120: 0
A121: Correction of Prior period errors | F121: 0 | G121: 0 | H121: 0 | I121: 0 | J121: 0 | K121: 0 | L121: 0
A122: Transfers | F122: 0 | G122: 0 | H122: 0 | I122: 0 | J122: 0 | K122: 0 | L122: 0
A123: Closing Balance - Land | C123: =SUM(C117:C122) -> 1194558 | D123: =SUM(D117:D122) -> 1257710 | E123: 1217418 | F123: 1217418 | G123: 1217418 | H123: 1217418 | I123: 1217418 | J123: 1217418 | K123: 1217418 | L123: 1217418
A124: Closing Balance - Inventory & Consumables | C124: =C61+C69+C78+C85+C93+C101+C107+C114+C123 -> 4643332 | D124: =D61+D69+D78+D85+D93+D101+D107+D114+D123 -> 2603082 | E124: 2897361 | F124: 2897361 | G124: 2897361 | H124: 2897361 | I124: 4143784.62 | J124: 2897361 | K124: 2897361 | L124: 2897361
A126: Property, plant and equipment (PPE)
A127: PPE at cost/valuation (excl. finance leases) | C127: 1457176519 | D127: 1520984057 | E127: 1564673749 | F127: 679747462 | G127: 1628036209 | H127: 1628036209 | I127: 1620125878 | J127: 1571064013 | K127: 1643333733 | L127: 1787675981
A128: Leases recognised as PPE | B128: 3 | C128: 499578.39 | D128: 982663.94 | E128: 76829047.82 | F128: 0 | G128: 84829049 | H128: 84829049 | I128: 76829047.82 | J128: 0 | K128: 0 | L128: 0
A129: Less: Accumulated depreciation | C129: 514371104.5 | D129: 544606348.2 | E129: 576281191.9 | F129: 529050214 | G129: 575938371 | H129: 575938371 | I129: 599551294.4 | J129: 453646825 | K129: 474514579 | L129: 495867735
A130: Total Property, plant and equipment (PPE) | B130: 2 | C130: =SUM(C127:C128)-C129 -> 943304993.2 | D130: =SUM(D127:D128)-D129 -> 977360372.5 | E130: 1065221605 | F130: 150697248 | G130: 1136926887 | H130: 1136926887 | I130: 1097403632 | J130: 1117417188 | K130: 1168819154 | L130: 1291808246
A132: LIABILITIES
A133: Current liabilities - Financial liabilities
A134: Short term loans (other than bank overdraft)
A135: Current portion of long-term liabilities | C135: 0 | D135: 0 | E135: 0 | F135: 0 | G135: 0 | H135: 0 | I135: 0 | J135: 9322788 | K135: 9751636 | L135: 10190459
A136: Total Current liabilities - Financial liabilities | C136: =SUM(C134:C135) -> 0 | D136: =SUM(D134:D135) -> 0 | E136: 0 | F136: 0 | G136: 0 | H136: 0 | I136: 0 | J136: 9322788 | K136: 9751636 | L136: 10190459
A138: Trade and other payables from exchange transactions
A139: Trade and other payables from exchange transactions | B139: 5 | C139: 49488538.59 | D139: 50691062.78 | E139: 72020176.35 | F139: 37171349 | G139: 43400697 | H139: 43400697 | I139: 54993680.37 | J139: 35483462 | K139: 37115702 | L139: 38785909
A140: Other trade payables from exchange transactions
A141: Trade payables from Non-exchange transactions: Unspent conditional Grants | C141: 394098.18 | D141: 24315315.17 | E141: 20158138.51 | F141: 10000000 | G141: 5335394 | H141: 5335394 | I141: 141789909.2 | J141: 23000000 | K141: 15690000 | L141: 16396050
A142: Trade payables from Non-exchange transactions: Other
A143: VAT | C143: 8817459.3 | D143: 14482627.86 | E143: 21406358.34 | F143: 5000000 | G143: 22178753 | H143: 22178753 | I143: 28215338.18 | J143: 5300000 | K143: 5543800 | L143: 5793271
A144: Total Trade and other payables from exchange transactions | B144: 2 | C144: =SUM(C139:C143) -> 58700096.07 | D144: =SUM(D139:D143) -> 89489005.81 | E144: 113584673.2 | F144: 52171349 | G144: 70914844 | H144: 70914844 | I144: 224998927.7 | J144: 63783462 | K144: 58349502 | L144: =SUM(L139:L143) -> 60975230
A145: Non current liabilities - Financial liabilities
A146: Borrowing | B146: 4 | C146: 0 | D146: 0 | E146: 14187045.3 | F146: 0 | G146: 14187046 | H146: 14187046 | I146: 14187045.3 | J146: 4864257 | K146: 13274649 | L146: 4470407
A147: Other financial liabilities | C147: 0 | D147: 774315.49 | E147: 0 | F147: 774315 | G147: 774315 | H147: 774315 | I147: 0 | J147: 0 | K147: 809933 | L147: 846380
A148: Total Non current liabilities - Financial liabilities | C148: =SUM(C146:C147) -> 0 | D148: =SUM(D146:D147) -> 774315.49 | E148: 14187045.3 | F148: 774315 | G148: 14961361 | H148: 14961361 | I148: 14187045.3 | J148: 4864257 | K148: 14084582 | L148: 5316787
A151: Non current liabilities - Long Term portion of trade payables | C151: =SUM(C152:C155) -> 0 | D151: =SUM(D152:D155) -> 0 | E151: 0 | F151: 0 | G151: 0 | H151: 0 | I151: 0 | J151: 0 | K151: 0 | L151: 0
A152: Elelctricty Bulk Purchases
A153: Payables and Accruals - General
A154: Water Bulk Purchases
A155: Municipal Debt Relief
A157: Provisions
A158: Retirement benefits
A160: Refuse landfill site rehabilitation | C160: 19739952.68 | D160: 23221539.68 | E160: 24246164.68 | F160: 18037377 | G160: 24646164 | H160: 24646164 | I160: 24246164.68 | J160: 22339560 | K160: 23367179 | L160: 20110437
A161: Other | C161: 0 | D161: 0 | E161: 0 | F161: 0 | G161: 0 | H161: 0 | I161: 0 | J161: 0 | K161: 0 | L161: 0
A162: Total Provisions | C162: =+C158+C160+C161 -> 19739952.68 | D162: =+D158+D160+D161 -> 23221539.68 | E162: 24246164.68 | F162: 18037377 | G162: 24646164 | H162: 24646164 | I162: =+I158+I160+I161 -> 24246164.68 | J162: =+J158+J160+J161 -> 22339560 | K162: 23367179 | L162: 20110437
A164: CHANGES IN NET ASSETS
A165: ='A6-FinPos'!A47 -> Accumulated surplus/(deficit)
A166: =A165&" - opening balance" -> Accumulated surplus/(deficit) - opening balance | C166: 1028165790 | D166: 1031443279 | E166: 1059619509 | F166: 1102222269 | G166: 1102474008 | H166: 1102474008 | I166: 1082169320 | J166: 1338627993 | K166: 1378591696 | L166: 1458848444
A167: GRAP adjustments | C167: 0 | D167: 0 | E167: 0 | F167: 0 | G167: 0 | H167: 0 | I167: 0 | J167: 0 | K167: 0 | L167: 0
A168: Restated balance | C168: =SUM(C166:C167) -> 1028165790 | D168: =SUM(D166:D167) -> 1031443279 | E168: =SUM(E166:E167) -> 1059619509 | F168: =SUM(F166:F167) -> 1102222269 | G168: 1102474008 | H168: 1102474008 | I168: 1082169320 | J168: 1338627993 | K168: 1378591696 | L168: 1458848444
A169: ='A4-FinPerf RE'!A48 -> Surplus/(Deficit) | C169: ='A4-FinPerf RE'!C56 -> 50626198.93 | D169: ='A4-FinPerf RE'!D56 -> 23591970.4 | E169: ='A4-FinPerf RE'!E56 -> 20656464.27 | F169: ='A4-FinPerf RE'!F56 -> 49493073 | G169: ='A4-FinPerf RE'!G56 -> 119322293 | H169: ='A4-FinPerf RE'!H56 -> 119322293 | I169: ='A4-FinPerf RE'!I56 -> 83811973.05 | J169: ='A4-FinPerf RE'!J56 -> 688674 | K169: ='A4-FinPerf RE'!K56 -> 15303482 | L169: ='A4-FinPerf RE'!L56 -> 3910953
A171: Transfers to/from Reserves | C171: 0 | D171: 0 | E171: 0 | F171: 0 | G171: 0 | H171: 0 | I171: 0 | J171: 0 | K171: 0 | L171: 0
A172: Depreciation offsets | C172: 0 | D172: 0 | E172: 0 | F172: 0 | G172: 0 | H172: 0 | I172: 0 | J172: 0 | K172: 0 | L172: 0
A173: Other adjustments | C173: -49861535 | D173: 0 | E173: 0 | F173: 0 | G173: 0 | H173: 0 | I173: 0 | J173: 0 | K173: 0 | L173: 0
A174: Accumulated Surplus/(Deficit) | B174: 1 | C174: =SUM(C168:C173) -> 1028930454 | D174: =SUM(D168:D173) -> 1055035250 | E174: =SUM(E168:E173) -> 1080275973 | F174: 1151715342 | G174: 1221796301 | H174: 1221796301 | I174: 1165981293 | J174: 1339316667 | K174: 1393895178 | L174: 1462759397
A175: Reserves
A176: Housing Development Fund
A177: Capital replacement | C177: 0 | D177: 0 | E177: 0 | F177: 0 | G177: 0 | H177: 0 | I177: 0 | J177: 0 | K177: 0 | L177: 0
A178: Self-insurance
A179: Other reserves
A180: Revaluation
A181: Total Reserves | B181: 2 | C181: =SUM(C176:C180) -> 0 | D181: =SUM(D176:D180) -> 0 | E181: 0 | F181: 0 | G181: 0 | H181: 0 | I181: 0 | J181: 0 | K181: 0 | L181: 0
A182: ='A6-FinPos'!A50 -> TOTAL COMMUNITY WEALTH/EQUITY | B182: 2 | C182: =C174+C181 -> 1028930454 | D182: =D174+D181 -> 1055035250 | E182: 1080275973 | F182: 1151715342 | G182: 1221796301 | H182: 1221796301 | I182: 1165981293 | J182: 1339316667 | K182: 1393895178 | L182: 1462759397
A184: =head27a -> References
A185: ="1. Must reconcile with "&'Template names'!F103 -> 1. Must reconcile with Table A4 Budgeted Financial Performance (revenue and expenditure)
A186: ="2. Must reconcile with "&'Template names'!F105 -> 2. Must reconcile with Table A6 Budgeted Financial Position
A187: 3. Leases treated as assets to be depreciated as the same as purchased/constructed assets. Includes PPP asset element accounted for as finance leases
A188: 4. Borrowing must reconcile to Table A17
A189: 5. Trade Payable should only include Trade Payables from Exchance Transactions ("True Creditors")
A190: 6. Inventory Consumed - Water - included under "Inventory Consumed" on Table A4 - Detail to be submitted on Table SA1
A191: 7. Inventry Consumed Other - included under "Inventory Consumed" on Table A4 - Detail to be submitted on Table SA1
A192: 8. Inventory Transfers/Adjustments (Include under gains/losses on Table A4)
A193: 9. Inventory Write-offs (Include under losses on Table A4)

Sheet SA4
A1: =muni&" - "&TableA4 -> LIM351 Blouberg - Supporting Table SA4 Reconciliation of IDP strategic objectives and budget (revenue)
A2: Strategic Objective | B2: Goal | C2: Goal Code | D2: =head27 -> Ref | E2: =head1b -> 2020/21 | F2: =head1A -> 2021/22 | G2: =Head1 -> 2022/23 | H2: =Head2 -> Current Year 2023/24 | K2: =Head3 -> 2024/25 Medium Term Revenue & Expenditure Framework
A3: R thousand | E3: =Head5 -> Audited Outcome | F3: =Head5 -> Audited Outcome | G3: =Head5 -> Audited Outcome | H3: =Head6 -> Original Budget | I3: =Head7 -> Adjusted Budget | J3: =Head8 -> Full Year Forecast | K3: =Head9 -> Budget Year 2024/25 | L3: =Head10 -> Budget Year +1 2025/26 | M3: =Head11 -> Budget Year +2 2026/27
A4: SPATIAL PLANNING | E4: 0 | F4: 0 | G4: 0 | H4: 0 | I4: 0 | J4: 0 | K4: 0 | L4: 0 | M4: 0
A5: GOOD GOVERNANCE AND PUBLIC PARTICIPATION | E5: 130640.69 | F5: 4408854.77 | G5: 6219635.72 | H5: 296084 | I5: 816084 | J5: 816084 | K5: 310592 | L5: 324879 | M5: 339824
A6: FINANCIAL VIABILITY AND MANAFEMENT | E6: 179917.97 | F6: 880891.61 | G6: 5870829.24 | H6: 9722374 | I6: 10012571 | J6: 10012571 | K6: 2518555 | L6: 2634408 | M6: 2755590
A7: LOCAL ECONOMIC DEVELOPMENT | E7: 269987573.7 | F7: 241305336.7 | G7: 268688251.5 | H7: 273007071 | I7: 279396873 | J7: 279396873 | K7: 293420534 | L7: 293367241 | M7: 286939216
A8: MUNICIPAL TRANSFORMATION AND ORGANISATION DEVELOMENT | E8: 6398983.05 | F8: 6592254.84 | G8: 6859627.97 | H8: 11378124 | I8: 11078124 | J8: 11078124 | K8: 13570000 | L8: 12096990 | M8: 12653452
A9: BASIC SERVICES AND INFRUSTRACTURE | E9: 29267188.12 | F9: 36381427.22 | G9: 32094707.33 | H9: 58586673 | I9: 54580203 | J9: 54580203 | K9: 56286558 | L9: 58875739 | M9: 61584024
A10: Allocations to other priorities | D10: 2
